Workbook

Sheet Instructions
B11: Tool version: 1.3 | C11: Last updated: April 9, 2024
B13: Instructions
B15: Tool description
B16: This tool is intended for a high-level and detailed analysis to assess coastal green-gray infrastructure projects in Mexico, Brazil, Guyana, and Suriname. It has been designed to conduct a preliminary cost-benefit analysis with varying levels of project information. The tool has been accompanied by dashboards and a printable one-pager to export the results from multiple runs.
B20: How to use this tool
B21: This tool is intended to be used by project managers during different levels of project assessment. The project inputs may be edited over time as more data is collected by the project team.This tool contains VBA-Macros to account for uncertainty in the analysis, and hence needs to be used in .xslm format only to maintain full tool functionality.
B25: General and detailed models
B26: The tool is divided into two sections based on the level of data available - general (blue tabs) and detailed models (orange tabs). Besides basic project data, the user of the tool is required to identify the models where project-specific detailed data is available. After which, the costs for each feature need to be added in the LCCA tab to reflect the life cycle costs of the project. The Ecosystem Service tab provides defaulted $ per hectare ($/ha) ecosystem service values associated with green-grey infrastructure typologies. You can select between yes/no for the tool to calculate the general ES values for the project. The second section of the tool are the detailed impact assessments where project-specific data is required to run the assessment. For instance, a hydrological simulation on the area of flood risk allows you to run the flood risk section or a selection of fish species in the fisheries section allows you to assess the effects of salinity on different fish species due to the project. Some of these detailed impacts are covered under the Ecosystem Service valuation - a toggle switch allows you to decide whether you want to run a general or detailed impact analysis.
B30: Inputs ranges and results
B31: Each section of the tool consists of average, minimum, and maximum data options that allow the user to account for uncertainty. These ranges are then run through a 1,000-iteration Monte Carlo function to deliver a range of results and metrics for each typology and impact.
B35: User guide reference
B36: A detailed user guide accompanies this tool to explain all functionalities may be found here:

Sheet General
B1: Title: General inputs for the project
B2: Notes: This sheet is intended to account for general project inputs that do not change as designs change. It is held consistent through the analysis as features are selected and un-selected. The key inputs include those of construction and project durations, project start date, location, and the currency in which the analysis should be computed. Additionally, this sheet allows the user to select impact areas where detailed data and information may be available to the project team.
B4: Legend: | C4: Required data
C5: Required List Selection
C6: Optional inputs
C7: Defaults not available
B9: Variable | C9: Unit | D9: Value (Average) | G9: Defaults
B10: General Project Inputs
B11: Project name | C11: text | D11: Isla Arena
B12: Country | C12: text | D12: Mexico
B13: City | C13: text | D13: No
B14: Construction start date | C14: dd/mm/yyyy
B15: Construction duration | C15: months
B16: Operations duration | C16: years
B17: Total project area | C17: m2
B18: Total number of people affected | C18: #
B19: Dollar year of analysis | C19: $Year | D19: 2023 | G19: Current year
B20: Discount rate | C20: % | D20: 0.03 | G20: 0.03
B21: Monte carlo switch | C21: On / off | D21: Off | G21: Off
B22: Currency for data inputted | C22: List | D22: US Dollar | G22: US Dollar
B23: Currency displayed in results | C23: List | D23: US Dollar | G23: US Dollar
B25: Model selection | C25: Unit | D25: Value (Average) | G25: Defaults
B26: Please select whether you have project specific information/data to use the custom models. The tool will run automated models if not.
B27: Raw materials | C27: List | D27: No | G27: No
B28: Food | C28: List | D28: No | G28: No
B29: Fisheries | C29: List | D29: No | G29: No
B30: Erosion mitigation | C30: List | D30: No | G30: No
B31: Seawater intrusion | C31: List | D31: No | G31: No
B32: Flood risk mitigation | C32: List | D32: No | G32: No
B33: Recreation | C33: List | D33: No | G33: No

Sheet Typology Inputs
B1: Title: Typology inputs for the project
B2: Notes: This sheet is intended to account for the linear and aerial extents for each project typology, as well as how the project area expects to grow every year. Additionally, this input sheet has the option to account for concrete used for the construction of grey infrastructure. The tool will automatically calculate sequestration benefits for any area of green infrastructure inputted in this sheet.
B4: Legend: | C4: Required inputs
C5: Required List Selection
C6: Optional inputs
C7: Defaults not available
B9: Variable | C9: Unit | D9: Value (Average) | E9: Value (Min) | F9: Value (Max) | G9: Value (Default - Autocase) | H9: Autocase comments
B10: MANGROVES
B11: Project area | C11: m2 | E11: =D11 -> 0 | F11: =D11 -> 0 | H11: =IF(F11<E11, "Please make sure that the Max value is higher than the Min value", IF(F11<D11, "Please make sure that the Max value is higher than the Average value",IF(E11>D11, "Make sure that the Min value is lower than the Average value","All Data Rules Complied"))) -> All Data Rules Complied
B12: Growth of project area per year | C12: % | E12: =D12 -> 0 | F12: =D12 -> 0 | H12: =IF(F12<E12, "Please make sure that the Max value is higher than the Min value", IF(F12<D12, "Please make sure that the Max value is higher than the Average value",IF(E12>D12, "Make sure that the Min value is lower than the Average value","All Data Rules Complied"))) -> All Data Rules Complied
B13: SEAGRASS
B14: Project area | C14: m2 | E14: =D14 -> 0 | F14: =D14 -> 0 | H14: =IF(F14<E14, "Please make sure that the Max value is higher than the Min value", IF(F14<D14, "Please make sure that the Max value is higher than the Average value",IF(E14>D14, "Make sure that the Min value is lower than the Average value","All Data Rules Complied"))) -> All Data Rules Complied
B15: Growth of project area per year | C15: % | E15: =D15 -> 0 | F15: =D15 -> 0 | H15: All Data Rules Complied
B16: SALT MARSH
B17: Project area | C17: m2 | E17: =D17 -> 0 | F17: =D17 -> 0 | H17: All Data Rules Complied
B18: Growth of project area per year | C18: % | E18: =D18 -> 0 | F18: =D18 -> 0 | H18: All Data Rules Complied
B19: SAND DUNE
B20: Project area | C20: m2 | E20: =D20 -> 0 | F20: =D20 -> 0 | H20: All Data Rules Complied
B21: Growth of project area per year | C21: % | E21: =D21 -> 0 | F21: =D21 -> 0 | H21: All Data Rules Complied
B22: ROCK BREAKWATER
B23: Surrounding project area affected by breakwaters | C23: m2 | E23: =D23 -> 0 | F23: =D23 -> 0 | H23: All Data Rules Complied
B24: Length of rock breakwaters | C24: m | E24: =D24 -> 0 | F24: =D24 -> 0 | H24: All Data Rules Complied
B25: Growth of project area per year | C25: % | E25: =D25 -> 0 | F25: =D25 -> 0 | H25: All Data Rules Complied
B26: EARTHEN LEVEE
B27: Surrounding project area affected by levees | C27: m2 | E27: =D27 -> 0 | F27: =D27 -> 0 | H27: All Data Rules Complied
B28: Length of the levee | C28: m | E28: =D28 -> 0 | F28: =D28 -> 0 | H28: All Data Rules Complied
B29: Growth of project area per year | C29: % | E29: =D29 -> 0 | F29: =D29 -> 0 | H29: All Data Rules Complied
B30: SEAWALL
B31: Surrounding project area affected by the wall | C31: m2 | E31: =D31 -> 0 | F31: =D31 -> 0 | H31: All Data Rules Complied
B32: Length of the seawall | C32: m | E32: 0 | F32: 0 | H32: All Data Rules Complied
B33: Is the seawall green or grey | C33: List | D33: Green
B34: Growth of project area per year | C34: % | E34: =D34 -> 0 | F34: =D34 -> 0 | H34: All Data Rules Complied
B35: CORAL REEF
B36: Project area | C36: m2 | E36: =D36 -> 0 | F36: =D36 -> 0 | H36: All Data Rules Complied
B37: Growth of project area per year | C37: % | E37: =D37 -> 0 | F37: =D37 -> 0 | H37: All Data Rules Complied
B38: MUDFLATS / TIDAL FLATS
B39: Project area | C39: m2 | E39: =D39 -> 0 | F39: =D39 -> 0 | H39: All Data Rules Complied
B40: Growth of project area per year | C40: % | E40: =D40 -> 0 | F40: =D40 -> 0 | H40: All Data Rules Complied
B41: COASTAL SYSTEMS
B42: Project area | C42: m2 | E42: =D42 -> 0 | F42: =D42 -> 0 | H42: All Data Rules Complied
B43: Growth of project area per year | C43: % | E43: =D43 -> 0 | F43: =D43 -> 0 | H43: All Data Rules Complied
B45: Materials used in construction
B46: Tons of concrete used per km2 of investment | C46: Unit | D46: Value (Average) | E46: Value (Min) | F46: Value (Max) | G46: Value (Default - Autocase) | H46: Autocase comments
B47: Rock breakwater | C47: metric tons / linear m | D47: 0 | E47: 0 | F47: 0 | H47: =IF(F47<E47, "Please make sure that the Max value is higher than the Min value", IF(F47<D47, "Please make sure that the Max value is higher than the Average value",IF(E47>D47, "Make sure that the Min value is lower than the Average value","All Data Rules Complied"))) -> All Data Rules Complied
B48: Earthen levee | C48: metric tons / linear m | D48: 0 | E48: 0 | F48: 0 | H48: =IF(F48<E48, "Please make sure that the Max value is higher than the Min value", IF(F48<D48, "Please make sure that the Max value is higher than the Average value",IF(E48>D48, "Make sure that the Min value is lower than the Average value","All Data Rules Complied"))) -> All Data Rules Complied
B49: Seawall | C49: metric tons / linear m | D49: 0 | E49: 0 | F49: 0 | H49: =IF(F49<E49, "Please make sure that the Max value is higher than the Min value", IF(F49<D49, "Please make sure that the Max value is higher than the Average value",IF(E49>D49, "Make sure that the Min value is lower than the Average value","All Data Rules Complied"))) -> All Data Rules Complied
B50: Coastal systems | C50: metric tons / m2 | D50: 0 | E50: 0 | F50: 0 | H50: =IF(F50<E50, "Please make sure that the Max value is higher than the Min value", IF(F50<D50, "Please make sure that the Max value is higher than the Average value",IF(E50>D50, "Make sure that the Min value is lower than the Average value","All Data Rules Complied"))) -> All Data Rules Complied

Sheet General Model Inputs ->
A1: *** this sheet is intentionally left blank

Sheet Ecosystem Services (ES)
B1: Title: Ecosystem service inputs for each typology
B2: Notes: This sheet is intended to provide ecosystem service values from literature for each typology. There are two types of values, the blue highlighted cells are values from literature that specifically estimated the ecosystem service resulting from that typology. Cells highlighted in white are ecosystem values for generic coastal systems (these have been added in due to the gap in the literature that evaluates every ecosystem service). The project manager may select Yes/No on which Ecosystem Services are relevant or are to be accounted for each typology. As the detailed models in the next sections are used, these ecosystem service benefits will be overriden.
B4: Legend: | C4: Typology specific ES values
C5: General coastal system ES values
C6: Required List Selection
C7: Required inputs
C8: Defaults not available
B10: Variable | C10: Unit | D10: Selection | E10: Default ES Selection | F10: Value (Average) | G10: Value (Min) | H10: Value (Max) | I10: Autocase comments
B11: MANGROVES
B12: Food | C12: $/ha | D12: Yes | E12: Yes | F12: =IF($D12="Yes", VLOOKUP($B12,'ES Matrix'!$B$11:$H$30, MATCH(General!$D$12, 'ES Matrix'!$B$9:$H$9, 0), FALSE), 0) -> 3431.35 | G12: =IF($D12="Yes", VLOOKUP($B12,'ES Matrix'!$B$11:$M$30, MATCH(General!$D$12&"min", 'ES Matrix'!$B$9:$M$9, 0), FALSE), 0) -> 1827.76 | H12: =IF($D12="Yes", VLOOKUP($B12,'ES Matrix'!$B$11:$P$30, MATCH(General!$D$12&"max", 'ES Matrix'!$B$9:$P$9, 0), FALSE), 0) -> 5034.94 | I12: =IF(H12<G12, "Please make sure that the Max value is higher than the Min value", IF(H12<F12, "Please make sure that the Max value is higher than the Average value",IF(G12>F12, "Make sure that the Min value is lower than the Average value","All Data Rules Complied"))) -> All Data Rules Complied
B13: Water | C13: $/ha | D13: No | E13: No | F13: =IF($D13="Yes", VLOOKUP($B13,'ES Matrix'!$B$11:$H$30, MATCH(General!$D$12, 'ES Matrix'!$B$9:$H$9, 0), FALSE), 0) -> 0 | G13: =IF($D13="Yes", VLOOKUP($B13,'ES Matrix'!$B$11:$M$30, MATCH(General!$D$12&"min", 'ES Matrix'!$B$9:$M$9, 0), FALSE), 0) -> 0 | H13: =IF($D13="Yes", VLOOKUP($B13,'ES Matrix'!$B$11:$P$30, MATCH(General!$D$12&"max", 'ES Matrix'!$B$9:$P$9, 0), FALSE), 0) -> 0 | I13: =IF(H13<G13, "Please make sure that the Max value is higher than the Min value", IF(H13<F13, "Please make sure that the Max value is higher than the Average value",IF(G13>F13, "Make sure that the Min value is lower than the Average value","All Data Rules Complied"))) -> All Data Rules Complied
B14: Raw materials | C14: $/ha | D14: Yes | E14: Yes | F14: =IF($D14="Yes", VLOOKUP($B14,'ES Matrix'!$B$11:$H$30, MATCH(General!$D$12, 'ES Matrix'!$B$9:$H$9, 0), FALSE), 0) -> 0 | G14: =IF($D14="Yes", VLOOKUP($B14,'ES Matrix'!$B$11:$M$30, MATCH(General!$D$12&"min", 'ES Matrix'!$B$9:$M$9, 0), FALSE), 0) -> 0 | H14: =IF($D14="Yes", VLOOKUP($B14,'ES Matrix'!$B$11:$P$30, MATCH(General!$D$12&"max", 'ES Matrix'!$B$9:$P$9, 0), FALSE), 0) -> 0 | I14: All Data Rules Complied
B15: Genetic resources | C15: $/ha | D15: Yes | E15: Yes | F15: =IF($D15="Yes", VLOOKUP($B15,'ES Matrix'!$B$11:$H$30, MATCH(General!$D$12, 'ES Matrix'!$B$9:$H$9, 0), FALSE), 0) -> 0 | G15: =IF($D15="Yes", VLOOKUP($B15,'ES Matrix'!$B$11:$M$30, MATCH(General!$D$12&"min", 'ES Matrix'!$B$9:$M$9, 0), FALSE), 0) -> 0 | H15: =IF($D15="Yes", VLOOKUP($B15,'ES Matrix'!$B$11:$P$30, MATCH(General!$D$12&"max", 'ES Matrix'!$B$9:$P$9, 0), FALSE), 0) -> 0 | I15: All Data Rules Complied
B16: Air quality regulation | C16: $/ha | D16: Yes | E16: Yes | F16: =IF($D16="Yes", VLOOKUP($B16,'ES Matrix'!$B$11:$H$30, MATCH(General!$D$12, 'ES Matrix'!$B$9:$H$9, 0), FALSE), 0) -> 11092.27 | G16: =IF($D16="Yes", VLOOKUP($B16,'ES Matrix'!$B$11:$M$30, MATCH(General!$D$12&"min", 'ES Matrix'!$B$9:$M$9, 0), FALSE), 0) -> 11092.27 | H16: =IF($D16="Yes", VLOOKUP($B16,'ES Matrix'!$B$11:$P$30, MATCH(General!$D$12&"max", 'ES Matrix'!$B$9:$P$9, 0), FALSE), 0) -> 11092.27 | I16: All Data Rules Complied
B17: Climate regulation | C17: $/ha | D17: Yes | E17: Yes | F17: =IF($D17="Yes", VLOOKUP($B17,'ES Matrix'!$B$11:$H$30, MATCH(General!$D$12, 'ES Matrix'!$B$9:$H$9, 0), FALSE), 0) -> 1919.47 | G17: =IF($D17="Yes", VLOOKUP($B17,'ES Matrix'!$B$11:$M$30, MATCH(General!$D$12&"min", 'ES Matrix'!$B$9:$M$9, 0), FALSE), 0) -> 1919.47 | H17: =IF($D17="Yes", VLOOKUP($B17,'ES Matrix'!$B$11:$P$30, MATCH(General!$D$12&"max", 'ES Matrix'!$B$9:$P$9, 0), FALSE), 0) -> 1919.47 | I17: All Data Rules Complied
B18: Disturbance moderation | C18: $/ha | D18: Yes | E18: Yes | F18: =IF($D18="Yes", VLOOKUP($B18,'ES Matrix'!$B$11:$H$30, MATCH(General!$D$12, 'ES Matrix'!$B$9:$H$9, 0), FALSE), 0) -> 11937.88 | G18: =IF($D18="Yes", VLOOKUP($B18,'ES Matrix'!$B$11:$M$30, MATCH(General!$D$12&"min", 'ES Matrix'!$B$9:$M$9, 0), FALSE), 0) -> 11937.88 | H18: =IF($D18="Yes", VLOOKUP($B18,'ES Matrix'!$B$11:$P$30, MATCH(General!$D$12&"max", 'ES Matrix'!$B$9:$P$9, 0), FALSE), 0) -> 11937.88 | I18: All Data Rules Complied
B19: Water flow regulation | C19: $/ha | D19: Yes | E19: Yes | F19: =IF($D19="Yes", VLOOKUP($B19,'ES Matrix'!$B$11:$H$30, MATCH(General!$D$12, 'ES Matrix'!$B$9:$H$9, 0), FALSE), 0) -> 2583.03 | G19: =IF($D19="Yes", VLOOKUP($B19,'ES Matrix'!$B$11:$M$30, MATCH(General!$D$12&"min", 'ES Matrix'!$B$9:$M$9, 0), FALSE), 0) -> 2583.03 | H19: =IF($D19="Yes", VLOOKUP($B19,'ES Matrix'!$B$11:$P$30, MATCH(General!$D$12&"max", 'ES Matrix'!$B$9:$P$9, 0), FALSE), 0) -> 2583.03 | I19: All Data Rules Complied
B20: Waste treatment | C20: $/ha | D20: Yes | E20: Yes | F20: =IF($D20="Yes", VLOOKUP($B20,'ES Matrix'!$B$11:$H$30, MATCH(General!$D$12, 'ES Matrix'!$B$9:$H$9, 0), FALSE), 0) -> 3651.89 | G20: =IF($D20="Yes", VLOOKUP($B20,'ES Matrix'!$B$11:$M$30, MATCH(General!$D$12&"min", 'ES Matrix'!$B$9:$M$9, 0), FALSE), 0) -> 1382.07 | H20: =IF($D20="Yes", VLOOKUP($B20,'ES Matrix'!$B$11:$P$30, MATCH(General!$D$12&"max", 'ES Matrix'!$B$9:$P$9, 0), FALSE), 0) -> 5921.71 | I20: All Data Rules Complied
B21: Erosion prevention | C21: $/ha | D21: Yes | E21: Yes | F21: =IF($D21="Yes", VLOOKUP($B21,'ES Matrix'!$B$11:$H$30, MATCH(General!$D$12, 'ES Matrix'!$B$9:$H$9, 0), FALSE), 0) -> 2301.31 | G21: =IF($D21="Yes", VLOOKUP($B21,'ES Matrix'!$B$11:$M$30, MATCH(General!$D$12&"min", 'ES Matrix'!$B$9:$M$9, 0), FALSE), 0) -> 83.15 | H21: =IF($D21="Yes", VLOOKUP($B21,'ES Matrix'!$B$11:$P$30, MATCH(General!$D$12&"max", 'ES Matrix'!$B$9:$P$9, 0), FALSE), 0) -> 4519.46 | I21: All Data Rules Complied
B22: Soil fertility maintenance | C22: $/ha | D22: Yes | E22: Yes | F22: =IF($D22="Yes", VLOOKUP($B22,'ES Matrix'!$B$11:$H$30, MATCH(General!$D$12, 'ES Matrix'!$B$9:$H$9, 0), FALSE), 0) -> 6303.28 | G22: =IF($D22="Yes", VLOOKUP($B22,'ES Matrix'!$B$11:$M$30, MATCH(General!$D$12&"min", 'ES Matrix'!$B$9:$M$9, 0), FALSE), 0) -> 6303.28 | H22: =IF($D22="Yes", VLOOKUP($B22,'ES Matrix'!$B$11:$P$30, MATCH(General!$D$12&"max", 'ES Matrix'!$B$9:$P$9, 0), FALSE), 0) -> 6303.28 | I22: All Data Rules Complied
B23: Maintenance of migratory species life cycles | C23: $/ha | D23: No | E23: No | F23: =IF($D23="Yes", VLOOKUP($B23,'ES Matrix'!$B$11:$H$30, MATCH(General!$D$12, 'ES Matrix'!$B$9:$H$9, 0), FALSE), 0) -> 0 | G23: =IF($D23="Yes", VLOOKUP($B23,'ES Matrix'!$B$11:$M$30, MATCH(General!$D$12&"min", 'ES Matrix'!$B$9:$M$9, 0), FALSE), 0) -> 0 | H23: =IF($D23="Yes", VLOOKUP($B23,'ES Matrix'!$B$11:$P$30, MATCH(General!$D$12&"max", 'ES Matrix'!$B$9:$P$9, 0), FALSE), 0) -> 0 | I23: All Data Rules Complied
B24: Genetic diversity | C24: $/ha | D24: Yes | E24: Yes | F24: =IF($D24="Yes", VLOOKUP($B24,'ES Matrix'!$B$11:$H$30, MATCH(General!$D$12, 'ES Matrix'!$B$9:$H$9, 0), FALSE), 0) -> 12951.31 | G24: =IF($D24="Yes", VLOOKUP($B24,'ES Matrix'!$B$11:$M$30, MATCH(General!$D$12&"min", 'ES Matrix'!$B$9:$M$9, 0), FALSE), 0) -> 12951.31 | H24: =IF($D24="Yes", VLOOKUP($B24,'ES Matrix'!$B$11:$P$30, MATCH(General!$D$12&"max", 'ES Matrix'!$B$9:$P$9, 0), FALSE), 0) -> 12951.31 | I24: All Data Rules Complied
B25: Aesthetic information | C25: $/ha | D25: Yes | E25: Yes | F25: =IF($D25="Yes", VLOOKUP($B25,'ES Matrix'!$B$11:$H$30, MATCH(General!$D$12, 'ES Matrix'!$B$9:$H$9, 0), FALSE), 0) -> 2511.71 | G25: =IF($D25="Yes", VLOOKUP($B25,'ES Matrix'!$B$11:$M$30, MATCH(General!$D$12&"min", 'ES Matrix'!$B$9:$M$9, 0), FALSE), 0) -> 121.88 | H25: =IF($D25="Yes", VLOOKUP($B25,'ES Matrix'!$B$11:$P$30, MATCH(General!$D$12&"max", 'ES Matrix'!$B$9:$P$9, 0), FALSE), 0) -> 4901.55 | I25: All Data Rules Complied
B26: Recreational tourism | C26: $/ha | D26: Yes | E26: Yes | F26: =IF($D26="Yes", VLOOKUP($B26,'ES Matrix'!$B$11:$H$30, MATCH(General!$D$12, 'ES Matrix'!$B$9:$H$9, 0), FALSE), 0) -> 0 | G26: =IF($D26="Yes", VLOOKUP($B26,'ES Matrix'!$B$11:$M$30, MATCH(General!$D$12&"min", 'ES Matrix'!$B$9:$M$9, 0), FALSE), 0) -> 0 | H26: =IF($D26="Yes", VLOOKUP($B26,'ES Matrix'!$B$11:$P$30, MATCH(General!$D$12&"max", 'ES Matrix'!$B$9:$P$9, 0), FALSE), 0) -> 0 | I26: All Data Rules Complied
B27: Inspiration for culture | C27: $/ha | D27: No | E27: No | F27: =IF($D27="Yes", VLOOKUP($B27,'ES Matrix'!$B$11:$H$30, MATCH(General!$D$12, 'ES Matrix'!$B$9:$H$9, 0), FALSE), 0) -> 0 | G27: =IF($D27="Yes", VLOOKUP($B27,'ES Matrix'!$B$11:$M$30, MATCH(General!$D$12&"min", 'ES Matrix'!$B$9:$M$9, 0), FALSE), 0) -> 0 | H27: =IF($D27="Yes", VLOOKUP($B27,'ES Matrix'!$B$11:$P$30, MATCH(General!$D$12&"max", 'ES Matrix'!$B$9:$P$9, 0), FALSE), 0) -> 0 | I27: All Data Rules Complied
B28: Cognitive development | C28: $/ha | D28: No | E28: No | F28: =IF($D28="Yes", VLOOKUP($B28,'ES Matrix'!$B$11:$H$30, MATCH(General!$D$12, 'ES Matrix'!$B$9:$H$9, 0), FALSE), 0) -> 0 | G28: =IF($D28="Yes", VLOOKUP($B28,'ES Matrix'!$B$11:$M$30, MATCH(General!$D$12&"min", 'ES Matrix'!$B$9:$M$9, 0), FALSE), 0) -> 0 | H28: =IF($D28="Yes", VLOOKUP($B28,'ES Matrix'!$B$11:$P$30, MATCH(General!$D$12&"max", 'ES Matrix'!$B$9:$P$9, 0), FALSE), 0) -> 0 | I28: All Data Rules Complied
B29: Nutrient cycling | C29: $/ha | D29: Yes | E29: Yes | F29: =IF($D29="Yes", VLOOKUP($B29,'ES Matrix'!$B$11:$H$30, MATCH(General!$D$12, 'ES Matrix'!$B$9:$H$9, 0), FALSE), 0) -> 6303.28 | G29: =IF($D29="Yes", VLOOKUP($B29,'ES Matrix'!$B$11:$M$30, MATCH(General!$D$12&"min", 'ES Matrix'!$B$9:$M$9, 0), FALSE), 0) -> 6303.28 | H29: =IF($D29="Yes", VLOOKUP($B29,'ES Matrix'!$B$11:$P$30, MATCH(General!$D$12&"max", 'ES Matrix'!$B$9:$P$9, 0), FALSE), 0) -> 6303.28 | I29: All Data Rules Complied
B30: Fisheries | C30: $/ha | D30: Yes | E30: Yes | F30: =IF($D30="Yes", VLOOKUP($B30,'ES Matrix'!$B$11:$H$30, MATCH(General!$D$12, 'ES Matrix'!$B$9:$H$9, 0), FALSE), 0) -> 628.49 | G30: =IF($D30="Yes", VLOOKUP($B30,'ES Matrix'!$B$11:$M$30, MATCH(General!$D$12&"min", 'ES Matrix'!$B$9:$M$9, 0), FALSE), 0) -> 544.82 | H30: =IF($D30="Yes", VLOOKUP($B30,'ES Matrix'!$B$11:$P$30, MATCH(General!$D$12&"max", 'ES Matrix'!$B$9:$P$9, 0), FALSE), 0) -> 712.17 | I30: All Data Rules Complied
B31: Energy resources | C31: $/ha | D31: Yes | E31: Yes | F31: =IF($D31="Yes", VLOOKUP($B31,'ES Matrix'!$B$11:$H$30, MATCH(General!$D$12, 'ES Matrix'!$B$9:$H$9, 0), FALSE), 0) -> 433.14 | G31: =IF($D31="Yes", VLOOKUP($B31,'ES Matrix'!$B$11:$M$30, MATCH(General!$D$12&"min", 'ES Matrix'!$B$9:$M$9, 0), FALSE), 0) -> 433.14 | H31: =IF($D31="Yes", VLOOKUP($B31,'ES Matrix'!$B$11:$P$30, MATCH(General!$D$12&"max", 'ES Matrix'!$B$9:$P$9, 0), FALSE), 0) -> 433.14 | I31: All Data Rules Complied
B33: SEAGRASS
B34: Food | C34: $/ha | D34: Yes | E34: Yes | I34: =IF(H34<G34, "Please make sure that the Max value is higher than the Min value", IF(H34<F34, "Please make sure that the Max value is higher than the Average value",IF(G34>F34, "Make sure that the Min value is lower than the Average value","All Data Rules Complied"))) -> All Data Rules Complied
B35: Water | C35: $/ha | D35: No | E35: No | F35: =IF($D35="Yes", VLOOKUP($B35,'ES Matrix'!$B$33:$P$52, MATCH(General!$D$12, 'ES Matrix'!$B$9:$P$9, 0), FALSE), 0) -> 0 | G35: =IF($D35="Yes", VLOOKUP($B35,'ES Matrix'!$B$33:$P$52, MATCH(General!$D$12&"min", 'ES Matrix'!$B$9:$P$9, 0), FALSE), 0) -> 0 | H35: =IF($D35="Yes", VLOOKUP($B35,'ES Matrix'!$B$33:$P$52, MATCH(General!$D$12&"max", 'ES Matrix'!$B$9:$P$9, 0), FALSE), 0) -> 0 | I35: All Data Rules Complied
B36: Raw materials | C36: $/ha | D36: Yes | E36: Yes | F36: =IF($D36="Yes", VLOOKUP($B36,'ES Matrix'!$B$33:$P$52, MATCH(General!$D$12, 'ES Matrix'!$B$9:$P$9, 0), FALSE), 0) -> 3.95 | G36: =IF($D36="Yes", VLOOKUP($B36,'ES Matrix'!$B$33:$P$52, MATCH(General!$D$12&"min", 'ES Matrix'!$B$9:$P$9, 0), FALSE), 0) -> 3.95 | H36: =IF($D36="Yes", VLOOKUP($B36,'ES Matrix'!$B$33:$P$52, MATCH(General!$D$12&"max", 'ES Matrix'!$B$9:$P$9, 0), FALSE), 0) -> 3.95 | I36: All Data Rules Complied
B37: Genetic resources | C37: $/ha | D37: No | E37: No | F37: =IF($D37="Yes", VLOOKUP($B37,'ES Matrix'!$B$33:$P$52, MATCH(General!$D$12, 'ES Matrix'!$B$9:$P$9, 0), FALSE), 0) -> 0 | G37: =IF($D37="Yes", VLOOKUP($B37,'ES Matrix'!$B$33:$P$52, MATCH(General!$D$12&"min", 'ES Matrix'!$B$9:$P$9, 0), FALSE), 0) -> 0 | H37: =IF($D37="Yes", VLOOKUP($B37,'ES Matrix'!$B$33:$P$52, MATCH(General!$D$12&"max", 'ES Matrix'!$B$9:$P$9, 0), FALSE), 0) -> 0 | I37: All Data Rules Complied
B38: Air quality regulation | C38: $/ha | D38: Yes | E38: Yes | F38: =IF($D38="Yes", VLOOKUP($B38,'ES Matrix'!$B$33:$P$52, MATCH(General!$D$12, 'ES Matrix'!$B$9:$P$9, 0), FALSE), 0) -> 16.96 | G38: =IF($D38="Yes", VLOOKUP($B38,'ES Matrix'!$B$33:$P$52, MATCH(General!$D$12&"min", 'ES Matrix'!$B$9:$P$9, 0), FALSE), 0) -> 16.96 | H38: =IF($D38="Yes", VLOOKUP($B38,'ES Matrix'!$B$33:$P$52, MATCH(General!$D$12&"max", 'ES Matrix'!$B$9:$P$9, 0), FALSE), 0) -> 16.96 | I38: All Data Rules Complied
B39: Climate regulation | C39: $/ha | D39: Yes | E39: Yes | F39: =IF($D39="Yes", VLOOKUP($B39,'ES Matrix'!$B$33:$P$52, MATCH(General!$D$12, 'ES Matrix'!$B$9:$P$9, 0), FALSE), 0) -> 486.08 | G39: =IF($D39="Yes", VLOOKUP($B39,'ES Matrix'!$B$33:$P$52, MATCH(General!$D$12&"min", 'ES Matrix'!$B$9:$P$9, 0), FALSE), 0) -> 296.17 | H39: =IF($D39="Yes", VLOOKUP($B39,'ES Matrix'!$B$33:$P$52, MATCH(General!$D$12&"max", 'ES Matrix'!$B$9:$P$9, 0), FALSE), 0) -> 675.99 | I39: All Data Rules Complied
B40: Disturbance moderation | C40: $/ha | D40: Yes | E40: Yes | F40: =IF($D40="Yes", VLOOKUP($B40,'ES Matrix'!$B$33:$P$52, MATCH(General!$D$12, 'ES Matrix'!$B$9:$P$9, 0), FALSE), 0) -> 3115.96 | G40: =IF($D40="Yes", VLOOKUP($B40,'ES Matrix'!$B$33:$P$52, MATCH(General!$D$12&"min", 'ES Matrix'!$B$9:$P$9, 0), FALSE), 0) -> 3115.96 | H40: =IF($D40="Yes", VLOOKUP($B40,'ES Matrix'!$B$33:$P$52, MATCH(General!$D$12&"max", 'ES Matrix'!$B$9:$P$9, 0), FALSE), 0) -> 3115.96 | I40: All Data Rules Complied
B41: Water flow regulation | C41: $/ha | D41: No | E41: No | F41: =IF($D41="Yes", VLOOKUP($B41,'ES Matrix'!$B$33:$P$52, MATCH(General!$D$12, 'ES Matrix'!$B$9:$P$9, 0), FALSE), 0) -> 0 | G41: =IF($D41="Yes", VLOOKUP($B41,'ES Matrix'!$B$33:$P$52, MATCH(General!$D$12&"min", 'ES Matrix'!$B$9:$P$9, 0), FALSE), 0) -> 0 | H41: =IF($D41="Yes", VLOOKUP($B41,'ES Matrix'!$B$33:$P$52, MATCH(General!$D$12&"max", 'ES Matrix'!$B$9:$P$9, 0), FALSE), 0) -> 0 | I41: All Data Rules Complied
B42: Waste treatment | C42: $/ha | D42: No | E42: No | F42: =IF($D42="Yes", VLOOKUP($B42,'ES Matrix'!$B$33:$P$52, MATCH(General!$D$12, 'ES Matrix'!$B$9:$P$9, 0), FALSE), 0) -> 0 | G42: =IF($D42="Yes", VLOOKUP($B42,'ES Matrix'!$B$33:$P$52, MATCH(General!$D$12&"min", 'ES Matrix'!$B$9:$P$9, 0), FALSE), 0) -> 0 | H42: =IF($D42="Yes", VLOOKUP($B42,'ES Matrix'!$B$33:$P$52, MATCH(General!$D$12&"max", 'ES Matrix'!$B$9:$P$9, 0), FALSE), 0) -> 0 | I42: All Data Rules Complied
B43: Erosion prevention | C43: $/ha | D43: Yes | E43: Yes | F43: =IF($D43="Yes", VLOOKUP($B43,'ES Matrix'!$B$33:$P$52, MATCH(General!$D$12, 'ES Matrix'!$B$9:$P$9, 0), FALSE), 0) -> 5843.7 | G43: =IF($D43="Yes", VLOOKUP($B43,'ES Matrix'!$B$33:$P$52, MATCH(General!$D$12&"min", 'ES Matrix'!$B$9:$P$9, 0), FALSE), 0) -> 5843.7 | H43: =IF($D43="Yes", VLOOKUP($B43,'ES Matrix'!$B$33:$P$52, MATCH(General!$D$12&"max", 'ES Matrix'!$B$9:$P$9, 0), FALSE), 0) -> 5843.7 | I43: All Data Rules Complied
B44: Soil fertility maintenance | C44: $/ha | D44: Yes | E44: Yes | F44: =IF($D44="Yes", VLOOKUP($B44,'ES Matrix'!$B$33:$P$52, MATCH(General!$D$12, 'ES Matrix'!$B$9:$P$9, 0), FALSE), 0) -> 4543.2 | G44: =IF($D44="Yes", VLOOKUP($B44,'ES Matrix'!$B$33:$P$52, MATCH(General!$D$12&"min", 'ES Matrix'!$B$9:$P$9, 0), FALSE), 0) -> 4543.2 | H44: =IF($D44="Yes", VLOOKUP($B44,'ES Matrix'!$B$33:$P$52, MATCH(General!$D$12&"max", 'ES Matrix'!$B$9:$P$9, 0), FALSE), 0) -> 4543.2 | I44: All Data Rules Complied
B45: Maintenance of migratory species life cycles | C45: $/ha | D45: No | E45: No | F45: =IF($D45="Yes", VLOOKUP($B45,'ES Matrix'!$B$33:$P$52, MATCH(General!$D$12, 'ES Matrix'!$B$9:$P$9, 0), FALSE), 0) -> 0 | G45: =IF($D45="Yes", VLOOKUP($B45,'ES Matrix'!$B$33:$P$52, MATCH(General!$D$12&"min", 'ES Matrix'!$B$9:$P$9, 0), FALSE), 0) -> 0 | H45: =IF($D45="Yes", VLOOKUP($B45,'ES Matrix'!$B$33:$P$52, MATCH(General!$D$12&"max", 'ES Matrix'!$B$9:$P$9, 0), FALSE), 0) -> 0 | I45: All Data Rules Complied
B46: Genetic diversity | C46: $/ha | D46: Yes | E46: Yes | F46: =IF($D46="Yes", VLOOKUP($B46,'ES Matrix'!$B$33:$P$52, MATCH(General!$D$12, 'ES Matrix'!$B$9:$P$9, 0), FALSE), 0) -> 233.06 | G46: =IF($D46="Yes", VLOOKUP($B46,'ES Matrix'!$B$33:$P$52, MATCH(General!$D$12&"min", 'ES Matrix'!$B$9:$P$9, 0), FALSE), 0) -> 233.06 | H46: =IF($D46="Yes", VLOOKUP($B46,'ES Matrix'!$B$33:$P$52, MATCH(General!$D$12&"max", 'ES Matrix'!$B$9:$P$9, 0), FALSE), 0) -> 233.06 | I46: All Data Rules Complied
B47: Aesthetic information | C47: $/ha | D47: No | E47: No | F47: =IF($D47="Yes", VLOOKUP($B47,'ES Matrix'!$B$33:$P$52, MATCH(General!$D$12, 'ES Matrix'!$B$9:$P$9, 0), FALSE), 0) -> 0 | G47: =IF($D47="Yes", VLOOKUP($B47,'ES Matrix'!$B$33:$P$52, MATCH(General!$D$12&"min", 'ES Matrix'!$B$9:$P$9, 0), FALSE), 0) -> 0 | H47: =IF($D47="Yes", VLOOKUP($B47,'ES Matrix'!$B$33:$P$52, MATCH(General!$D$12&"max", 'ES Matrix'!$B$9:$P$9, 0), FALSE), 0) -> 0 | I47: All Data Rules Complied
B48: Recreational tourism | C48: $/ha | D48: Yes | E48: Yes | F48: =IF($D48="Yes", VLOOKUP($B48,'ES Matrix'!$B$33:$P$52, MATCH(General!$D$12, 'ES Matrix'!$B$9:$P$9, 0), FALSE), 0) -> 1114.9 | G48: =IF($D48="Yes", VLOOKUP($B48,'ES Matrix'!$B$33:$P$52, MATCH(General!$D$12&"min", 'ES Matrix'!$B$9:$P$9, 0), FALSE), 0) -> 1114.9 | H48: =IF($D48="Yes", VLOOKUP($B48,'ES Matrix'!$B$33:$P$52, MATCH(General!$D$12&"max", 'ES Matrix'!$B$9:$P$9, 0), FALSE), 0) -> 1114.9 | I48: All Data Rules Complied
B49: Inspiration for culture | C49: $/ha | D49: Yes | E49: Yes | F49: =IF($D49="Yes", VLOOKUP($B49,'ES Matrix'!$B$33:$P$52, MATCH(General!$D$12, 'ES Matrix'!$B$9:$P$9, 0), FALSE), 0) -> 163.91 | G49: =IF($D49="Yes", VLOOKUP($B49,'ES Matrix'!$B$33:$P$52, MATCH(General!$D$12&"min", 'ES Matrix'!$B$9:$P$9, 0), FALSE), 0) -> 163.91 | H49: =IF($D49="Yes", VLOOKUP($B49,'ES Matrix'!$B$33:$P$52, MATCH(General!$D$12&"max", 'ES Matrix'!$B$9:$P$9, 0), FALSE), 0) -> 163.91 | I49: All Data Rules Complied
B50: Cognitive development | C50: $/ha | D50: Yes | E50: Yes | F50: =IF($D50="Yes", VLOOKUP($B50,'ES Matrix'!$B$33:$P$52, MATCH(General!$D$12, 'ES Matrix'!$B$9:$P$9, 0), FALSE), 0) -> 3329.38 | G50: =IF($D50="Yes", VLOOKUP($B50,'ES Matrix'!$B$33:$P$52, MATCH(General!$D$12&"min", 'ES Matrix'!$B$9:$P$9, 0), FALSE), 0) -> 31.05 | H50: =IF($D50="Yes", VLOOKUP($B50,'ES Matrix'!$B$33:$P$52, MATCH(General!$D$12&"max", 'ES Matrix'!$B$9:$P$9, 0), FALSE), 0) -> 6627.71 | I50: All Data Rules Complied
B51: Water purification | C51: $/ha | D51: No | E51: No | I51: All Data Rules Complied
B52: Fisheries | C52: $/ha | D52: Yes | E52: Yes | F52: =IF($D52="Yes", VLOOKUP($B52,'ES Matrix'!$B$33:$P$52, MATCH(General!$D$12, 'ES Matrix'!$B$9:$P$9, 0), FALSE), 0) -> 0 | G52: =IF($D52="Yes", VLOOKUP($B52,'ES Matrix'!$B$33:$P$52, MATCH(General!$D$12&"min", 'ES Matrix'!$B$9:$P$9, 0), FALSE), 0) -> 0 | H52: =IF($D52="Yes", VLOOKUP($B52,'ES Matrix'!$B$33:$P$52, MATCH(General!$D$12&"max", 'ES Matrix'!$B$9:$P$9, 0), FALSE), 0) -> 0 | I52: All Data Rules Complied
B53: Nutrient cycling | C53: $/ha | D53: No | E53: Yes | I53: All Data Rules Complied
B55: SALT MARSH
B56: Food | C56: $/ha | D56: Yes | E56: Yes | I56: =IF(H56<G56, "Please make sure that the Max value is higher than the Min value", IF(H56<F56, "Please make sure that the Max value is higher than the Average value",IF(G56>F56, "Make sure that the Min value is lower than the Average value","All Data Rules Complied"))) -> All Data Rules Complied
B57: Water | C57: $/ha | D57: No | E57: No | F57: =IF($D57="Yes", VLOOKUP($B57,'ES Matrix'!$B$55:$P$73, MATCH(General!$D$12, 'ES Matrix'!$B$9:$P$9, 0), FALSE), 0) -> 0 | G57: =IF($D57="Yes", VLOOKUP($B57,'ES Matrix'!$B$55:$P$73, MATCH(General!$D$12&"min", 'ES Matrix'!$B$9:$P$9, 0), FALSE), 0) -> 0 | H57: =IF($D57="Yes", VLOOKUP($B57,'ES Matrix'!$B$55:$P$73, MATCH(General!$D$12&"max", 'ES Matrix'!$B$9:$P$9, 0), FALSE), 0) -> 0 | I57: All Data Rules Complied
B58: Raw materials | C58: $/ha | D58: Yes | E58: Yes | F58: =IF($D58="Yes", VLOOKUP($B58,'ES Matrix'!$B$55:$P$73, MATCH(General!$D$12, 'ES Matrix'!$B$9:$P$9, 0), FALSE), 0) -> 211.55 | G58: =IF($D58="Yes", VLOOKUP($B58,'ES Matrix'!$B$55:$P$73, MATCH(General!$D$12&"min", 'ES Matrix'!$B$9:$P$9, 0), FALSE), 0) -> 62.09 | H58: =IF($D58="Yes", VLOOKUP($B58,'ES Matrix'!$B$55:$P$73, MATCH(General!$D$12&"max", 'ES Matrix'!$B$9:$P$9, 0), FALSE), 0) -> 361 | I58: All Data Rules Complied
B59: Genetic resources | C59: $/ha | D59: Yes | E59: Yes | F59: =IF($D59="Yes", VLOOKUP($B59,'ES Matrix'!$B$55:$P$73, MATCH(General!$D$12, 'ES Matrix'!$B$9:$P$9, 0), FALSE), 0) -> 0 | G59: =IF($D59="Yes", VLOOKUP($B59,'ES Matrix'!$B$55:$P$73, MATCH(General!$D$12&"min", 'ES Matrix'!$B$9:$P$9, 0), FALSE), 0) -> 0 | H59: =IF($D59="Yes", VLOOKUP($B59,'ES Matrix'!$B$55:$P$73, MATCH(General!$D$12&"max", 'ES Matrix'!$B$9:$P$9, 0), FALSE), 0) -> 0 | I59: All Data Rules Complied
B60: Air quality regulation | C60: $/ha | D60: No | E60: No | F60: =IF($D60="Yes", VLOOKUP($B60,'ES Matrix'!$B$55:$P$73, MATCH(General!$D$12, 'ES Matrix'!$B$9:$P$9, 0), FALSE), 0) -> 0 | G60: =IF($D60="Yes", VLOOKUP($B60,'ES Matrix'!$B$55:$P$73, MATCH(General!$D$12&"min", 'ES Matrix'!$B$9:$P$9, 0), FALSE), 0) -> 0 | H60: =IF($D60="Yes", VLOOKUP($B60,'ES Matrix'!$B$55:$P$73, MATCH(General!$D$12&"max", 'ES Matrix'!$B$9:$P$9, 0), FALSE), 0) -> 0 | I60: All Data Rules Complied
B61: Climate regulation | C61: $/ha | D61: No | E61: No | F61: =IF($D61="Yes", VLOOKUP($B61,'ES Matrix'!$B$55:$P$73, MATCH(General!$D$12, 'ES Matrix'!$B$9:$P$9, 0), FALSE), 0) -> 0 | G61: =IF($D61="Yes", VLOOKUP($B61,'ES Matrix'!$B$55:$P$73, MATCH(General!$D$12&"min", 'ES Matrix'!$B$9:$P$9, 0), FALSE), 0) -> 0 | H61: =IF($D61="Yes", VLOOKUP($B61,'ES Matrix'!$B$55:$P$73, MATCH(General!$D$12&"max", 'ES Matrix'!$B$9:$P$9, 0), FALSE), 0) -> 0 | I61: All Data Rules Complied
B62: Disturbance moderation | C62: $/ha | D62: Yes | E62: Yes | F62: =IF($D62="Yes", VLOOKUP($B62,'ES Matrix'!$B$55:$P$73, MATCH(General!$D$12, 'ES Matrix'!$B$9:$P$9, 0), FALSE), 0) -> 2374.94 | G62: =IF($D62="Yes", VLOOKUP($B62,'ES Matrix'!$B$55:$P$73, MATCH(General!$D$12&"min", 'ES Matrix'!$B$9:$P$9, 0), FALSE), 0) -> 1118.77 | H62: =IF($D62="Yes", VLOOKUP($B62,'ES Matrix'!$B$55:$P$73, MATCH(General!$D$12&"max", 'ES Matrix'!$B$9:$P$9, 0), FALSE), 0) -> 3631.1 | I62: All Data Rules Complied
B63: Water flow regulation | C63: $/ha | D63: Yes | E63: Yes | F63: =IF($D63="Yes", VLOOKUP($B63,'ES Matrix'!$B$55:$P$73, MATCH(General!$D$12, 'ES Matrix'!$B$9:$P$9, 0), FALSE), 0) -> 43849.01 | G63: =IF($D63="Yes", VLOOKUP($B63,'ES Matrix'!$B$55:$P$73, MATCH(General!$D$12&"min", 'ES Matrix'!$B$9:$P$9, 0), FALSE), 0) -> 43849.01 | H63: =IF($D63="Yes", VLOOKUP($B63,'ES Matrix'!$B$55:$P$73, MATCH(General!$D$12&"max", 'ES Matrix'!$B$9:$P$9, 0), FALSE), 0) -> 43849.01 | I63: All Data Rules Complied
B64: Waste treatment | C64: $/ha | D64: No | E64: No | F64: =IF($D64="Yes", VLOOKUP($B64,'ES Matrix'!$B$55:$P$73, MATCH(General!$D$12, 'ES Matrix'!$B$9:$P$9, 0), FALSE), 0) -> 0 | G64: =IF($D64="Yes", VLOOKUP($B64,'ES Matrix'!$B$55:$P$73, MATCH(General!$D$12&"min", 'ES Matrix'!$B$9:$P$9, 0), FALSE), 0) -> 0 | H64: =IF($D64="Yes", VLOOKUP($B64,'ES Matrix'!$B$55:$P$73, MATCH(General!$D$12&"max", 'ES Matrix'!$B$9:$P$9, 0), FALSE), 0) -> 0 | I64: All Data Rules Complied
B65: Erosion prevention | C65: $/ha | D65: Yes | E65: No | F65: =IF($D65="Yes", VLOOKUP($B65,'ES Matrix'!$B$55:$P$73, MATCH(General!$D$12, 'ES Matrix'!$B$9:$P$9, 0), FALSE), 0) -> 3.68 | G65: =IF($D65="Yes", VLOOKUP($B65,'ES Matrix'!$B$55:$P$73, MATCH(General!$D$12&"min", 'ES Matrix'!$B$9:$P$9, 0), FALSE), 0) -> 3.68 | H65: =IF($D65="Yes", VLOOKUP($B65,'ES Matrix'!$B$55:$P$73, MATCH(General!$D$12&"max", 'ES Matrix'!$B$9:$P$9, 0), FALSE), 0) -> 3.68 | I65: All Data Rules Complied
B66: Soil fertility maintenance | C66: $/ha | D66: Yes | E66: Yes | F66: =IF($D66="Yes", VLOOKUP($B66,'ES Matrix'!$B$55:$P$73, MATCH(General!$D$12, 'ES Matrix'!$B$9:$P$9, 0), FALSE), 0) -> 2.42 | G66: =IF($D66="Yes", VLOOKUP($B66,'ES Matrix'!$B$55:$P$73, MATCH(General!$D$12&"min", 'ES Matrix'!$B$9:$P$9, 0), FALSE), 0) -> 2.42 | H66: =IF($D66="Yes", VLOOKUP($B66,'ES Matrix'!$B$55:$P$73, MATCH(General!$D$12&"max", 'ES Matrix'!$B$9:$P$9, 0), FALSE), 0) -> 2.42 | I66: All Data Rules Complied
B67: Maintenance of migratory species life cycles | C67: $/ha | D67: No | E67: No | F67: =IF($D67="Yes", VLOOKUP($B67,'ES Matrix'!$B$55:$P$73, MATCH(General!$D$12, 'ES Matrix'!$B$9:$P$9, 0), FALSE), 0) -> 0 | G67: =IF($D67="Yes", VLOOKUP($B67,'ES Matrix'!$B$55:$P$73, MATCH(General!$D$12&"min", 'ES Matrix'!$B$9:$P$9, 0), FALSE), 0) -> 0 | H67: =IF($D67="Yes", VLOOKUP($B67,'ES Matrix'!$B$55:$P$73, MATCH(General!$D$12&"max", 'ES Matrix'!$B$9:$P$9, 0), FALSE), 0) -> 0 | I67: All Data Rules Complied
B68: Genetic diversity | C68: $/ha | D68: No | E68: Yes | F68: =IF($D68="Yes", VLOOKUP($B68,'ES Matrix'!$B$55:$P$73, MATCH(General!$D$12, 'ES Matrix'!$B$9:$P$9, 0), FALSE), 0) -> 0 | G68: =IF($D68="Yes", VLOOKUP($B68,'ES Matrix'!$B$55:$P$73, MATCH(General!$D$12&"min", 'ES Matrix'!$B$9:$P$9, 0), FALSE), 0) -> 0 | H68: =IF($D68="Yes", VLOOKUP($B68,'ES Matrix'!$B$55:$P$73, MATCH(General!$D$12&"max", 'ES Matrix'!$B$9:$P$9, 0), FALSE), 0) -> 0 | I68: All Data Rules Complied
B69: Aesthetic information | C69: $/ha | D69: No | E69: No | F69: =IF($D69="Yes", VLOOKUP($B69,'ES Matrix'!$B$55:$P$73, MATCH(General!$D$12, 'ES Matrix'!$B$9:$P$9, 0), FALSE), 0) -> 0 | G69: =IF($D69="Yes", VLOOKUP($B69,'ES Matrix'!$B$55:$P$73, MATCH(General!$D$12&"min", 'ES Matrix'!$B$9:$P$9, 0), FALSE), 0) -> 0 | H69: =IF($D69="Yes", VLOOKUP($B69,'ES Matrix'!$B$55:$P$73, MATCH(General!$D$12&"max", 'ES Matrix'!$B$9:$P$9, 0), FALSE), 0) -> 0 | I69: All Data Rules Complied
B70: Recreational tourism | C70: $/ha | D70: Yes | E70: Yes | F70: =IF($D70="Yes", VLOOKUP($B70,'ES Matrix'!$B$55:$P$73, MATCH(General!$D$12, 'ES Matrix'!$B$9:$P$9, 0), FALSE), 0) -> 987.82 | G70: =IF($D70="Yes", VLOOKUP($B70,'ES Matrix'!$B$55:$P$73, MATCH(General!$D$12&"min", 'ES Matrix'!$B$9:$P$9, 0), FALSE), 0) -> 677.46 | H70: =IF($D70="Yes", VLOOKUP($B70,'ES Matrix'!$B$55:$P$73, MATCH(General!$D$12&"max", 'ES Matrix'!$B$9:$P$9, 0), FALSE), 0) -> 1298.17 | I70: All Data Rules Complied
B71: Inspiration for culture | C71: $/ha | D71: No | E71: No | F71: =IF($D71="Yes", VLOOKUP($B71,'ES Matrix'!$B$55:$P$73, MATCH(General!$D$12, 'ES Matrix'!$B$9:$P$9, 0), FALSE), 0) -> 0 | G71: =IF($D71="Yes", VLOOKUP($B71,'ES Matrix'!$B$55:$P$73, MATCH(General!$D$12&"min", 'ES Matrix'!$B$9:$P$9, 0), FALSE), 0) -> 0 | H71: =IF($D71="Yes", VLOOKUP($B71,'ES Matrix'!$B$55:$P$73, MATCH(General!$D$12&"max", 'ES Matrix'!$B$9:$P$9, 0), FALSE), 0) -> 0 | I71: All Data Rules Complied
B72: Cognitive development | C72: $/ha | D72: No | E72: No | F72: =IF($D72="Yes", VLOOKUP($B72,'ES Matrix'!$B$55:$P$73, MATCH(General!$D$12, 'ES Matrix'!$B$9:$P$9, 0), FALSE), 0) -> 0 | G72: =IF($D72="Yes", VLOOKUP($B72,'ES Matrix'!$B$55:$P$73, MATCH(General!$D$12&"min", 'ES Matrix'!$B$9:$P$9, 0), FALSE), 0) -> 0 | H72: =IF($D72="Yes", VLOOKUP($B72,'ES Matrix'!$B$55:$P$73, MATCH(General!$D$12&"max", 'ES Matrix'!$B$9:$P$9, 0), FALSE), 0) -> 0 | I72: All Data Rules Complied
B73: Water purification | C73: $/ha | D73: Yes | E73: Yes | F73: =IF($D73="Yes", VLOOKUP($B73,'ES Matrix'!$B$55:$P$73, MATCH(General!$D$12, 'ES Matrix'!$B$9:$P$9, 0), FALSE), 0) -> 15155.55 | G73: =IF($D73="Yes", VLOOKUP($B73,'ES Matrix'!$B$55:$P$73, MATCH(General!$D$12&"min", 'ES Matrix'!$B$9:$P$9, 0), FALSE), 0) -> 1507.39 | H73: =IF($D73="Yes", VLOOKUP($B73,'ES Matrix'!$B$55:$P$73, MATCH(General!$D$12&"max", 'ES Matrix'!$B$9:$P$9, 0), FALSE), 0) -> 28803.71 | I73: All Data Rules Complied
B74: Fisheries | C74: $/ha | D74: Yes | E74: Yes | F74: =IF($D74="Yes", VLOOKUP($B74,'ES Matrix'!$B$55:$P$73, MATCH(General!$D$12, 'ES Matrix'!$B$9:$P$9, 0), FALSE), 0) -> 75 | G74: =IF($D74="Yes", VLOOKUP($B74,'ES Matrix'!$B$55:$P$73, MATCH(General!$D$12&"min", 'ES Matrix'!$B$9:$P$9, 0), FALSE), 0) -> 75 | H74: =IF($D74="Yes", VLOOKUP($B74,'ES Matrix'!$B$55:$P$73, MATCH(General!$D$12&"max", 'ES Matrix'!$B$9:$P$9, 0), FALSE), 0) -> 75 | I74: All Data Rules Complied
B76: CORAL REEF
B77: Food | C77: $/ha | D77: Yes | E77: Yes | F77: =IF($D77="Yes", VLOOKUP($B77,'ES Matrix'!$B$76:$P$95, MATCH(General!$D$12, 'ES Matrix'!$B$9:$P$9, 0), FALSE), 0) -> 955.41 | G77: =IF($D77="Yes", VLOOKUP($B77,'ES Matrix'!$B$76:$P$95, MATCH(General!$D$12&"min", 'ES Matrix'!$B$9:$P$9, 0), FALSE), 0) -> 955.41 | H77: =IF($D77="Yes", VLOOKUP($B77,'ES Matrix'!$B$76:$P$95, MATCH(General!$D$12&"max", 'ES Matrix'!$B$9:$P$9, 0), FALSE), 0) -> 955.41 | I77: =IF(H77<G77, "Please make sure that the Max value is higher than the Min value", IF(H77<F77, "Please make sure that the Max value is higher than the Average value",IF(G77>F77, "Make sure that the Min value is lower than the Average value","All Data Rules Complied"))) -> All Data Rules Complied
B78: Water | C78: $/ha | D78: No | E78: No | F78: =IF($D78="Yes", VLOOKUP($B78,'ES Matrix'!$B$76:$P$95, MATCH(General!$D$12, 'ES Matrix'!$B$9:$P$9, 0), FALSE), 0) -> 0 | G78: =IF($D78="Yes", VLOOKUP($B78,'ES Matrix'!$B$76:$P$95, MATCH(General!$D$12&"min", 'ES Matrix'!$B$9:$P$9, 0), FALSE), 0) -> 0 | H78: =IF($D78="Yes", VLOOKUP($B78,'ES Matrix'!$B$76:$P$95, MATCH(General!$D$12&"max", 'ES Matrix'!$B$9:$P$9, 0), FALSE), 0) -> 0 | I78: All Data Rules Complied
B79: Raw materials | C79: $/ha | D79: Yes | E79: Yes | F79: =IF($D79="Yes", VLOOKUP($B79,'ES Matrix'!$B$76:$P$95, MATCH(General!$D$12, 'ES Matrix'!$B$9:$P$9, 0), FALSE), 0) -> 0 | G79: =IF($D79="Yes", VLOOKUP($B79,'ES Matrix'!$B$76:$P$95, MATCH(General!$D$12&"min", 'ES Matrix'!$B$9:$P$9, 0), FALSE), 0) -> 0 | H79: =IF($D79="Yes", VLOOKUP($B79,'ES Matrix'!$B$76:$P$95, MATCH(General!$D$12&"max", 'ES Matrix'!$B$9:$P$9, 0), FALSE), 0) -> 0 | I79: All Data Rules Complied
B80: Genetic resources | C80: $/ha | D80: Yes | E80: Yes | F80: =IF($D80="Yes", VLOOKUP($B80,'ES Matrix'!$B$76:$P$95, MATCH(General!$D$12, 'ES Matrix'!$B$9:$P$9, 0), FALSE), 0) -> 12 | G80: =IF($D80="Yes", VLOOKUP($B80,'ES Matrix'!$B$76:$P$95, MATCH(General!$D$12&"min", 'ES Matrix'!$B$9:$P$9, 0), FALSE), 0) -> 12 | H80: =IF($D80="Yes", VLOOKUP($B80,'ES Matrix'!$B$76:$P$95, MATCH(General!$D$12&"max", 'ES Matrix'!$B$9:$P$9, 0), FALSE), 0) -> 12 | I80: All Data Rules Complied
B81: Air quality regulation | C81: $/ha | D81: No | E81: No | F81: =IF($D81="Yes", VLOOKUP($B81,'ES Matrix'!$B$76:$P$95, MATCH(General!$D$12, 'ES Matrix'!$B$9:$P$9, 0), FALSE), 0) -> 0 | G81: =IF($D81="Yes", VLOOKUP($B81,'ES Matrix'!$B$76:$P$95, MATCH(General!$D$12&"min", 'ES Matrix'!$B$9:$P$9, 0), FALSE), 0) -> 0 | H81: =IF($D81="Yes", VLOOKUP($B81,'ES Matrix'!$B$76:$P$95, MATCH(General!$D$12&"max", 'ES Matrix'!$B$9:$P$9, 0), FALSE), 0) -> 0 | I81: All Data Rules Complied
B82: Climate regulation | C82: $/ha | D82: Yes | E82: Yes | F82: =IF($D82="Yes", VLOOKUP($B82,'ES Matrix'!$B$76:$P$95, MATCH(General!$D$12, 'ES Matrix'!$B$9:$P$9, 0), FALSE), 0) -> 486 | G82: =IF($D82="Yes", VLOOKUP($B82,'ES Matrix'!$B$76:$P$95, MATCH(General!$D$12&"min", 'ES Matrix'!$B$9:$P$9, 0), FALSE), 0) -> 296 | H82: =IF($D82="Yes", VLOOKUP($B82,'ES Matrix'!$B$76:$P$95, MATCH(General!$D$12&"max", 'ES Matrix'!$B$9:$P$9, 0), FALSE), 0) -> 676 | I82: All Data Rules Complied
B83: Disturbance moderation | C83: $/ha | D83: Yes | E83: Yes | F83: =IF($D83="Yes", VLOOKUP($B83,'ES Matrix'!$B$76:$P$95, MATCH(General!$D$12, 'ES Matrix'!$B$9:$P$9, 0), FALSE), 0) -> 17309.15 | G83: =IF($D83="Yes", VLOOKUP($B83,'ES Matrix'!$B$76:$P$95, MATCH(General!$D$12&"min", 'ES Matrix'!$B$9:$P$9, 0), FALSE), 0) -> 17309.15 | H83: =IF($D83="Yes", VLOOKUP($B83,'ES Matrix'!$B$76:$P$95, MATCH(General!$D$12&"max", 'ES Matrix'!$B$9:$P$9, 0), FALSE), 0) -> 17309.15 | I83: All Data Rules Complied
B84: Water flow regulation | C84: $/ha | D84: No | E84: No | F84: =IF($D84="Yes", VLOOKUP($B84,'ES Matrix'!$B$76:$P$95, MATCH(General!$D$12, 'ES Matrix'!$B$9:$P$9, 0), FALSE), 0) -> 0 | G84: =IF($D84="Yes", VLOOKUP($B84,'ES Matrix'!$B$76:$P$95, MATCH(General!$D$12&"min", 'ES Matrix'!$B$9:$P$9, 0), FALSE), 0) -> 0 | H84: =IF($D84="Yes", VLOOKUP($B84,'ES Matrix'!$B$76:$P$95, MATCH(General!$D$12&"max", 'ES Matrix'!$B$9:$P$9, 0), FALSE), 0) -> 0 | I84: All Data Rules Complied
B85: Waste treatment | C85: $/ha | D85: Yes | E85: Yes | F85: =IF($D85="Yes", VLOOKUP($B85,'ES Matrix'!$B$76:$P$95, MATCH(General!$D$12, 'ES Matrix'!$B$9:$P$9, 0), FALSE), 0) -> 68970.94 | G85: =IF($D85="Yes", VLOOKUP($B85,'ES Matrix'!$B$76:$P$95, MATCH(General!$D$12&"min", 'ES Matrix'!$B$9:$P$9, 0), FALSE), 0) -> 68970.94 | H85: =IF($D85="Yes", VLOOKUP($B85,'ES Matrix'!$B$76:$P$95, MATCH(General!$D$12&"max", 'ES Matrix'!$B$9:$P$9, 0), FALSE), 0) -> 68970.94 | I85: All Data Rules Complied
B86: Erosion prevention | C86: $/ha | D86: Yes | E86: Yes | F86: =IF($D86="Yes", VLOOKUP($B86,'ES Matrix'!$B$76:$P$95, MATCH(General!$D$12, 'ES Matrix'!$B$9:$P$9, 0), FALSE), 0) -> 791.3 | G86: =IF($D86="Yes", VLOOKUP($B86,'ES Matrix'!$B$76:$P$95, MATCH(General!$D$12&"min", 'ES Matrix'!$B$9:$P$9, 0), FALSE), 0) -> 791.3 | H86: =IF($D86="Yes", VLOOKUP($B86,'ES Matrix'!$B$76:$P$95, MATCH(General!$D$12&"max", 'ES Matrix'!$B$9:$P$9, 0), FALSE), 0) -> 791.3 | I86: All Data Rules Complied
B87: Soil fertility maintenance | C87: $/ha | D87: No | E87: No | F87: =IF($D87="Yes", VLOOKUP($B87,'ES Matrix'!$B$76:$P$95, MATCH(General!$D$12, 'ES Matrix'!$B$9:$P$9, 0), FALSE), 0) -> 0 | G87: =IF($D87="Yes", VLOOKUP($B87,'ES Matrix'!$B$76:$P$95, MATCH(General!$D$12&"min", 'ES Matrix'!$B$9:$P$9, 0), FALSE), 0) -> 0 | H87: =IF($D87="Yes", VLOOKUP($B87,'ES Matrix'!$B$76:$P$95, MATCH(General!$D$12&"max", 'ES Matrix'!$B$9:$P$9, 0), FALSE), 0) -> 0 | I87: All Data Rules Complied
B88: Maintenance of migratory species life cycles | C88: $/ha | D88: Yes | E88: Yes | F88: =IF($D88="Yes", VLOOKUP($B88,'ES Matrix'!$B$76:$P$95, MATCH(General!$D$12, 'ES Matrix'!$B$9:$P$9, 0), FALSE), 0) -> 374 | G88: =IF($D88="Yes", VLOOKUP($B88,'ES Matrix'!$B$76:$P$95, MATCH(General!$D$12&"min", 'ES Matrix'!$B$9:$P$9, 0), FALSE), 0) -> 323 | H88: =IF($D88="Yes", VLOOKUP($B88,'ES Matrix'!$B$76:$P$95, MATCH(General!$D$12&"max", 'ES Matrix'!$B$9:$P$9, 0), FALSE), 0) -> 424 | I88: All Data Rules Complied
B89: Genetic diversity (biodiversity) | C89: $/ha | D89: Yes | E89: Yes | F89: =IF($D89="Yes", VLOOKUP($B89,'ES Matrix'!$B$76:$P$95, MATCH(General!$D$12, 'ES Matrix'!$B$9:$P$9, 0), FALSE), 0) -> 22876.27 | G89: =IF($D89="Yes", VLOOKUP($B89,'ES Matrix'!$B$76:$P$95, MATCH(General!$D$12&"min", 'ES Matrix'!$B$9:$P$9, 0), FALSE), 0) -> 22876.27 | H89: =IF($D89="Yes", VLOOKUP($B89,'ES Matrix'!$B$76:$P$95, MATCH(General!$D$12&"max", 'ES Matrix'!$B$9:$P$9, 0), FALSE), 0) -> 22876.27 | I89: All Data Rules Complied
B90: Aesthetic information | C90: $/ha | D90: Yes | E90: Yes | F90: =IF($D90="Yes", VLOOKUP($B90,'ES Matrix'!$B$76:$P$95, MATCH(General!$D$12, 'ES Matrix'!$B$9:$P$9, 0), FALSE), 0) -> 0 | G90: =IF($D90="Yes", VLOOKUP($B90,'ES Matrix'!$B$76:$P$95, MATCH(General!$D$12&"min", 'ES Matrix'!$B$9:$P$9, 0), FALSE), 0) -> 0 | H90: =IF($D90="Yes", VLOOKUP($B90,'ES Matrix'!$B$76:$P$95, MATCH(General!$D$12&"max", 'ES Matrix'!$B$9:$P$9, 0), FALSE), 0) -> 0 | I90: All Data Rules Complied
B91: Recreational tourism | C91: $/ha | D91: Yes | E91: Yes | F91: =IF($D91="Yes", VLOOKUP($B91,'ES Matrix'!$B$76:$P$95, MATCH(General!$D$12, 'ES Matrix'!$B$9:$P$9, 0), FALSE), 0) -> 8623.49 | G91: =IF($D91="Yes", VLOOKUP($B91,'ES Matrix'!$B$76:$P$95, MATCH(General!$D$12&"min", 'ES Matrix'!$B$9:$P$9, 0), FALSE), 0) -> 1357 | H91: =IF($D91="Yes", VLOOKUP($B91,'ES Matrix'!$B$76:$P$95, MATCH(General!$D$12&"max", 'ES Matrix'!$B$9:$P$9, 0), FALSE), 0) -> 15890 | I91: All Data Rules Complied
B92: Inspiration for culture | C92: $/ha | D92: Yes | E92: Yes | F92: =IF($D92="Yes", VLOOKUP($B92,'ES Matrix'!$B$76:$P$95, MATCH(General!$D$12, 'ES Matrix'!$B$9:$P$9, 0), FALSE), 0) -> 164 | G92: =IF($D92="Yes", VLOOKUP($B92,'ES Matrix'!$B$76:$P$95, MATCH(General!$D$12&"min", 'ES Matrix'!$B$9:$P$9, 0), FALSE), 0) -> 164 | H92: =IF($D92="Yes", VLOOKUP($B92,'ES Matrix'!$B$76:$P$95, MATCH(General!$D$12&"max", 'ES Matrix'!$B$9:$P$9, 0), FALSE), 0) -> 164 | I92: All Data Rules Complied
B93: Cognitive development | C93: $/ha | D93: Yes | E93: Yes | F93: =IF($D93="Yes", VLOOKUP($B93,'ES Matrix'!$B$76:$P$95, MATCH(General!$D$12, 'ES Matrix'!$B$9:$P$9, 0), FALSE), 0) -> 3329 | G93: =IF($D93="Yes", VLOOKUP($B93,'ES Matrix'!$B$76:$P$95, MATCH(General!$D$12&"min", 'ES Matrix'!$B$9:$P$9, 0), FALSE), 0) -> 31 | H93: =IF($D93="Yes", VLOOKUP($B93,'ES Matrix'!$B$76:$P$95, MATCH(General!$D$12&"max", 'ES Matrix'!$B$9:$P$9, 0), FALSE), 0) -> 6628 | I93: All Data Rules Complied
B94: Fishing (Commercial & Recreational) | C94: $/ha | D94: Yes | E94: Yes | F94: =IF($D94="Yes", VLOOKUP($B94,'ES Matrix'!$B$76:$P$95, MATCH(General!$D$12, 'ES Matrix'!$B$9:$P$9, 0), FALSE), 0) -> 577.2 | G94: =IF($D94="Yes", VLOOKUP($B94,'ES Matrix'!$B$76:$P$95, MATCH(General!$D$12&"min", 'ES Matrix'!$B$9:$P$9, 0), FALSE), 0) -> 279 | H94: =IF($D94="Yes", VLOOKUP($B94,'ES Matrix'!$B$76:$P$95, MATCH(General!$D$12&"max", 'ES Matrix'!$B$9:$P$9, 0), FALSE), 0) -> 875 | I94: All Data Rules Complied
B95: Research | C95: $/ha | D95: Yes | E95: Yes | F95: =IF($D95="Yes", VLOOKUP($B95,'ES Matrix'!$B$76:$P$95, MATCH(General!$D$12, 'ES Matrix'!$B$9:$P$9, 0), FALSE), 0) -> 877.79 | G95: =IF($D95="Yes", VLOOKUP($B95,'ES Matrix'!$B$76:$P$95, MATCH(General!$D$12&"min", 'ES Matrix'!$B$9:$P$9, 0), FALSE), 0) -> 877.79 | H95: =IF($D95="Yes", VLOOKUP($B95,'ES Matrix'!$B$76:$P$95, MATCH(General!$D$12&"max", 'ES Matrix'!$B$9:$P$9, 0), FALSE), 0) -> 877.79 | I95: All Data Rules Complied
B96: Non-use | C96: $/ha | D96: Yes | E96: Yes | F96: =IF($D96="Yes", VLOOKUP($B96,'ES Matrix'!$B$76:$P$95, MATCH(General!$D$12, 'ES Matrix'!$B$9:$P$9, 0), FALSE), 0) -> 23158.52 | G96: =IF($D96="Yes", VLOOKUP($B96,'ES Matrix'!$B$76:$P$95, MATCH(General!$D$12&"min", 'ES Matrix'!$B$9:$P$9, 0), FALSE), 0) -> 23158.52 | H96: =IF($D96="Yes", VLOOKUP($B96,'ES Matrix'!$B$76:$P$95, MATCH(General!$D$12&"max", 'ES Matrix'!$B$9:$P$9, 0), FALSE), 0) -> 23158.52 | I96: All Data Rules Complied
B98: SAND DUNE
B99: Food | C99: $/ha | D99: No | E99: No | F99: =IF($D99="Yes", VLOOKUP($B99,'ES Matrix'!$B$98:$P$114, MATCH(General!$D$12, 'ES Matrix'!$B$9:$P$9, 0), FALSE), 0) -> 0 | G99: =IF($D99="Yes", VLOOKUP($B99,'ES Matrix'!$B$98:$P$114, MATCH(General!$D$12&"min", 'ES Matrix'!$B$9:$P$9, 0), FALSE), 0) -> 0 | H99: =IF($D99="Yes", VLOOKUP($B99,'ES Matrix'!$B$98:$P$114, MATCH(General!$D$12&"max", 'ES Matrix'!$B$9:$P$9, 0), FALSE), 0) -> 0 | I99: =IF(H99<G99, "Please make sure that the Max value is higher than the Min value", IF(H99<F99, "Please make sure that the Max value is higher than the Average value",IF(G99>F99, "Make sure that the Min value is lower than the Average value","All Data Rules Complied"))) -> All Data Rules Complied
B100: Water | C100: $/ha | D100: No | E100: No | F100: =IF($D100="Yes", VLOOKUP($B100,'ES Matrix'!$B$98:$P$114, MATCH(General!$D$12, 'ES Matrix'!$B$9:$P$9, 0), FALSE), 0) -> 0 | G100: =IF($D100="Yes", VLOOKUP($B100,'ES Matrix'!$B$98:$P$114, MATCH(General!$D$12&"min", 'ES Matrix'!$B$9:$P$9, 0), FALSE), 0) -> 0 | H100: =IF($D100="Yes", VLOOKUP($B100,'ES Matrix'!$B$98:$P$114, MATCH(General!$D$12&"max", 'ES Matrix'!$B$9:$P$9, 0), FALSE), 0) -> 0 | I100: All Data Rules Complied
B101: Raw materials | C101: $/ha | D101: Yes | E101: Yes | F101: =IF($D101="Yes", VLOOKUP($B101,'ES Matrix'!$B$98:$P$114, MATCH(General!$D$12, 'ES Matrix'!$B$9:$P$9, 0), FALSE), 0) -> 26 | G101: =IF($D101="Yes", VLOOKUP($B101,'ES Matrix'!$B$98:$P$114, MATCH(General!$D$12&"min", 'ES Matrix'!$B$9:$P$9, 0), FALSE), 0) -> 1.411244116 | H101: =IF($D101="Yes", VLOOKUP($B101,'ES Matrix'!$B$98:$P$114, MATCH(General!$D$12&"max", 'ES Matrix'!$B$9:$P$9, 0), FALSE), 0) -> 49.73893089 | I101: All Data Rules Complied
B102: Genetic resources | C102: $/ha | D102: Yes | E102: Yes | F102: =IF($D102="Yes", VLOOKUP($B102,'ES Matrix'!$B$98:$P$114, MATCH(General!$D$12, 'ES Matrix'!$B$9:$P$9, 0), FALSE), 0) -> 12.43473272 | G102: =IF($D102="Yes", VLOOKUP($B102,'ES Matrix'!$B$98:$P$114, MATCH(General!$D$12&"min", 'ES Matrix'!$B$9:$P$9, 0), FALSE), 0) -> 12.43473272 | H102: =IF($D102="Yes", VLOOKUP($B102,'ES Matrix'!$B$98:$P$114, MATCH(General!$D$12&"max", 'ES Matrix'!$B$9:$P$9, 0), FALSE), 0) -> 12.43473272 | I102: All Data Rules Complied
B103: Air quality regulation | C103: $/ha | D103: No | E103: No | F103: =IF($D103="Yes", VLOOKUP($B103,'ES Matrix'!$B$98:$P$114, MATCH(General!$D$12, 'ES Matrix'!$B$9:$P$9, 0), FALSE), 0) -> 0 | G103: =IF($D103="Yes", VLOOKUP($B103,'ES Matrix'!$B$98:$P$114, MATCH(General!$D$12&"min", 'ES Matrix'!$B$9:$P$9, 0), FALSE), 0) -> 0 | H103: =IF($D103="Yes", VLOOKUP($B103,'ES Matrix'!$B$98:$P$114, MATCH(General!$D$12&"max", 'ES Matrix'!$B$9:$P$9, 0), FALSE), 0) -> 0 | I103: All Data Rules Complied
B104: Climate regulation | C104: $/ha | D104: No | E104: No | F104: =IF($D104="Yes", VLOOKUP($B104,'ES Matrix'!$B$98:$P$114, MATCH(General!$D$12, 'ES Matrix'!$B$9:$P$9, 0), FALSE), 0) -> 0 | G104: =IF($D104="Yes", VLOOKUP($B104,'ES Matrix'!$B$98:$P$114, MATCH(General!$D$12&"min", 'ES Matrix'!$B$9:$P$9, 0), FALSE), 0) -> 0 | H104: =IF($D104="Yes", VLOOKUP($B104,'ES Matrix'!$B$98:$P$114, MATCH(General!$D$12&"max", 'ES Matrix'!$B$9:$P$9, 0), FALSE), 0) -> 0 | I104: All Data Rules Complied
B105: Disturbance moderation | C105: $/ha | D105: Yes | E105: Yes | F105: =IF($D105="Yes", VLOOKUP($B105,'ES Matrix'!$B$98:$P$114, MATCH(General!$D$12, 'ES Matrix'!$B$9:$P$9, 0), FALSE), 0) -> 31007 | G105: =IF($D105="Yes", VLOOKUP($B105,'ES Matrix'!$B$98:$P$114, MATCH(General!$D$12&"min", 'ES Matrix'!$B$9:$P$9, 0), FALSE), 0) -> 31007 | H105: =IF($D105="Yes", VLOOKUP($B105,'ES Matrix'!$B$98:$P$114, MATCH(General!$D$12&"max", 'ES Matrix'!$B$9:$P$9, 0), FALSE), 0) -> 31007 | I105: All Data Rules Complied
B106: Water flow regulation | C106: $/ha | D106: No | E106: No | F106: =IF($D106="Yes", VLOOKUP($B106,'ES Matrix'!$B$98:$P$114, MATCH(General!$D$12, 'ES Matrix'!$B$9:$P$9, 0), FALSE), 0) -> 0 | G106: =IF($D106="Yes", VLOOKUP($B106,'ES Matrix'!$B$98:$P$114, MATCH(General!$D$12&"min", 'ES Matrix'!$B$9:$P$9, 0), FALSE), 0) -> 0 | H106: =IF($D106="Yes", VLOOKUP($B106,'ES Matrix'!$B$98:$P$114, MATCH(General!$D$12&"max", 'ES Matrix'!$B$9:$P$9, 0), FALSE), 0) -> 0 | I106: All Data Rules Complied
B107: Waste treatment | C107: $/ha | D107: No | E107: No | F107: =IF($D107="Yes", VLOOKUP($B107,'ES Matrix'!$B$98:$P$114, MATCH(General!$D$12, 'ES Matrix'!$B$9:$P$9, 0), FALSE), 0) -> 0 | G107: =IF($D107="Yes", VLOOKUP($B107,'ES Matrix'!$B$98:$P$114, MATCH(General!$D$12&"min", 'ES Matrix'!$B$9:$P$9, 0), FALSE), 0) -> 0 | H107: =IF($D107="Yes", VLOOKUP($B107,'ES Matrix'!$B$98:$P$114, MATCH(General!$D$12&"max", 'ES Matrix'!$B$9:$P$9, 0), FALSE), 0) -> 0 | I107: All Data Rules Complied
B108: Erosion prevention | C108: $/ha | D108: Yes | E108: Yes | F108: =IF($D108="Yes", VLOOKUP($B108,'ES Matrix'!$B$98:$P$114, MATCH(General!$D$12, 'ES Matrix'!$B$9:$P$9, 0), FALSE), 0) -> 49 | G108: =IF($D108="Yes", VLOOKUP($B108,'ES Matrix'!$B$98:$P$114, MATCH(General!$D$12&"min", 'ES Matrix'!$B$9:$P$9, 0), FALSE), 0) -> 36 | H108: =IF($D108="Yes", VLOOKUP($B108,'ES Matrix'!$B$98:$P$114, MATCH(General!$D$12&"max", 'ES Matrix'!$B$9:$P$9, 0), FALSE), 0) -> 62 | I108: All Data Rules Complied
B109: Soil fertility maintenance | C109: $/ha | D109: No | E109: No | F109: =IF($D109="Yes", VLOOKUP($B109,'ES Matrix'!$B$98:$P$114, MATCH(General!$D$12, 'ES Matrix'!$B$9:$P$9, 0), FALSE), 0) -> 0 | G109: =IF($D109="Yes", VLOOKUP($B109,'ES Matrix'!$B$98:$P$114, MATCH(General!$D$12&"min", 'ES Matrix'!$B$9:$P$9, 0), FALSE), 0) -> 0 | H109: =IF($D109="Yes", VLOOKUP($B109,'ES Matrix'!$B$98:$P$114, MATCH(General!$D$12&"max", 'ES Matrix'!$B$9:$P$9, 0), FALSE), 0) -> 0 | I109: All Data Rules Complied
B110: Maintenance of migratory species life cycles | C110: $/ha | D110: Yes | E110: Yes | F110: =IF($D110="Yes", VLOOKUP($B110,'ES Matrix'!$B$98:$P$114, MATCH(General!$D$12, 'ES Matrix'!$B$9:$P$9, 0), FALSE), 0) -> 374 | G110: =IF($D110="Yes", VLOOKUP($B110,'ES Matrix'!$B$98:$P$114, MATCH(General!$D$12&"min", 'ES Matrix'!$B$9:$P$9, 0), FALSE), 0) -> 323 | H110: =IF($D110="Yes", VLOOKUP($B110,'ES Matrix'!$B$98:$P$114, MATCH(General!$D$12&"max", 'ES Matrix'!$B$9:$P$9, 0), FALSE), 0) -> 424 | I110: All Data Rules Complied
B111: Genetic diversity | C111: $/ha | D111: No | E111: No | F111: =IF($D111="Yes", VLOOKUP($B111,'ES Matrix'!$B$98:$P$114, MATCH(General!$D$12, 'ES Matrix'!$B$9:$P$9, 0), FALSE), 0) -> 0 | G111: =IF($D111="Yes", VLOOKUP($B111,'ES Matrix'!$B$98:$P$114, MATCH(General!$D$12&"min", 'ES Matrix'!$B$9:$P$9, 0), FALSE), 0) -> 0 | H111: =IF($D111="Yes", VLOOKUP($B111,'ES Matrix'!$B$98:$P$114, MATCH(General!$D$12&"max", 'ES Matrix'!$B$9:$P$9, 0), FALSE), 0) -> 0 | I111: All Data Rules Complied
B112: Aesthetic information | C112: $/ha | D112: Yes | E112: Yes | F112: =IF($D112="Yes", VLOOKUP($B112,'ES Matrix'!$B$98:$P$114, MATCH(General!$D$12, 'ES Matrix'!$B$9:$P$9, 0), FALSE), 0) -> 303 | G112: =IF($D112="Yes", VLOOKUP($B112,'ES Matrix'!$B$98:$P$114, MATCH(General!$D$12&"min", 'ES Matrix'!$B$9:$P$9, 0), FALSE), 0) -> 303 | H112: =IF($D112="Yes", VLOOKUP($B112,'ES Matrix'!$B$98:$P$114, MATCH(General!$D$12&"max", 'ES Matrix'!$B$9:$P$9, 0), FALSE), 0) -> 303 | I112: All Data Rules Complied
B113: Recreational tourism | C113: $/ha | D113: Yes | E113: Yes | F113: =IF($D113="Yes", VLOOKUP($B113,'ES Matrix'!$B$98:$P$114, MATCH(General!$D$12, 'ES Matrix'!$B$9:$P$9, 0), FALSE), 0) -> 14272 | G113: =IF($D113="Yes", VLOOKUP($B113,'ES Matrix'!$B$98:$P$114, MATCH(General!$D$12&"min", 'ES Matrix'!$B$9:$P$9, 0), FALSE), 0) -> 10273 | H113: =IF($D113="Yes", VLOOKUP($B113,'ES Matrix'!$B$98:$P$114, MATCH(General!$D$12&"max", 'ES Matrix'!$B$9:$P$9, 0), FALSE), 0) -> 18270 | I113: All Data Rules Complied
B114: Inspiration for culture | C114: $/ha | D114: Yes | E114: Yes | F114: =IF($D114="Yes", VLOOKUP($B114,'ES Matrix'!$B$98:$P$114, MATCH(General!$D$12, 'ES Matrix'!$B$9:$P$9, 0), FALSE), 0) -> 163.9123859 | G114: =IF($D114="Yes", VLOOKUP($B114,'ES Matrix'!$B$98:$P$114, MATCH(General!$D$12&"min", 'ES Matrix'!$B$9:$P$9, 0), FALSE), 0) -> 163.9123859 | H114: =IF($D114="Yes", VLOOKUP($B114,'ES Matrix'!$B$98:$P$114, MATCH(General!$D$12&"max", 'ES Matrix'!$B$9:$P$9, 0), FALSE), 0) -> 163.9123859 | I114: All Data Rules Complied
B115: Cognitive development | C115: $/ha | D115: No | E115: No | F115: =IF($D115="Yes", VLOOKUP($B115,'ES Matrix'!$B$98:$P$114, MATCH(General!$D$12, 'ES Matrix'!$B$9:$P$9, 0), FALSE), 0) -> 0 | G115: =IF($D115="Yes", VLOOKUP($B115,'ES Matrix'!$B$98:$P$114, MATCH(General!$D$12&"min", 'ES Matrix'!$B$9:$P$9, 0), FALSE), 0) -> 0 | H115: =IF($D115="Yes", VLOOKUP($B115,'ES Matrix'!$B$98:$P$114, MATCH(General!$D$12&"max", 'ES Matrix'!$B$9:$P$9, 0), FALSE), 0) -> 0 | I115: All Data Rules Complied
B117: ROCK BREAKWATER
B118: Food | C118: $/ha | D118: No | E118: No | F118: =IF($D118="Yes", VLOOKUP($B118,'ES Matrix'!$B$117:$P$134, MATCH(General!$D$12, 'ES Matrix'!$B$9:$P$9, 0), FALSE), 0) -> 0 | G118: =IF($D118="Yes", VLOOKUP($B118,'ES Matrix'!$B$117:$P$134, MATCH(General!$D$12&"min", 'ES Matrix'!$B$9:$P$9, 0), FALSE), 0) -> 0 | H118: =IF($D118="Yes", VLOOKUP($B118,'ES Matrix'!$B$117:$P$134, MATCH(General!$D$12&"max", 'ES Matrix'!$B$9:$P$9, 0), FALSE), 0) -> 0 | I118: =IF(H118<G118, "Please make sure that the Max value is higher than the Min value", IF(H118<F118, "Please make sure that the Max value is higher than the Average value",IF(G118>F118, "Make sure that the Min value is lower than the Average value","All Data Rules Complied"))) -> All Data Rules Complied
B119: Water | C119: $/ha | D119: No | E119: No | F119: =IF($D119="Yes", VLOOKUP($B119,'ES Matrix'!$B$117:$P$134, MATCH(General!$D$12, 'ES Matrix'!$B$9:$P$9, 0), FALSE), 0) -> 0 | G119: =IF($D119="Yes", VLOOKUP($B119,'ES Matrix'!$B$117:$P$134, MATCH(General!$D$12&"min", 'ES Matrix'!$B$9:$P$9, 0), FALSE), 0) -> 0 | H119: =IF($D119="Yes", VLOOKUP($B119,'ES Matrix'!$B$117:$P$134, MATCH(General!$D$12&"max", 'ES Matrix'!$B$9:$P$9, 0), FALSE), 0) -> 0 | I119: All Data Rules Complied
B120: Raw materials | C120: $/ha | D120: No | E120: No | F120: =IF($D120="Yes", VLOOKUP($B120,'ES Matrix'!$B$117:$P$134, MATCH(General!$D$12, 'ES Matrix'!$B$9:$P$9, 0), FALSE), 0) -> 0 | G120: =IF($D120="Yes", VLOOKUP($B120,'ES Matrix'!$B$117:$P$134, MATCH(General!$D$12&"min", 'ES Matrix'!$B$9:$P$9, 0), FALSE), 0) -> 0 | H120: =IF($D120="Yes", VLOOKUP($B120,'ES Matrix'!$B$117:$P$134, MATCH(General!$D$12&"max", 'ES Matrix'!$B$9:$P$9, 0), FALSE), 0) -> 0 | I120: All Data Rules Complied
B121: Genetic resources | C121: $/ha | D121: No | E121: No | F121: =IF($D121="Yes", VLOOKUP($B121,'ES Matrix'!$B$117:$P$134, MATCH(General!$D$12, 'ES Matrix'!$B$9:$P$9, 0), FALSE), 0) -> 0 | G121: =IF($D121="Yes", VLOOKUP($B121,'ES Matrix'!$B$117:$P$134, MATCH(General!$D$12&"min", 'ES Matrix'!$B$9:$P$9, 0), FALSE), 0) -> 0 | H121: =IF($D121="Yes", VLOOKUP($B121,'ES Matrix'!$B$117:$P$134, MATCH(General!$D$12&"max", 'ES Matrix'!$B$9:$P$9, 0), FALSE), 0) -> 0 | I121: All Data Rules Complied
B122: Air quality regulation | C122: $/ha | D122: No | E122: No | F122: =IF($D122="Yes", VLOOKUP($B122,'ES Matrix'!$B$117:$P$134, MATCH(General!$D$12, 'ES Matrix'!$B$9:$P$9, 0), FALSE), 0) -> 0 | G122: =IF($D122="Yes", VLOOKUP($B122,'ES Matrix'!$B$117:$P$134, MATCH(General!$D$12&"min", 'ES Matrix'!$B$9:$P$9, 0), FALSE), 0) -> 0 | H122: =IF($D122="Yes", VLOOKUP($B122,'ES Matrix'!$B$117:$P$134, MATCH(General!$D$12&"max", 'ES Matrix'!$B$9:$P$9, 0), FALSE), 0) -> 0 | I122: All Data Rules Complied
B123: Climate regulation | C123: $/ha | D123: No | E123: No | F123: =IF($D123="Yes", VLOOKUP($B123,'ES Matrix'!$B$117:$P$134, MATCH(General!$D$12, 'ES Matrix'!$B$9:$P$9, 0), FALSE), 0) -> 0 | G123: =IF($D123="Yes", VLOOKUP($B123,'ES Matrix'!$B$117:$P$134, MATCH(General!$D$12&"min", 'ES Matrix'!$B$9:$P$9, 0), FALSE), 0) -> 0 | H123: =IF($D123="Yes", VLOOKUP($B123,'ES Matrix'!$B$117:$P$134, MATCH(General!$D$12&"max", 'ES Matrix'!$B$9:$P$9, 0), FALSE), 0) -> 0 | I123: All Data Rules Complied
B124: Disturbance moderation | C124: $/ha | D124: Yes | E124: Yes | F124: =IF($D124="Yes", VLOOKUP($B124,'ES Matrix'!$B$117:$P$134, MATCH(General!$D$12, 'ES Matrix'!$B$9:$P$9, 0), FALSE), 0) -> 14390.37705 | G124: =IF($D124="Yes", VLOOKUP($B124,'ES Matrix'!$B$117:$P$134, MATCH(General!$D$12&"min", 'ES Matrix'!$B$9:$P$9, 0), FALSE), 0) -> 14390.37705 | H124: =IF($D124="Yes", VLOOKUP($B124,'ES Matrix'!$B$117:$P$134, MATCH(General!$D$12&"max", 'ES Matrix'!$B$9:$P$9, 0), FALSE), 0) -> 14390.37705 | I124: All Data Rules Complied
B125: Water flow regulation | C125: $/ha | D125: No | E125: No | F125: =IF($D125="Yes", VLOOKUP($B125,'ES Matrix'!$B$117:$P$134, MATCH(General!$D$12, 'ES Matrix'!$B$9:$P$9, 0), FALSE), 0) -> 0 | G125: =IF($D125="Yes", VLOOKUP($B125,'ES Matrix'!$B$117:$P$134, MATCH(General!$D$12&"min", 'ES Matrix'!$B$9:$P$9, 0), FALSE), 0) -> 0 | H125: =IF($D125="Yes", VLOOKUP($B125,'ES Matrix'!$B$117:$P$134, MATCH(General!$D$12&"max", 'ES Matrix'!$B$9:$P$9, 0), FALSE), 0) -> 0 | I125: All Data Rules Complied
B126: Waste treatment | C126: $/ha | D126: No | E126: No | F126: =IF($D126="Yes", VLOOKUP($B126,'ES Matrix'!$B$117:$P$134, MATCH(General!$D$12, 'ES Matrix'!$B$9:$P$9, 0), FALSE), 0) -> 0 | G126: =IF($D126="Yes", VLOOKUP($B126,'ES Matrix'!$B$117:$P$134, MATCH(General!$D$12&"min", 'ES Matrix'!$B$9:$P$9, 0), FALSE), 0) -> 0 | H126: =IF($D126="Yes", VLOOKUP($B126,'ES Matrix'!$B$117:$P$134, MATCH(General!$D$12&"max", 'ES Matrix'!$B$9:$P$9, 0), FALSE), 0) -> 0 | I126: All Data Rules Complied
B127: Erosion prevention | C127: $/ha | D127: Yes | E127: Yes | F127: =IF($D127="Yes", VLOOKUP($B127,'ES Matrix'!$B$117:$P$134, MATCH(General!$D$12, 'ES Matrix'!$B$9:$P$9, 0), FALSE), 0) -> 49 | G127: =IF($D127="Yes", VLOOKUP($B127,'ES Matrix'!$B$117:$P$134, MATCH(General!$D$12&"min", 'ES Matrix'!$B$9:$P$9, 0), FALSE), 0) -> 35.80044074 | H127: =IF($D127="Yes", VLOOKUP($B127,'ES Matrix'!$B$117:$P$134, MATCH(General!$D$12&"max", 'ES Matrix'!$B$9:$P$9, 0), FALSE), 0) -> 62.17366361 | I127: All Data Rules Complied
B128: Soil fertility maintenance | C128: $/ha | D128: Yes | E128: Yes | F128: =IF($D128="Yes", VLOOKUP($B128,'ES Matrix'!$B$117:$P$134, MATCH(General!$D$12, 'ES Matrix'!$B$9:$P$9, 0), FALSE), 0) -> 4543.199165 | G128: =IF($D128="Yes", VLOOKUP($B128,'ES Matrix'!$B$117:$P$134, MATCH(General!$D$12&"min", 'ES Matrix'!$B$9:$P$9, 0), FALSE), 0) -> 4543.199165 | H128: =IF($D128="Yes", VLOOKUP($B128,'ES Matrix'!$B$117:$P$134, MATCH(General!$D$12&"max", 'ES Matrix'!$B$9:$P$9, 0), FALSE), 0) -> 4543.199165 | I128: All Data Rules Complied
B129: Maintenance of migratory species life cycles | C129: $/ha | D129: No | E129: No | F129: =IF($D129="Yes", VLOOKUP($B129,'ES Matrix'!$B$117:$P$134, MATCH(General!$D$12, 'ES Matrix'!$B$9:$P$9, 0), FALSE), 0) -> 0 | G129: =IF($D129="Yes", VLOOKUP($B129,'ES Matrix'!$B$117:$P$134, MATCH(General!$D$12&"min", 'ES Matrix'!$B$9:$P$9, 0), FALSE), 0) -> 0 | H129: =IF($D129="Yes", VLOOKUP($B129,'ES Matrix'!$B$117:$P$134, MATCH(General!$D$12&"max", 'ES Matrix'!$B$9:$P$9, 0), FALSE), 0) -> 0 | I129: All Data Rules Complied
B130: Genetic diversity | C130: $/ha | D130: Yes | E130: Yes | F130: =IF($D130="Yes", VLOOKUP($B130,'ES Matrix'!$B$117:$P$134, MATCH(General!$D$12, 'ES Matrix'!$B$9:$P$9, 0), FALSE), 0) -> 531.3 | G130: =IF($D130="Yes", VLOOKUP($B130,'ES Matrix'!$B$117:$P$134, MATCH(General!$D$12&"min", 'ES Matrix'!$B$9:$P$9, 0), FALSE), 0) -> 531.3 | H130: =IF($D130="Yes", VLOOKUP($B130,'ES Matrix'!$B$117:$P$134, MATCH(General!$D$12&"max", 'ES Matrix'!$B$9:$P$9, 0), FALSE), 0) -> 531.3 | I130: All Data Rules Complied
B131: Aesthetic information | C131: $/ha | D131: No | E131: No | F131: =IF($D131="Yes", VLOOKUP($B131,'ES Matrix'!$B$117:$P$134, MATCH(General!$D$12, 'ES Matrix'!$B$9:$P$9, 0), FALSE), 0) -> 0 | G131: =IF($D131="Yes", VLOOKUP($B131,'ES Matrix'!$B$117:$P$134, MATCH(General!$D$12&"min", 'ES Matrix'!$B$9:$P$9, 0), FALSE), 0) -> 0 | H131: =IF($D131="Yes", VLOOKUP($B131,'ES Matrix'!$B$117:$P$134, MATCH(General!$D$12&"max", 'ES Matrix'!$B$9:$P$9, 0), FALSE), 0) -> 0 | I131: All Data Rules Complied
B132: Recreational tourism | C132: $/ha | D132: Yes | E132: Yes | F132: =IF($D132="Yes", VLOOKUP($B132,'ES Matrix'!$B$117:$P$134, MATCH(General!$D$12, 'ES Matrix'!$B$9:$P$9, 0), FALSE), 0) -> 4385 | G132: =IF($D132="Yes", VLOOKUP($B132,'ES Matrix'!$B$117:$P$134, MATCH(General!$D$12&"min", 'ES Matrix'!$B$9:$P$9, 0), FALSE), 0) -> 73.38469404 | H132: =IF($D132="Yes", VLOOKUP($B132,'ES Matrix'!$B$117:$P$134, MATCH(General!$D$12&"max", 'ES Matrix'!$B$9:$P$9, 0), FALSE), 0) -> 8697.530324 | I132: All Data Rules Complied
B133: Inspiration for culture | C133: $/ha | D133: Yes | E133: Yes | F133: =IF($D133="Yes", VLOOKUP($B133,'ES Matrix'!$B$117:$P$134, MATCH(General!$D$12, 'ES Matrix'!$B$9:$P$9, 0), FALSE), 0) -> 163.9123859 | G133: =IF($D133="Yes", VLOOKUP($B133,'ES Matrix'!$B$117:$P$134, MATCH(General!$D$12&"min", 'ES Matrix'!$B$9:$P$9, 0), FALSE), 0) -> 163.9123859 | H133: =IF($D133="Yes", VLOOKUP($B133,'ES Matrix'!$B$117:$P$134, MATCH(General!$D$12&"max", 'ES Matrix'!$B$9:$P$9, 0), FALSE), 0) -> 163.9123859 | I133: All Data Rules Complied
B134: Cognitive development | C134: $/ha | D134: No | E134: No | F134: =IF($D134="Yes", VLOOKUP($B134,'ES Matrix'!$B$117:$P$134, MATCH(General!$D$12, 'ES Matrix'!$B$9:$P$9, 0), FALSE), 0) -> 0 | G134: =IF($D134="Yes", VLOOKUP($B134,'ES Matrix'!$B$117:$P$134, MATCH(General!$D$12&"min", 'ES Matrix'!$B$9:$P$9, 0), FALSE), 0) -> 0 | H134: =IF($D134="Yes", VLOOKUP($B134,'ES Matrix'!$B$117:$P$134, MATCH(General!$D$12&"max", 'ES Matrix'!$B$9:$P$9, 0), FALSE), 0) -> 0 | I134: All Data Rules Complied
B135: Water Quality | C135: $/ha | D135: Yes | E135: Yes | F135: =IF($D135="Yes", VLOOKUP($B135,'ES Matrix'!$B$117:$P$134, MATCH(General!$D$12, 'ES Matrix'!$B$9:$P$9, 0), FALSE), 0) -> 13112 | G135: =IF($D135="Yes", VLOOKUP($B135,'ES Matrix'!$B$117:$P$134, MATCH(General!$D$12&"min", 'ES Matrix'!$B$9:$P$9, 0), FALSE), 0) -> 13112 | H135: =IF($D135="Yes", VLOOKUP($B135,'ES Matrix'!$B$117:$P$134, MATCH(General!$D$12&"max", 'ES Matrix'!$B$9:$P$9, 0), FALSE), 0) -> 13112 | I135: All Data Rules Complied
B137: EARTHEN LEVEE
B138: Food | C138: $/ha | D138: No | E138: No | F138: =IF($D138="Yes", VLOOKUP($B138,'ES Matrix'!$B$137:$P$152, MATCH(General!$D$12, 'ES Matrix'!$B$9:$P$9, 0), FALSE), 0) -> 0 | G138: =IF($D138="Yes", VLOOKUP($B138,'ES Matrix'!$B$137:$P$152, MATCH(General!$D$12&"min", 'ES Matrix'!$B$9:$P$9, 0), FALSE), 0) -> 0 | H138: =IF($D138="Yes", VLOOKUP($B138,'ES Matrix'!$B$137:$P$152, MATCH(General!$D$12&"max", 'ES Matrix'!$B$9:$P$9, 0), FALSE), 0) -> 0 | I138: =IF(H138<G138, "Please make sure that the Max value is higher than the Min value", IF(H138<F138, "Please make sure that the Max value is higher than the Average value",IF(G138>F138, "Make sure that the Min value is lower than the Average value","All Data Rules Complied"))) -> All Data Rules Complied
B139: Water | C139: $/ha | D139: No | E139: No | F139: =IF($D139="Yes", VLOOKUP($B139,'ES Matrix'!$B$137:$P$152, MATCH(General!$D$12, 'ES Matrix'!$B$9:$P$9, 0), FALSE), 0) -> 0 | G139: =IF($D139="Yes", VLOOKUP($B139,'ES Matrix'!$B$137:$P$152, MATCH(General!$D$12&"min", 'ES Matrix'!$B$9:$P$9, 0), FALSE), 0) -> 0 | H139: =IF($D139="Yes", VLOOKUP($B139,'ES Matrix'!$B$137:$P$152, MATCH(General!$D$12&"max", 'ES Matrix'!$B$9:$P$9, 0), FALSE), 0) -> 0 | I139: All Data Rules Complied
B140: Raw materials | C140: $/ha | D140: No | E140: No | F140: =IF($D140="Yes", VLOOKUP($B140,'ES Matrix'!$B$137:$P$152, MATCH(General!$D$12, 'ES Matrix'!$B$9:$P$9, 0), FALSE), 0) -> 0 | G140: =IF($D140="Yes", VLOOKUP($B140,'ES Matrix'!$B$137:$P$152, MATCH(General!$D$12&"min", 'ES Matrix'!$B$9:$P$9, 0), FALSE), 0) -> 0 | H140: =IF($D140="Yes", VLOOKUP($B140,'ES Matrix'!$B$137:$P$152, MATCH(General!$D$12&"max", 'ES Matrix'!$B$9:$P$9, 0), FALSE), 0) -> 0 | I140: All Data Rules Complied
B141: Genetic resources | C141: $/ha | D141: No | E141: No | F141: =IF($D141="Yes", VLOOKUP($B141,'ES Matrix'!$B$137:$P$152, MATCH(General!$D$12, 'ES Matrix'!$B$9:$P$9, 0), FALSE), 0) -> 0 | G141: =IF($D141="Yes", VLOOKUP($B141,'ES Matrix'!$B$137:$P$152, MATCH(General!$D$12&"min", 'ES Matrix'!$B$9:$P$9, 0), FALSE), 0) -> 0 | H141: =IF($D141="Yes", VLOOKUP($B141,'ES Matrix'!$B$137:$P$152, MATCH(General!$D$12&"max", 'ES Matrix'!$B$9:$P$9, 0), FALSE), 0) -> 0 | I141: All Data Rules Complied
B142: Air quality regulation | C142: $/ha | D142: No | E142: No | F142: =IF($D142="Yes", VLOOKUP($B142,'ES Matrix'!$B$137:$P$152, MATCH(General!$D$12, 'ES Matrix'!$B$9:$P$9, 0), FALSE), 0) -> 0 | G142: =IF($D142="Yes", VLOOKUP($B142,'ES Matrix'!$B$137:$P$152, MATCH(General!$D$12&"min", 'ES Matrix'!$B$9:$P$9, 0), FALSE), 0) -> 0 | H142: =IF($D142="Yes", VLOOKUP($B142,'ES Matrix'!$B$137:$P$152, MATCH(General!$D$12&"max", 'ES Matrix'!$B$9:$P$9, 0), FALSE), 0) -> 0 | I142: All Data Rules Complied
B143: Climate regulation | C143: $/ha | D143: No | E143: No | F143: =IF($D143="Yes", VLOOKUP($B143,'ES Matrix'!$B$137:$P$152, MATCH(General!$D$12, 'ES Matrix'!$B$9:$P$9, 0), FALSE), 0) -> 0 | G143: =IF($D143="Yes", VLOOKUP($B143,'ES Matrix'!$B$137:$P$152, MATCH(General!$D$12&"min", 'ES Matrix'!$B$9:$P$9, 0), FALSE), 0) -> 0 | H143: =IF($D143="Yes", VLOOKUP($B143,'ES Matrix'!$B$137:$P$152, MATCH(General!$D$12&"max", 'ES Matrix'!$B$9:$P$9, 0), FALSE), 0) -> 0 | I143: All Data Rules Complied
B144: Disturbance moderation | C144: $/ha | D144: Yes | E144: Yes | F144: =IF($D144="Yes", VLOOKUP($B144,'ES Matrix'!$B$137:$P$152, MATCH(General!$D$12, 'ES Matrix'!$B$9:$P$9, 0), FALSE), 0) -> 14390.37705 | G144: =IF($D144="Yes", VLOOKUP($B144,'ES Matrix'!$B$137:$P$152, MATCH(General!$D$12&"min", 'ES Matrix'!$B$9:$P$9, 0), FALSE), 0) -> 14390.37705 | H144: =IF($D144="Yes", VLOOKUP($B144,'ES Matrix'!$B$137:$P$152, MATCH(General!$D$12&"max", 'ES Matrix'!$B$9:$P$9, 0), FALSE), 0) -> 14390.37705 | I144: All Data Rules Complied
B145: Water flow regulation | C145: $/ha | D145: No | E145: No | F145: =IF($D145="Yes", VLOOKUP($B145,'ES Matrix'!$B$137:$P$152, MATCH(General!$D$12, 'ES Matrix'!$B$9:$P$9, 0), FALSE), 0) -> 0 | G145: =IF($D145="Yes", VLOOKUP($B145,'ES Matrix'!$B$137:$P$152, MATCH(General!$D$12&"min", 'ES Matrix'!$B$9:$P$9, 0), FALSE), 0) -> 0 | H145: =IF($D145="Yes", VLOOKUP($B145,'ES Matrix'!$B$137:$P$152, MATCH(General!$D$12&"max", 'ES Matrix'!$B$9:$P$9, 0), FALSE), 0) -> 0 | I145: All Data Rules Complied
B146: Waste treatment | C146: $/ha | D146: Yes | E146: Yes | F146: =IF($D146="Yes", VLOOKUP($B146,'ES Matrix'!$B$137:$P$152, MATCH(General!$D$12, 'ES Matrix'!$B$9:$P$9, 0), FALSE), 0) -> 41324.00813 | G146: =IF($D146="Yes", VLOOKUP($B146,'ES Matrix'!$B$137:$P$152, MATCH(General!$D$12&"min", 'ES Matrix'!$B$9:$P$9, 0), FALSE), 0) -> 41324.00813 | H146: =IF($D146="Yes", VLOOKUP($B146,'ES Matrix'!$B$137:$P$152, MATCH(General!$D$12&"max", 'ES Matrix'!$B$9:$P$9, 0), FALSE), 0) -> 41324.00813 | I146: All Data Rules Complied
B147: Erosion prevention | C147: $/ha | D147: Yes | E147: Yes | F147: =IF($D147="Yes", VLOOKUP($B147,'ES Matrix'!$B$137:$P$152, MATCH(General!$D$12, 'ES Matrix'!$B$9:$P$9, 0), FALSE), 0) -> 49 | G147: =IF($D147="Yes", VLOOKUP($B147,'ES Matrix'!$B$137:$P$152, MATCH(General!$D$12&"min", 'ES Matrix'!$B$9:$P$9, 0), FALSE), 0) -> 35.80044074 | H147: =IF($D147="Yes", VLOOKUP($B147,'ES Matrix'!$B$137:$P$152, MATCH(General!$D$12&"max", 'ES Matrix'!$B$9:$P$9, 0), FALSE), 0) -> 62.17366361 | I147: All Data Rules Complied
B148: Soil fertility maintenance | C148: $/ha | D148: Yes | E148: Yes | F148: =IF($D148="Yes", VLOOKUP($B148,'ES Matrix'!$B$137:$P$152, MATCH(General!$D$12, 'ES Matrix'!$B$9:$P$9, 0), FALSE), 0) -> 4543.199165 | G148: =IF($D148="Yes", VLOOKUP($B148,'ES Matrix'!$B$137:$P$152, MATCH(General!$D$12&"min", 'ES Matrix'!$B$9:$P$9, 0), FALSE), 0) -> 4543.199165 | H148: =IF($D148="Yes", VLOOKUP($B148,'ES Matrix'!$B$137:$P$152, MATCH(General!$D$12&"max", 'ES Matrix'!$B$9:$P$9, 0), FALSE), 0) -> 4543.199165 | I148: All Data Rules Complied
B149: Maintenance of migratory species life cycles | C149: $/ha | D149: No | E149: No | F149: =IF($D149="Yes", VLOOKUP($B149,'ES Matrix'!$B$137:$P$152, MATCH(General!$D$12, 'ES Matrix'!$B$9:$P$9, 0), FALSE), 0) -> 0 | G149: =IF($D149="Yes", VLOOKUP($B149,'ES Matrix'!$B$137:$P$152, MATCH(General!$D$12&"min", 'ES Matrix'!$B$9:$P$9, 0), FALSE), 0) -> 0 | H149: =IF($D149="Yes", VLOOKUP($B149,'ES Matrix'!$B$137:$P$152, MATCH(General!$D$12&"max", 'ES Matrix'!$B$9:$P$9, 0), FALSE), 0) -> 0 | I149: All Data Rules Complied
B150: Genetic diversity | C150: $/ha | D150: No | E150: No | F150: =IF($D150="Yes", VLOOKUP($B150,'ES Matrix'!$B$137:$P$152, MATCH(General!$D$12, 'ES Matrix'!$B$9:$P$9, 0), FALSE), 0) -> 0 | G150: =IF($D150="Yes", VLOOKUP($B150,'ES Matrix'!$B$137:$P$152, MATCH(General!$D$12&"min", 'ES Matrix'!$B$9:$P$9, 0), FALSE), 0) -> 0 | H150: =IF($D150="Yes", VLOOKUP($B150,'ES Matrix'!$B$137:$P$152, MATCH(General!$D$12&"max", 'ES Matrix'!$B$9:$P$9, 0), FALSE), 0) -> 0 | I150: All Data Rules Complied
B151: Aesthetic information | C151: $/ha | D151: No | E151: No | F151: =IF($D151="Yes", VLOOKUP($B151,'ES Matrix'!$B$137:$P$152, MATCH(General!$D$12, 'ES Matrix'!$B$9:$P$9, 0), FALSE), 0) -> 0 | G151: =IF($D151="Yes", VLOOKUP($B151,'ES Matrix'!$B$137:$P$152, MATCH(General!$D$12&"min", 'ES Matrix'!$B$9:$P$9, 0), FALSE), 0) -> 0 | H151: =IF($D151="Yes", VLOOKUP($B151,'ES Matrix'!$B$137:$P$152, MATCH(General!$D$12&"max", 'ES Matrix'!$B$9:$P$9, 0), FALSE), 0) -> 0 | I151: All Data Rules Complied
B152: Recreational tourism | C152: $/ha | D152: Yes | E152: Yes | F152: =IF($D152="Yes", VLOOKUP($B152,'ES Matrix'!$B$137:$P$152, MATCH(General!$D$12, 'ES Matrix'!$B$9:$P$9, 0), FALSE), 0) -> 4385 | G152: =IF($D152="Yes", VLOOKUP($B152,'ES Matrix'!$B$137:$P$152, MATCH(General!$D$12&"min", 'ES Matrix'!$B$9:$P$9, 0), FALSE), 0) -> 73.38469404 | H152: =IF($D152="Yes", VLOOKUP($B152,'ES Matrix'!$B$137:$P$152, MATCH(General!$D$12&"max", 'ES Matrix'!$B$9:$P$9, 0), FALSE), 0) -> 8697.530324 | I152: All Data Rules Complied
B153: Inspiration for culture | C153: $/ha | D153: Yes | E153: Yes | F153: =IF($D153="Yes", VLOOKUP($B153,'ES Matrix'!$B$137:$P$152, MATCH(General!$D$12, 'ES Matrix'!$B$9:$P$9, 0), FALSE), 0) -> 163.9123859 | G153: =IF($D153="Yes", VLOOKUP($B153,'ES Matrix'!$B$137:$P$152, MATCH(General!$D$12&"min", 'ES Matrix'!$B$9:$P$9, 0), FALSE), 0) -> 163.9123859 | H153: =IF($D153="Yes", VLOOKUP($B153,'ES Matrix'!$B$137:$P$152, MATCH(General!$D$12&"max", 'ES Matrix'!$B$9:$P$9, 0), FALSE), 0) -> 163.9123859 | I153: All Data Rules Complied
B155: SEAWALL
B156: Food | C156: $/ha | D156: No | E156: No | F156: =IF($D156="Yes", VLOOKUP($B156,'ES Matrix'!$B$155:$P$170, MATCH(General!$D$12, 'ES Matrix'!$B$9:$P$9, 0), FALSE), 0) -> 0 | G156: =IF($D156="Yes", VLOOKUP($B156,'ES Matrix'!$B$155:$P$170, MATCH(General!$D$12&"min", 'ES Matrix'!$B$9:$P$9, 0), FALSE), 0) -> 0 | H156: =IF($D156="Yes", VLOOKUP($B156,'ES Matrix'!$B$155:$P$170, MATCH(General!$D$12&"max", 'ES Matrix'!$B$9:$P$9, 0), FALSE), 0) -> 0 | I156: =IF(H156<G156, "Please make sure that the Max value is higher than the Min value", IF(H156<F156, "Please make sure that the Max value is higher than the Average value",IF(G156>F156, "Make sure that the Min value is lower than the Average value","All Data Rules Complied"))) -> All Data Rules Complied
B157: Water | C157: $/ha | D157: No | E157: No | F157: =IF($D157="Yes", VLOOKUP($B157,'ES Matrix'!$B$155:$P$170, MATCH(General!$D$12, 'ES Matrix'!$B$9:$P$9, 0), FALSE), 0) -> 0 | G157: =IF($D157="Yes", VLOOKUP($B157,'ES Matrix'!$B$155:$P$170, MATCH(General!$D$12&"min", 'ES Matrix'!$B$9:$P$9, 0), FALSE), 0) -> 0 | H157: =IF($D157="Yes", VLOOKUP($B157,'ES Matrix'!$B$155:$P$170, MATCH(General!$D$12&"max", 'ES Matrix'!$B$9:$P$9, 0), FALSE), 0) -> 0 | I157: All Data Rules Complied
B158: Raw materials | C158: $/ha | D158: No | E158: No | F158: =IF($D158="Yes", VLOOKUP($B158,'ES Matrix'!$B$155:$P$170, MATCH(General!$D$12, 'ES Matrix'!$B$9:$P$9, 0), FALSE), 0) -> 0 | G158: =IF($D158="Yes", VLOOKUP($B158,'ES Matrix'!$B$155:$P$170, MATCH(General!$D$12&"min", 'ES Matrix'!$B$9:$P$9, 0), FALSE), 0) -> 0 | H158: =IF($D158="Yes", VLOOKUP($B158,'ES Matrix'!$B$155:$P$170, MATCH(General!$D$12&"max", 'ES Matrix'!$B$9:$P$9, 0), FALSE), 0) -> 0 | I158: All Data Rules Complied
B159: Genetic resources | C159: $/ha | D159: No | E159: No | F159: =IF($D159="Yes", VLOOKUP($B159,'ES Matrix'!$B$155:$P$170, MATCH(General!$D$12, 'ES Matrix'!$B$9:$P$9, 0), FALSE), 0) -> 0 | G159: =IF($D159="Yes", VLOOKUP($B159,'ES Matrix'!$B$155:$P$170, MATCH(General!$D$12&"min", 'ES Matrix'!$B$9:$P$9, 0), FALSE), 0) -> 0 | H159: =IF($D159="Yes", VLOOKUP($B159,'ES Matrix'!$B$155:$P$170, MATCH(General!$D$12&"max", 'ES Matrix'!$B$9:$P$9, 0), FALSE), 0) -> 0 | I159: All Data Rules Complied
B160: Air quality regulation | C160: $/ha | D160: No | E160: No | F160: =IF($D160="Yes", VLOOKUP($B160,'ES Matrix'!$B$155:$P$170, MATCH(General!$D$12, 'ES Matrix'!$B$9:$P$9, 0), FALSE), 0) -> 0 | G160: =IF($D160="Yes", VLOOKUP($B160,'ES Matrix'!$B$155:$P$170, MATCH(General!$D$12&"min", 'ES Matrix'!$B$9:$P$9, 0), FALSE), 0) -> 0 | H160: =IF($D160="Yes", VLOOKUP($B160,'ES Matrix'!$B$155:$P$170, MATCH(General!$D$12&"max", 'ES Matrix'!$B$9:$P$9, 0), FALSE), 0) -> 0 | I160: All Data Rules Complied
B161: Climate regulation | C161: $/ha | D161: No | E161: No | F161: =IF($D161="Yes", VLOOKUP($B161,'ES Matrix'!$B$155:$P$170, MATCH(General!$D$12, 'ES Matrix'!$B$9:$P$9, 0), FALSE), 0) -> 0 | G161: =IF($D161="Yes", VLOOKUP($B161,'ES Matrix'!$B$155:$P$170, MATCH(General!$D$12&"min", 'ES Matrix'!$B$9:$P$9, 0), FALSE), 0) -> 0 | H161: =IF($D161="Yes", VLOOKUP($B161,'ES Matrix'!$B$155:$P$170, MATCH(General!$D$12&"max", 'ES Matrix'!$B$9:$P$9, 0), FALSE), 0) -> 0 | I161: All Data Rules Complied
B162: Disturbance moderation | C162: $/ha | D162: Yes | E162: Yes | F162: =IF($D162="Yes", VLOOKUP($B162,'ES Matrix'!$B$155:$P$170, MATCH(General!$D$12, 'ES Matrix'!$B$9:$P$9, 0), FALSE), 0) -> 14390 | G162: =IF($D162="Yes", VLOOKUP($B162,'ES Matrix'!$B$155:$P$170, MATCH(General!$D$12&"min", 'ES Matrix'!$B$9:$P$9, 0), FALSE), 0) -> 14390 | H162: =IF($D162="Yes", VLOOKUP($B162,'ES Matrix'!$B$155:$P$170, MATCH(General!$D$12&"max", 'ES Matrix'!$B$9:$P$9, 0), FALSE), 0) -> 14390 | I162: All Data Rules Complied
B163: Water flow regulation | C163: $/ha | D163: Yes | E163: Yes | F163: =IF($D163="Yes", VLOOKUP($B163,'ES Matrix'!$B$155:$P$170, MATCH(General!$D$12, 'ES Matrix'!$B$9:$P$9, 0), FALSE), 0) -> 6169 | G163: =IF($D163="Yes", VLOOKUP($B163,'ES Matrix'!$B$155:$P$170, MATCH(General!$D$12&"min", 'ES Matrix'!$B$9:$P$9, 0), FALSE), 0) -> 6169 | H163: =IF($D163="Yes", VLOOKUP($B163,'ES Matrix'!$B$155:$P$170, MATCH(General!$D$12&"max", 'ES Matrix'!$B$9:$P$9, 0), FALSE), 0) -> 6169 | I163: All Data Rules Complied
B164: Waste treatment | C164: $/ha | D164: No | E164: No | F164: =IF($D164="Yes", VLOOKUP($B164,'ES Matrix'!$B$155:$P$170, MATCH(General!$D$12, 'ES Matrix'!$B$9:$P$9, 0), FALSE), 0) -> 0 | G164: =IF($D164="Yes", VLOOKUP($B164,'ES Matrix'!$B$155:$P$170, MATCH(General!$D$12&"min", 'ES Matrix'!$B$9:$P$9, 0), FALSE), 0) -> 0 | H164: =IF($D164="Yes", VLOOKUP($B164,'ES Matrix'!$B$155:$P$170, MATCH(General!$D$12&"max", 'ES Matrix'!$B$9:$P$9, 0), FALSE), 0) -> 0 | I164: All Data Rules Complied
B165: Erosion prevention | C165: $/ha | D165: Yes | E165: Yes | F165: =IF($D165="Yes", VLOOKUP($B165,'ES Matrix'!$B$155:$P$170, MATCH(General!$D$12, 'ES Matrix'!$B$9:$P$9, 0), FALSE), 0) -> 49 | G165: =IF($D165="Yes", VLOOKUP($B165,'ES Matrix'!$B$155:$P$170, MATCH(General!$D$12&"min", 'ES Matrix'!$B$9:$P$9, 0), FALSE), 0) -> 36 | H165: =IF($D165="Yes", VLOOKUP($B165,'ES Matrix'!$B$155:$P$170, MATCH(General!$D$12&"max", 'ES Matrix'!$B$9:$P$9, 0), FALSE), 0) -> 62 | I165: All Data Rules Complied
B166: Soil fertility maintenance | C166: $/ha | D166: Yes | E166: Yes | F166: =IF($D166="Yes", VLOOKUP($B166,'ES Matrix'!$B$155:$P$170, MATCH(General!$D$12, 'ES Matrix'!$B$9:$P$9, 0), FALSE), 0) -> 4543 | G166: =IF($D166="Yes", VLOOKUP($B166,'ES Matrix'!$B$155:$P$170, MATCH(General!$D$12&"min", 'ES Matrix'!$B$9:$P$9, 0), FALSE), 0) -> 4543 | H166: =IF($D166="Yes", VLOOKUP($B166,'ES Matrix'!$B$155:$P$170, MATCH(General!$D$12&"max", 'ES Matrix'!$B$9:$P$9, 0), FALSE), 0) -> 4543 | I166: All Data Rules Complied
B167: Maintenance of migratory species life cycles | C167: $/ha | D167: No | E167: No | F167: =IF($D167="Yes", VLOOKUP($B167,'ES Matrix'!$B$155:$P$170, MATCH(General!$D$12, 'ES Matrix'!$B$9:$P$9, 0), FALSE), 0) -> 0 | G167: =IF($D167="Yes", VLOOKUP($B167,'ES Matrix'!$B$155:$P$170, MATCH(General!$D$12&"min", 'ES Matrix'!$B$9:$P$9, 0), FALSE), 0) -> 0 | H167: =IF($D167="Yes", VLOOKUP($B167,'ES Matrix'!$B$155:$P$170, MATCH(General!$D$12&"max", 'ES Matrix'!$B$9:$P$9, 0), FALSE), 0) -> 0 | I167: All Data Rules Complied
B168: Genetic diversity | C168: $/ha | D168: No | E168: No | F168: =IF($D168="Yes", VLOOKUP($B168,'ES Matrix'!$B$155:$P$170, MATCH(General!$D$12, 'ES Matrix'!$B$9:$P$9, 0), FALSE), 0) -> 0 | G168: =IF($D168="Yes", VLOOKUP($B168,'ES Matrix'!$B$155:$P$170, MATCH(General!$D$12&"min", 'ES Matrix'!$B$9:$P$9, 0), FALSE), 0) -> 0 | H168: =IF($D168="Yes", VLOOKUP($B168,'ES Matrix'!$B$155:$P$170, MATCH(General!$D$12&"max", 'ES Matrix'!$B$9:$P$9, 0), FALSE), 0) -> 0 | I168: All Data Rules Complied
B169: Aesthetic information | C169: $/ha | D169: No | E169: No | F169: =IF($D169="Yes", VLOOKUP($B169,'ES Matrix'!$B$155:$P$170, MATCH(General!$D$12, 'ES Matrix'!$B$9:$P$9, 0), FALSE), 0) -> 0 | G169: =IF($D169="Yes", VLOOKUP($B169,'ES Matrix'!$B$155:$P$170, MATCH(General!$D$12&"min", 'ES Matrix'!$B$9:$P$9, 0), FALSE), 0) -> 0 | H169: =IF($D169="Yes", VLOOKUP($B169,'ES Matrix'!$B$155:$P$170, MATCH(General!$D$12&"max", 'ES Matrix'!$B$9:$P$9, 0), FALSE), 0) -> 0 | I169: All Data Rules Complied
B170: Recreational tourism | C170: $/ha | D170: Yes | E170: Yes | F170: =IF($D170="Yes", VLOOKUP($B170,'ES Matrix'!$B$155:$P$170, MATCH(General!$D$12, 'ES Matrix'!$B$9:$P$9, 0), FALSE), 0) -> 49276 | G170: =IF($D170="Yes", VLOOKUP($B170,'ES Matrix'!$B$155:$P$170, MATCH(General!$D$12&"min", 'ES Matrix'!$B$9:$P$9, 0), FALSE), 0) -> 49276 | H170: =IF($D170="Yes", VLOOKUP($B170,'ES Matrix'!$B$155:$P$170, MATCH(General!$D$12&"max", 'ES Matrix'!$B$9:$P$9, 0), FALSE), 0) -> 49276 | I170: All Data Rules Complied
B171: Inspiration for culture | C171: $/ha | D171: No | E171: No | F171: =IF($D171="Yes", VLOOKUP($B171,'ES Matrix'!$B$155:$P$170, MATCH(General!$D$12, 'ES Matrix'!$B$9:$P$9, 0), FALSE), 0) -> 0 | G171: =IF($D171="Yes", VLOOKUP($B171,'ES Matrix'!$B$155:$P$170, MATCH(General!$D$12&"min", 'ES Matrix'!$B$9:$P$9, 0), FALSE), 0) -> 0 | H171: =IF($D171="Yes", VLOOKUP($B171,'ES Matrix'!$B$155:$P$170, MATCH(General!$D$12&"max", 'ES Matrix'!$B$9:$P$9, 0), FALSE), 0) -> 0 | I171: All Data Rules Complied
B173: MUDFLATS
B174: Food | C174: $/ha | D174: Yes | E174: Yes | I174: =IF(H174<G174, "Please make sure that the Max value is higher than the Min value", IF(H174<F174, "Please make sure that the Max value is higher than the Average value",IF(G174>F174, "Make sure that the Min value is lower than the Average value","All Data Rules Complied"))) -> All Data Rules Complied
B175: Water | C175: $/ha | D175: No | E175: No | F175: =IF($D175="Yes", VLOOKUP($B175,'ES Matrix'!$B$174:$P$190, MATCH(General!$D$12, 'ES Matrix'!$B$9:$P$9, 0), FALSE), 0) -> 0 | G175: =IF($D175="Yes", VLOOKUP($B175,'ES Matrix'!$B$174:$P$190, MATCH(General!$D$12&"min", 'ES Matrix'!$B$9:$P$9, 0), FALSE), 0) -> 0 | H175: =IF($D175="Yes", VLOOKUP($B175,'ES Matrix'!$B$174:$P$190, MATCH(General!$D$12&"max", 'ES Matrix'!$B$9:$P$9, 0), FALSE), 0) -> 0 | I175: All Data Rules Complied
B176: Raw materials | C176: $/ha | D176: Yes | E176: Yes | F176: =IF($D176="Yes", VLOOKUP($B176,'ES Matrix'!$B$174:$P$190, MATCH(General!$D$12, 'ES Matrix'!$B$9:$P$9, 0), FALSE), 0) -> 3.95 | G176: =IF($D176="Yes", VLOOKUP($B176,'ES Matrix'!$B$174:$P$190, MATCH(General!$D$12&"min", 'ES Matrix'!$B$9:$P$9, 0), FALSE), 0) -> 3.95 | H176: =IF($D176="Yes", VLOOKUP($B176,'ES Matrix'!$B$174:$P$190, MATCH(General!$D$12&"max", 'ES Matrix'!$B$9:$P$9, 0), FALSE), 0) -> 3.95 | I176: All Data Rules Complied
B177: Genetic resources | C177: $/ha | D177: No | E177: No | F177: =IF($D177="Yes", VLOOKUP($B177,'ES Matrix'!$B$174:$P$190, MATCH(General!$D$12, 'ES Matrix'!$B$9:$P$9, 0), FALSE), 0) -> 0 | G177: =IF($D177="Yes", VLOOKUP($B177,'ES Matrix'!$B$174:$P$190, MATCH(General!$D$12&"min", 'ES Matrix'!$B$9:$P$9, 0), FALSE), 0) -> 0 | H177: =IF($D177="Yes", VLOOKUP($B177,'ES Matrix'!$B$174:$P$190, MATCH(General!$D$12&"max", 'ES Matrix'!$B$9:$P$9, 0), FALSE), 0) -> 0 | I177: All Data Rules Complied
B178: Air quality regulation | C178: $/ha | D178: No | E178: No | F178: =IF($D178="Yes", VLOOKUP($B178,'ES Matrix'!$B$174:$P$190, MATCH(General!$D$12, 'ES Matrix'!$B$9:$P$9, 0), FALSE), 0) -> 0 | G178: =IF($D178="Yes", VLOOKUP($B178,'ES Matrix'!$B$174:$P$190, MATCH(General!$D$12&"min", 'ES Matrix'!$B$9:$P$9, 0), FALSE), 0) -> 0 | H178: =IF($D178="Yes", VLOOKUP($B178,'ES Matrix'!$B$174:$P$190, MATCH(General!$D$12&"max", 'ES Matrix'!$B$9:$P$9, 0), FALSE), 0) -> 0 | I178: All Data Rules Complied
B179: Climate regulation | C179: $/ha | D179: Yes | E179: Yes | F179: =IF($D179="Yes", VLOOKUP($B179,'ES Matrix'!$B$174:$P$190, MATCH(General!$D$12, 'ES Matrix'!$B$9:$P$9, 0), FALSE), 0) -> 486.08 | G179: =IF($D179="Yes", VLOOKUP($B179,'ES Matrix'!$B$174:$P$190, MATCH(General!$D$12&"min", 'ES Matrix'!$B$9:$P$9, 0), FALSE), 0) -> 296.17 | H179: =IF($D179="Yes", VLOOKUP($B179,'ES Matrix'!$B$174:$P$190, MATCH(General!$D$12&"max", 'ES Matrix'!$B$9:$P$9, 0), FALSE), 0) -> 675.99 | I179: All Data Rules Complied
B180: Disturbance moderation | C180: $/ha | D180: Yes | E180: Yes | F180: =IF($D180="Yes", VLOOKUP($B180,'ES Matrix'!$B$174:$P$190, MATCH(General!$D$12, 'ES Matrix'!$B$9:$P$9, 0), FALSE), 0) -> 3115.96 | G180: =IF($D180="Yes", VLOOKUP($B180,'ES Matrix'!$B$174:$P$190, MATCH(General!$D$12&"min", 'ES Matrix'!$B$9:$P$9, 0), FALSE), 0) -> 3115.96 | H180: =IF($D180="Yes", VLOOKUP($B180,'ES Matrix'!$B$174:$P$190, MATCH(General!$D$12&"max", 'ES Matrix'!$B$9:$P$9, 0), FALSE), 0) -> 3115.96 | I180: All Data Rules Complied
B181: Water flow regulation | C181: $/ha | D181: Yes | E181: Yes | F181: =IF($D181="Yes", VLOOKUP($B181,'ES Matrix'!$B$174:$P$190, MATCH(General!$D$12, 'ES Matrix'!$B$9:$P$9, 0), FALSE), 0) -> 117.56 | G181: =IF($D181="Yes", VLOOKUP($B181,'ES Matrix'!$B$174:$P$190, MATCH(General!$D$12&"min", 'ES Matrix'!$B$9:$P$9, 0), FALSE), 0) -> 117.56 | H181: =IF($D181="Yes", VLOOKUP($B181,'ES Matrix'!$B$174:$P$190, MATCH(General!$D$12&"max", 'ES Matrix'!$B$9:$P$9, 0), FALSE), 0) -> 117.56 | I181: All Data Rules Complied
B182: Waste treatment | C182: $/ha | D182: Yes | E182: Yes | F182: =IF($D182="Yes", VLOOKUP($B182,'ES Matrix'!$B$174:$P$190, MATCH(General!$D$12, 'ES Matrix'!$B$9:$P$9, 0), FALSE), 0) -> 41324.01 | G182: =IF($D182="Yes", VLOOKUP($B182,'ES Matrix'!$B$174:$P$190, MATCH(General!$D$12&"min", 'ES Matrix'!$B$9:$P$9, 0), FALSE), 0) -> 41324.01 | H182: =IF($D182="Yes", VLOOKUP($B182,'ES Matrix'!$B$174:$P$190, MATCH(General!$D$12&"max", 'ES Matrix'!$B$9:$P$9, 0), FALSE), 0) -> 41324.01 | I182: All Data Rules Complied
B183: Erosion prevention | C183: $/ha | D183: Yes | E183: Yes | F183: =IF($D183="Yes", VLOOKUP($B183,'ES Matrix'!$B$174:$P$190, MATCH(General!$D$12, 'ES Matrix'!$B$9:$P$9, 0), FALSE), 0) -> 5843.7 | G183: =IF($D183="Yes", VLOOKUP($B183,'ES Matrix'!$B$174:$P$190, MATCH(General!$D$12&"min", 'ES Matrix'!$B$9:$P$9, 0), FALSE), 0) -> 5843.7 | H183: =IF($D183="Yes", VLOOKUP($B183,'ES Matrix'!$B$174:$P$190, MATCH(General!$D$12&"max", 'ES Matrix'!$B$9:$P$9, 0), FALSE), 0) -> 5843.7 | I183: All Data Rules Complied
B184: Soil fertility maintenance | C184: $/ha | D184: No | E184: No | F184: =IF($D184="Yes", VLOOKUP($B184,'ES Matrix'!$B$174:$P$190, MATCH(General!$D$12, 'ES Matrix'!$B$9:$P$9, 0), FALSE), 0) -> 0 | G184: =IF($D184="Yes", VLOOKUP($B184,'ES Matrix'!$B$174:$P$190, MATCH(General!$D$12&"min", 'ES Matrix'!$B$9:$P$9, 0), FALSE), 0) -> 0 | H184: =IF($D184="Yes", VLOOKUP($B184,'ES Matrix'!$B$174:$P$190, MATCH(General!$D$12&"max", 'ES Matrix'!$B$9:$P$9, 0), FALSE), 0) -> 0 | I184: All Data Rules Complied
B185: Maintenance of migratory species life cycles | C185: $/ha | D185: No | E185: No | F185: =IF($D185="Yes", VLOOKUP($B185,'ES Matrix'!$B$174:$P$190, MATCH(General!$D$12, 'ES Matrix'!$B$9:$P$9, 0), FALSE), 0) -> 0 | G185: =IF($D185="Yes", VLOOKUP($B185,'ES Matrix'!$B$174:$P$190, MATCH(General!$D$12&"min", 'ES Matrix'!$B$9:$P$9, 0), FALSE), 0) -> 0 | H185: =IF($D185="Yes", VLOOKUP($B185,'ES Matrix'!$B$174:$P$190, MATCH(General!$D$12&"max", 'ES Matrix'!$B$9:$P$9, 0), FALSE), 0) -> 0 | I185: All Data Rules Complied
B186: Genetic diversity | C186: $/ha | D186: Yes | E186: Yes | F186: =IF($D186="Yes", VLOOKUP($B186,'ES Matrix'!$B$174:$P$190, MATCH(General!$D$12, 'ES Matrix'!$B$9:$P$9, 0), FALSE), 0) -> 233.06 | G186: =IF($D186="Yes", VLOOKUP($B186,'ES Matrix'!$B$174:$P$190, MATCH(General!$D$12&"min", 'ES Matrix'!$B$9:$P$9, 0), FALSE), 0) -> 233.06 | H186: =IF($D186="Yes", VLOOKUP($B186,'ES Matrix'!$B$174:$P$190, MATCH(General!$D$12&"max", 'ES Matrix'!$B$9:$P$9, 0), FALSE), 0) -> 233.06 | I186: All Data Rules Complied
B187: Aesthetic information | C187: $/ha | D187: No | E187: No | F187: =IF($D187="Yes", VLOOKUP($B187,'ES Matrix'!$B$174:$P$190, MATCH(General!$D$12, 'ES Matrix'!$B$9:$P$9, 0), FALSE), 0) -> 0 | G187: =IF($D187="Yes", VLOOKUP($B187,'ES Matrix'!$B$174:$P$190, MATCH(General!$D$12&"min", 'ES Matrix'!$B$9:$P$9, 0), FALSE), 0) -> 0 | H187: =IF($D187="Yes", VLOOKUP($B187,'ES Matrix'!$B$174:$P$190, MATCH(General!$D$12&"max", 'ES Matrix'!$B$9:$P$9, 0), FALSE), 0) -> 0 | I187: All Data Rules Complied
B188: Recreational tourism | C188: $/ha | D188: Yes | E188: Yes | F188: =IF($D188="Yes", VLOOKUP($B188,'ES Matrix'!$B$174:$P$190, MATCH(General!$D$12, 'ES Matrix'!$B$9:$P$9, 0), FALSE), 0) -> 1114.9 | G188: =IF($D188="Yes", VLOOKUP($B188,'ES Matrix'!$B$174:$P$190, MATCH(General!$D$12&"min", 'ES Matrix'!$B$9:$P$9, 0), FALSE), 0) -> 1114.9 | H188: =IF($D188="Yes", VLOOKUP($B188,'ES Matrix'!$B$174:$P$190, MATCH(General!$D$12&"max", 'ES Matrix'!$B$9:$P$9, 0), FALSE), 0) -> 1114.9 | I188: All Data Rules Complied
B189: Inspiration for culture | C189: $/ha | D189: No | E189: No | F189: =IF($D189="Yes", VLOOKUP($B189,'ES Matrix'!$B$174:$P$190, MATCH(General!$D$12, 'ES Matrix'!$B$9:$P$9, 0), FALSE), 0) -> 0 | G189: =IF($D189="Yes", VLOOKUP($B189,'ES Matrix'!$B$174:$P$190, MATCH(General!$D$12&"min", 'ES Matrix'!$B$9:$P$9, 0), FALSE), 0) -> 0 | H189: =IF($D189="Yes", VLOOKUP($B189,'ES Matrix'!$B$174:$P$190, MATCH(General!$D$12&"max", 'ES Matrix'!$B$9:$P$9, 0), FALSE), 0) -> 0 | I189: All Data Rules Complied
B190: Cognitive development | C190: $/ha | D190: No | E190: No | F190: =IF($D190="Yes", VLOOKUP($B190,'ES Matrix'!$B$174:$P$190, MATCH(General!$D$12, 'ES Matrix'!$B$9:$P$9, 0), FALSE), 0) -> 0 | G190: =IF($D190="Yes", VLOOKUP($B190,'ES Matrix'!$B$174:$P$190, MATCH(General!$D$12&"min", 'ES Matrix'!$B$9:$P$9, 0), FALSE), 0) -> 0 | H190: =IF($D190="Yes", VLOOKUP($B190,'ES Matrix'!$B$174:$P$190, MATCH(General!$D$12&"max", 'ES Matrix'!$B$9:$P$9, 0), FALSE), 0) -> 0 | I190: All Data Rules Complied
B191: Water purification | C191: $/ha | D191: Yes | E191: Yes | F191: =IF($D191="Yes", VLOOKUP($B191,'ES Matrix'!$B$174:$P$190, MATCH(General!$D$12, 'ES Matrix'!$B$9:$P$9, 0), FALSE), 0) -> 0 | G191: =IF($D191="Yes", VLOOKUP($B191,'ES Matrix'!$B$174:$P$190, MATCH(General!$D$12&"min", 'ES Matrix'!$B$9:$P$9, 0), FALSE), 0) -> 0 | H191: =IF($D191="Yes", VLOOKUP($B191,'ES Matrix'!$B$174:$P$190, MATCH(General!$D$12&"max", 'ES Matrix'!$B$9:$P$9, 0), FALSE), 0) -> 0 | I191: All Data Rules Complied
B193: COASTAL SYSTEMS
B194: Food | C194: $/ha | D194: No | E194: No | F194: =IF($D194="Yes", VLOOKUP($B194,'ES Matrix'!$B$193:$P$209, MATCH(General!$D$12, 'ES Matrix'!$B$9:$P$9, 0), FALSE), 0) -> 0 | G194: =IF($D194="Yes", VLOOKUP($B194,'ES Matrix'!$B$193:$P$209, MATCH(General!$D$12&"min", 'ES Matrix'!$B$9:$P$9, 0), FALSE), 0) -> 0 | H194: =IF($D194="Yes", VLOOKUP($B194,'ES Matrix'!$B$193:$P$209, MATCH(General!$D$12&"max", 'ES Matrix'!$B$9:$P$9, 0), FALSE), 0) -> 0 | I194: =IF(H194<G194, "Please make sure that the Max value is higher than the Min value", IF(H194<F194, "Please make sure that the Max value is higher than the Average value",IF(G194>F194, "Make sure that the Min value is lower than the Average value","All Data Rules Complied"))) -> All Data Rules Complied
B195: Water | C195: $/ha | D195: No | E195: No | F195: =IF($D195="Yes", VLOOKUP($B195,'ES Matrix'!$B$193:$P$209, MATCH(General!$D$12, 'ES Matrix'!$B$9:$P$9, 0), FALSE), 0) -> 0 | G195: =IF($D195="Yes", VLOOKUP($B195,'ES Matrix'!$B$193:$P$209, MATCH(General!$D$12&"min", 'ES Matrix'!$B$9:$P$9, 0), FALSE), 0) -> 0 | H195: =IF($D195="Yes", VLOOKUP($B195,'ES Matrix'!$B$193:$P$209, MATCH(General!$D$12&"max", 'ES Matrix'!$B$9:$P$9, 0), FALSE), 0) -> 0 | I195: All Data Rules Complied
B196: Raw materials | C196: $/ha | D196: No | E196: No | F196: =IF($D196="Yes", VLOOKUP($B196,'ES Matrix'!$B$193:$P$209, MATCH(General!$D$12, 'ES Matrix'!$B$9:$P$9, 0), FALSE), 0) -> 0 | G196: =IF($D196="Yes", VLOOKUP($B196,'ES Matrix'!$B$193:$P$209, MATCH(General!$D$12&"min", 'ES Matrix'!$B$9:$P$9, 0), FALSE), 0) -> 0 | H196: =IF($D196="Yes", VLOOKUP($B196,'ES Matrix'!$B$193:$P$209, MATCH(General!$D$12&"max", 'ES Matrix'!$B$9:$P$9, 0), FALSE), 0) -> 0 | I196: All Data Rules Complied
B197: Genetic resources | C197: $/ha | D197: No | E197: No | F197: =IF($D197="Yes", VLOOKUP($B197,'ES Matrix'!$B$193:$P$209, MATCH(General!$D$12, 'ES Matrix'!$B$9:$P$9, 0), FALSE), 0) -> 0 | G197: =IF($D197="Yes", VLOOKUP($B197,'ES Matrix'!$B$193:$P$209, MATCH(General!$D$12&"min", 'ES Matrix'!$B$9:$P$9, 0), FALSE), 0) -> 0 | H197: =IF($D197="Yes", VLOOKUP($B197,'ES Matrix'!$B$193:$P$209, MATCH(General!$D$12&"max", 'ES Matrix'!$B$9:$P$9, 0), FALSE), 0) -> 0 | I197: All Data Rules Complied
B198: Air quality regulation | C198: $/ha | D198: No | E198: No | F198: =IF($D198="Yes", VLOOKUP($B198,'ES Matrix'!$B$193:$P$209, MATCH(General!$D$12, 'ES Matrix'!$B$9:$P$9, 0), FALSE), 0) -> 0 | G198: =IF($D198="Yes", VLOOKUP($B198,'ES Matrix'!$B$193:$P$209, MATCH(General!$D$12&"min", 'ES Matrix'!$B$9:$P$9, 0), FALSE), 0) -> 0 | H198: =IF($D198="Yes", VLOOKUP($B198,'ES Matrix'!$B$193:$P$209, MATCH(General!$D$12&"max", 'ES Matrix'!$B$9:$P$9, 0), FALSE), 0) -> 0 | I198: All Data Rules Complied
B199: Climate regulation | C199: $/ha | D199: No | E199: No | F199: =IF($D199="Yes", VLOOKUP($B199,'ES Matrix'!$B$193:$P$209, MATCH(General!$D$12, 'ES Matrix'!$B$9:$P$9, 0), FALSE), 0) -> 0 | G199: =IF($D199="Yes", VLOOKUP($B199,'ES Matrix'!$B$193:$P$209, MATCH(General!$D$12&"min", 'ES Matrix'!$B$9:$P$9, 0), FALSE), 0) -> 0 | H199: =IF($D199="Yes", VLOOKUP($B199,'ES Matrix'!$B$193:$P$209, MATCH(General!$D$12&"max", 'ES Matrix'!$B$9:$P$9, 0), FALSE), 0) -> 0 | I199: All Data Rules Complied
B200: Disturbance moderation | C200: $/ha | D200: No | E200: No | F200: =IF($D200="Yes", VLOOKUP($B200,'ES Matrix'!$B$193:$P$209, MATCH(General!$D$12, 'ES Matrix'!$B$9:$P$9, 0), FALSE), 0) -> 0 | G200: =IF($D200="Yes", VLOOKUP($B200,'ES Matrix'!$B$193:$P$209, MATCH(General!$D$12&"min", 'ES Matrix'!$B$9:$P$9, 0), FALSE), 0) -> 0 | H200: =IF($D200="Yes", VLOOKUP($B200,'ES Matrix'!$B$193:$P$209, MATCH(General!$D$12&"max", 'ES Matrix'!$B$9:$P$9, 0), FALSE), 0) -> 0 | I200: All Data Rules Complied
B201: Water flow regulation | C201: $/ha | D201: No | E201: No | F201: =IF($D201="Yes", VLOOKUP($B201,'ES Matrix'!$B$193:$P$209, MATCH(General!$D$12, 'ES Matrix'!$B$9:$P$9, 0), FALSE), 0) -> 0 | G201: =IF($D201="Yes", VLOOKUP($B201,'ES Matrix'!$B$193:$P$209, MATCH(General!$D$12&"min", 'ES Matrix'!$B$9:$P$9, 0), FALSE), 0) -> 0 | H201: =IF($D201="Yes", VLOOKUP($B201,'ES Matrix'!$B$193:$P$209, MATCH(General!$D$12&"max", 'ES Matrix'!$B$9:$P$9, 0), FALSE), 0) -> 0 | I201: All Data Rules Complied
B202: Waste treatment | C202: $/ha | D202: No | E202: No | F202: =IF($D202="Yes", VLOOKUP($B202,'ES Matrix'!$B$193:$P$209, MATCH(General!$D$12, 'ES Matrix'!$B$9:$P$9, 0), FALSE), 0) -> 0 | G202: =IF($D202="Yes", VLOOKUP($B202,'ES Matrix'!$B$193:$P$209, MATCH(General!$D$12&"min", 'ES Matrix'!$B$9:$P$9, 0), FALSE), 0) -> 0 | H202: =IF($D202="Yes", VLOOKUP($B202,'ES Matrix'!$B$193:$P$209, MATCH(General!$D$12&"max", 'ES Matrix'!$B$9:$P$9, 0), FALSE), 0) -> 0 | I202: All Data Rules Complied
B203: Erosion prevention | C203: $/ha | D203: No | E203: No | F203: =IF($D203="Yes", VLOOKUP($B203,'ES Matrix'!$B$193:$P$209, MATCH(General!$D$12, 'ES Matrix'!$B$9:$P$9, 0), FALSE), 0) -> 0 | G203: =IF($D203="Yes", VLOOKUP($B203,'ES Matrix'!$B$193:$P$209, MATCH(General!$D$12&"min", 'ES Matrix'!$B$9:$P$9, 0), FALSE), 0) -> 0 | H203: =IF($D203="Yes", VLOOKUP($B203,'ES Matrix'!$B$193:$P$209, MATCH(General!$D$12&"max", 'ES Matrix'!$B$9:$P$9, 0), FALSE), 0) -> 0 | I203: All Data Rules Complied
B204: Soil fertility maintenance | C204: $/ha | D204: No | E204: No | F204: =IF($D204="Yes", VLOOKUP($B204,'ES Matrix'!$B$193:$P$209, MATCH(General!$D$12, 'ES Matrix'!$B$9:$P$9, 0), FALSE), 0) -> 0 | G204: =IF($D204="Yes", VLOOKUP($B204,'ES Matrix'!$B$193:$P$209, MATCH(General!$D$12&"min", 'ES Matrix'!$B$9:$P$9, 0), FALSE), 0) -> 0 | H204: =IF($D204="Yes", VLOOKUP($B204,'ES Matrix'!$B$193:$P$209, MATCH(General!$D$12&"max", 'ES Matrix'!$B$9:$P$9, 0), FALSE), 0) -> 0 | I204: All Data Rules Complied
B205: Maintenance of migratory species life cycles | C205: $/ha | D205: No | E205: No | F205: =IF($D205="Yes", VLOOKUP($B205,'ES Matrix'!$B$193:$P$209, MATCH(General!$D$12, 'ES Matrix'!$B$9:$P$9, 0), FALSE), 0) -> 0 | G205: =IF($D205="Yes", VLOOKUP($B205,'ES Matrix'!$B$193:$P$209, MATCH(General!$D$12&"min", 'ES Matrix'!$B$9:$P$9, 0), FALSE), 0) -> 0 | H205: =IF($D205="Yes", VLOOKUP($B205,'ES Matrix'!$B$193:$P$209, MATCH(General!$D$12&"max", 'ES Matrix'!$B$9:$P$9, 0), FALSE), 0) -> 0 | I205: All Data Rules Complied
B206: Genetic diversity | C206: $/ha | D206: No | E206: No | F206: =IF($D206="Yes", VLOOKUP($B206,'ES Matrix'!$B$193:$P$209, MATCH(General!$D$12, 'ES Matrix'!$B$9:$P$9, 0), FALSE), 0) -> 0 | G206: =IF($D206="Yes", VLOOKUP($B206,'ES Matrix'!$B$193:$P$209, MATCH(General!$D$12&"min", 'ES Matrix'!$B$9:$P$9, 0), FALSE), 0) -> 0 | H206: =IF($D206="Yes", VLOOKUP($B206,'ES Matrix'!$B$193:$P$209, MATCH(General!$D$12&"max", 'ES Matrix'!$B$9:$P$9, 0), FALSE), 0) -> 0 | I206: All Data Rules Complied
B207: Aesthetic information | C207: $/ha | D207: No | E207: No | F207: =IF($D207="Yes", VLOOKUP($B207,'ES Matrix'!$B$193:$P$209, MATCH(General!$D$12, 'ES Matrix'!$B$9:$P$9, 0), FALSE), 0) -> 0 | G207: =IF($D207="Yes", VLOOKUP($B207,'ES Matrix'!$B$193:$P$209, MATCH(General!$D$12&"min", 'ES Matrix'!$B$9:$P$9, 0), FALSE), 0) -> 0 | H207: =IF($D207="Yes", VLOOKUP($B207,'ES Matrix'!$B$193:$P$209, MATCH(General!$D$12&"max", 'ES Matrix'!$B$9:$P$9, 0), FALSE), 0) -> 0 | I207: All Data Rules Complied
B208: Recreational tourism | C208: $/ha | D208: No | E208: No | F208: =IF($D208="Yes", VLOOKUP($B208,'ES Matrix'!$B$193:$P$209, MATCH(General!$D$12, 'ES Matrix'!$B$9:$P$9, 0), FALSE), 0) -> 0 | G208: =IF($D208="Yes", VLOOKUP($B208,'ES Matrix'!$B$193:$P$209, MATCH(General!$D$12&"min", 'ES Matrix'!$B$9:$P$9, 0), FALSE), 0) -> 0 | H208: =IF($D208="Yes", VLOOKUP($B208,'ES Matrix'!$B$193:$P$209, MATCH(General!$D$12&"max", 'ES Matrix'!$B$9:$P$9, 0), FALSE), 0) -> 0 | I208: All Data Rules Complied
B209: Inspiration for culture | C209: $/ha | D209: No | E209: No | F209: =IF($D209="Yes", VLOOKUP($B209,'ES Matrix'!$B$193:$P$209, MATCH(General!$D$12, 'ES Matrix'!$B$9:$P$9, 0), FALSE), 0) -> 0 | G209: =IF($D209="Yes", VLOOKUP($B209,'ES Matrix'!$B$193:$P$209, MATCH(General!$D$12&"min", 'ES Matrix'!$B$9:$P$9, 0), FALSE), 0) -> 0 | H209: =IF($D209="Yes", VLOOKUP($B209,'ES Matrix'!$B$193:$P$209, MATCH(General!$D$12&"max", 'ES Matrix'!$B$9:$P$9, 0), FALSE), 0) -> 0 | I209: All Data Rules Complied
B210: Cognitive development | C210: $/ha | D210: No | E210: No | F210: =IF($D210="Yes", VLOOKUP($B210,'ES Matrix'!$B$193:$P$209, MATCH(General!$D$12, 'ES Matrix'!$B$9:$P$9, 0), FALSE), 0) -> 0 | G210: =IF($D210="Yes", VLOOKUP($B210,'ES Matrix'!$B$193:$P$209, MATCH(General!$D$12&"min", 'ES Matrix'!$B$9:$P$9, 0), FALSE), 0) -> 0 | H210: =IF($D210="Yes", VLOOKUP($B210,'ES Matrix'!$B$193:$P$209, MATCH(General!$D$12&"max", 'ES Matrix'!$B$9:$P$9, 0), FALSE), 0) -> 0 | I210: All Data Rules Complied

Sheet LCCA
B1: Title: Life cycle cost estimation for each typology
B2: Notes: This sheet is intended to account for the lifecycle costs of the project. The project manager may include costs for single or multiple typologies in this section.
B4: Legend: | C4: Required inputs
C5: Optional inputs
C6: Inputs brought in from previous sheets
C7: Defaults not available
B9: Variable | C9: Unit | D9: Value (Average) | E9: Value (Min) | F9: Value (Max) | G9: Average Value (Default) | H9: Autocase comments
B10: MANGROVES
B11: Project area | C11: m2 | D11: ='Typology Inputs'!D11 -> 0 | E11: ='Typology Inputs'!E11 -> 0 | F11: ='Typology Inputs'!F11 -> 0 | H11: =IF(F11<E11, "Please make sure that the Max value is higher than the Min value", IF(F11<D11, "Please make sure that the Max value is higher than the Average value",IF(E11>D11, "Make sure that the Min value is lower than the Average value","All Data Rules Complied"))) -> All Data Rules Complied
B12: Growth of project area per year | C12: ='Typology Inputs'!C12 -> % | D12: ='Typology Inputs'!D12 -> 0 | E12: ='Typology Inputs'!E12 -> 0 | F12: ='Typology Inputs'!F12 -> 0 | H12: =IF(F12<E12, "Please make sure that the Max value is higher than the Min value", IF(F12<D12, "Please make sure that the Max value is higher than the Average value",IF(E12>D12, "Make sure that the Min value is lower than the Average value","All Data Rules Complied"))) -> All Data Rules Complied
B13: Capital cost from project | C13: $ | D13: 0 | E13: =D13 -> 0 | F13: =D13 -> 0 | H13: All Data Rules Complied
B14: Annual operations & maintenance costs | C14: $/year | D14: 0 | E14: =D14 -> 0 | F14: =D14 -> 0 | H14: All Data Rules Complied
B15: Other annual project costs | C15: $/year | D15: 0 | E15: =D15 -> 0 | F15: =D15 -> 0 | H15: All Data Rules Complied
B16: Useful life | C16: years | D16: 0 | E16: =D16 -> 0 | F16: =D16 -> 0 | G16: =General!$D$16 -> 0 | H16: All Data Rules Complied
B17: % of recurring project cost | C17: % | D17: 0 | E17: =D17 -> 0 | F17: =D17 -> 0 | G17: 1 | H17: All Data Rules Complied
B18: Disposal costs | C18: $ | D18: 0 | E18: =D18 -> 0 | F18: =D18 -> 0 | H18: All Data Rules Complied
B19: Salvage value | C19: $ | D19: 0 | E19: =D19 -> 0 | F19: =D19 -> 0 | H19: All Data Rules Complied
B21: SEAGRASS
B22: ='Typology Inputs'!B14 -> Project area | C22: m2 | D22: ='Typology Inputs'!D14 -> 0 | E22: ='Typology Inputs'!E14 -> 0 | F22: ='Typology Inputs'!F14 -> 0 | H22: =IF(F22<E22, "Please make sure that the Max value is higher than the Min value", IF(F22<D22, "Please make sure that the Max value is higher than the Average value",IF(E22>D22, "Make sure that the Min value is lower than the Average value","All Data Rules Complied"))) -> All Data Rules Complied
B23: Growth of project area per year | C23: % | D23: ='Typology Inputs'!D15 -> 0 | E23: ='Typology Inputs'!E15 -> 0 | F23: ='Typology Inputs'!F15 -> 0 | H23: All Data Rules Complied
B24: Capital cost from project | C24: $ | D24: 0 | E24: =D24 -> 0 | F24: =D24 -> 0 | H24: All Data Rules Complied
B25: Annual operations & maintenance costs | C25: $/year | D25: 0 | E25: =D25 -> 0 | F25: =D25 -> 0 | H25: All Data Rules Complied
B26: Other annual project costs | C26: $/year | D26: 0 | E26: =D26 -> 0 | F26: =D26 -> 0 | H26: All Data Rules Complied
B27: Useful life | C27: years | D27: 0 | E27: =D27 -> 0 | F27: =D27 -> 0 | G27: =General!$D$16 -> 0 | H27: All Data Rules Complied
B28: % of recurring project cost | C28: % | D28: 0 | E28: =D28 -> 0 | F28: =D28 -> 0 | G28: 1 | H28: All Data Rules Complied
B29: Disposal costs | C29: $ | D29: 0 | E29: =D29 -> 0 | F29: =D29 -> 0 | H29: All Data Rules Complied
B30: Salvage value | C30: $ | D30: 0 | E30: =D30 -> 0 | F30: =D30 -> 0 | H30: All Data Rules Complied
B32: SALT MARSH
B33: Project area | C33: m2 | D33: ='Typology Inputs'!D17 -> 0 | E33: ='Typology Inputs'!E17 -> 0 | F33: ='Typology Inputs'!F17 -> 0 | H33: =IF(F33<E33, "Please make sure that the Max value is higher than the Min value", IF(F33<D33, "Please make sure that the Max value is higher than the Average value",IF(E33>D33, "Make sure that the Min value is lower than the Average value","All Data Rules Complied"))) -> All Data Rules Complied
B34: Growth of project area per year | C34: % | D34: ='Typology Inputs'!D18 -> 0 | E34: ='Typology Inputs'!E18 -> 0 | F34: ='Typology Inputs'!F18 -> 0 | H34: All Data Rules Complied
B35: Capital cost from project | C35: $ | D35: 0 | E35: =D35 -> 0 | F35: =D35 -> 0 | H35: All Data Rules Complied
B36: Annual operations & maintenance costs | C36: $/year | D36: 0 | E36: =D36 -> 0 | F36: =D36 -> 0 | H36: All Data Rules Complied
B37: Other annual project costs | C37: $/year | D37: 0 | E37: =D37 -> 0 | F37: =D37 -> 0 | H37: All Data Rules Complied
B38: Useful life | C38: years | D38: 0 | E38: =D38 -> 0 | F38: =D38 -> 0 | G38: =General!$D$16 -> 0 | H38: All Data Rules Complied
B39: % of recurring project cost | C39: % | D39: 0 | E39: =D39 -> 0 | F39: =D39 -> 0 | G39: 1 | H39: All Data Rules Complied
B40: Disposal costs | C40: $ | D40: 0 | E40: =D40 -> 0 | F40: =D40 -> 0 | H40: All Data Rules Complied
B41: Salvage value | C41: $ | D41: 0 | E41: =D41 -> 0 | F41: =D41 -> 0 | H41: All Data Rules Complied
B43: SAND DUNE
B44: Project area | C44: m2 | D44: ='Typology Inputs'!D20 -> 0 | E44: ='Typology Inputs'!E20 -> 0 | F44: ='Typology Inputs'!F20 -> 0 | H44: =IF(F44<E44, "Please make sure that the Max value is higher than the Min value", IF(F44<D44, "Please make sure that the Max value is higher than the Average value",IF(E44>D44, "Make sure that the Min value is lower than the Average value","All Data Rules Complied"))) -> All Data Rules Complied
B45: Growth of project area per year | C45: % | D45: ='Typology Inputs'!D21 -> 0 | E45: ='Typology Inputs'!E21 -> 0 | F45: ='Typology Inputs'!F21 -> 0 | H45: All Data Rules Complied
B46: Capital cost from project | C46: $ | D46: 0 | E46: =D46 -> 0 | F46: =D46 -> 0 | H46: All Data Rules Complied
B47: Annual operations & maintenance costs | C47: $/year | D47: 0 | E47: =D47 -> 0 | F47: =D47 -> 0 | H47: All Data Rules Complied
B48: Other annual project costs | C48: $/year | D48: 0 | E48: =D48 -> 0 | F48: =D48 -> 0 | H48: All Data Rules Complied
B49: Useful life | C49: years | D49: 0 | E49: =D49 -> 0 | F49: =D49 -> 0 | G49: =General!$D$16 -> 0 | H49: All Data Rules Complied
B50: % of recurring project cost | C50: % | D50: 0 | E50: =D50 -> 0 | F50: =D50 -> 0 | G50: 1 | H50: All Data Rules Complied
B51: Disposal costs | C51: $ | D51: 0 | E51: =D51 -> 0 | F51: =D51 -> 0 | H51: All Data Rules Complied
B52: Salvage value | C52: $ | D52: 0 | E52: =D52 -> 0 | F52: =D52 -> 0 | H52: All Data Rules Complied
B54: ROCK BREAKWATER
B55: ='Typology Inputs'!B23 -> Surrounding project area affected by breakwaters | C55: m2 | D55: ='Typology Inputs'!D23 -> 0 | E55: ='Typology Inputs'!E23 -> 0 | F55: ='Typology Inputs'!F23 -> 0 | H55: =IF(F55<E55, "Please make sure that the Max value is higher than the Min value", IF(F55<D55, "Please make sure that the Max value is higher than the Average value",IF(E55>D55, "Make sure that the Min value is lower than the Average value","All Data Rules Complied"))) -> All Data Rules Complied
B56: ='Typology Inputs'!B24 -> Length of rock breakwaters | C56: ='Typology Inputs'!C24 -> m | D56: ='Typology Inputs'!D24 -> 0 | E56: ='Typology Inputs'!E24 -> 0 | F56: ='Typology Inputs'!F24 -> 0 | H56: All Data Rules Complied
B57: Growth of project area per year | C57: % | D57: ='Typology Inputs'!D25 -> 0 | E57: ='Typology Inputs'!E25 -> 0 | F57: ='Typology Inputs'!F25 -> 0 | H57: All Data Rules Complied
B58: Capital cost from project | C58: $ | D58: 0 | E58: =D58 -> 0 | F58: =D58 -> 0 | H58: All Data Rules Complied
B59: Annual operations & maintenance costs | C59: $/year | D59: 0 | E59: =D59 -> 0 | F59: =D59 -> 0 | H59: All Data Rules Complied
B60: Other annual project costs | C60: $/year | D60: 0 | E60: =D60 -> 0 | F60: =D60 -> 0 | H60: All Data Rules Complied
B61: Useful life | C61: years | D61: 0 | E61: =D61 -> 0 | F61: =D61 -> 0 | G61: =General!$D$16 -> 0 | H61: All Data Rules Complied
B62: % of recurring project cost | C62: % | D62: 0 | E62: =D62 -> 0 | F62: =D62 -> 0 | G62: 1 | H62: All Data Rules Complied
B63: Disposal costs | C63: $ | D63: 0 | E63: =D63 -> 0 | F63: =D63 -> 0 | H63: All Data Rules Complied
B64: Salvage value | C64: $ | D64: 0 | E64: =D64 -> 0 | F64: =D64 -> 0 | H64: All Data Rules Complied
B66: EARTHEN LEVEE
B67: ='Typology Inputs'!B27 -> Surrounding project area affected by levees | C67: m2 | D67: ='Typology Inputs'!D27 -> 0 | E67: ='Typology Inputs'!E27 -> 0 | F67: ='Typology Inputs'!F27 -> 0 | H67: =IF(F67<E67, "Please make sure that the Max value is higher than the Min value", IF(F67<D67, "Please make sure that the Max value is higher than the Average value",IF(E67>D67, "Make sure that the Min value is lower than the Average value","All Data Rules Complied"))) -> All Data Rules Complied
B68: ='Typology Inputs'!B28 -> Length of the levee | C68: ='Typology Inputs'!C28 -> m | D68: ='Typology Inputs'!D28 -> 0 | E68: ='Typology Inputs'!E28 -> 0 | F68: ='Typology Inputs'!F28 -> 0 | H68: All Data Rules Complied
B69: ='Typology Inputs'!B29 -> Growth of project area per year | C69: % | D69: ='Typology Inputs'!D29 -> 0 | E69: ='Typology Inputs'!E29 -> 0 | F69: ='Typology Inputs'!F29 -> 0 | H69: All Data Rules Complied
B70: Capital cost from project | C70: $ | D70: 0 | E70: =D70 -> 0 | F70: =D70 -> 0 | H70: All Data Rules Complied
B71: Annual operations & maintenance costs | C71: $/year | D71: 0 | E71: =D71 -> 0 | F71: =D71 -> 0 | H71: All Data Rules Complied
B72: Other annual project costs | C72: $/year | D72: 0 | E72: =D72 -> 0 | F72: =D72 -> 0 | H72: All Data Rules Complied
B73: Useful life | C73: years | D73: 0 | E73: =D73 -> 0 | F73: =D73 -> 0 | G73: =General!$D$16 -> 0 | H73: All Data Rules Complied
B74: % of recurring project cost | C74: % | D74: 0 | E74: =D74 -> 0 | F74: =D74 -> 0 | G74: 1 | H74: All Data Rules Complied
B75: Disposal costs | C75: $ | D75: 0 | E75: =D75 -> 0 | F75: =D75 -> 0 | H75: All Data Rules Complied
B76: Salvage value | C76: $ | D76: 0 | E76: =D76 -> 0 | F76: =D76 -> 0 | H76: All Data Rules Complied
B78: SEAWALL
B79: ='Typology Inputs'!B31 -> Surrounding project area affected by the wall | C79: m2 | D79: ='Typology Inputs'!D31 -> 0 | E79: ='Typology Inputs'!E31 -> 0 | F79: ='Typology Inputs'!F31 -> 0 | H79: =IF(F79<E79, "Please make sure that the Max value is higher than the Min value", IF(F79<D79, "Please make sure that the Max value is higher than the Average value",IF(E79>D79, "Make sure that the Min value is lower than the Average value","All Data Rules Complied"))) -> All Data Rules Complied
B80: ='Typology Inputs'!B32 -> Length of the seawall | C80: ='Typology Inputs'!C32 -> m | D80: ='Typology Inputs'!D32 -> 0 | E80: ='Typology Inputs'!E32 -> 0 | F80: ='Typology Inputs'!F32 -> 0 | H80: All Data Rules Complied
B81: ='Typology Inputs'!B33 -> Is the seawall green or grey | C81: ='Typology Inputs'!C33 -> List | D81: ='Typology Inputs'!D33 -> Green
B82: Growth of project area per year | C82: % | D82: ='Typology Inputs'!D34 -> 0 | E82: ='Typology Inputs'!E34 -> 0 | F82: ='Typology Inputs'!F34 -> 0 | H82: All Data Rules Complied
B83: Capital cost from project | C83: $ | D83: 0 | E83: =D83 -> 0 | F83: =D83 -> 0 | H83: All Data Rules Complied
B84: Annual operations & maintenance costs | C84: $/year | D84: 0 | E84: =D84 -> 0 | F84: =D84 -> 0 | H84: All Data Rules Complied
B85: Other annual project costs | C85: $/year | D85: 0 | E85: =D85 -> 0 | F85: =D85 -> 0 | H85: All Data Rules Complied
B86: Useful life | C86: years | D86: 0 | E86: =D86 -> 0 | F86: =D86 -> 0 | G86: =General!$D$16 -> 0 | H86: All Data Rules Complied
B87: % of recurring project cost | C87: % | D87: 0 | E87: =D87 -> 0 | F87: =D87 -> 0 | G87: 1 | H87: All Data Rules Complied
B88: Disposal costs | C88: $ | D88: 0 | E88: =D88 -> 0 | F88: =D88 -> 0 | H88: All Data Rules Complied
B89: Salvage value | C89: $ | D89: 0 | E89: =D89 -> 0 | F89: =D89 -> 0 | H89: All Data Rules Complied
B91: CORAL REEF
B92: Project area | C92: m2 | D92: ='Typology Inputs'!D36 -> 0 | E92: ='Typology Inputs'!E36 -> 0 | F92: ='Typology Inputs'!F36 -> 0 | H92: =IF(F92<E92, "Please make sure that the Max value is higher than the Min value", IF(F92<D92, "Please make sure that the Max value is higher than the Average value",IF(E92>D92, "Make sure that the Min value is lower than the Average value","All Data Rules Complied"))) -> All Data Rules Complied
B93: Growth of project area per year | C93: % | D93: ='Typology Inputs'!D37 -> 0 | E93: ='Typology Inputs'!E37 -> 0 | F93: ='Typology Inputs'!F37 -> 0 | H93: All Data Rules Complied
B94: Capital cost from project | C94: $ | D94: 0 | E94: =D94 -> 0 | F94: =D94 -> 0 | H94: All Data Rules Complied
B95: Annual operations & maintenance costs | C95: $/year | D95: 0 | E95: =D95 -> 0 | F95: =D95 -> 0 | H95: All Data Rules Complied
B96: Other annual project costs | C96: $/year | D96: 0 | E96: =D96 -> 0 | F96: =D96 -> 0 | H96: All Data Rules Complied
B97: Useful life | C97: years | D97: 0 | E97: =D97 -> 0 | F97: =D97 -> 0 | G97: =General!$D$16 -> 0 | H97: All Data Rules Complied
B98: % of recurring project cost | C98: % | D98: 0 | E98: =D98 -> 0 | F98: =D98 -> 0 | G98: 1 | H98: All Data Rules Complied
B99: Disposal costs | C99: $ | D99: 0 | E99: =D99 -> 0 | F99: =D99 -> 0 | H99: All Data Rules Complied
B100: Salvage value | C100: $ | D100: 0 | E100: =D100 -> 0 | F100: =D100 -> 0 | H100: All Data Rules Complied
B102: MUDFLATS
B103: Project area | C103: m2 | D103: ='Typology Inputs'!D39 -> 0 | E103: ='Typology Inputs'!E39 -> 0 | F103: ='Typology Inputs'!F39 -> 0 | H103: =IF(F103<E103, "Please make sure that the Max value is higher than the Min value", IF(F103<D103, "Please make sure that the Max value is higher than the Average value",IF(E103>D103, "Make sure that the Min value is lower than the Average value","All Data Rules Complied"))) -> All Data Rules Complied
B104: Growth of project area per year | C104: % | D104: ='Typology Inputs'!D40 -> 0 | E104: ='Typology Inputs'!E40 -> 0 | F104: ='Typology Inputs'!F40 -> 0 | H104: All Data Rules Complied
B105: Capital cost from project | C105: $ | D105: 0 | E105: =D105 -> 0 | F105: =D105 -> 0 | H105: All Data Rules Complied
B106: Annual operations & maintenance costs | C106: $/year | D106: 0 | E106: =D106 -> 0 | F106: =D106 -> 0 | H106: All Data Rules Complied
B107: Other annual project costs | C107: $/year | D107: 0 | E107: =D107 -> 0 | F107: =D107 -> 0 | H107: All Data Rules Complied
B108: Useful life | C108: years | D108: 0 | E108: =D108 -> 0 | F108: =D108 -> 0 | G108: =General!$D$16 -> 0 | H108: All Data Rules Complied
B109: % of recurring project cost | C109: % | D109: 0 | E109: =D109 -> 0 | F109: =D109 -> 0 | G109: 1 | H109: All Data Rules Complied
B110: Disposal costs | C110: $ | D110: 0 | E110: =D110 -> 0 | F110: =D110 -> 0 | H110: All Data Rules Complied
B111: Salvage value | C111: $ | D111: 0 | E111: =D111 -> 0 | F111: =D111 -> 0 | H111: All Data Rules Complied
B113: COASTAL SYSTEM
B114: Project area | C114: m2 | D114: ='Typology Inputs'!D42 -> 0 | E114: ='Typology Inputs'!E42 -> 0 | F114: ='Typology Inputs'!F42 -> 0 | H114: =IF(F114<E114, "Please make sure that the Max value is higher than the Min value", IF(F114<D114, "Please make sure that the Max value is higher than the Average value",IF(E114>D114, "Make sure that the Min value is lower than the Average value","All Data Rules Complied"))) -> All Data Rules Complied
B115: Growth of project area per year | C115: % | D115: ='Typology Inputs'!D43 -> 0 | E115: ='Typology Inputs'!E43 -> 0 | F115: ='Typology Inputs'!F43 -> 0 | H115: All Data Rules Complied
B116: Capital cost from project | C116: $ | D116: 0 | E116: =D116 -> 0 | F116: =D116 -> 0 | H116: All Data Rules Complied
B117: Annual operations & maintenance costs | C117: $/year | D117: 0 | E117: =D117 -> 0 | F117: =D117 -> 0 | H117: All Data Rules Complied
B118: Other annual project costs | C118: $/year | D118: 0 | E118: =D118 -> 0 | F118: =D118 -> 0 | H118: All Data Rules Complied
B119: Useful life | C119: years | D119: 0 | E119: =D119 -> 0 | F119: =D119 -> 0 | G119: =General!$D$16 -> 0 | H119: All Data Rules Complied
B120: % of recurring project cost | C120: % | D120: 0 | E120: =D120 -> 0 | F120: =D120 -> 0 | G120: 1 | H120: All Data Rules Complied
B121: Disposal costs | C121: $ | D121: 0 | E121: =D121 -> 0 | F121: =D121 -> 0 | H121: All Data Rules Complied
B122: Salvage value | C122: $ | D122: 0 | E122: =D122 -> 0 | F122: =D122 -> 0 | H122: All Data Rules Complied

Sheet Detailed Inputs->
A1: *** this sheet is intentionally left blank

Sheet Fisheries
B1: Title: Fishery - Habitat creation benefits for three typologies
B2: Notes: This sheet is intended to account for the increase in available seafood catch. The user may override our list of top species in the region and prices for what is available locally. For any new fish species added in, the user will also have to add in the average weight per catch and the protein per 100g of consumption. The second table: This section is a pre-populated list of fish species with average catch size, price, and a protein component. We have added an additional sheet with the full data set of fish species - that may be used to replace these values. The protein value will have to be pulled by the project team.
B4: Legend: | C4: Required inputs
C5: Optional inputs
C6: Defaulted by Autocase - needs feedback and updates from project team
C7: Defaults not available
B9: Variable | C9: Unit | D9: Value (Average) | E9: Value (Min) | F9: Value (Max) | G9: Value (Default - Autocase) | H9: Autocase comments
B11: =General!B12 -> Country | C11: =General!C12 -> text | D11: =General!D12 -> Mexico
B12: Fisheries
B13: =LCCA!B11&" mangroves" -> Project area mangroves | C13: m2 | D13: =LCCA!D11 -> 0 | E13: =LCCA!E11 -> 0 | F13: =LCCA!F11 -> 0 | G13: =LCCA!G11 -> 0
B14: =LCCA!B22&" seagrass" -> Project area seagrass | C14: m2 | D14: =LCCA!D22 -> 0 | E14: =LCCA!E22 -> 0 | F14: =LCCA!F22 -> 0 | G14: =LCCA!G22 -> 0
B15: =LCCA!B92 & " coral reef" -> Project area coral reef | C15: m2 | D15: =LCCA!D92 -> 0 | E15: =LCCA!E92 -> 0 | F15: =LCCA!F92 -> 0 | G15: =LCCA!G92 -> 0
B16: Number of families affected by project | C16: # | D16: 0 | E16: 0 | F16: 0 | H16: =IF(G16<F16, "Please make sure that the Max value is higher than the Min value", IF(G16<E16, "Please make sure that the Max value is higher than the Average value",IF(F16>E16, "Make sure that the Min value is lower than the Average value","All Data Rules Complied"))) -> All Data Rules Complied
B17: Range of Damage Mitigation by Project | C17: %
B18: Number of Families Affected by Project
B19: Number of Families Affected by Project
B20: Fish trade | C20: https://docs.google.com/spreadsheets/d/1ruJLCSJpiUnhoopKYMKFJarjoSkVPTyOfG64J8Noznc/edit#gid=907182833
B22: ASFIS species | C22: Category | D22: Average weight (kgs) | E22: Weight source | F22: Market Price ($USD/tonne) | G22: Protein (g/100g) | H22: Protein Source
A23: 1 | B23: Atlantic seabob | C23: Shrimp | D23: =AVERAGE(D25,D40) -> 0.03247307692 | E23: Average of Whiteleg shrimp & Northern brown shrimp | F23: 7.349729637 | G23: 20.1 | H23: https://fdc.nal.usda.gov/fdc-app.html#/food-details/175179/nutrients
A24: =A23+1 -> 2 | B24: Cachama | C24: Freshwater | D24: 40 | E24: https://www.fishbase.se/summary/263 | F24: 2.162683532 | G24: 17.5 | H24: https://fdc.nal.usda.gov/fdc-app.html#/food-details/171960/nutrients
A25: 3 | B25: Whiteleg shrimp | C25: Shrimp | D25: =AVERAGE(0.035,0.03) -> 0.0325 | E25: https://www.fao.org/fishery/en/culturedspecies/penaeus_vannamei/en | F25: 7.349729637 | G25: 20.1 | H25: https://fdc.nal.usda.gov/fdc-app.html#/food-details/175179/nutrients
A26: 4 | B26: Yellowfin tuna | C26: Tuna | D26: 200 | E26: https://www.fishbase.se/summary/143 | F26: 3.376246079 | G26: 24.4 | H26: https://fdc.nal.usda.gov/fdc-app.html#/food-details/175159/nutrients
A27: 5 | B27: Bigeye tuna | C27: Tuna | D27: 210 | E27: https://www.fishbase.se/summary/146 | F27: 3.376246079 | G27: =AVERAGE(G26,G31) -> 23.2 | H27: Average of Yellowfin tuna & Skipjack tuna
A28: 6 | B28: Southern red snapper | C28: Snapper | D28: 10 | E28: https://www.fishbase.se/summary/171 | F28: 5.08421457 | G28: 20.5 | H28: https://fdc.nal.usda.gov/fdc-app.html#/food-details/173698/nutrients
A29: 7 | B29: Swordfish | C29: Swordfish | D29: 650 | E29: https://www.fishbase.se/summary/226 | F29: 2.790744128 | G29: 19.7 | H29: https://fdc.nal.usda.gov/fdc-app.html#/food-details/173703/nutrients
A30: 8 | B30: King mackerel | C30: Mackerel | D30: 45 | E30: https://www.fishbase.se/summary/120 | F30: 2.038231343 | G30: 20.3 | H30: https://fdc.nal.usda.gov/fdc-app.html#/food-details/175122/nutrients
A31: 9 | B31: Skipjack tuna | C31: Tuna | D31: 34.5 | E31: https://www.fishbase.se/summary/107 | F31: 3.376246079 | G31: 22 | H31: https://fdc.nal.usda.gov/fdc-app.html#/food-details/175156/nutrients
A32: 10 | B32: Rainbow trout | C32: Trout | D32: 25.4 | E32: https://www.fishbase.se/summary/239 | F32: 1.808575262 | G32: 20.5 | H32: https://fdc.nal.usda.gov/fdc-app.html#/food-details/175154/nutrients
A33: 11 | B33: Serra Spanish mackerel | C33: Mackerel | D33: 6.7 | E33: https://www.fishbase.se/summary/119 | F33: 2.038231343 | G33: 19.3 | H33: https://fdc.nal.usda.gov/fdc-app.html#/food-details/173673/nutrients
A34: 12 | B34: Nile tilapia | C34: Tilapia | D34: 4.3 | E34: https://www.fishbase.se/summary/2 | F34: 3.517217296 | G34: 20.1 | H34: https://fdc.nal.usda.gov/fdc-app.html#/food-details/175176/nutrients
A35: 13 | B35: Brazilian sardinella | C35: Sardine | D35: =AVERAGE(0.109, 0.0585, 0.42, 0.375) -> 0.240625 | E35: https://www.fishbase.se/summary/1505 https://www.fishbase.se/summary/1478 https://www.fishbase.se/summary/1523 https://www.fishbase.se/summary/1043 https://www.fishbase.se/summary/1486 | F35: 1.573292619 | G35: 24.6 | H35: https://fdc.nal.usda.gov/fdc-app.html#/food-details/2341708/nutrients
A36: 14 | B36: Whitemouth croaker | C36: Croaker | D36: 0.0553 | E36: https://www.fishbase.se/summary/7620 | F36: 1.804821257 | G36: 17.8 | H36: https://fdc.nal.usda.gov/fdc-app.html#/food-details/174192/nutrients
A37: 15 | B37: Tambacu, hybrid | C37: Freshwater | D37: =AVERAGE(0.33,0.3075) -> 0.31875 | E37: https://www.fishbase.se/summary/SpeciesSummary.php?ID=23429&AT=Tambacu https://www.fishbase.se/summary/SpeciesSummary.php?ID=52621&AT=Tambacu | F37: 2.162683532 | G37: 17.5 | H37: https://fdc.nal.usda.gov/fdc-app.html#/food-details/171960/nutrients
A38: 16 | B38: Common carp | C38: Carp | D38: 40.1 | E38: https://www.fishbase.se/summary/1450 | F38: 0.38 | G38: 17.8 | H38: https://fdc.nal.usda.gov/fdc-app.html#/food-details/171952/nutrients
A39: 17 | B39: Blue crab | C39: Crab | D39: =(1/3)/2.205 -> 0.1511715797 | E39: https://www.fisheries.noaa.gov/species/blue-crab | F39: 6.329679658 | G39: 18.1 | H39: https://fdc.nal.usda.gov/fdc-app.html#/food-details/174204/nutrients
A40: 18 | B40: Northern brown shrimp | C40: Shrimp | D40: =AVERAGE(35.5,34,30.8,32.6,31,35,29.8,31.5,33,34.2,30.2,32.8,31.4)/1000 -> 0.03244615385 | E40: https://www.reabic.net/journals/bir/2021/2/BIR_2021_Abdulrraziq_etal.pdf | F40: 7.349729637 | G40: 20.1 | H40: https://fdc.nal.usda.gov/fdc-app.html#/food-details/175179/nutrients
A41: 19 | B41: Atlantic Spanish mackerel | C41: Mackerel | D41: 5.9 | E41: https://www.fishbase.se/summary/126 | F41: 2.038231343 | G41: 18.6 | H41: https://fdc.nal.usda.gov/fdc-app.html#/food-details/175119/nutrients
A42: 20 | B42: Whitebelly prawn | C42: Shrimp | D42: =AVERAGE(D25,D40) -> 0.03247307692 | E42: Average of Whiteleg shrimp & Northern brown shrimp | F42: 7.349729637 | G42: 20.1 | H42: https://fdc.nal.usda.gov/fdc-app.html#/food-details/175179/nutrients
A43: 21 | B43: Brazilian codling | C43: =VLOOKUP(B43,Fish_production!$A$2:$H$112,8,FALSE) -> Cod, hake, haddock | F43: =VLOOKUP(B43,Fish_production!$A$2:$I$112,9,FALSE) -> 2.841993682 | G43: 20.1 | H43: https://fdc.nal.usda.gov/fdc-app.html#/food-details/175179/nutrients
A44: 22 | B44: Brazilian codling | C44: =VLOOKUP(B44,Fish_production!$A$2:$H$112,8,FALSE) -> Cod, hake, haddock | F44: =VLOOKUP(B44,Fish_production!$A$2:$I$112,9,FALSE) -> 2.841993682 | G44: 20.1 | H44: https://fdc.nal.usda.gov/fdc-app.html#/food-details/175179/nutrients
A45: 23 | B45: Brazilian codling | C45: =VLOOKUP(B45,Fish_production!$A$2:$H$112,8,FALSE) -> Cod, hake, haddock | F45: =VLOOKUP(B45,Fish_production!$A$2:$I$112,9,FALSE) -> 2.841993682 | G45: 20.1 | H45: https://fdc.nal.usda.gov/fdc-app.html#/food-details/175179/nutrients
A46: 24 | B46: Brazilian codling | C46: =VLOOKUP(B46,Fish_production!$A$2:$H$112,8,FALSE) -> Cod, hake, haddock | F46: =VLOOKUP(B46,Fish_production!$A$2:$I$112,9,FALSE) -> 2.841993682 | G46: 20.1 | H46: https://fdc.nal.usda.gov/fdc-app.html#/food-details/175179/nutrients
A47: 25 | B47: Brazilian codling | C47: =VLOOKUP(B47,Fish_production!$A$2:$H$112,8,FALSE) -> Cod, hake, haddock | F47: =VLOOKUP(B47,Fish_production!$A$2:$I$112,9,FALSE) -> 2.841993682 | G47: 20.1 | H47: https://fdc.nal.usda.gov/fdc-app.html#/food-details/175179/nutrients
A48: 26 | B48: Brazilian codling | C48: =VLOOKUP(B48,Fish_production!$A$2:$H$112,8,FALSE) -> Cod, hake, haddock | F48: =VLOOKUP(B48,Fish_production!$A$2:$I$112,9,FALSE) -> 2.841993682 | G48: 20.1 | H48: https://fdc.nal.usda.gov/fdc-app.html#/food-details/175179/nutrients
A49: 27 | B49: Brazilian codling | C49: =VLOOKUP(B49,Fish_production!$A$2:$H$112,8,FALSE) -> Cod, hake, haddock | F49: =VLOOKUP(B49,Fish_production!$A$2:$I$112,9,FALSE) -> 2.841993682 | G49: 20.1 | H49: https://fdc.nal.usda.gov/fdc-app.html#/food-details/175179/nutrients
A50: 28 | B50: Brazilian codling | C50: =VLOOKUP(B50,Fish_production!$A$2:$H$112,8,FALSE) -> Cod, hake, haddock | F50: =VLOOKUP(B50,Fish_production!$A$2:$I$112,9,FALSE) -> 2.841993682 | G50: 20.1 | H50: https://fdc.nal.usda.gov/fdc-app.html#/food-details/175179/nutrients
A51: 29 | B51: Brazilian codling | C51: =VLOOKUP(B51,Fish_production!$A$2:$H$112,8,FALSE) -> Cod, hake, haddock | F51: =VLOOKUP(B51,Fish_production!$A$2:$I$112,9,FALSE) -> 2.841993682 | G51: 20.1 | H51: https://fdc.nal.usda.gov/fdc-app.html#/food-details/175179/nutrients
A52: 30 | B52: Brazilian codling | C52: =VLOOKUP(B52,Fish_production!$A$2:$H$112,8,FALSE) -> Cod, hake, haddock | F52: =VLOOKUP(B52,Fish_production!$A$2:$I$112,9,FALSE) -> 2.841993682 | G52: 20.1 | H52: https://fdc.nal.usda.gov/fdc-app.html#/food-details/175179/nutrients

Sheet Food-Raw Materials
B1: Title: Raw materials and food production (aggregate for all typologies)
B2: Notes: This sheet is intended to account for the available raw material and food produced onsite owing to the rehabilitation efforts of the project to provide materials to the local community. Please add in as many metric tons of materials and food that may be relevant with a price for each of them.
B4: Legend: | C4: Required inputs
C5: Optional inputs
C6: Required List Selection
C7: Defaults not available
B9: Variable | C9: Unit | D9: Value (Average) | E9: Value (Min) | F9: Value (Max) | G9: Value (Default - Autocase) | H9: Autocase comments
B10: Are there inputs on raw material from the project area available? | C10: List | D10: =General!D27 -> No
B11: Metric tons of raw material gathered from project area
B12: 1 | C12: Metric tons | D12: 0 | E12: =D12 -> 0 | F12: =D12 -> 0 | H12: =IF(F12<E12, "Please make sure that the Max value is higher than the Min value", IF(F12<D12, "Please make sure that the Max value is higher than the Average value",IF(E12>D12, "Make sure that the Min value is lower than the Average value","All Data Rules Complied"))) -> All Data Rules Complied
B13: 2 | C13: Metric tons | E13: =D13 -> 0 | F13: =D13 -> 0 | H13: =IF(F13<E13, "Please make sure that the Max value is higher than the Min value", IF(F13<D13, "Please make sure that the Max value is higher than the Average value",IF(E13>D13, "Make sure that the Min value is lower than the Average value","All Data Rules Complied"))) -> All Data Rules Complied
B14: 3 | C14: Metric tons | E14: =D14 -> 0 | F14: =D14 -> 0 | H14: All Data Rules Complied
B15: 4 | C15: Metric tons | E15: =D15 -> 0 | F15: =D15 -> 0 | H15: All Data Rules Complied
B17: Market price of raw material gathered from project area
B18: 1 | C18: $/metric ton | D18: 0 | E18: =D18 -> 0 | F18: =D18 -> 0 | H18: =IF(F18<E18, "Please make sure that the Max value is higher than the Min value", IF(F18<D18, "Please make sure that the Max value is higher than the Average value",IF(E18>D18, "Make sure that the Min value is lower than the Average value","All Data Rules Complied"))) -> All Data Rules Complied
B19: 2 | C19: $/metric ton | E19: =D19 -> 0 | F19: =D19 -> 0 | H19: All Data Rules Complied
B20: 3 | C20: $/metric ton | E20: =D20 -> 0 | F20: =D20 -> 0 | H20: All Data Rules Complied
B21: 4 | C21: $/metric ton | E21: =D21 -> 0 | F21: =D21 -> 0 | H21: All Data Rules Complied
B23: Are there inputs on food gathered from the project area available? | C23: List | D23: =General!D28 -> No
B24: Metric tons of food gathered from project area
B25: 1 | C25: Metric tons | D25: 0 | E25: =D25 -> 0 | F25: =D25 -> 0 | H25: =IF(F25<E25, "Please make sure that the Max value is higher than the Min value", IF(F25<D25, "Please make sure that the Max value is higher than the Average value",IF(E25>D25, "Make sure that the Min value is lower than the Average value","All Data Rules Complied"))) -> All Data Rules Complied
B26: 2 | C26: Metric tons | E26: 0 | F26: 0 | H26: All Data Rules Complied
B27: 3 | C27: Metric tons | E27: 0 | F27: 0 | H27: All Data Rules Complied
B28: 4 | C28: Metric tons | E28: 0 | F28: 0 | H28: All Data Rules Complied
B30: Market price of food
B31: 1 | C31: $/metric ton | D31: 0 | E31: =D31 -> 0 | F31: =D31 -> 0 | H31: =IF(F31<E31, "Please make sure that the Max value is higher than the Min value", IF(F31<D31, "Please make sure that the Max value is higher than the Average value",IF(E31>D31, "Make sure that the Min value is lower than the Average value","All Data Rules Complied"))) -> All Data Rules Complied
B32: 2 | C32: $/metric ton | E32: =D32 -> 0 | F32: =D32 -> 0 | H32: All Data Rules Complied
B33: 3 | C33: $/metric ton | E33: =D33 -> 0 | F33: =D33 -> 0 | H33: All Data Rules Complied
B34: 4 | C34: $/metric ton | E34: =D34 -> 0 | F34: =D34 -> 0 | H34: All Data Rules Complied

Sheet Erosion prevention
B1: Title: Erosion risk mitigation for all feature types (aggregated)
B2: Notes: The input sheet is intended to capture the benefits of erosion mitigation. The user may enter a general erosion mitigation damage that is mitigated by the project or individual storm event benefits in a year. The user has the option of selecting multiple storm events per year, and a range of costs such as dredging, site work and unclogging channels that are addressed by the project.
B4: Legend: | C4: Required inputs
C5: Required List Selection
C6: Optional inputs
C7: Defaults not available
B9: Variable | C9: Unit | D9: Value (Average) | E9: Value (Min) | F9: Value (Max) | G9: Value (Default - Autocase) | H9: Autocase comments
B10: Do you have project specific erosion inputs? | C10: List | D10: =General!D30 -> No
B12: Storm event under analysis
B13: General | C13: List | D13: No
B14: 5-year | C14: List | D14: No
B15: 10-year | C15: List | D15: No
B16: 25-year | C16: List | D16: No
B17: 50-year | C17: List | D17: No
B18: 100-year | C18: List | D18: No
B20: Area of coastline eroded per event
B21: General | C21: km2 | D21: 0 | E21: =D21 -> 0 | F21: =D21 -> 0 | H21: =IF(F21<E21, "Please make sure that the Max value is higher than the Min value", IF(F21<D21, "Please make sure that the Max value is higher than the Average value",IF(E21>D21, "Make sure that the Min value is lower than the Average value","All Data Rules Complied"))) -> All Data Rules Complied
B22: 5-year | C22: km2 | D22: 0 | E22: =D22 -> 0 | F22: =D22 -> 0 | H22: =IF(F22<E22, "Please make sure that the Max value is higher than the Min value", IF(F22<D22, "Please make sure that the Max value is higher than the Average value",IF(E22>D22, "Make sure that the Min value is lower than the Average value","All Data Rules Complied"))) -> All Data Rules Complied
B23: 10-year | C23: km2 | D23: 0 | E23: 0 | F23: 0 | H23: All Data Rules Complied
B24: 25-year | C24: km2 | D24: 0 | E24: 0 | F24: 0 | H24: All Data Rules Complied
B25: 50-year | C25: km2 | D25: 0 | E25: 0 | F25: 0 | H25: All Data Rules Complied
B26: 100-year | C26: km2 | D26: 0 | E26: 0 | F26: 0 | H26: All Data Rules Complied
B27: Land value affected by erosion | C27: $/km2 | D27: 0 | E27: =D27 -> 0 | F27: =D27 -> 0 | H27: All Data Rules Complied
B29: % of surge height/erosion levels to be addressed by project | C29: % | D29: 0 | E29: =D29 -> 0 | F29: =D29 -> 0 | H29: All Data Rules Complied
B31: Annual Dredging Costs
B32: General | C32: $/year | D32: 0 | E32: =D32 -> 0 | F32: =D32 -> 0 | H32: =IF(F32<E32, "Please make sure that the Max value is higher than the Min value", IF(F32<D32, "Please make sure that the Max value is higher than the Average value",IF(E32>D32, "Make sure that the Min value is lower than the Average value","All Data Rules Complied"))) -> All Data Rules Complied
B33: 5-year | C33: $/year | D33: 0 | E33: =D33 -> 0 | F33: =D33 -> 0 | H33: All Data Rules Complied
B34: 10-year | C34: $/year | D34: 0 | E34: 0 | F34: 0 | H34: All Data Rules Complied
B35: 25-year | C35: $/year | D35: 0 | E35: 0 | F35: 0 | H35: All Data Rules Complied
B36: 50-year | C36: $/year | D36: 0 | E36: 0 | F36: 0 | H36: All Data Rules Complied
B37: 100-year | C37: $/year | D37: 0 | E37: 0 | F37: 0 | H37: All Data Rules Complied
B39: Annual Site-Work Costs
B40: General | C40: $/year | D40: 0 | E40: =D40 -> 0 | F40: =D40 -> 0 | H40: =IF(F40<E40, "Please make sure that the Max value is higher than the Min value", IF(F40<D40, "Please make sure that the Max value is higher than the Average value",IF(E40>D40, "Make sure that the Min value is lower than the Average value","All Data Rules Complied"))) -> All Data Rules Complied
B41: 5-year | C41: $/year | D41: 0 | E41: 0 | F41: 0 | H41: All Data Rules Complied
B42: 10-year | C42: $/year | D42: 0 | E42: 0 | F42: 0 | H42: All Data Rules Complied
B43: 25-year | C43: $/year | D43: 0 | E43: 0 | F43: 0 | H43: All Data Rules Complied
B44: 50-year | C44: $/year | D44: 0 | E44: 0 | F44: 0 | H44: All Data Rules Complied
B45: 100-year | C45: $/year | D45: 0 | E45: 0 | F45: 0 | H45: All Data Rules Complied
B47: Annual costs to open up clogged channels
B48: General | C48: $/year | D48: 0 | E48: =D48 -> 0 | F48: =D48 -> 0 | H48: =IF(F48<E48, "Please make sure that the Max value is higher than the Min value", IF(F48<D48, "Please make sure that the Max value is higher than the Average value",IF(E48>D48, "Make sure that the Min value is lower than the Average value","All Data Rules Complied"))) -> All Data Rules Complied
B49: 5-year | C49: $/year | D49: 0 | E49: =D49 -> 0 | F49: =D49 -> 0 | H49: All Data Rules Complied
B50: 10-year | C50: $/year | D50: 0 | E50: 0 | F50: 0 | H50: All Data Rules Complied
B51: 25-year | C51: $/year | D51: 0 | E51: 0 | F51: 0 | H51: All Data Rules Complied
B52: 50-year | C52: $/year | D52: 0 | E52: 0 | F52: 0 | H52: All Data Rules Complied
B53: 100-year | C53: $/year | D53: 0 | E53: 0 | F53: 0 | H53: All Data Rules Complied

Sheet Water flow(Sea intrusion)
B1: Title: Seawater Intrusion Inputs
B2: Notes: The input sheet is intended to capture the benefits of mitigated seawater intrusion. The user may enter a combination of inputs depending on the information available. There are also different options for cost inputs that may be relevant to the project including reduced water purification costs, intrusion infrastructure costs.
B4: Legend: | C4: Required inputs
C5: Optional inputs
C6: Required List Selection
C7: Defaults not available
B9: Variable | C9: Unit | D9: Value (Average) | E9: Value (Min) | F9: Value (Max) | G9: Value (Default) | I9: Autocase comments
B10: =General!B12 -> Country | C10: =General!C12 -> text | D10: =General!D12 -> Mexico
B11: =General!B13 -> City | C11: =General!C13 -> text
B12: Are you using a detailed model? | C12: List | D12: =General!D31 -> No
B14: Estimating the number of people affected or shortages
B15: Project area / area affected by water shortage | C15: km2 | D15: 0 | E15: =D15 -> 0 | F15: =D15 -> 0 | G15: =LCCA!D11+LCCA!D22+LCCA!D33+LCCA!D44+LCCA!D55+LCCA!D67+LCCA!D79+LCCA!D92 -> 0 | I15: =IF(F15<E15, "Please make sure that the Max value is higher than the Min value", IF(F15<D15, "Please make sure that the Max value is higher than the Average value",IF(E15>D15, "Make sure that the Min value is lower than the Average value","All Data Rules Complied"))) -> All Data Rules Complied
B16: Housing density | C16: #/km2 | D16: 0 | E16: =D16 -> 0 | F16: =D16 -> 0 | I16: All Data Rules Complied
B17: Persons per household | C17: # | D17: 0 | E17: =D17 -> 0 | F17: =D17 -> 0 | G17: =2 -> 2 | I17: All Data Rules Complied
B18: OR
B19: Number of people affected by reduced water availabilities / shortages | C19: # | D19: 0 | E19: =D19 -> 0 | F19: =D19 -> 0 | I19: All Data Rules Complied
B21: Shortages assumptions
B22: Per capita water consumption per year | C22: liters/person/year | D22: =G22 -> 112969.2614 | E22: =D22 -> 112969.2614 | F22: =D22 -> 112969.2614 | G22: =HLOOKUP('Water flow(Sea intrusion)'!D10,'Water flow(Sea intrusion) model'!D35:G36,2,FALSE)*(Conversions!B33/Conversions!B29) -> 112969.2614 | I22: =IF(F22<E22, "Please make sure that the Max value is higher than the Min value", IF(F22<D22, "Please make sure that the Max value is higher than the Average value",IF(E22>D22, "Make sure that the Min value is lower than the Average value","All Data Rules Complied"))) -> All Data Rules Complied
B23: Duration of annual water shortages during intrusion events | C23: # days | D23: 0 | E23: 0 | F23: 0 | I23: All Data Rules Complied
B24: Annual water shortages in the region | C24: litres | D24: 0 | E24: 0 | F24: 0 | G24: =D22*(D23*D22*D15*D16*D17/365.25) -> 0 | I24: All Data Rules Complied
B26: Current costs
B27: Community
B28: Alternative costs of water | C28: $/liter | D28: 0 | E28: =D28 -> 0 | F28: =D28 -> 0 | I28: =IF(F28<E28, "Please make sure that the Max value is higher than the Min value", IF(F28<D28, "Please make sure that the Max value is higher than the Average value",IF(E28>D28, "Make sure that the Min value is lower than the Average value","All Data Rules Complied"))) -> All Data Rules Complied
B29: Current cost of water | C29: $/liter | D29: =G29 -> 0.006168497783 | E29: 0.006168497783 | F29: 0.006168497783 | G29: =HLOOKUP('Water flow(Sea intrusion)'!D10,'Water flow(Sea intrusion) model'!D35:G37,3,FALSE)*(Conversions!B33/Conversions!B29) -> 0.006168497783 | I29: All Data Rules Complied
B31: Treatment and infrastructure costs
B32: Current ongoing infrastructure costs to prevent saltwater intrusion | C32: $/year | D32: 0 | E32: =D32 -> 0 | F32: =D32 -> 0 | I32: =IF(F32<E32, "Please make sure that the Max value is higher than the Min value", IF(F32<D32, "Please make sure that the Max value is higher than the Average value",IF(E32>D32, "Make sure that the Min value is lower than the Average value","All Data Rules Complied"))) -> All Data Rules Complied
B33: Additional alternative water source, delivery & transportation costs (not covered by the cost mentioned above) | C33: $/year | D33: 0 | E33: 0 | F33: 0 | I33: All Data Rules Complied
B34: Water purification and treatment costs on-site | C34: $/year | D34: 0 | E34: 0 | F34: 0 | I34: All Data Rules Complied
B36: % of local water consumption sourced from coastline fresh, surface, and groundwater sources | C36: % | D36: 0 | E36: =D36 -> 0 | F36: =D36 -> 0 | I36: =IF(F36<E36, "Please make sure that the Max value is higher than the Min value", IF(F36<D36, "Please make sure that the Max value is higher than the Average value",IF(E36>D36, "Make sure that the Min value is lower than the Average value","All Data Rules Complied"))) -> All Data Rules Complied
B38: Project targets
B39: Targeted water conservation/shortage reduction | C39: % | D39: 0 | E39: =D39 -> 0 | F39: =D39 -> 0 | I39: =IF(F39<E39, "Please make sure that the Max value is higher than the Min value", IF(F39<D39, "Please make sure that the Max value is higher than the Average value",IF(E39>D39, "Make sure that the Min value is lower than the Average value","All Data Rules Complied"))) -> All Data Rules Complied

Sheet Disturbance moderation (flood)
B1: Title: Flood risk mitigation for all feature types (aggregated)
B2: Notes: This input sheet is intended to capture the benefits of flood risk mitigation. There are two separate models that account for this mitigation based on the scale of project specific data available. A minimalistic model looks at high-level aggregate flood risk damage abatement data, and a detailed model looks at storm-specific inputs that may be run one storm event at a time or for multiple storms expected in a year.
B4: Legend: | C4: Required inputs
C5: Required List Selection
C6: Optional inputs
C7: Defaults not available
B9: Flood Risk Mitigation
B10: Variable | C10: Unit | D10: Value
B11: Do you have project specific inputs on flood risk mitigation? | C11: List | D11: =General!D32 -> No
B13: Minimal Model
B14: Variable | C14: Unit | D14: Value (Average) | E14: Value (Min) | F14: Value (Max) | G14: Value (Default - Autocase) | I14: Autocase comments
B15: Model selection | C15: List | D15: =General!D32 -> No
B16: Flooded area in the baseline | C16: m2 | D16: 0 | E16: =D16 -> 0 | F16: =D16 -> 0 | I16: =IF(F16<E16, "Please make sure that the Max value is higher than the Min value", IF(F16<D16, "Please make sure that the Max value is higher than the Average value",IF(E16>D16, "Make sure that the Min value is lower than the Average value","All Data Rules Complied"))) -> All Data Rules Complied
B17: % of project site unusable due to flooding | C17: % | D17: 0 | E17: 0 | F17: 0 | G17: 1 | I17: =IF(F17<E17, "Please make sure that the Max value is higher than the Min value", IF(F17<D17, "Please make sure that the Max value is higher than the Average value",IF(E17>D17, "Make sure that the Min value is lower than the Average value","All Data Rules Complied"))) -> All Data Rules Complied
B18: Current storm-surge height | C18: ft | D18: 0 | E18: 0 | F18: 0 | I18: =IF(F18<E18, "Please make sure that the Max value is higher than the Min value", IF(F18<D18, "Please make sure that the Max value is higher than the Average value",IF(E18>D18, "Make sure that the Min value is lower than the Average value","All Data Rules Complied"))) -> All Data Rules Complied
B19: Property/land value surrounding the project | C19: $/m2 | D19: 0 | E19: 0 | F19: 0 | I19: All Data Rules Complied
B20: Current costs of flooding, clean-up costs, neighborhood damage costs, loss of agricultural land costs, cost of deployed emergency services | C20: $/year | D20: 0 | E20: 0 | F20: 0 | I20: All Data Rules Complied
B21: % of flooded area protected by typologies | C21: % | D21: 0 | E21: 0 | F21: 0 | G21: 1 | I21: All Data Rules Complied
B22: Surge height addressed by the project | C22: % | D22: 0 | E22: 0 | F22: 0 | G22: 1 | I22: All Data Rules Complied
B23: % unusable land made useable again through protection provided by the typologies | C23: % | D23: 0 | E23: 0 | F23: 0 | G23: 1 | I23: All Data Rules Complied
B24: Flooding costs and damages abated by the project | C24: % | D24: 0 | E24: 0 | F24: 0 | G24: 1 | I24: All Data Rules Complied
B26: H-H Model
B27: Variable | C27: Unit | D27: 5-year | E27: 10-year | F27: 25-year | G27: 50-year | H27: 100-year
B28: Recurrence, Probability & Storm Event
B29: Select Storm Event Type Relevance | C29: List | D29: Yes | E29: Yes | F29: Yes | G29: Yes | H29: Yes
B30: Expected Annual Frequency | C30: #/year | D30: 0.2 | E30: 0.1 | F30: 0.04 | G30: 0.02 | H30: =1/100 -> 0.01
B32: Variable | C32: Unit | D32: Value (Average) | E32: Value (Min) | F32: Value (Max) | G32: Value (Default - Autocase) | I32: Autocase comments
B33: Hydrology Simulation
B34: Flooded area in the baseline
B35: 5-year | C35: m2 | D35: 0 | E35: =D35 -> 0 | F35: =D35 -> 0 | I35: =IF(F35<E35, "Please make sure that the Max value is higher than the Min value", IF(F35<D35, "Please make sure that the Max value is higher than the Average value",IF(E35>D35, "Make sure that the Min value is lower than the Average value","All Data Rules Complied"))) -> All Data Rules Complied
B36: 10-year | C36: m2 | D36: 0 | E36: =D36 -> 0 | F36: =D36 -> 0 | I36: All Data Rules Complied
B37: 25-year | C37: m2 | D37: 0 | E37: 0 | F37: 0 | I37: All Data Rules Complied
B38: 50-year | C38: m2 | D38: 0 | E38: 0 | F38: 0 | I38: All Data Rules Complied
B39: 100-year | C39: m2 | D39: 0 | E39: 0 | F39: 0 | I39: All Data Rules Complied
B41: Expected area to be protected as a part of the project | C41: m2 | D41: 0 | E41: =D41 -> 0 | F41: =D41 -> 0 | I41: =IF(F41<E41, "Please make sure that the Max value is higher than the Min value", IF(F41<D41, "Please make sure that the Max value is higher than the Average value",IF(E41>D41, "Make sure that the Min value is lower than the Average value","All Data Rules Complied"))) -> All Data Rules Complied
B42: Land use assumptions
B43: Agricultural | C43: m2 | D43: 0 | E43: =D43 -> 0 | F43: =D43 -> 0 | I43: =IF(F43<E43, "Please make sure that the Max value is higher than the Min value", IF(F43<D43, "Please make sure that the Max value is higher than the Average value",IF(E43>D43, "Make sure that the Min value is lower than the Average value","All Data Rules Complied"))) -> All Data Rules Complied
B44: Residential | C44: m2 | D44: 0 | E44: 0 | F44: 0 | I44: All Data Rules Complied
B45: Common municipal coastal | C45: m2 | D45: 0 | E45: 0 | F45: 0 | I45: All Data Rules Complied
B47: Depth of flooding across the project area per day
B48: 5-year | C48: m | D48: 0 | E48: =D48 -> 0 | F48: =D48 -> 0 | I48: =IF(F48<E48, "Please make sure that the Max value is higher than the Min value", IF(F48<D48, "Please make sure that the Max value is higher than the Average value",IF(E48>D48, "Make sure that the Min value is lower than the Average value","All Data Rules Complied"))) -> All Data Rules Complied
B49: 10-year | C49: m | D49: 0 | E49: 0 | F49: 0 | I49: All Data Rules Complied
B50: 25-year | C50: m | D50: 0 | E50: 0 | F50: 0 | I50: All Data Rules Complied
B51: 50-year | C51: m | D51: 0 | E51: 0 | F51: 0 | I51: All Data Rules Complied
B52: 100-year | C52: m | D52: 0 | E52: 0 | F52: 0 | I52: All Data Rules Complied
B54: Surge Height under Analysis
B55: 5-year | C55: m | D55: 0 | E55: =D55 -> 0 | F55: =D55 -> 0 | I55: =IF(F55<E55, "Please make sure that the Max value is higher than the Min value", IF(F55<D55, "Please make sure that the Max value is higher than the Average value",IF(E55>D55, "Make sure that the Min value is lower than the Average value","All Data Rules Complied"))) -> All Data Rules Complied
B56: 10-year | C56: m | D56: 0 | E56: 0 | F56: 0 | I56: All Data Rules Complied
B57: 25-year | C57: m | D57: 0 | E57: 0 | F57: 0 | I57: All Data Rules Complied
B58: 50-year | C58: m | D58: 0 | E58: 0 | F58: 0 | I58: All Data Rules Complied
B59: 100-year | C59: m | D59: 0 | E59: 0 | F59: 0 | I59: All Data Rules Complied
B60: % of surge height to be addressed by project | C60: % | D60: 0 | E60: =D60 -> 0 | F60: =D60 -> 0 | G60: 1 | I60: All Data Rules Complied
B62: Damages
B63: Baseline damages
B64: 5-year | C64: $/Event | D64: 0 | E64: =D64 -> 0 | F64: =D64 -> 0 | I64: =IF(F64<E64, "Please make sure that the Max value is higher than the Min value", IF(F64<D64, "Please make sure that the Max value is higher than the Average value",IF(E64>D64, "Make sure that the Min value is lower than the Average value","All Data Rules Complied"))) -> All Data Rules Complied
B65: 10-year | C65: $/Event | D65: 0 | E65: =D65 -> 0 | F65: =D65 -> 0 | I65: All Data Rules Complied
B66: 25-year | C66: $/Event | D66: 0 | E66: 0 | F66: 0 | I66: All Data Rules Complied
B67: 50-year | C67: $/Event | D67: 0 | E67: 0 | F67: 0 | I67: All Data Rules Complied
B68: 100-year | C68: $/Event | D68: 0 | E68: 0 | F68: 0 | I68: All Data Rules Complied
B69: Baseline municipal cleaning, neighborhood damage costs
B70: 5-year | C70: $/Event | D70: 0 | E70: =D70 -> 0 | F70: =D70 -> 0 | I70: =IF(F70<E70, "Please make sure that the Max value is higher than the Min value", IF(F70<D70, "Please make sure that the Max value is higher than the Average value",IF(E70>D70, "Make sure that the Min value is lower than the Average value","All Data Rules Complied"))) -> All Data Rules Complied
B71: 10-year | C71: $/Event | D71: 0 | E71: =D71 -> 0 | F71: =D71 -> 0 | I71: All Data Rules Complied
B72: 25-year | C72: $/Event | D72: 0 | E72: 0 | F72: 0 | I72: All Data Rules Complied
B73: 50-year | C73: $/Event | D73: 0 | E73: 0 | F73: 0 | I73: All Data Rules Complied
B74: 100-year | C74: $/Event | D74: 0 | E74: 0 | F74: 0 | I74: All Data Rules Complied
B75: Baseline damages to agricultural land / loss of crops and livestock
B76: 5-year | C76: $/Event | D76: 0 | E76: =D76 -> 0 | F76: =D76 -> 0 | I76: =IF(F76<E76, "Please make sure that the Max value is higher than the Min value", IF(F76<D76, "Please make sure that the Max value is higher than the Average value",IF(E76>D76, "Make sure that the Min value is lower than the Average value","All Data Rules Complied"))) -> All Data Rules Complied
B77: 10-year | C77: $/Event | D77: 0 | E77: =D77 -> 0 | F77: =D77 -> 0 | I77: All Data Rules Complied
B78: 25-year | C78: $/Event | D78: 0 | E78: 0 | F78: 0 | I78: All Data Rules Complied
B79: 50-year | C79: $/Event | D79: 0 | E79: 0 | F79: 0 | I79: All Data Rules Complied
B80: 100-year | C80: $/Event | D80: 0 | E80: 0 | F80: 0 | I80: All Data Rules Complied
B81: Baseline cost of relocation per household
B82: 5-year | C82: $/Event | D82: 0 | E82: =D82 -> 0 | F82: =D82 -> 0 | I82: =IF(F82<E82, "Please make sure that the Max value is higher than the Min value", IF(F82<D82, "Please make sure that the Max value is higher than the Average value",IF(E82>D82, "Make sure that the Min value is lower than the Average value","All Data Rules Complied"))) -> All Data Rules Complied
B83: 10-year | C83: $/Event | D83: 0 | E83: =D83 -> 0 | F83: =D83 -> 0 | I83: All Data Rules Complied
B84: 25-year | C84: $/Event | D84: 0 | E84: 0 | F84: 0 | I84: All Data Rules Complied
B85: 50-year | C85: $/Event | D85: 0 | E85: 0 | F85: 0 | I85: All Data Rules Complied
B86: 100-year | C86: $/Event | D86: 0 | E86: 0 | F86: 0 | I86: All Data Rules Complied
B87: Baseline number of households affected by flood risks and events
B88: 5-year | C88: # | D88: 0 | E88: =D88 -> 0 | F88: =D88 -> 0 | I88: =IF(F88<E88, "Please make sure that the Max value is higher than the Min value", IF(F88<D88, "Please make sure that the Max value is higher than the Average value",IF(E88>D88, "Make sure that the Min value is lower than the Average value","All Data Rules Complied"))) -> All Data Rules Complied
B89: 10-year | C89: # | D89: 0 | E89: =D89 -> 0 | F89: =D89 -> 0 | I89: All Data Rules Complied
B90: 25-year | C90: # | D90: 0 | E90: 0 | F90: 0 | I90: All Data Rules Complied
B91: 50-year | C91: # | D91: 0 | E91: 0 | F91: 0 | I91: All Data Rules Complied
B92: 100-year | C92: # | D92: 0 | E92: 0 | F92: 0 | I92: All Data Rules Complied
B93: Baseline cost of emergency services
B94: 5-year | C94: $/Event | D94: 0 | E94: =D94 -> 0 | F94: =D94 -> 0 | I94: =IF(F94<E94, "Please make sure that the Max value is higher than the Min value", IF(F94<D94, "Please make sure that the Max value is higher than the Average value",IF(E94>D94, "Make sure that the Min value is lower than the Average value","All Data Rules Complied"))) -> All Data Rules Complied
B95: 10-year | C95: $/Event | D95: 0 | E95: =D95 -> 0 | F95: =D95 -> 0 | I95: All Data Rules Complied
B96: 25-year | C96: $/Event | D96: 0 | E96: 0 | F96: 0 | I96: All Data Rules Complied
B97: 50-year | C97: $/Event | D97: 0 | E97: 0 | F97: 0 | I97: All Data Rules Complied
B98: 100-year | C98: $/Event | D98: 0 | E98: 0 | F98: 0 | I98: All Data Rules Complied
B100: Market value of properties surrounding the project site | C100: $/m2 | D100: 0 | E100: =D100 -> 0 | F100: =D100 -> 0 | I100: =IF(F100<E100, "Please make sure that the Max value is higher than the Min value", IF(F100<D100, "Please make sure that the Max value is higher than the Average value",IF(E100>D100, "Make sure that the Min value is lower than the Average value","All Data Rules Complied"))) -> All Data Rules Complied

Sheet Recreation, amenity
B1: Title: Recreation Inputs
B2: Notes: The input sheet is intended to capture the benefits of increased recreational amenities available to the local community. The user may input data that reflects an increase in number of user or number of days when amenities are available or both. This is monetized using a market price equivalent or willingness to pay per amenity per user.
B4: Legend: | C4: Required inputs
C5: Optional inputs
C6: Required List Selection
C7: Defaults not available
B9: Variable | C9: Unit | D9: Value (Average) | E9: Value (Min) | F9: Value (Max) | G9: Value (Default - Autocase) | H9: Autocase comments
B10: Do you have project-specific inputs for recreation | C10: List | D10: =General!D33 -> No
B11: Number of sport fishing visitors | C11: # of people per year | D11: 0 | E11: =D11 -> 0 | F11: =D11 -> 0 | H11: =IF(F11<E11, "Please make sure that the Max value is higher than the Min value", IF(F11<D11, "Please make sure that the Max value is higher than the Average value",IF(E11>D11, "Make sure that the Min value is lower than the Average value","All Data Rules Complied"))) -> All Data Rules Complied
B12: Number of reef-related activities like snorkling visitors | C12: # of people per year | D12: 0 | E12: =D12 -> 0 | F12: =D12 -> 0 | H12: =IF(F12<E12, "Please make sure that the Max value is higher than the Min value", IF(F12<D12, "Please make sure that the Max value is higher than the Average value",IF(E12>D12, "Make sure that the Min value is lower than the Average value","All Data Rules Complied"))) -> All Data Rules Complied
B13: Number of general beach recreation visitors | C13: # of people per year | D13: 0 | E13: =D13 -> 0 | F13: =D13 -> 0 | H13: =IF(F13<E13, "Please make sure that the Max value is higher than the Min value", IF(F13<D13, "Please make sure that the Max value is higher than the Average value",IF(E13>D13, "Make sure that the Min value is lower than the Average value","All Data Rules Complied"))) -> All Data Rules Complied
B14: Range of increase in useability for recreational purposes (this may be a % based on number of days, people, number of activities etc.)
B15: Number of users per day increase (sport fishing) | C15: % | D15: 0 | E15: =D15 -> 0 | F15: =D15 -> 0 | H15: =IF(F15<E15, "Please make sure that the Max value is higher than the Min value", IF(F15<D15, "Please make sure that the Max value is higher than the Average value",IF(E15>D15, "Make sure that the Min value is lower than the Average value","All Data Rules Complied"))) -> All Data Rules Complied
B16: Number of users per day increase (reef-related activities) | C16: % | D16: 0 | E16: =D16 -> 0 | F16: =D16 -> 0 | H16: =IF(F16<E16, "Please make sure that the Max value is higher than the Min value", IF(F16<D16, "Please make sure that the Max value is higher than the Average value",IF(E16>D16, "Make sure that the Min value is lower than the Average value","All Data Rules Complied"))) -> All Data Rules Complied
B17: Number of users per day increase (beach recreation) | C17: % | D17: 0 | E17: =D17 -> 0 | F17: =D17 -> 0 | H17: =IF(F17<E17, "Please make sure that the Max value is higher than the Min value", IF(F17<D17, "Please make sure that the Max value is higher than the Average value",IF(E17>D17, "Make sure that the Min value is lower than the Average value","All Data Rules Complied"))) -> All Data Rules Complied
B18: Please toggle the activities provided by your project
B19: Sport fishing | C19: List | D19: No
B20: General beach recreation | C20: List | D20: No
B21: Reef-related activities like snorkling | C21: List | D21: No
B22: Travel cost per user
B23: Sport fishing | C23: $ per person | D23: =G23 -> 2318.306426 | E23: =D23 -> 2318.306426 | F23: =D23 -> 2318.306426 | G23: ='Rec values'!D9 -> 2318.306426 | H23: =IF(F23<E23, "Please make sure that the Max value is higher than the Min value", IF(F23<D23, "Please make sure that the Max value is higher than the Average value",IF(E23>D23, "Make sure that the Min value is lower than the Average value","All Data Rules Complied"))) -> All Data Rules Complied
B24: Reef-related activities like snorkling | C24: $ per person | D24: =G24 -> 722.1858987 | E24: =D24 -> 722.1858987 | F24: =D24 -> 722.1858987 | G24: ='Rec values'!D11 -> 722.1858987 | H24: =IF(F24<E24, "Please make sure that the Max value is higher than the Min value", IF(F24<D24, "Please make sure that the Max value is higher than the Average value",IF(E24>D24, "Make sure that the Min value is lower than the Average value","All Data Rules Complied"))) -> All Data Rules Complied
B25: General beach recreation | C25: $ per visit | D25: =G25 -> 705.9017433 | E25: =D25 -> 705.9017433 | F25: =D25 -> 705.9017433 | G25: ='Rec values'!D10 -> 705.9017433 | H25: =IF(F25<E25, "Please make sure that the Max value is higher than the Min value", IF(F25<D25, "Please make sure that the Max value is higher than the Average value",IF(E25>D25, "Make sure that the Min value is lower than the Average value","All Data Rules Complied"))) -> All Data Rules Complied

Sheet New Dashboard
A2: Green-Gray Cost Benefit Analysis:
A4: Alternative Design: Green-Gray Infrastructure
A5: Project life cycle of 20 years with discount rate of 3%
AH16: \ | BI16: Row Labels | BJ16: Sum of Average | BK16: Sum of Min | BL16: Sum of Max | BN16: Row Labels | BO16: Sum of Average | BP16: Sum of Min | BQ16: Sum of Max
BI17: Carbon Sequestration | BJ17: 0 | BK17: 0 | BL17: 0 | BN17: Coral Reefs | BO17: 0 | BP17: 0 | BQ17: 0
BI18: Coastal Erosion Mitigation | BJ18: 0 | BK18: 0 | BL18: 0 | BN18: Earthen Levees | BO18: 0 | BP18: 0 | BQ18: 0
BI19: Ecosystem Services | BJ19: 0 | BK19: 0 | BL19: 0 | BN19: Mangroves | BO19: 0 | BP19: 0 | BQ19: 0
BI20: Embodied Carbon | BJ20: 0 | BK20: 0 | BL20: 0 | BN20: Mudflats | BO20: 0 | BP20: 0 | BQ20: 0
BI21: Flood Risk Mitigation | BJ21: 0 | BK21: 0 | BL21: 0 | BN21: Rock Breakwater | BO21: 0 | BP21: 0 | BQ21: 0
BI22: Recreation | BJ22: 0 | BK22: 0 | BL22: 0 | BN22: Salt Marsh | BO22: 0 | BP22: 0 | BQ22: 0
BI23: Reduced Water Intrusion | BJ23: 0 | BK23: 0 | BL23: 0 | BN23: Sand Dunes | BO23: 0 | BP23: 0 | BQ23: 0
BI24: Fisheries (Habitat) | BJ24: 0 | BK24: 0 | BL24: 0 | BN24: Sea Walls | BO24: 0 | BP24: 0 | BQ24: 0
BI25: Fisheries (Subsistence) | BJ25: 0 | BK25: 0 | BL25: 0 | BN25: Seagrass | BO25: 0 | BP25: 0 | BQ25: 0
BI26: Food & Raw Materials | BJ26: 0 | BK26: 0 | BL26: 0 | BN26: Triple Bottom Line Total Net Present Value | BO26: 0 | BP26: 0 | BQ26: 0
BI27: Triple Bottom Line Total Net Present Value | BJ27: 0 | BK27: 0 | BL27: 0
BS30: Row Labels | BT30: Sum of Average | BV30: Row Labels | BW30: Sum of Average
C31: Triple Bottom Line Cost Benefit Analysis | BS31: Carbon Sequestration | BT31: 0 | BV31: Coral Reefs | BW31: 0
C32: Summary Results | BS32: Coastal Erosion Mitigation | BT32: 0 | BV32: Earthen Levees | BW32: 0
G33: Expected | H33: Min | I33: Max | BS33: Ecosystem Services | BT33: 0 | BV33: Mangroves | BW33: 0
C34: Financial | G34: ='Aggregated Results_Tables'!D3 -> 0 | H34: ='Aggregated Results_Tables'!E3 -> 0 | I34: ='Aggregated Results_Tables'!F3 -> 0 | BS34: Embodied Carbon | BT34: 0 | BV34: Mudflats | BW34: 0
C35: Environmental & Social | G35: ='Aggregated Results_Tables'!D4 -> 0 | H35: ='Aggregated Results_Tables'!E4 -> 0 | I35: ='Aggregated Results_Tables'!F4 -> 0 | BS35: Flood Risk Mitigation | BT35: 0 | BV35: Rock Breakwater | BW35: 0
C36: Total Net Present Value | G36: ='Aggregated Results_Tables'!D3+'Aggregated Results_Tables'!D4 -> 0 | H36: ='Aggregated Results_Tables'!E3+'Aggregated Results_Tables'!E4 -> 0 | I36: ='Aggregated Results_Tables'!F3+'Aggregated Results_Tables'!F4 -> 0 | BS36: Recreation | BT36: 0 | BV36: Salt Marsh | BW36: 0
C37: Benefit Cost Ratio | G37: ='Aggregated Results_Tables'!AF5 -> 0 | H37: ='Aggregated Results_Tables'!AG5 -> 0 | I37: ='Aggregated Results_Tables'!AH5 -> 0 | BS37: Reduced Water Intrusion | BT37: 0 | BV37: Sand Dunes | BW37: 0
BS38: Fisheries (Habitat) | BT38: 0 | BV38: Sea Walls | BW38: 0
BS39: Fisheries (Subsistence) | BT39: 0 | BV39: Seagrass | BW39: 0
C40: Triple Bottom Line Cost Benefit Analysis | BS40: Food & Raw Materials | BT40: 0 | BV40: Grand Total | BW40: 0
C41: Summary Results | BS41: Grand Total | BT41: 0
G42: Expected | H42: Min | I42: Max
C43: ='Aggregated Results_Tables'!C7 -> Upfront Capital Costs | G43: ='Aggregated Results_Tables'!D7 -> 0 | H43: ='Aggregated Results_Tables'!E7 -> 0 | I43: ='Aggregated Results_Tables'!F7 -> 0
C44: ='Aggregated Results_Tables'!C8 -> Maintenance Costs | G44: ='Aggregated Results_Tables'!D8 -> 0 | H44: ='Aggregated Results_Tables'!E8 -> 0 | I44: ='Aggregated Results_Tables'!F8 -> 0
C45: ='Aggregated Results_Tables'!C9 -> Other Project Costs | G45: ='Aggregated Results_Tables'!D9 -> 0 | H45: ='Aggregated Results_Tables'!E9 -> 0 | I45: ='Aggregated Results_Tables'!F9 -> 0
C46: ='Aggregated Results_Tables'!C10 -> Replacement Costs | G46: ='Aggregated Results_Tables'!D10 -> 0 | H46: ='Aggregated Results_Tables'!E10 -> 0 | I46: ='Aggregated Results_Tables'!F10 -> 0
C47: ='Aggregated Results_Tables'!C11 -> Disposal Costs | G47: ='Aggregated Results_Tables'!D11 -> 0 | H47: ='Aggregated Results_Tables'!E11 -> 0 | I47: ='Aggregated Results_Tables'!F11 -> 0
C48: ='Aggregated Results_Tables'!C12 -> Salvage Value | G48: ='Aggregated Results_Tables'!D12 -> 0 | H48: ='Aggregated Results_Tables'!E12 -> 0 | I48: ='Aggregated Results_Tables'!F12 -> 0
C49: ='Aggregated Results_Tables'!C13 -> Residual Value | G49: ='Aggregated Results_Tables'!D13 -> 0 | H49: ='Aggregated Results_Tables'!E13 -> 0 | I49: ='Aggregated Results_Tables'!F13 -> 0
C50: ='Aggregated Results_Tables'!C14 -> Food & Raw Materials | G50: ='Aggregated Results_Tables'!D14 -> 0 | H50: ='Aggregated Results_Tables'!E14 -> 0 | I50: ='Aggregated Results_Tables'!F14 -> 0
C51: ='Aggregated Results_Tables'!C15 -> Ecosystem Services | G51: ='Aggregated Results_Tables'!D15 -> 0 | H51: ='Aggregated Results_Tables'!E15 -> 0 | I51: ='Aggregated Results_Tables'!F15 -> 0
C52: ='Aggregated Results_Tables'!C16 -> Embodied Carbon | G52: ='Aggregated Results_Tables'!D16 -> 0 | H52: ='Aggregated Results_Tables'!E16 -> 0 | I52: ='Aggregated Results_Tables'!F16 -> 0
C53: ='Aggregated Results_Tables'!C17 -> Carbon Sequestration | G53: ='Aggregated Results_Tables'!D17 -> 0 | H53: ='Aggregated Results_Tables'!E17 -> 0 | I53: ='Aggregated Results_Tables'!F17 -> 0
C54: ='Aggregated Results_Tables'!C18 -> Flood Risk Mitigation | G54: ='Aggregated Results_Tables'!D18 -> 0 | H54: ='Aggregated Results_Tables'!E18 -> 0 | I54: ='Aggregated Results_Tables'!F18 -> 0
C55: ='Aggregated Results_Tables'!C19 -> Fisheries (Habitat) | G55: ='Aggregated Results_Tables'!D19 -> 0 | H55: ='Aggregated Results_Tables'!E19 -> 0 | I55: ='Aggregated Results_Tables'!F19 -> 0
C56: ='Aggregated Results_Tables'!C20 -> Fisheries (Subsistence) | G56: ='Aggregated Results_Tables'!D20 -> 0 | H56: ='Aggregated Results_Tables'!E20 -> 0 | I56: ='Aggregated Results_Tables'!F20 -> 0
C57: ='Aggregated Results_Tables'!C21 -> Reduced Water Intrusion | G57: ='Aggregated Results_Tables'!D21 -> 0 | H57: ='Aggregated Results_Tables'!E21 -> 0 | I57: ='Aggregated Results_Tables'!F21 -> 0
C58: ='Aggregated Results_Tables'!C22 -> Coastal Erosion Mitigation | G58: ='Aggregated Results_Tables'!D22 -> 0 | H58: ='Aggregated Results_Tables'!E22 -> 0 | I58: ='Aggregated Results_Tables'!F22 -> 0
C59: ='Aggregated Results_Tables'!C23 -> Recreation | G59: ='Aggregated Results_Tables'!D23 -> 0 | H59: ='Aggregated Results_Tables'!E23 -> 0 | I59: ='Aggregated Results_Tables'!F23 -> 0
C60: Total Net Present Value | G60: =SUM(G43:G59) -> 0 | H60: =SUM(H43:H59) -> 0 | I60: =SUM(I43:I59) -> 0
C61: Benefit Cost Ratio | G61: ='Aggregated Results_Tables'!AF5 -> 0 | H61: ='Aggregated Results_Tables'!AG5 -> 0 | I61: ='Aggregated Results_Tables'!AH5 -> 0
C79: Triple Bottom Line Cost Benefit Analysis
C80: Summary Results
G81: Expected | H81: Min | I81: Max
C82: =IF(OR('New Dashboard'!BI17=0,'New Dashboard'!BI17 = "Triple Bottom Line Total Net Present Value")," ", IFERROR('New Dashboard'!BI17," ")) -> Carbon Sequestration | G82: =IFERROR(GETPIVOTDATA("Sum of Average",'New Dashboard'!$BI$16,"Key Metrics",'New Dashboard'!C82)," ") -> 0 | H82: =IFERROR(GETPIVOTDATA("Sum of Min",'New Dashboard'!$BI$16,"Key Metrics",'New Dashboard'!C82)," ") -> 0 | I82: =IFERROR(GETPIVOTDATA("Sum of Max",'New Dashboard'!$BI$16,"Key Metrics",'New Dashboard'!C82)," ") -> 0
C83: =IF(OR('New Dashboard'!BI18=0,'New Dashboard'!BI18 = "Triple Bottom Line Total Net Present Value")," ", IFERROR('New Dashboard'!BI18," ")) -> Coastal Erosion Mitigation | G83: =IFERROR(GETPIVOTDATA("Sum of Average",'New Dashboard'!$BI$16,"Key Metrics",'New Dashboard'!C83)," ") -> 0 | H83: =IFERROR(GETPIVOTDATA("Sum of Min",'New Dashboard'!$BI$16,"Key Metrics",'New Dashboard'!C83)," ") -> 0 | I83: =IFERROR(GETPIVOTDATA("Sum of Max",'New Dashboard'!$BI$16,"Key Metrics",'New Dashboard'!C83)," ") -> 0
C84: =IF(OR('New Dashboard'!BI19=0,'New Dashboard'!BI19 = "Triple Bottom Line Total Net Present Value")," ", IFERROR('New Dashboard'!BI19," ")) -> Ecosystem Services | G84: =IFERROR(GETPIVOTDATA("Sum of Average",'New Dashboard'!$BI$16,"Key Metrics",'New Dashboard'!C84)," ") -> 0 | H84: =IFERROR(GETPIVOTDATA("Sum of Min",'New Dashboard'!$BI$16,"Key Metrics",'New Dashboard'!C84)," ") -> 0 | I84: =IFERROR(GETPIVOTDATA("Sum of Max",'New Dashboard'!$BI$16,"Key Metrics",'New Dashboard'!C84)," ") -> 0
C85: =IF(OR('New Dashboard'!BI20=0,'New Dashboard'!BI20 = "Triple Bottom Line Total Net Present Value")," ", IFERROR('New Dashboard'!BI20," ")) -> Embodied Carbon | G85: =IFERROR(GETPIVOTDATA("Sum of Average",'New Dashboard'!$BI$16,"Key Metrics",'New Dashboard'!C85)," ") -> 0 | H85: =IFERROR(GETPIVOTDATA("Sum of Min",'New Dashboard'!$BI$16,"Key Metrics",'New Dashboard'!C85)," ") -> 0 | I85: =IFERROR(GETPIVOTDATA("Sum of Max",'New Dashboard'!$BI$16,"Key Metrics",'New Dashboard'!C85)," ") -> 0
C86: =IF(OR('New Dashboard'!BI21=0,'New Dashboard'!BI21 = "Triple Bottom Line Total Net Present Value")," ", IFERROR('New Dashboard'!BI21," ")) -> Flood Risk Mitigation | G86: =IFERROR(GETPIVOTDATA("Sum of Average",'New Dashboard'!$BI$16,"Key Metrics",'New Dashboard'!C86)," ") -> 0 | H86: =IFERROR(GETPIVOTDATA("Sum of Min",'New Dashboard'!$BI$16,"Key Metrics",'New Dashboard'!C86)," ") -> 0 | I86: =IFERROR(GETPIVOTDATA("Sum of Max",'New Dashboard'!$BI$16,"Key Metrics",'New Dashboard'!C86)," ") -> 0
C87: =IF(OR('New Dashboard'!BI22=0,'New Dashboard'!BI22 = "Triple Bottom Line Total Net Present Value")," ", IFERROR('New Dashboard'!BI22," ")) -> Recreation | G87: =IFERROR(GETPIVOTDATA("Sum of Average",'New Dashboard'!$BI$16,"Key Metrics",'New Dashboard'!C87)," ") -> 0 | H87: =IFERROR(GETPIVOTDATA("Sum of Min",'New Dashboard'!$BI$16,"Key Metrics",'New Dashboard'!C87)," ") -> 0 | I87: =IFERROR(GETPIVOTDATA("Sum of Max",'New Dashboard'!$BI$16,"Key Metrics",'New Dashboard'!C87)," ") -> 0
C88: =IF(OR('New Dashboard'!BI23=0,'New Dashboard'!BI23 = "Triple Bottom Line Total Net Present Value")," ", IFERROR('New Dashboard'!BI23," ")) -> Reduced Water Intrusion | G88: =IFERROR(GETPIVOTDATA("Sum of Average",'New Dashboard'!$BI$16,"Key Metrics",'New Dashboard'!C88)," ") -> 0 | H88: =IFERROR(GETPIVOTDATA("Sum of Min",'New Dashboard'!$BI$16,"Key Metrics",'New Dashboard'!C88)," ") -> 0 | I88: =IFERROR(GETPIVOTDATA("Sum of Max",'New Dashboard'!$BI$16,"Key Metrics",'New Dashboard'!C88)," ") -> 0
C89: =IF(OR('New Dashboard'!BI24=0,'New Dashboard'!BI24 = "Triple Bottom Line Total Net Present Value")," ", IFERROR('New Dashboard'!BI24," ")) -> Fisheries (Habitat) | G89: =IFERROR(GETPIVOTDATA("Sum of Average",'New Dashboard'!$BI$16,"Key Metrics",'New Dashboard'!C89)," ") -> 0 | H89: =IFERROR(GETPIVOTDATA("Sum of Min",'New Dashboard'!$BI$16,"Key Metrics",'New Dashboard'!C89)," ") -> 0 | I89: =IFERROR(GETPIVOTDATA("Sum of Max",'New Dashboard'!$BI$16,"Key Metrics",'New Dashboard'!C89)," ") -> 0
C90: =IF(OR('New Dashboard'!BI25=0,'New Dashboard'!BI25 = "Triple Bottom Line Total Net Present Value")," ", IFERROR('New Dashboard'!BI25," ")) -> Fisheries (Subsistence) | G90: =IFERROR(GETPIVOTDATA("Sum of Average",'New Dashboard'!$BI$16,"Key Metrics",'New Dashboard'!C90)," ") -> 0 | H90: =IFERROR(GETPIVOTDATA("Sum of Min",'New Dashboard'!$BI$16,"Key Metrics",'New Dashboard'!C90)," ") -> 0 | I90: =IFERROR(GETPIVOTDATA("Sum of Max",'New Dashboard'!$BI$16,"Key Metrics",'New Dashboard'!C90)," ") -> 0
C91: =IF(OR('New Dashboard'!BI26=0,'New Dashboard'!BI26 = "Triple Bottom Line Total Net Present Value")," ", IFERROR('New Dashboard'!BI26," ")) -> Food & Raw Materials | G91: =IFERROR(GETPIVOTDATA("Sum of Average",'New Dashboard'!$BI$16,"Key Metrics",'New Dashboard'!C91)," ") -> 0 | H91: =IFERROR(GETPIVOTDATA("Sum of Min",'New Dashboard'!$BI$16,"Key Metrics",'New Dashboard'!C91)," ") -> 0 | I91: =IFERROR(GETPIVOTDATA("Sum of Max",'New Dashboard'!$BI$16,"Key Metrics",'New Dashboard'!C91)," ") -> 0
C92: =IF(OR('New Dashboard'!BI27=0,'New Dashboard'!BI27 = "Triple Bottom Line Total Net Present Value")," ", IFERROR('New Dashboard'!BI27," ")) ->  | G92: =IFERROR(GETPIVOTDATA("Sum of Average",'New Dashboard'!$BI$16,"Key Metrics",'New Dashboard'!C92)," ") ->  | H92: =IFERROR(GETPIVOTDATA("Sum of Min",'New Dashboard'!$BI$16,"Key Metrics",'New Dashboard'!C92)," ") ->  | I92: =IFERROR(GETPIVOTDATA("Sum of Max",'New Dashboard'!$BI$16,"Key Metrics",'New Dashboard'!C92)," ") -> 
C93: =IF(OR('New Dashboard'!BI28=0,'New Dashboard'!BI28 = "Triple Bottom Line Total Net Present Value")," ", IFERROR('New Dashboard'!BI28," ")) ->  | G93: =IFERROR(GETPIVOTDATA("Sum of Average",'New Dashboard'!$BI$16,"Key Metrics",'New Dashboard'!C93)," ") ->  | H93: =IFERROR(GETPIVOTDATA("Sum of Min",'New Dashboard'!$BI$16,"Key Metrics",'New Dashboard'!C93)," ") ->  | I93: =IFERROR(GETPIVOTDATA("Sum of Max",'New Dashboard'!$BI$16,"Key Metrics",'New Dashboard'!C93)," ") -> 
C94: =IF(OR('New Dashboard'!BI29=0,'New Dashboard'!BI29 = "Triple Bottom Line Total Net Present Value")," ", IFERROR('New Dashboard'!BI29," ")) ->  | G94: =IFERROR(GETPIVOTDATA("Sum of Average",'New Dashboard'!$BI$16,"Key Metrics",'New Dashboard'!C94)," ") ->  | H94: =IFERROR(GETPIVOTDATA("Sum of Min",'New Dashboard'!$BI$16,"Key Metrics",'New Dashboard'!C94)," ") ->  | I94: =IFERROR(GETPIVOTDATA("Sum of Max",'New Dashboard'!$BI$16,"Key Metrics",'New Dashboard'!C94)," ") -> 
C95: =IF(OR('New Dashboard'!BI30=0,'New Dashboard'!BI30 = "Triple Bottom Line Total Net Present Value")," ", IFERROR('New Dashboard'!BI30," ")) ->  | G95: =IFERROR(GETPIVOTDATA("Sum of Average",'New Dashboard'!$BI$16,"Key Metrics",'New Dashboard'!C95)," ") ->  | H95: =IFERROR(GETPIVOTDATA("Sum of Min",'New Dashboard'!$BI$16,"Key Metrics",'New Dashboard'!C95)," ") ->  | I95: =IFERROR(GETPIVOTDATA("Sum of Max",'New Dashboard'!$BI$16,"Key Metrics",'New Dashboard'!C95)," ") -> 
C96: =IF(OR('New Dashboard'!BI31=0,'New Dashboard'!BI31 = "Triple Bottom Line Total Net Present Value")," ", IFERROR('New Dashboard'!BI31," ")) ->  | G96: =IFERROR(GETPIVOTDATA("Sum of Average",'New Dashboard'!$BI$16,"Key Metrics",'New Dashboard'!C96)," ") ->  | H96: =IFERROR(GETPIVOTDATA("Sum of Min",'New Dashboard'!$BI$16,"Key Metrics",'New Dashboard'!C96)," ") ->  | I96: =IFERROR(GETPIVOTDATA("Sum of Max",'New Dashboard'!$BI$16,"Key Metrics",'New Dashboard'!C96)," ") -> 
C97: =IF(OR('New Dashboard'!BI32=0,'New Dashboard'!BI32 = "Triple Bottom Line Total Net Present Value")," ", IFERROR('New Dashboard'!BI32," ")) ->  | G97: =IFERROR(GETPIVOTDATA("Sum of Average",'New Dashboard'!$BI$16,"Key Metrics",'New Dashboard'!C97)," ") ->  | H97: =IFERROR(GETPIVOTDATA("Sum of Min",'New Dashboard'!$BI$16,"Key Metrics",'New Dashboard'!C97)," ") ->  | I97: =IFERROR(GETPIVOTDATA("Sum of Max",'New Dashboard'!$BI$16,"Key Metrics",'New Dashboard'!C97)," ") -> 
C98: =IF(OR('New Dashboard'!BI33=0,'New Dashboard'!BI33 = "Triple Bottom Line Total Net Present Value")," ", IFERROR('New Dashboard'!BI33," ")) ->  | G98: =IFERROR(GETPIVOTDATA("Sum of Average",'New Dashboard'!$BI$16,"Key Metrics",'New Dashboard'!C98)," ") ->  | H98: =IFERROR(GETPIVOTDATA("Sum of Min",'New Dashboard'!$BI$16,"Key Metrics",'New Dashboard'!C98)," ") ->  | I98: =IFERROR(GETPIVOTDATA("Sum of Max",'New Dashboard'!$BI$16,"Key Metrics",'New Dashboard'!C98)," ") -> 
C99: =IF(OR('New Dashboard'!BI34=0,'New Dashboard'!BI34 = "Triple Bottom Line Total Net Present Value")," ", IFERROR('New Dashboard'!BI34," ")) ->  | G99: =IFERROR(GETPIVOTDATA("Sum of Average",'New Dashboard'!$BI$16,"Key Metrics",'New Dashboard'!C99)," ") ->  | H99: =IFERROR(GETPIVOTDATA("Sum of Min",'New Dashboard'!$BI$16,"Key Metrics",'New Dashboard'!C99)," ") ->  | I99: =IFERROR(GETPIVOTDATA("Sum of Max",'New Dashboard'!$BI$16,"Key Metrics",'New Dashboard'!C99)," ") -> 
C100: =IF(OR('New Dashboard'!BI35=0,'New Dashboard'!BI35 = "Triple Bottom Line Total Net Present Value")," ", IFERROR('New Dashboard'!BI35," ")) ->  | G100: =IFERROR(GETPIVOTDATA("Sum of Average",'New Dashboard'!$BI$16,"Key Metrics",'New Dashboard'!C100)," ") ->  | H100: =IFERROR(GETPIVOTDATA("Sum of Min",'New Dashboard'!$BI$16,"Key Metrics",'New Dashboard'!C100)," ") ->  | I100: =IFERROR(GETPIVOTDATA("Sum of Max",'New Dashboard'!$BI$16,"Key Metrics",'New Dashboard'!C100)," ") -> 
C101: =IF(OR('New Dashboard'!BI36=0,'New Dashboard'!BI36 = "Triple Bottom Line Total Net Present Value")," ", IFERROR('New Dashboard'!BI36," ")) ->  | G101: =IFERROR(GETPIVOTDATA("Sum of Average",'New Dashboard'!$BI$16,"Key Metrics",'New Dashboard'!C101)," ") ->  | H101: =IFERROR(GETPIVOTDATA("Sum of Min",'New Dashboard'!$BI$16,"Key Metrics",'New Dashboard'!C101)," ") ->  | I101: =IFERROR(GETPIVOTDATA("Sum of Max",'New Dashboard'!$BI$16,"Key Metrics",'New Dashboard'!C101)," ") -> 
C102: =IF(OR('New Dashboard'!BI37=0,'New Dashboard'!BI37 = "Triple Bottom Line Total Net Present Value")," ", IFERROR('New Dashboard'!BI37," ")) ->  | G102: =IFERROR(GETPIVOTDATA("Sum of Average",'New Dashboard'!$BI$16,"Key Metrics",'New Dashboard'!C102)," ") ->  | H102: =IFERROR(GETPIVOTDATA("Sum of Min",'New Dashboard'!$BI$16,"Key Metrics",'New Dashboard'!C102)," ") ->  | I102: =IFERROR(GETPIVOTDATA("Sum of Max",'New Dashboard'!$BI$16,"Key Metrics",'New Dashboard'!C102)," ") -> 
C103: =IF(OR('New Dashboard'!BI38=0,'New Dashboard'!BI38 = "Triple Bottom Line Total Net Present Value")," ", IFERROR('New Dashboard'!BI38," ")) ->  | G103: =IFERROR(GETPIVOTDATA("Sum of Average",'New Dashboard'!$BI$16,"Key Metrics",'New Dashboard'!C103)," ") ->  | H103: =IFERROR(GETPIVOTDATA("Sum of Min",'New Dashboard'!$BI$16,"Key Metrics",'New Dashboard'!C103)," ") ->  | I103: =IFERROR(GETPIVOTDATA("Sum of Max",'New Dashboard'!$BI$16,"Key Metrics",'New Dashboard'!C103)," ") -> 
C104: =IF(OR('New Dashboard'!BI39=0,'New Dashboard'!BI39 = "Triple Bottom Line Total Net Present Value")," ", IFERROR('New Dashboard'!BI39," ")) ->  | G104: =IFERROR(GETPIVOTDATA("Sum of Average",'New Dashboard'!$BI$16,"Key Metrics",'New Dashboard'!C104)," ") ->  | H104: =IFERROR(GETPIVOTDATA("Sum of Min",'New Dashboard'!$BI$16,"Key Metrics",'New Dashboard'!C104)," ") ->  | I104: =IFERROR(GETPIVOTDATA("Sum of Max",'New Dashboard'!$BI$16,"Key Metrics",'New Dashboard'!C104)," ") -> 
C105: Total Net Present Value | G105: =SUM(G82:G104) -> 0 | H105: =SUM(H82:H104) -> 0 | I105: =SUM(I82:I104) -> 0
C132: Triple Bottom Line Cost Benefit Analysis
C133: Summary Results
G134: Expected | H134: Min | I134: Max
C135: =IF(OR('New Dashboard'!BN17=0,'New Dashboard'!BN17 = "Triple Bottom Line Total Net Present Value")," ", IFERROR('New Dashboard'!BN17," ")) -> Coral Reefs | G135: =IFERROR(GETPIVOTDATA("Sum of Average",'New Dashboard'!$BN$16,"Key Metrics",'New Dashboard'!C135)," ") -> 0 | H135: =IFERROR(GETPIVOTDATA("Sum of Min",'New Dashboard'!$BN$16,"Key Metrics",'New Dashboard'!C135)," ") -> 0 | I135: =IFERROR(GETPIVOTDATA("Sum of Max",'New Dashboard'!$BN$16,"Key Metrics",'New Dashboard'!C135)," ") -> 0
C136: =IF(OR('New Dashboard'!BN18=0,'New Dashboard'!BN18 = "Triple Bottom Line Total Net Present Value")," ", IFERROR('New Dashboard'!BN18," ")) -> Earthen Levees | G136: =IFERROR(GETPIVOTDATA("Sum of Average",'New Dashboard'!$BN$16,"Key Metrics",'New Dashboard'!C136)," ") -> 0 | H136: =IFERROR(GETPIVOTDATA("Sum of Min",'New Dashboard'!$BN$16,"Key Metrics",'New Dashboard'!C136)," ") -> 0 | I136: =IFERROR(GETPIVOTDATA("Sum of Max",'New Dashboard'!$BN$16,"Key Metrics",'New Dashboard'!C136)," ") -> 0
C137: =IF(OR('New Dashboard'!BN19=0,'New Dashboard'!BN19 = "Triple Bottom Line Total Net Present Value")," ", IFERROR('New Dashboard'!BN19," ")) -> Mangroves | G137: =IFERROR(GETPIVOTDATA("Sum of Average",'New Dashboard'!$BN$16,"Key Metrics",'New Dashboard'!C137)," ") -> 0 | H137: =IFERROR(GETPIVOTDATA("Sum of Min",'New Dashboard'!$BN$16,"Key Metrics",'New Dashboard'!C137)," ") -> 0 | I137: =IFERROR(GETPIVOTDATA("Sum of Max",'New Dashboard'!$BN$16,"Key Metrics",'New Dashboard'!C137)," ") -> 0
C138: =IF(OR('New Dashboard'!BN20=0,'New Dashboard'!BN20 = "Triple Bottom Line Total Net Present Value")," ", IFERROR('New Dashboard'!BN20," ")) -> Mudflats | G138: =IFERROR(GETPIVOTDATA("Sum of Average",'New Dashboard'!$BN$16,"Key Metrics",'New Dashboard'!C138)," ") -> 0 | H138: =IFERROR(GETPIVOTDATA("Sum of Min",'New Dashboard'!$BN$16,"Key Metrics",'New Dashboard'!C138)," ") -> 0 | I138: =IFERROR(GETPIVOTDATA("Sum of Max",'New Dashboard'!$BN$16,"Key Metrics",'New Dashboard'!C138)," ") -> 0
C139: =IF(OR('New Dashboard'!BN21=0,'New Dashboard'!BN21 = "Triple Bottom Line Total Net Present Value")," ", IFERROR('New Dashboard'!BN21," ")) -> Rock Breakwater | G139: =IFERROR(GETPIVOTDATA("Sum of Average",'New Dashboard'!$BN$16,"Key Metrics",'New Dashboard'!C139)," ") -> 0 | H139: =IFERROR(GETPIVOTDATA("Sum of Min",'New Dashboard'!$BN$16,"Key Metrics",'New Dashboard'!C139)," ") -> 0 | I139: =IFERROR(GETPIVOTDATA("Sum of Max",'New Dashboard'!$BN$16,"Key Metrics",'New Dashboard'!C139)," ") -> 0
C140: =IF(OR('New Dashboard'!BN22=0,'New Dashboard'!BN22 = "Triple Bottom Line Total Net Present Value")," ", IFERROR('New Dashboard'!BN22," ")) -> Salt Marsh | G140: =IFERROR(GETPIVOTDATA("Sum of Average",'New Dashboard'!$BN$16,"Key Metrics",'New Dashboard'!C140)," ") -> 0 | H140: =IFERROR(GETPIVOTDATA("Sum of Min",'New Dashboard'!$BN$16,"Key Metrics",'New Dashboard'!C140)," ") -> 0 | I140: =IFERROR(GETPIVOTDATA("Sum of Max",'New Dashboard'!$BN$16,"Key Metrics",'New Dashboard'!C140)," ") -> 0
C141: =IF(OR('New Dashboard'!BN23=0,'New Dashboard'!BN23 = "Triple Bottom Line Total Net Present Value")," ", IFERROR('New Dashboard'!BN23," ")) -> Sand Dunes | G141: =IFERROR(GETPIVOTDATA("Sum of Average",'New Dashboard'!$BN$16,"Key Metrics",'New Dashboard'!C141)," ") -> 0 | H141: =IFERROR(GETPIVOTDATA("Sum of Min",'New Dashboard'!$BN$16,"Key Metrics",'New Dashboard'!C141)," ") -> 0 | I141: =IFERROR(GETPIVOTDATA("Sum of Max",'New Dashboard'!$BN$16,"Key Metrics",'New Dashboard'!C141)," ") -> 0
C142: =IF(OR('New Dashboard'!BN24=0,'New Dashboard'!BN24 = "Triple Bottom Line Total Net Present Value")," ", IFERROR('New Dashboard'!BN24," ")) -> Sea Walls | G142: =IFERROR(GETPIVOTDATA("Sum of Average",'New Dashboard'!$BN$16,"Key Metrics",'New Dashboard'!C142)," ") -> 0 | H142: =IFERROR(GETPIVOTDATA("Sum of Min",'New Dashboard'!$BN$16,"Key Metrics",'New Dashboard'!C142)," ") -> 0 | I142: =IFERROR(GETPIVOTDATA("Sum of Max",'New Dashboard'!$BN$16,"Key Metrics",'New Dashboard'!C142)," ") -> 0
C143: =IF(OR('New Dashboard'!BN25=0,'New Dashboard'!BN25 = "Triple Bottom Line Total Net Present Value")," ", IFERROR('New Dashboard'!BN25," ")) -> Seagrass | G143: =IFERROR(GETPIVOTDATA("Sum of Average",'New Dashboard'!$BN$16,"Key Metrics",'New Dashboard'!C143)," ") -> 0 | H143: =IFERROR(GETPIVOTDATA("Sum of Min",'New Dashboard'!$BN$16,"Key Metrics",'New Dashboard'!C143)," ") -> 0 | I143: =IFERROR(GETPIVOTDATA("Sum of Max",'New Dashboard'!$BN$16,"Key Metrics",'New Dashboard'!C143)," ") -> 0
C144: =IF(OR('New Dashboard'!BN26=0,'New Dashboard'!BN26 = "Triple Bottom Line Total Net Present Value")," ", IFERROR('New Dashboard'!BN26," ")) ->  | G144: =IFERROR(GETPIVOTDATA("Sum of Average",'New Dashboard'!$BN$16,"Key Metrics",'New Dashboard'!C144)," ") ->  | H144: =IFERROR(GETPIVOTDATA("Sum of Min",'New Dashboard'!$BN$16,"Key Metrics",'New Dashboard'!C144)," ") ->  | I144: =IFERROR(GETPIVOTDATA("Sum of Max",'New Dashboard'!$BN$16,"Key Metrics",'New Dashboard'!C144)," ") -> 
C145: =IF(OR('New Dashboard'!BN27=0,'New Dashboard'!BN27 = "Triple Bottom Line Total Net Present Value")," ", IFERROR('New Dashboard'!BN27," ")) ->  | G145: =IFERROR(GETPIVOTDATA("Sum of Average",'New Dashboard'!$BN$16,"Key Metrics",'New Dashboard'!C145)," ") ->  | H145: =IFERROR(GETPIVOTDATA("Sum of Min",'New Dashboard'!$BN$16,"Key Metrics",'New Dashboard'!C145)," ") ->  | I145: =IFERROR(GETPIVOTDATA("Sum of Max",'New Dashboard'!$BN$16,"Key Metrics",'New Dashboard'!C145)," ") -> 
C146: =IF(OR('New Dashboard'!BN28=0,'New Dashboard'!BN28 = "Triple Bottom Line Total Net Present Value")," ", IFERROR('New Dashboard'!BN28," ")) ->  | G146: =IFERROR(GETPIVOTDATA("Sum of Average",'New Dashboard'!$BN$16,"Key Metrics",'New Dashboard'!C146)," ") ->  | H146: =IFERROR(GETPIVOTDATA("Sum of Min",'New Dashboard'!$BN$16,"Key Metrics",'New Dashboard'!C146)," ") ->  | I146: =IFERROR(GETPIVOTDATA("Sum of Max",'New Dashboard'!$BN$16,"Key Metrics",'New Dashboard'!C146)," ") -> 
C147: =IF(OR('New Dashboard'!BN29=0,'New Dashboard'!BN29 = "Triple Bottom Line Total Net Present Value")," ", IFERROR('New Dashboard'!BN29," ")) ->  | G147: =IFERROR(GETPIVOTDATA("Sum of Average",'New Dashboard'!$BN$16,"Key Metrics",'New Dashboard'!C147)," ") ->  | H147: =IFERROR(GETPIVOTDATA("Sum of Min",'New Dashboard'!$BN$16,"Key Metrics",'New Dashboard'!C147)," ") ->  | I147: =IFERROR(GETPIVOTDATA("Sum of Max",'New Dashboard'!$BN$16,"Key Metrics",'New Dashboard'!C147)," ") -> 
C148: =IF(OR('New Dashboard'!BN30=0,'New Dashboard'!BN30 = "Triple Bottom Line Total Net Present Value")," ", IFERROR('New Dashboard'!BN30," ")) ->  | G148: =IFERROR(GETPIVOTDATA("Sum of Average",'New Dashboard'!$BN$16,"Key Metrics",'New Dashboard'!C148)," ") ->  | H148: =IFERROR(GETPIVOTDATA("Sum of Min",'New Dashboard'!$BN$16,"Key Metrics",'New Dashboard'!C148)," ") ->  | I148: =IFERROR(GETPIVOTDATA("Sum of Max",'New Dashboard'!$BN$16,"Key Metrics",'New Dashboard'!C148)," ") -> 
C149: =IF(OR('New Dashboard'!BN31=0,'New Dashboard'!BN31 = "Triple Bottom Line Total Net Present Value")," ", IFERROR('New Dashboard'!BN31," ")) ->  | G149: =IFERROR(GETPIVOTDATA("Sum of Average",'New Dashboard'!$BN$16,"Key Metrics",'New Dashboard'!C149)," ") ->  | H149: =IFERROR(GETPIVOTDATA("Sum of Min",'New Dashboard'!$BN$16,"Key Metrics",'New Dashboard'!C149)," ") ->  | I149: =IFERROR(GETPIVOTDATA("Sum of Max",'New Dashboard'!$BN$16,"Key Metrics",'New Dashboard'!C149)," ") -> 
C150: Total Net Present Value | G150: =SUM(G135:G149) -> 0 | H150: =SUM(H135:H149) -> 0 | I150: =SUM(I135:I149) -> 0

Sheet Dashboard Report
A1: ="Project: "&General!D11 -> Project: Isla Arena
A2: ="Project Summary: This project has been run in " & General!D13&", "&General!D12&" starting in year "& General!D19&" with a construction duration of "&General!D15&" months and a project lifecycle of "&General!D16&" years."&" The project cashflows, and impacts have been assessed using a discount rate of "&General!D20&". This report shows a summarised list of results and impacts run by this tool, as well as some key metrics." -> Project Summary: This project has been run in No, Mexico starting in year 2023 with a construction duration of months and a project lifecycle of years. The project cashflows, and impacts have been assessed using a discount rate of 0.03. This report shows a summarised list of results and impacts run by this tool, as well as some key metrics.
A33: ="Key takeaways: This project generates a total net benefit at "&VLOOKUP(General!$D$23,'Exchange rates'!$D$1:$F$7,3,FALSE)&" "&'Aggregated Results_Tables'!AF3&", with a benefit cost ratio estimated at "&IFERROR(ROUND('Aggregated Results_Tables'!AF5,0),0)&" which shows that for every "&VLOOKUP(General!$D$23,'Exchange rates'!$D$1:$F$7,3,FALSE)&" spent in capital costs and costs through the lifecycle of the project, the financial, social, and environmental net impacts generate "&VLOOKUP(General!$D$23,'Exchange rates'!$D$1:$F$7,3,FALSE)&" "&IFERROR(ROUND('Aggregated Results_Tables'!AF5,0),0)&" in net benefits." -> Key takeaways: This project generates a total net benefit at USD 0, with a benefit cost ratio estimated at 0 which shows that for every USD spent in capital costs and costs through the lifecycle of the project, the financial, social, and environmental net impacts generate USD 0 in net benefits.

Sheet Models ->
A1: *** this sheet is intentionally left blank

Sheet Carbon
I1: Monte Carlo Value | K1: Alpha | L1: Beta | M1: Distribution Parameter 1 | N1: Expected Value | P1: NPV
S2: Duration | T2: ='Scheduling Calcs'!C14 -> 0 | U2: ='Scheduling Calcs'!D14 -> 1 | V2: ='Scheduling Calcs'!E14 -> 2 | W2: ='Scheduling Calcs'!F14 -> 3 | X2: ='Scheduling Calcs'!G14 -> 4 | Y2: ='Scheduling Calcs'!H14 -> 5 | Z2: ='Scheduling Calcs'!I14 -> 6 | AA2: ='Scheduling Calcs'!J14 -> 7 | AB2: ='Scheduling Calcs'!K14 -> 8 | AC2: ='Scheduling Calcs'!L14 -> 9 | AD2: ='Scheduling Calcs'!M14 -> 10 | AE2: ='Scheduling Calcs'!N14 -> 11 | AF2: ='Scheduling Calcs'!O14 -> 12 | AG2: ='Scheduling Calcs'!P14 -> 13 | AH2: ='Scheduling Calcs'!Q14 -> 14 | AI2: ='Scheduling Calcs'!R14 -> 15 | AJ2: ='Scheduling Calcs'!S14 -> 16 | AK2: ='Scheduling Calcs'!T14 -> 17 | AL2: ='Scheduling Calcs'!U14 -> 18 | AM2: ='Scheduling Calcs'!V14 -> 19 | AN2: ='Scheduling Calcs'!W14 -> 20 | AO2: ='Scheduling Calcs'!X14 -> 21 | AP2: ='Scheduling Calcs'!Y14 -> 22 | AQ2: ='Scheduling Calcs'!Z14 -> 23 | AR2: ='Scheduling Calcs'!AA14 -> 24 | AS2: ='Scheduling Calcs'!AB14 -> 25 | AT2: ='Scheduling Calcs'!AC14 -> 26 | AU2: ='Scheduling Calcs'!AD14 -> 27 | AV2: ='Scheduling Calcs'!AE14 -> 28 | AW2: ='Scheduling Calcs'!AF14 -> 29 | AX2: ='Scheduling Calcs'!AG14 -> 30 | AY2: ='Scheduling Calcs'!AH14 -> 31 | AZ2: ='Scheduling Calcs'!AI14 -> 32 | BA2: ='Scheduling Calcs'!AJ14 -> 33 | BB2: ='Scheduling Calcs'!AK14 -> 34 | BC2: ='Scheduling Calcs'!AL14 -> 35 | BD2: ='Scheduling Calcs'!AM14 -> 36 | BE2: ='Scheduling Calcs'!AN14 -> 37 | BF2: ='Scheduling Calcs'!AO14 -> 38 | BG2: ='Scheduling Calcs'!AP14 -> 39 | BH2: ='Scheduling Calcs'!AQ14 -> 40 | BI2: ='Scheduling Calcs'!AR14 -> 41 | BJ2: ='Scheduling Calcs'!AS14 -> 42 | BK2: ='Scheduling Calcs'!AT14 -> 43 | BL2: ='Scheduling Calcs'!AU14 -> 44 | BM2: ='Scheduling Calcs'!AV14 -> 45 | BN2: ='Scheduling Calcs'!AW14 -> 46 | BO2: ='Scheduling Calcs'!AX14 -> 47 | BP2: ='Scheduling Calcs'!AY14 -> 48 | BQ2: ='Scheduling Calcs'!AZ14 -> 49 | BR2: ='Scheduling Calcs'!BA14 -> 50
B3: Variable | C3: Unit | D3: Value (Average) | E3: Value (Min) | F3: Value (Max) | G3: Value (Default) | I3: Expected Value | P3: Variable | Q3: NPV | S3: Year | T3: ='Scheduling Calcs'!C15 -> 1900 | U3: ='Scheduling Calcs'!D15 -> 1901 | V3: ='Scheduling Calcs'!E15 -> 1902 | W3: ='Scheduling Calcs'!F15 -> 1903 | X3: ='Scheduling Calcs'!G15 -> 1904 | Y3: ='Scheduling Calcs'!H15 -> 1905 | Z3: ='Scheduling Calcs'!I15 -> 1906 | AA3: ='Scheduling Calcs'!J15 -> 1907 | AB3: ='Scheduling Calcs'!K15 -> 1908 | AC3: ='Scheduling Calcs'!L15 -> 1909 | AD3: ='Scheduling Calcs'!M15 -> 1910 | AE3: ='Scheduling Calcs'!N15 -> 1911 | AF3: ='Scheduling Calcs'!O15 -> 1912 | AG3: ='Scheduling Calcs'!P15 -> 1913 | AH3: ='Scheduling Calcs'!Q15 -> 1914 | AI3: ='Scheduling Calcs'!R15 -> 1915 | AJ3: ='Scheduling Calcs'!S15 -> 1916 | AK3: ='Scheduling Calcs'!T15 -> 1917 | AL3: ='Scheduling Calcs'!U15 -> 1918 | AM3: ='Scheduling Calcs'!V15 -> 1919 | AN3: ='Scheduling Calcs'!W15 -> 1920 | AO3: ='Scheduling Calcs'!X15 -> 1921 | AP3: ='Scheduling Calcs'!Y15 -> 1922 | AQ3: ='Scheduling Calcs'!Z15 -> 1923 | AR3: ='Scheduling Calcs'!AA15 -> 1924 | AS3: ='Scheduling Calcs'!AB15 -> 1925 | AT3: ='Scheduling Calcs'!AC15 -> 1926 | AU3: ='Scheduling Calcs'!AD15 -> 1927 | AV3: ='Scheduling Calcs'!AE15 -> 1928 | AW3: ='Scheduling Calcs'!AF15 -> 1929 | AX3: ='Scheduling Calcs'!AG15 -> 1930 | AY3: ='Scheduling Calcs'!AH15 -> 1931 | AZ3: ='Scheduling Calcs'!AI15 -> 1932 | BA3: ='Scheduling Calcs'!AJ15 -> 1933 | BB3: ='Scheduling Calcs'!AK15 -> 1934 | BC3: ='Scheduling Calcs'!AL15 -> 1935 | BD3: ='Scheduling Calcs'!AM15 -> 1936 | BE3: ='Scheduling Calcs'!AN15 -> 1937 | BF3: ='Scheduling Calcs'!AO15 -> 1938 | BG3: ='Scheduling Calcs'!AP15 -> 1939 | BH3: ='Scheduling Calcs'!AQ15 -> 1940 | BI3: ='Scheduling Calcs'!AR15 -> 1941 | BJ3: ='Scheduling Calcs'!AS15 -> 1942 | BK3: ='Scheduling Calcs'!AT15 -> 1943 | BL3: ='Scheduling Calcs'!AU15 -> 1944 | BM3: ='Scheduling Calcs'!AV15 -> 1945 | BN3: ='Scheduling Calcs'!AW15 -> 1946 | BO3: ='Scheduling Calcs'!AX15 -> 1947 | BP3: ='Scheduling Calcs'!AY15 -> 1948 | BQ3: ='Scheduling Calcs'!AZ15 -> 1949 | BR3: ='Scheduling Calcs'!BA15 -> 1950
S4: Construction | T4: ='Scheduling Calcs'!C19 -> 0 | U4: ='Scheduling Calcs'!D19 -> 0 | V4: ='Scheduling Calcs'!E19 -> 0 | W4: ='Scheduling Calcs'!F19 -> 0 | X4: ='Scheduling Calcs'!G19 -> 0 | Y4: ='Scheduling Calcs'!H19 -> 0 | Z4: ='Scheduling Calcs'!I19 -> 0 | AA4: ='Scheduling Calcs'!J19 -> 0 | AB4: ='Scheduling Calcs'!K19 -> 0 | AC4: ='Scheduling Calcs'!L19 -> 0 | AD4: ='Scheduling Calcs'!M19 -> 0 | AE4: ='Scheduling Calcs'!N19 -> 0 | AF4: ='Scheduling Calcs'!O19 -> 0 | AG4: ='Scheduling Calcs'!P19 -> 0 | AH4: ='Scheduling Calcs'!Q19 -> 0 | AI4: ='Scheduling Calcs'!R19 -> 0 | AJ4: ='Scheduling Calcs'!S19 -> 0 | AK4: ='Scheduling Calcs'!T19 -> 0 | AL4: ='Scheduling Calcs'!U19 -> 0 | AM4: ='Scheduling Calcs'!V19 -> 0 | AN4: ='Scheduling Calcs'!W19 -> 0 | AO4: ='Scheduling Calcs'!X19 -> 0 | AP4: ='Scheduling Calcs'!Y19 -> 0 | AQ4: ='Scheduling Calcs'!Z19 -> 0 | AR4: ='Scheduling Calcs'!AA19 -> 0 | AS4: ='Scheduling Calcs'!AB19 -> 0 | AT4: ='Scheduling Calcs'!AC19 -> 0 | AU4: ='Scheduling Calcs'!AD19 -> 0 | AV4: ='Scheduling Calcs'!AE19 -> 0 | AW4: ='Scheduling Calcs'!AF19 -> 0 | AX4: ='Scheduling Calcs'!AG19 -> 0 | AY4: ='Scheduling Calcs'!AH19 -> 0 | AZ4: ='Scheduling Calcs'!AI19 -> 0 | BA4: ='Scheduling Calcs'!AJ19 -> 0 | BB4: ='Scheduling Calcs'!AK19 -> 0 | BC4: ='Scheduling Calcs'!AL19 -> 0 | BD4: ='Scheduling Calcs'!AM19 -> 0 | BE4: ='Scheduling Calcs'!AN19 -> 0 | BF4: ='Scheduling Calcs'!AO19 -> 0 | BG4: ='Scheduling Calcs'!AP19 -> 0 | BH4: ='Scheduling Calcs'!AQ19 -> 0 | BI4: ='Scheduling Calcs'!AR19 -> 0 | BJ4: ='Scheduling Calcs'!AS19 -> 0 | BK4: ='Scheduling Calcs'!AT19 -> 0 | BL4: ='Scheduling Calcs'!AU19 -> 0 | BM4: ='Scheduling Calcs'!AV19 -> 0 | BN4: ='Scheduling Calcs'!AW19 -> 0 | BO4: ='Scheduling Calcs'!AX19 -> 0 | BP4: ='Scheduling Calcs'!AY19 -> 0 | BQ4: ='Scheduling Calcs'!AZ19 -> 0 | BR4: ='Scheduling Calcs'!BA19 -> 0
B5: MANGROVES | S5: Operations | T5: ='Scheduling Calcs'!C20 -> 1 | U5: ='Scheduling Calcs'!D20 -> 0 | V5: ='Scheduling Calcs'!E20 -> 0 | W5: ='Scheduling Calcs'!F20 -> 0 | X5: ='Scheduling Calcs'!G20 -> 0 | Y5: ='Scheduling Calcs'!H20 -> 0 | Z5: ='Scheduling Calcs'!I20 -> 0 | AA5: ='Scheduling Calcs'!J20 -> 0 | AB5: ='Scheduling Calcs'!K20 -> 0 | AC5: ='Scheduling Calcs'!L20 -> 0 | AD5: ='Scheduling Calcs'!M20 -> 0 | AE5: ='Scheduling Calcs'!N20 -> 0 | AF5: ='Scheduling Calcs'!O20 -> 0 | AG5: ='Scheduling Calcs'!P20 -> 0 | AH5: ='Scheduling Calcs'!Q20 -> 0 | AI5: ='Scheduling Calcs'!R20 -> 0 | AJ5: ='Scheduling Calcs'!S20 -> 0 | AK5: ='Scheduling Calcs'!T20 -> 0 | AL5: ='Scheduling Calcs'!U20 -> 0 | AM5: ='Scheduling Calcs'!V20 -> 0 | AN5: ='Scheduling Calcs'!W20 -> 0 | AO5: ='Scheduling Calcs'!X20 -> 0 | AP5: ='Scheduling Calcs'!Y20 -> 0 | AQ5: ='Scheduling Calcs'!Z20 -> 0 | AR5: ='Scheduling Calcs'!AA20 -> 0 | AS5: ='Scheduling Calcs'!AB20 -> 0 | AT5: ='Scheduling Calcs'!AC20 -> 0 | AU5: ='Scheduling Calcs'!AD20 -> 0 | AV5: ='Scheduling Calcs'!AE20 -> 0 | AW5: ='Scheduling Calcs'!AF20 -> 0 | AX5: ='Scheduling Calcs'!AG20 -> 0 | AY5: ='Scheduling Calcs'!AH20 -> 0 | AZ5: ='Scheduling Calcs'!AI20 -> 0 | BA5: ='Scheduling Calcs'!AJ20 -> 0 | BB5: ='Scheduling Calcs'!AK20 -> 0 | BC5: ='Scheduling Calcs'!AL20 -> 0 | BD5: ='Scheduling Calcs'!AM20 -> 0 | BE5: ='Scheduling Calcs'!AN20 -> 0 | BF5: ='Scheduling Calcs'!AO20 -> 0 | BG5: ='Scheduling Calcs'!AP20 -> 0 | BH5: ='Scheduling Calcs'!AQ20 -> 0 | BI5: ='Scheduling Calcs'!AR20 -> 0 | BJ5: ='Scheduling Calcs'!AS20 -> 0 | BK5: ='Scheduling Calcs'!AT20 -> 0 | BL5: ='Scheduling Calcs'!AU20 -> 0 | BM5: ='Scheduling Calcs'!AV20 -> 0 | BN5: ='Scheduling Calcs'!AW20 -> 0 | BO5: ='Scheduling Calcs'!AX20 -> 0 | BP5: ='Scheduling Calcs'!AY20 -> 0 | BQ5: ='Scheduling Calcs'!AZ20 -> 0 | BR5: ='Scheduling Calcs'!BA20 -> 0
B6: =LCCA!B11 -> Project area | C6: =LCCA!C11 -> m2 | D6: =LCCA!D11 -> 0 | E6: =LCCA!E11 -> 0 | F6: =LCCA!F11 -> 0 | I6: =N6 -> 0 | K6: =(M6-E6)/(F6-E6) ->  | L6: =6-K6 ->  | M6: =(E6+(D6*4)+F6)/6 -> 0 | N6: =IF(General!$D$21="Off",Carbon!F6,IF(OR(E6=F6,AND(E6=F6,F6=D6)),D6,_xlfn.BETA.INV(RAND(),Carbon!K6,Carbon!L6,Carbon!E6,Carbon!F6))) -> 0 | P6: Mangrove Sequestration Value | Q6: =SUM(T6:BR6) -> 0 | S6: Mangroves | T6: =(VLOOKUP(T$2,'Mangrove seq'!$A$14:$H$68,8,FALSE)+VLOOKUP(T$2,'Mangrove seq'!$A$72:$H$126,8,FALSE)*$C$59*($I6)*SCC!H$10)*Conversions!$B$25*T$5*T$33 -> 0 | U6: =(VLOOKUP(U$2,'Mangrove seq'!$A$14:$H$68,8,FALSE)+VLOOKUP(U$2,'Mangrove seq'!$A$72:$H$126,8,FALSE)*$C$59*($I6)*SCC!I$10)*Conversions!$B$25*U$5*U$33 -> 0 | V6: =(VLOOKUP(V$2,'Mangrove seq'!$A$14:$H$68,8,FALSE)+VLOOKUP(V$2,'Mangrove seq'!$A$72:$H$126,8,FALSE)*$C$59*($I6)*SCC!J$10)*Conversions!$B$25*V$5*V$33 -> 0 | W6: =(VLOOKUP(W$2,'Mangrove seq'!$A$14:$H$68,8,FALSE)+VLOOKUP(W$2,'Mangrove seq'!$A$72:$H$126,8,FALSE)*$C$59*($I6)*SCC!K$10)*Conversions!$B$25*W$5*W$33 -> 0 | X6: =(VLOOKUP(X$2,'Mangrove seq'!$A$14:$H$68,8,FALSE)+VLOOKUP(X$2,'Mangrove seq'!$A$72:$H$126,8,FALSE)*$C$59*($I6)*SCC!L$10)*Conversions!$B$25*X$5*X$33 -> 0 | Y6: =(VLOOKUP(Y$2,'Mangrove seq'!$A$14:$H$68,8,FALSE)+VLOOKUP(Y$2,'Mangrove seq'!$A$72:$H$126,8,FALSE)*$C$59*($I6)*SCC!M$10)*Conversions!$B$25*Y$5*Y$33 -> 0 | Z6: =(VLOOKUP(Z$2,'Mangrove seq'!$A$14:$H$68,8,FALSE)+VLOOKUP(Z$2,'Mangrove seq'!$A$72:$H$126,8,FALSE)*$C$59*($I6)*SCC!N$10)*Conversions!$B$25*Z$5*Z$33 -> 0 | AA6: =(VLOOKUP(AA$2,'Mangrove seq'!$A$14:$H$68,8,FALSE)+VLOOKUP(AA$2,'Mangrove seq'!$A$72:$H$126,8,FALSE)*$C$59*($I6)*SCC!O$10)*Conversions!$B$25*AA$5*AA$33 -> 0 | AB6: =(VLOOKUP(AB$2,'Mangrove seq'!$A$14:$H$68,8,FALSE)+VLOOKUP(AB$2,'Mangrove seq'!$A$72:$H$126,8,FALSE)*$C$59*($I6)*SCC!P$10)*Conversions!$B$25*AB$5*AB$33 -> 0 | AC6: =(VLOOKUP(AC$2,'Mangrove seq'!$A$14:$H$68,8,FALSE)+VLOOKUP(AC$2,'Mangrove seq'!$A$72:$H$126,8,FALSE)*$C$59*($I6)*SCC!Q$10)*Conversions!$B$25*AC$5*AC$33 -> 0 | AD6: =(VLOOKUP(AD$2,'Mangrove seq'!$A$14:$H$68,8,FALSE)+VLOOKUP(AD$2,'Mangrove seq'!$A$72:$H$126,8,FALSE)*$C$59*($I6)*SCC!R$10)*Conversions!$B$25*AD$5*AD$33 -> 0 | AE6: =(VLOOKUP(AE$2,'Mangrove seq'!$A$14:$H$68,8,FALSE)+VLOOKUP(AE$2,'Mangrove seq'!$A$72:$H$126,8,FALSE)*$C$59*($I6)*SCC!S$10)*Conversions!$B$25*AE$5*AE$33 -> 0 | AF6: =(VLOOKUP(AF$2,'Mangrove seq'!$A$14:$H$68,8,FALSE)+VLOOKUP(AF$2,'Mangrove seq'!$A$72:$H$126,8,FALSE)*$C$59*($I6)*SCC!T$10)*Conversions!$B$25*AF$5*AF$33 -> 0 | AG6: =(VLOOKUP(AG$2,'Mangrove seq'!$A$14:$H$68,8,FALSE)+VLOOKUP(AG$2,'Mangrove seq'!$A$72:$H$126,8,FALSE)*$C$59*($I6)*SCC!U$10)*Conversions!$B$25*AG$5*AG$33 -> 0 | AH6: =(VLOOKUP(AH$2,'Mangrove seq'!$A$14:$H$68,8,FALSE)+VLOOKUP(AH$2,'Mangrove seq'!$A$72:$H$126,8,FALSE)*$C$59*($I6)*SCC!V$10)*Conversions!$B$25*AH$5*AH$33 -> 0 | AI6: =(VLOOKUP(AI$2,'Mangrove seq'!$A$14:$H$68,8,FALSE)+VLOOKUP(AI$2,'Mangrove seq'!$A$72:$H$126,8,FALSE)*$C$59*($I6)*SCC!W$10)*Conversions!$B$25*AI$5*AI$33 -> 0 | AJ6: =(VLOOKUP(AJ$2,'Mangrove seq'!$A$14:$H$68,8,FALSE)+VLOOKUP(AJ$2,'Mangrove seq'!$A$72:$H$126,8,FALSE)*$C$59*($I6)*SCC!X$10)*Conversions!$B$25*AJ$5*AJ$33 -> 0 | AK6: =(VLOOKUP(AK$2,'Mangrove seq'!$A$14:$H$68,8,FALSE)+VLOOKUP(AK$2,'Mangrove seq'!$A$72:$H$126,8,FALSE)*$C$59*($I6)*SCC!Y$10)*Conversions!$B$25*AK$5*AK$33 -> 0 | AL6: =(VLOOKUP(AL$2,'Mangrove seq'!$A$14:$H$68,8,FALSE)+VLOOKUP(AL$2,'Mangrove seq'!$A$72:$H$126,8,FALSE)*$C$59*($I6)*SCC!Z$10)*Conversions!$B$25*AL$5*AL$33 -> 0 | AM6: =(VLOOKUP(AM$2,'Mangrove seq'!$A$14:$H$68,8,FALSE)+VLOOKUP(AM$2,'Mangrove seq'!$A$72:$H$126,8,FALSE)*$C$59*($I6)*SCC!AA$10)*Conversions!$B$25*AM$5*AM$33 -> 0 | AN6: =(VLOOKUP(AN$2,'Mangrove seq'!$A$14:$H$68,8,FALSE)+VLOOKUP(AN$2,'Mangrove seq'!$A$72:$H$126,8,FALSE)*$C$59*($I6)*SCC!AB$10)*Conversions!$B$25*AN$5*AN$33 -> 0 | AO6: =(VLOOKUP(AO$2,'Mangrove seq'!$A$14:$H$68,8,FALSE)+VLOOKUP(AO$2,'Mangrove seq'!$A$72:$H$126,8,FALSE)*$C$59*($I6)*SCC!AC$10)*Conversions!$B$25*AO$5*AO$33 -> 0 | AP6: =(VLOOKUP(AP$2,'Mangrove seq'!$A$14:$H$68,8,FALSE)+VLOOKUP(AP$2,'Mangrove seq'!$A$72:$H$126,8,FALSE)*$C$59*($I6)*SCC!AD$10)*Conversions!$B$25*AP$5*AP$33 -> 0 | AQ6: =(VLOOKUP(AQ$2,'Mangrove seq'!$A$14:$H$68,8,FALSE)+VLOOKUP(AQ$2,'Mangrove seq'!$A$72:$H$126,8,FALSE)*$C$59*($I6)*SCC!AE$10)*Conversions!$B$25*AQ$5*AQ$33 -> 0 | AR6: =(VLOOKUP(AR$2,'Mangrove seq'!$A$14:$H$68,8,FALSE)+VLOOKUP(AR$2,'Mangrove seq'!$A$72:$H$126,8,FALSE)*$C$59*($I6)*SCC!AF$10)*Conversions!$B$25*AR$5*AR$33 -> 0 | AS6: =(VLOOKUP(AS$2,'Mangrove seq'!$A$14:$H$68,8,FALSE)+VLOOKUP(AS$2,'Mangrove seq'!$A$72:$H$126,8,FALSE)*$C$59*($I6)*SCC!AG$10)*Conversions!$B$25*AS$5*AS$33 -> 0 | AT6: =(VLOOKUP(AT$2,'Mangrove seq'!$A$14:$H$68,8,FALSE)+VLOOKUP(AT$2,'Mangrove seq'!$A$72:$H$126,8,FALSE)*$C$59*($I6)*SCC!AH$10)*Conversions!$B$25*AT$5*AT$33 -> 0 | AU6: =(VLOOKUP(AU$2,'Mangrove seq'!$A$14:$H$68,8,FALSE)+VLOOKUP(AU$2,'Mangrove seq'!$A$72:$H$126,8,FALSE)*$C$59*($I6)*SCC!AI$10)*Conversions!$B$25*AU$5*AU$33 -> 0 | AV6: =(VLOOKUP(AV$2,'Mangrove seq'!$A$14:$H$68,8,FALSE)+VLOOKUP(AV$2,'Mangrove seq'!$A$72:$H$126,8,FALSE)*$C$59*($I6)*SCC!AJ$10)*Conversions!$B$25*AV$5*AV$33 -> 0 | AW6: =(VLOOKUP(AW$2,'Mangrove seq'!$A$14:$H$68,8,FALSE)+VLOOKUP(AW$2,'Mangrove seq'!$A$72:$H$126,8,FALSE)*$C$59*($I6)*SCC!AK$10)*Conversions!$B$25*AW$5*AW$33 -> 0 | AX6: =(VLOOKUP(AX$2,'Mangrove seq'!$A$14:$H$68,8,FALSE)+VLOOKUP(AX$2,'Mangrove seq'!$A$72:$H$126,8,FALSE)*$C$59*($I6)*SCC!AL$10)*Conversions!$B$25*AX$5*AX$33 -> 0 | AY6: =(VLOOKUP(AY$2,'Mangrove seq'!$A$14:$H$68,8,FALSE)+VLOOKUP(AY$2,'Mangrove seq'!$A$72:$H$126,8,FALSE)*$C$59*($I6)*SCC!AM$10)*Conversions!$B$25*AY$5*AY$33 -> 0 | AZ6: =(VLOOKUP(AZ$2,'Mangrove seq'!$A$14:$H$68,8,FALSE)+VLOOKUP(AZ$2,'Mangrove seq'!$A$72:$H$126,8,FALSE)*$C$59*($I6)*SCC!AN$10)*Conversions!$B$25*AZ$5*AZ$33 -> 0 | BA6: =(VLOOKUP(BA$2,'Mangrove seq'!$A$14:$H$68,8,FALSE)+VLOOKUP(BA$2,'Mangrove seq'!$A$72:$H$126,8,FALSE)*$C$59*($I6)*SCC!AO$10)*Conversions!$B$25*BA$5*BA$33 -> 0 | BB6: =(VLOOKUP(BB$2,'Mangrove seq'!$A$14:$H$68,8,FALSE)+VLOOKUP(BB$2,'Mangrove seq'!$A$72:$H$126,8,FALSE)*$C$59*($I6)*SCC!AP$10)*Conversions!$B$25*BB$5*BB$33 -> 0 | BC6: =(VLOOKUP(BC$2,'Mangrove seq'!$A$14:$H$68,8,FALSE)+VLOOKUP(BC$2,'Mangrove seq'!$A$72:$H$126,8,FALSE)*$C$59*($I6)*SCC!AQ$10)*Conversions!$B$25*BC$5*BC$33 -> 0 | BD6: =(VLOOKUP(BD$2,'Mangrove seq'!$A$14:$H$68,8,FALSE)+VLOOKUP(BD$2,'Mangrove seq'!$A$72:$H$126,8,FALSE)*$C$59*($I6)*SCC!AR$10)*Conversions!$B$25*BD$5*BD$33 -> 0 | BE6: =(VLOOKUP(BE$2,'Mangrove seq'!$A$14:$H$68,8,FALSE)+VLOOKUP(BE$2,'Mangrove seq'!$A$72:$H$126,8,FALSE)*$C$59*($I6)*SCC!AS$10)*Conversions!$B$25*BE$5*BE$33 -> 0 | BF6: =(VLOOKUP(BF$2,'Mangrove seq'!$A$14:$H$68,8,FALSE)+VLOOKUP(BF$2,'Mangrove seq'!$A$72:$H$126,8,FALSE)*$C$59*($I6)*SCC!AT$10)*Conversions!$B$25*BF$5*BF$33 -> 0 | BG6: =(VLOOKUP(BG$2,'Mangrove seq'!$A$14:$H$68,8,FALSE)+VLOOKUP(BG$2,'Mangrove seq'!$A$72:$H$126,8,FALSE)*$C$59*($I6)*SCC!AU$10)*Conversions!$B$25*BG$5*BG$33 -> 0 | BH6: =(VLOOKUP(BH$2,'Mangrove seq'!$A$14:$H$68,8,FALSE)+VLOOKUP(BH$2,'Mangrove seq'!$A$72:$H$126,8,FALSE)*$C$59*($I6)*SCC!AV$10)*Conversions!$B$25*BH$5*BH$33 -> 0 | BI6: =(VLOOKUP(BI$2,'Mangrove seq'!$A$14:$H$68,8,FALSE)+VLOOKUP(BI$2,'Mangrove seq'!$A$72:$H$126,8,FALSE)*$C$59*($I6)*SCC!AW$10)*Conversions!$B$25*BI$5*BI$33 -> 0 | BJ6: =(VLOOKUP(BJ$2,'Mangrove seq'!$A$14:$H$68,8,FALSE)+VLOOKUP(BJ$2,'Mangrove seq'!$A$72:$H$126,8,FALSE)*$C$59*($I6)*SCC!AX$10)*Conversions!$B$25*BJ$5*BJ$33 -> 0 | BK6: =(VLOOKUP(BK$2,'Mangrove seq'!$A$14:$H$68,8,FALSE)+VLOOKUP(BK$2,'Mangrove seq'!$A$72:$H$126,8,FALSE)*$C$59*($I6)*SCC!AY$10)*Conversions!$B$25*BK$5*BK$33 -> 0 | BL6: =(VLOOKUP(BL$2,'Mangrove seq'!$A$14:$H$68,8,FALSE)+VLOOKUP(BL$2,'Mangrove seq'!$A$72:$H$126,8,FALSE)*$C$59*($I6)*SCC!AZ$10)*Conversions!$B$25*BL$5*BL$33 -> 0 | BM6: =(VLOOKUP(BM$2,'Mangrove seq'!$A$14:$H$68,8,FALSE)+VLOOKUP(BM$2,'Mangrove seq'!$A$72:$H$126,8,FALSE)*$C$59*($I6)*SCC!BA$10)*Conversions!$B$25*BM$5*BM$33 -> 0 | BN6: =(VLOOKUP(BN$2,'Mangrove seq'!$A$14:$H$68,8,FALSE)+VLOOKUP(BN$2,'Mangrove seq'!$A$72:$H$126,8,FALSE)*$C$59*($I6)*SCC!BB$10)*Conversions!$B$25*BN$5*BN$33 -> 0 | BO6: =(VLOOKUP(BO$2,'Mangrove seq'!$A$14:$H$68,8,FALSE)+VLOOKUP(BO$2,'Mangrove seq'!$A$72:$H$126,8,FALSE)*$C$59*($I6)*SCC!BC$10)*Conversions!$B$25*BO$5*BO$33 -> 0 | BP6: =(VLOOKUP(BP$2,'Mangrove seq'!$A$14:$H$68,8,FALSE)+VLOOKUP(BP$2,'Mangrove seq'!$A$72:$H$126,8,FALSE)*$C$59*($I6)*SCC!BD$10)*Conversions!$B$25*BP$5*BP$33 -> 0 | BQ6: =(VLOOKUP(BQ$2,'Mangrove seq'!$A$14:$H$68,8,FALSE)+VLOOKUP(BQ$2,'Mangrove seq'!$A$72:$H$126,8,FALSE)*$C$59*($I6)*SCC!BE$10)*Conversions!$B$25*BQ$5*BQ$33 -> 0 | BR6: =(VLOOKUP(BR$2,'Mangrove seq'!$A$14:$H$68,8,FALSE)+VLOOKUP(BR$2,'Mangrove seq'!$A$72:$H$126,8,FALSE)*$C$59*($I6)*SCC!BF$10)*Conversions!$B$25*BR$5*BR$33 -> 0
B7: =LCCA!B12 -> Growth of project area per year | C7: =LCCA!C12 -> % | D7: =LCCA!D12 -> 0 | E7: =LCCA!E12 -> 0 | F7: =LCCA!F12 -> 0 | G7: =LCCA!G12 -> 0 | I7: 0 | M7: 0 | N7: =IF(General!$D$21="Off",Carbon!F7,IF(OR(E7=F7,AND(E7=F7,F7=D7)),D7,_xlfn.BETA.INV(RAND(),Carbon!K7,Carbon!L7,Carbon!E7,Carbon!F7))) -> 0
B8: SEA GRASS
B9: =LCCA!B22 -> Project area | C9: =LCCA!C22 -> m2 | D9: =LCCA!D22 -> 0 | E9: =LCCA!E22 -> 0 | F9: =LCCA!F22 -> 0 | I9: 0 | M9: 0 | N9: =IF(General!$D$21="Off",Carbon!F9,IF(OR(E9=F9,AND(E9=F9,F9=D9)),D9,_xlfn.BETA.INV(RAND(),Carbon!K9,Carbon!L9,Carbon!E9,Carbon!F9))) -> 0 | P9: Seagrass Sequestration Value | Q9: =SUM(T9:BR9) -> 0 | S9: Seagrass | T9: =(VLOOKUP($S9,$B$73:$F$76,5,0)*($I9)*SCC!H$10)*Conversions!$B$25*T$5*T$33 -> 0 | U9: =(VLOOKUP($S9,$B$73:$F$76,5,0)*($I9)*SCC!I$10)*Conversions!$B$25*U$5*U$33 -> 0 | V9: =(VLOOKUP($S9,$B$73:$F$76,5,0)*($I9)*SCC!J$10)*Conversions!$B$25*V$5*V$33 -> 0 | W9: =(VLOOKUP($S9,$B$73:$F$76,5,0)*($I9)*SCC!K$10)*Conversions!$B$25*W$5*W$33 -> 0 | X9: =(VLOOKUP($S9,$B$73:$F$76,5,0)*($I9)*SCC!L$10)*Conversions!$B$25*X$5*X$33 -> 0 | Y9: =(VLOOKUP($S9,$B$73:$F$76,5,0)*($I9)*SCC!M$10)*Conversions!$B$25*Y$5*Y$33 -> 0 | Z9: =(VLOOKUP($S9,$B$73:$F$76,5,0)*($I9)*SCC!N$10)*Conversions!$B$25*Z$5*Z$33 -> 0 | AA9: =(VLOOKUP($S9,$B$73:$F$76,5,0)*($I9)*SCC!O$10)*Conversions!$B$25*AA$5*AA$33 -> 0 | AB9: =(VLOOKUP($S9,$B$73:$F$76,5,0)*($I9)*SCC!P$10)*Conversions!$B$25*AB$5*AB$33 -> 0 | AC9: =(VLOOKUP($S9,$B$73:$F$76,5,0)*($I9)*SCC!Q$10)*Conversions!$B$25*AC$5*AC$33 -> 0 | AD9: =(VLOOKUP($S9,$B$73:$F$76,5,0)*($I9)*SCC!R$10)*Conversions!$B$25*AD$5*AD$33 -> 0 | AE9: =(VLOOKUP($S9,$B$73:$F$76,5,0)*($I9)*SCC!S$10)*Conversions!$B$25*AE$5*AE$33 -> 0 | AF9: =(VLOOKUP($S9,$B$73:$F$76,5,0)*($I9)*SCC!T$10)*Conversions!$B$25*AF$5*AF$33 -> 0 | AG9: =(VLOOKUP($S9,$B$73:$F$76,5,0)*($I9)*SCC!U$10)*Conversions!$B$25*AG$5*AG$33 -> 0 | AH9: =(VLOOKUP($S9,$B$73:$F$76,5,0)*($I9)*SCC!V$10)*Conversions!$B$25*AH$5*AH$33 -> 0 | AI9: =(VLOOKUP($S9,$B$73:$F$76,5,0)*($I9)*SCC!W$10)*Conversions!$B$25*AI$5*AI$33 -> 0 | AJ9: =(VLOOKUP($S9,$B$73:$F$76,5,0)*($I9)*SCC!X$10)*Conversions!$B$25*AJ$5*AJ$33 -> 0 | AK9: =(VLOOKUP($S9,$B$73:$F$76,5,0)*($I9)*SCC!Y$10)*Conversions!$B$25*AK$5*AK$33 -> 0 | AL9: =(VLOOKUP($S9,$B$73:$F$76,5,0)*($I9)*SCC!Z$10)*Conversions!$B$25*AL$5*AL$33 -> 0 | AM9: =(VLOOKUP($S9,$B$73:$F$76,5,0)*($I9)*SCC!AA$10)*Conversions!$B$25*AM$5*AM$33 -> 0 | AN9: =(VLOOKUP($S9,$B$73:$F$76,5,0)*($I9)*SCC!AB$10)*Conversions!$B$25*AN$5*AN$33 -> 0 | AO9: =(VLOOKUP($S9,$B$73:$F$76,5,0)*($I9)*SCC!AC$10)*Conversions!$B$25*AO$5*AO$33 -> 0 | AP9: =(VLOOKUP($S9,$B$73:$F$76,5,0)*($I9)*SCC!AD$10)*Conversions!$B$25*AP$5*AP$33 -> 0 | AQ9: =(VLOOKUP($S9,$B$73:$F$76,5,0)*($I9)*SCC!AE$10)*Conversions!$B$25*AQ$5*AQ$33 -> 0 | AR9: =(VLOOKUP($S9,$B$73:$F$76,5,0)*($I9)*SCC!AF$10)*Conversions!$B$25*AR$5*AR$33 -> 0 | AS9: =(VLOOKUP($S9,$B$73:$F$76,5,0)*($I9)*SCC!AG$10)*Conversions!$B$25*AS$5*AS$33 -> 0 | AT9: =(VLOOKUP($S9,$B$73:$F$76,5,0)*($I9)*SCC!AH$10)*Conversions!$B$25*AT$5*AT$33 -> 0 | AU9: =(VLOOKUP($S9,$B$73:$F$76,5,0)*($I9)*SCC!AI$10)*Conversions!$B$25*AU$5*AU$33 -> 0 | AV9: =(VLOOKUP($S9,$B$73:$F$76,5,0)*($I9)*SCC!AJ$10)*Conversions!$B$25*AV$5*AV$33 -> 0 | AW9: =(VLOOKUP($S9,$B$73:$F$76,5,0)*($I9)*SCC!AK$10)*Conversions!$B$25*AW$5*AW$33 -> 0 | AX9: =(VLOOKUP($S9,$B$73:$F$76,5,0)*($I9)*SCC!AL$10)*Conversions!$B$25*AX$5*AX$33 -> 0 | AY9: =(VLOOKUP($S9,$B$73:$F$76,5,0)*($I9)*SCC!AM$10)*Conversions!$B$25*AY$5*AY$33 -> 0 | AZ9: =(VLOOKUP($S9,$B$73:$F$76,5,0)*($I9)*SCC!AN$10)*Conversions!$B$25*AZ$5*AZ$33 -> 0 | BA9: =(VLOOKUP($S9,$B$73:$F$76,5,0)*($I9)*SCC!AO$10)*Conversions!$B$25*BA$5*BA$33 -> 0 | BB9: =(VLOOKUP($S9,$B$73:$F$76,5,0)*($I9)*SCC!AP$10)*Conversions!$B$25*BB$5*BB$33 -> 0 | BC9: =(VLOOKUP($S9,$B$73:$F$76,5,0)*($I9)*SCC!AQ$10)*Conversions!$B$25*BC$5*BC$33 -> 0 | BD9: =(VLOOKUP($S9,$B$73:$F$76,5,0)*($I9)*SCC!AR$10)*Conversions!$B$25*BD$5*BD$33 -> 0 | BE9: =(VLOOKUP($S9,$B$73:$F$76,5,0)*($I9)*SCC!AS$10)*Conversions!$B$25*BE$5*BE$33 -> 0 | BF9: =(VLOOKUP($S9,$B$73:$F$76,5,0)*($I9)*SCC!AT$10)*Conversions!$B$25*BF$5*BF$33 -> 0 | BG9: =(VLOOKUP($S9,$B$73:$F$76,5,0)*($I9)*SCC!AU$10)*Conversions!$B$25*BG$5*BG$33 -> 0 | BH9: =(VLOOKUP($S9,$B$73:$F$76,5,0)*($I9)*SCC!AV$10)*Conversions!$B$25*BH$5*BH$33 -> 0 | BI9: =(VLOOKUP($S9,$B$73:$F$76,5,0)*($I9)*SCC!AW$10)*Conversions!$B$25*BI$5*BI$33 -> 0 | BJ9: =(VLOOKUP($S9,$B$73:$F$76,5,0)*($I9)*SCC!AX$10)*Conversions!$B$25*BJ$5*BJ$33 -> 0 | BK9: =(VLOOKUP($S9,$B$73:$F$76,5,0)*($I9)*SCC!AY$10)*Conversions!$B$25*BK$5*BK$33 -> 0 | BL9: =(VLOOKUP($S9,$B$73:$F$76,5,0)*($I9)*SCC!AZ$10)*Conversions!$B$25*BL$5*BL$33 -> 0 | BM9: =(VLOOKUP($S9,$B$73:$F$76,5,0)*($I9)*SCC!BA$10)*Conversions!$B$25*BM$5*BM$33 -> 0 | BN9: =(VLOOKUP($S9,$B$73:$F$76,5,0)*($I9)*SCC!BB$10)*Conversions!$B$25*BN$5*BN$33 -> 0 | BO9: =(VLOOKUP($S9,$B$73:$F$76,5,0)*($I9)*SCC!BC$10)*Conversions!$B$25*BO$5*BO$33 -> 0 | BP9: =(VLOOKUP($S9,$B$73:$F$76,5,0)*($I9)*SCC!BD$10)*Conversions!$B$25*BP$5*BP$33 -> 0 | BQ9: =(VLOOKUP($S9,$B$73:$F$76,5,0)*($I9)*SCC!BE$10)*Conversions!$B$25*BQ$5*BQ$33 -> 0 | BR9: =(VLOOKUP($S9,$B$73:$F$76,5,0)*($I9)*SCC!BF$10)*Conversions!$B$25*BR$5*BR$33 -> 0
B10: =LCCA!B23 -> Growth of project area per year | C10: =LCCA!C23 -> % | D10: =LCCA!D23 -> 0 | E10: =LCCA!E23 -> 0 | F10: =LCCA!F23 -> 0 | G10: =LCCA!G23 -> 0 | I10: 0 | M10: 0 | N10: =IF(General!$D$21="Off",Carbon!F10,IF(OR(E10=F10,AND(E10=F10,F10=D10)),D10,_xlfn.BETA.INV(RAND(),Carbon!K10,Carbon!L10,Carbon!E10,Carbon!F10))) -> 0
B11: SALT MARSH
B12: =LCCA!B33 -> Project area | C12: =LCCA!C33 -> m2 | D12: =LCCA!D33 -> 0 | E12: =LCCA!E33 -> 0 | F12: =LCCA!F33 -> 0 | I12: 0 | M12: 0 | N12: =IF(General!$D$21="Off",Carbon!F12,IF(OR(E12=F12,AND(E12=F12,F12=D12)),D12,_xlfn.BETA.INV(RAND(),Carbon!K12,Carbon!L12,Carbon!E12,Carbon!F12))) -> 0 | P12: Salt Marsh Sequestration Value | Q12: =SUM(T12:BR12) -> 0 | S12: Salt Marsh | T12: =(VLOOKUP($S12,$B$73:$F$76,5,0)*($I12)*SCC!H$10)*Conversions!$B$25*T$5*T$33 -> 0 | U12: =(VLOOKUP($S12,$B$73:$F$76,5,0)*($I12)*SCC!I$10)*Conversions!$B$25*U$5*U$33 -> 0 | V12: =(VLOOKUP($S12,$B$73:$F$76,5,0)*($I12)*SCC!J$10)*Conversions!$B$25*V$5*V$33 -> 0 | W12: =(VLOOKUP($S12,$B$73:$F$76,5,0)*($I12)*SCC!K$10)*Conversions!$B$25*W$5*W$33 -> 0 | X12: =(VLOOKUP($S12,$B$73:$F$76,5,0)*($I12)*SCC!L$10)*Conversions!$B$25*X$5*X$33 -> 0 | Y12: =(VLOOKUP($S12,$B$73:$F$76,5,0)*($I12)*SCC!M$10)*Conversions!$B$25*Y$5*Y$33 -> 0 | Z12: =(VLOOKUP($S12,$B$73:$F$76,5,0)*($I12)*SCC!N$10)*Conversions!$B$25*Z$5*Z$33 -> 0 | AA12: =(VLOOKUP($S12,$B$73:$F$76,5,0)*($I12)*SCC!O$10)*Conversions!$B$25*AA$5*AA$33 -> 0 | AB12: =(VLOOKUP($S12,$B$73:$F$76,5,0)*($I12)*SCC!P$10)*Conversions!$B$25*AB$5*AB$33 -> 0 | AC12: =(VLOOKUP($S12,$B$73:$F$76,5,0)*($I12)*SCC!Q$10)*Conversions!$B$25*AC$5*AC$33 -> 0 | AD12: =(VLOOKUP($S12,$B$73:$F$76,5,0)*($I12)*SCC!R$10)*Conversions!$B$25*AD$5*AD$33 -> 0 | AE12: =(VLOOKUP($S12,$B$73:$F$76,5,0)*($I12)*SCC!S$10)*Conversions!$B$25*AE$5*AE$33 -> 0 | AF12: =(VLOOKUP($S12,$B$73:$F$76,5,0)*($I12)*SCC!T$10)*Conversions!$B$25*AF$5*AF$33 -> 0 | AG12: =(VLOOKUP($S12,$B$73:$F$76,5,0)*($I12)*SCC!U$10)*Conversions!$B$25*AG$5*AG$33 -> 0 | AH12: =(VLOOKUP($S12,$B$73:$F$76,5,0)*($I12)*SCC!V$10)*Conversions!$B$25*AH$5*AH$33 -> 0 | AI12: =(VLOOKUP($S12,$B$73:$F$76,5,0)*($I12)*SCC!W$10)*Conversions!$B$25*AI$5*AI$33 -> 0 | AJ12: =(VLOOKUP($S12,$B$73:$F$76,5,0)*($I12)*SCC!X$10)*Conversions!$B$25*AJ$5*AJ$33 -> 0 | AK12: =(VLOOKUP($S12,$B$73:$F$76,5,0)*($I12)*SCC!Y$10)*Conversions!$B$25*AK$5*AK$33 -> 0 | AL12: =(VLOOKUP($S12,$B$73:$F$76,5,0)*($I12)*SCC!Z$10)*Conversions!$B$25*AL$5*AL$33 -> 0 | AM12: =(VLOOKUP($S12,$B$73:$F$76,5,0)*($I12)*SCC!AA$10)*Conversions!$B$25*AM$5*AM$33 -> 0 | AN12: =(VLOOKUP($S12,$B$73:$F$76,5,0)*($I12)*SCC!AB$10)*Conversions!$B$25*AN$5*AN$33 -> 0 | AO12: =(VLOOKUP($S12,$B$73:$F$76,5,0)*($I12)*SCC!AC$10)*Conversions!$B$25*AO$5*AO$33 -> 0 | AP12: =(VLOOKUP($S12,$B$73:$F$76,5,0)*($I12)*SCC!AD$10)*Conversions!$B$25*AP$5*AP$33 -> 0 | AQ12: =(VLOOKUP($S12,$B$73:$F$76,5,0)*($I12)*SCC!AE$10)*Conversions!$B$25*AQ$5*AQ$33 -> 0 | AR12: =(VLOOKUP($S12,$B$73:$F$76,5,0)*($I12)*SCC!AF$10)*Conversions!$B$25*AR$5*AR$33 -> 0 | AS12: =(VLOOKUP($S12,$B$73:$F$76,5,0)*($I12)*SCC!AG$10)*Conversions!$B$25*AS$5*AS$33 -> 0 | AT12: =(VLOOKUP($S12,$B$73:$F$76,5,0)*($I12)*SCC!AH$10)*Conversions!$B$25*AT$5*AT$33 -> 0 | AU12: =(VLOOKUP($S12,$B$73:$F$76,5,0)*($I12)*SCC!AI$10)*Conversions!$B$25*AU$5*AU$33 -> 0 | AV12: =(VLOOKUP($S12,$B$73:$F$76,5,0)*($I12)*SCC!AJ$10)*Conversions!$B$25*AV$5*AV$33 -> 0 | AW12: =(VLOOKUP($S12,$B$73:$F$76,5,0)*($I12)*SCC!AK$10)*Conversions!$B$25*AW$5*AW$33 -> 0 | AX12: =(VLOOKUP($S12,$B$73:$F$76,5,0)*($I12)*SCC!AL$10)*Conversions!$B$25*AX$5*AX$33 -> 0 | AY12: =(VLOOKUP($S12,$B$73:$F$76,5,0)*($I12)*SCC!AM$10)*Conversions!$B$25*AY$5*AY$33 -> 0 | AZ12: =(VLOOKUP($S12,$B$73:$F$76,5,0)*($I12)*SCC!AN$10)*Conversions!$B$25*AZ$5*AZ$33 -> 0 | BA12: =(VLOOKUP($S12,$B$73:$F$76,5,0)*($I12)*SCC!AO$10)*Conversions!$B$25*BA$5*BA$33 -> 0 | BB12: =(VLOOKUP($S12,$B$73:$F$76,5,0)*($I12)*SCC!AP$10)*Conversions!$B$25*BB$5*BB$33 -> 0 | BC12: =(VLOOKUP($S12,$B$73:$F$76,5,0)*($I12)*SCC!AQ$10)*Conversions!$B$25*BC$5*BC$33 -> 0 | BD12: =(VLOOKUP($S12,$B$73:$F$76,5,0)*($I12)*SCC!AR$10)*Conversions!$B$25*BD$5*BD$33 -> 0 | BE12: =(VLOOKUP($S12,$B$73:$F$76,5,0)*($I12)*SCC!AS$10)*Conversions!$B$25*BE$5*BE$33 -> 0 | BF12: =(VLOOKUP($S12,$B$73:$F$76,5,0)*($I12)*SCC!AT$10)*Conversions!$B$25*BF$5*BF$33 -> 0 | BG12: =(VLOOKUP($S12,$B$73:$F$76,5,0)*($I12)*SCC!AU$10)*Conversions!$B$25*BG$5*BG$33 -> 0 | BH12: =(VLOOKUP($S12,$B$73:$F$76,5,0)*($I12)*SCC!AV$10)*Conversions!$B$25*BH$5*BH$33 -> 0 | BI12: =(VLOOKUP($S12,$B$73:$F$76,5,0)*($I12)*SCC!AW$10)*Conversions!$B$25*BI$5*BI$33 -> 0 | BJ12: =(VLOOKUP($S12,$B$73:$F$76,5,0)*($I12)*SCC!AX$10)*Conversions!$B$25*BJ$5*BJ$33 -> 0 | BK12: =(VLOOKUP($S12,$B$73:$F$76,5,0)*($I12)*SCC!AY$10)*Conversions!$B$25*BK$5*BK$33 -> 0 | BL12: =(VLOOKUP($S12,$B$73:$F$76,5,0)*($I12)*SCC!AZ$10)*Conversions!$B$25*BL$5*BL$33 -> 0 | BM12: =(VLOOKUP($S12,$B$73:$F$76,5,0)*($I12)*SCC!BA$10)*Conversions!$B$25*BM$5*BM$33 -> 0 | BN12: =(VLOOKUP($S12,$B$73:$F$76,5,0)*($I12)*SCC!BB$10)*Conversions!$B$25*BN$5*BN$33 -> 0 | BO12: =(VLOOKUP($S12,$B$73:$F$76,5,0)*($I12)*SCC!BC$10)*Conversions!$B$25*BO$5*BO$33 -> 0 | BP12: =(VLOOKUP($S12,$B$73:$F$76,5,0)*($I12)*SCC!BD$10)*Conversions!$B$25*BP$5*BP$33 -> 0 | BQ12: =(VLOOKUP($S12,$B$73:$F$76,5,0)*($I12)*SCC!BE$10)*Conversions!$B$25*BQ$5*BQ$33 -> 0 | BR12: =(VLOOKUP($S12,$B$73:$F$76,5,0)*($I12)*SCC!BF$10)*Conversions!$B$25*BR$5*BR$33 -> 0
B13: =LCCA!B34 -> Growth of project area per year | C13: =LCCA!C34 -> % | D13: =LCCA!D34 -> 0 | E13: =LCCA!E34 -> 0 | F13: =LCCA!F34 -> 0 | G13: =LCCA!G34 -> 0 | I13: 0 | M13: 0 | N13: =IF(General!$D$21="Off",Carbon!F13,IF(OR(E13=F13,AND(E13=F13,F13=D13)),D13,_xlfn.BETA.INV(RAND(),Carbon!K13,Carbon!L13,Carbon!E13,Carbon!F13))) -> 0
B14: SEAWALLS | I14: 0 | M14: 0 | N14: =IF(General!$D$21="Off",Carbon!F14,IF(OR(E14=0,F14=0,AND(E14=F14,F14=D14)),D14,_xlfn.BETA.INV(RAND(),Carbon!K14,Carbon!L14,Carbon!E14,Carbon!F14))) -> 0
B15: =LCCA!B79 -> Surrounding project area affected by the wall | C15: =LCCA!C79 -> m2 | D15: =LCCA!D79 -> 0 | E15: =LCCA!E79 -> 0 | F15: =LCCA!F79 -> 0 | I15: 0 | M15: 0 | N15: =IF(General!$D$21="Off",Carbon!F15,IF(OR(E15=0,F15=0,AND(E15=F15,F15=D15)),D15,_xlfn.BETA.INV(RAND(),Carbon!K15,Carbon!L15,Carbon!E15,Carbon!F15))) -> 0 | S15: Seawalls | T15: =(VLOOKUP($S15,$B$73:$F$76,5,0)*($D15)*SCC!H$10)*100 ->  | U15: =(VLOOKUP($S15,$B$73:$F$76,5,0)*($D15)*SCC!I$10)*100 ->  | V15: =(VLOOKUP($S15,$B$73:$F$76,5,0)*($D15)*SCC!J$10)*100 ->  | W15: =(VLOOKUP($S15,$B$73:$F$76,5,0)*($D15)*SCC!K$10)*100 ->  | X15: =(VLOOKUP($S15,$B$73:$F$76,5,0)*($D15)*SCC!L$10)*100 ->  | Y15: =(VLOOKUP($S15,$B$73:$F$76,5,0)*($D15)*SCC!M$10)*100 ->  | Z15: =(VLOOKUP($S15,$B$73:$F$76,5,0)*($D15)*SCC!N$10)*100 ->  | AA15: =(VLOOKUP($S15,$B$73:$F$76,5,0)*($D15)*SCC!O$10)*100 ->  | AB15: =(VLOOKUP($S15,$B$73:$F$76,5,0)*($D15)*SCC!P$10)*100 ->  | AC15: =(VLOOKUP($S15,$B$73:$F$76,5,0)*($D15)*SCC!Q$10)*100 ->  | AD15: =(VLOOKUP($S15,$B$73:$F$76,5,0)*($D15)*SCC!R$10)*100 ->  | AE15: =(VLOOKUP($S15,$B$73:$F$76,5,0)*($D15)*SCC!S$10)*100 ->  | AF15: =(VLOOKUP($S15,$B$73:$F$76,5,0)*($D15)*SCC!T$10)*100 ->  | AG15: =(VLOOKUP($S15,$B$73:$F$76,5,0)*($D15)*SCC!U$10)*100 ->  | AH15: =(VLOOKUP($S15,$B$73:$F$76,5,0)*($D15)*SCC!V$10)*100 ->  | AI15: =(VLOOKUP($S15,$B$73:$F$76,5,0)*($D15)*SCC!W$10)*100 ->  | AJ15: =(VLOOKUP($S15,$B$73:$F$76,5,0)*($D15)*SCC!X$10)*100 ->  | AK15: =(VLOOKUP($S15,$B$73:$F$76,5,0)*($D15)*SCC!Y$10)*100 ->  | AL15: =(VLOOKUP($S15,$B$73:$F$76,5,0)*($D15)*SCC!Z$10)*100 ->  | AM15: =(VLOOKUP($S15,$B$73:$F$76,5,0)*($D15)*SCC!AA$10)*100 ->  | AN15: =(VLOOKUP($S15,$B$73:$F$76,5,0)*($D15)*SCC!AB$10)*100 ->  | AO15: =(VLOOKUP($S15,$B$73:$F$76,5,0)*($D15)*SCC!AC$10)*100 ->  | AP15: =(VLOOKUP($S15,$B$73:$F$76,5,0)*($D15)*SCC!AD$10)*100 ->  | AQ15: =(VLOOKUP($S15,$B$73:$F$76,5,0)*($D15)*SCC!AE$10)*100 ->  | AR15: =(VLOOKUP($S15,$B$73:$F$76,5,0)*($D15)*SCC!AF$10)*100 ->  | AS15: =(VLOOKUP($S15,$B$73:$F$76,5,0)*($D15)*SCC!AG$10)*100 ->  | AT15: =(VLOOKUP($S15,$B$73:$F$76,5,0)*($D15)*SCC!AH$10)*100 ->  | AU15: =(VLOOKUP($S15,$B$73:$F$76,5,0)*($D15)*SCC!AI$10)*100 ->  | AV15: =(VLOOKUP($S15,$B$73:$F$76,5,0)*($D15)*SCC!AJ$10)*100 ->  | AW15: =(VLOOKUP($S15,$B$73:$F$76,5,0)*($D15)*SCC!AK$10)*100 ->  | AX15: =(VLOOKUP($S15,$B$73:$F$76,5,0)*($D15)*SCC!AL$10)*100 ->  | AY15: =(VLOOKUP($S15,$B$73:$F$76,5,0)*($D15)*SCC!AM$10)*100 ->  | AZ15: =(VLOOKUP($S15,$B$73:$F$76,5,0)*($D15)*SCC!AN$10)*100 ->  | BA15: =(VLOOKUP($S15,$B$73:$F$76,5,0)*($D15)*SCC!AO$10)*100 ->  | BB15: =(VLOOKUP($S15,$B$73:$F$76,5,0)*($D15)*SCC!AP$10)*100 ->  | BC15: =(VLOOKUP($S15,$B$73:$F$76,5,0)*($D15)*SCC!AQ$10)*100 ->  | BD15: =(VLOOKUP($S15,$B$73:$F$76,5,0)*($D15)*SCC!AR$10)*100 ->  | BE15: =(VLOOKUP($S15,$B$73:$F$76,5,0)*($D15)*SCC!AS$10)*100 ->  | BF15: =(VLOOKUP($S15,$B$73:$F$76,5,0)*($D15)*SCC!AT$10)*100 ->  | BG15: =(VLOOKUP($S15,$B$73:$F$76,5,0)*($D15)*SCC!AU$10)*100 ->  | BH15: =(VLOOKUP($S15,$B$73:$F$76,5,0)*($D15)*SCC!AV$10)*100 ->  | BI15: =(VLOOKUP($S15,$B$73:$F$76,5,0)*($D15)*SCC!AW$10)*100 ->  | BJ15: =(VLOOKUP($S15,$B$73:$F$76,5,0)*($D15)*SCC!AX$10)*100 ->  | BK15: =(VLOOKUP($S15,$B$73:$F$76,5,0)*($D15)*SCC!AY$10)*100 ->  | BL15: =(VLOOKUP($S15,$B$73:$F$76,5,0)*($D15)*SCC!AZ$10)*100 ->  | BM15: =(VLOOKUP($S15,$B$73:$F$76,5,0)*($D15)*SCC!BA$10)*100 ->  | BN15: =(VLOOKUP($S15,$B$73:$F$76,5,0)*($D15)*SCC!BB$10)*100 ->  | BO15: =(VLOOKUP($S15,$B$73:$F$76,5,0)*($D15)*SCC!BC$10)*100 ->  | BP15: =(VLOOKUP($S15,$B$73:$F$76,5,0)*($D15)*SCC!BD$10)*100 ->  | BQ15: =(VLOOKUP($S15,$B$73:$F$76,5,0)*($D15)*SCC!BE$10)*100 ->  | BR15: =(VLOOKUP($S15,$B$73:$F$76,5,0)*($D15)*SCC!BF$10)*100 -> 
B16: =LCCA!B81 -> Is the seawall green or grey | C16: =LCCA!C81 -> List | D16: =LCCA!D81 -> Green | E16: =LCCA!E81 -> 0 | F16: =LCCA!F81 -> 0 | G16: =LCCA!G81 -> 0 | I16: 0 | N16: =IF(General!$D$21="Off",Carbon!F16,IF(OR(E16=0,F16=0,AND(E16=F16,F16=D16)),D16,_xlfn.BETA.INV(RAND(),Carbon!K16,Carbon!L16,Carbon!E16,Carbon!F16))) -> 0
B17: CORAL REEFS
B18: =LCCA!B92 -> Project area | C18: =LCCA!C92 -> m2 | D18: =LCCA!D92 -> 0 | E18: =LCCA!E92 -> 0 | F18: =LCCA!F92 -> 0 | I18: 0 | M18: 0 | N18: =IF(General!$D$21="Off",Carbon!F18,IF(OR(E18=F18,AND(E18=F18,F18=D18)),D18,_xlfn.BETA.INV(RAND(),Carbon!K18,Carbon!L18,Carbon!E18,Carbon!F18))) -> 0 | P18: Coral Reef Sequestration Value | Q18: =SUM(T18:BR18) -> 0 | S18: Coral Reefs | T18: =(VLOOKUP($S18,$B$73:$F$77,5,0)*($I18)*SCC!H$10)*Conversions!$B$25*T$5*T$33 -> 0 | U18: =(VLOOKUP($S18,$B$73:$F$77,5,0)*($I18)*SCC!I$10)*Conversions!$B$25*U$5*U$33 -> 0 | V18: =(VLOOKUP($S18,$B$73:$F$77,5,0)*($I18)*SCC!J$10)*Conversions!$B$25*V$5*V$33 -> 0 | W18: =(VLOOKUP($S18,$B$73:$F$77,5,0)*($I18)*SCC!K$10)*Conversions!$B$25*W$5*W$33 -> 0 | X18: =(VLOOKUP($S18,$B$73:$F$77,5,0)*($I18)*SCC!L$10)*Conversions!$B$25*X$5*X$33 -> 0 | Y18: =(VLOOKUP($S18,$B$73:$F$77,5,0)*($I18)*SCC!M$10)*Conversions!$B$25*Y$5*Y$33 -> 0 | Z18: =(VLOOKUP($S18,$B$73:$F$77,5,0)*($I18)*SCC!N$10)*Conversions!$B$25*Z$5*Z$33 -> 0 | AA18: =(VLOOKUP($S18,$B$73:$F$77,5,0)*($I18)*SCC!O$10)*Conversions!$B$25*AA$5*AA$33 -> 0 | AB18: =(VLOOKUP($S18,$B$73:$F$77,5,0)*($I18)*SCC!P$10)*Conversions!$B$25*AB$5*AB$33 -> 0 | AC18: =(VLOOKUP($S18,$B$73:$F$77,5,0)*($I18)*SCC!Q$10)*Conversions!$B$25*AC$5*AC$33 -> 0 | AD18: =(VLOOKUP($S18,$B$73:$F$77,5,0)*($I18)*SCC!R$10)*Conversions!$B$25*AD$5*AD$33 -> 0 | AE18: =(VLOOKUP($S18,$B$73:$F$77,5,0)*($I18)*SCC!S$10)*Conversions!$B$25*AE$5*AE$33 -> 0 | AF18: =(VLOOKUP($S18,$B$73:$F$77,5,0)*($I18)*SCC!T$10)*Conversions!$B$25*AF$5*AF$33 -> 0 | AG18: =(VLOOKUP($S18,$B$73:$F$77,5,0)*($I18)*SCC!U$10)*Conversions!$B$25*AG$5*AG$33 -> 0 | AH18: =(VLOOKUP($S18,$B$73:$F$77,5,0)*($I18)*SCC!V$10)*Conversions!$B$25*AH$5*AH$33 -> 0 | AI18: =(VLOOKUP($S18,$B$73:$F$77,5,0)*($I18)*SCC!W$10)*Conversions!$B$25*AI$5*AI$33 -> 0 | AJ18: =(VLOOKUP($S18,$B$73:$F$77,5,0)*($I18)*SCC!X$10)*Conversions!$B$25*AJ$5*AJ$33 -> 0 | AK18: =(VLOOKUP($S18,$B$73:$F$77,5,0)*($I18)*SCC!Y$10)*Conversions!$B$25*AK$5*AK$33 -> 0 | AL18: =(VLOOKUP($S18,$B$73:$F$77,5,0)*($I18)*SCC!Z$10)*Conversions!$B$25*AL$5*AL$33 -> 0 | AM18: =(VLOOKUP($S18,$B$73:$F$77,5,0)*($I18)*SCC!AA$10)*Conversions!$B$25*AM$5*AM$33 -> 0 | AN18: =(VLOOKUP($S18,$B$73:$F$77,5,0)*($I18)*SCC!AB$10)*Conversions!$B$25*AN$5*AN$33 -> 0 | AO18: =(VLOOKUP($S18,$B$73:$F$77,5,0)*($I18)*SCC!AC$10)*Conversions!$B$25*AO$5*AO$33 -> 0 | AP18: =(VLOOKUP($S18,$B$73:$F$77,5,0)*($I18)*SCC!AD$10)*Conversions!$B$25*AP$5*AP$33 -> 0 | AQ18: =(VLOOKUP($S18,$B$73:$F$77,5,0)*($I18)*SCC!AE$10)*Conversions!$B$25*AQ$5*AQ$33 -> 0 | AR18: =(VLOOKUP($S18,$B$73:$F$77,5,0)*($I18)*SCC!AF$10)*Conversions!$B$25*AR$5*AR$33 -> 0 | AS18: =(VLOOKUP($S18,$B$73:$F$77,5,0)*($I18)*SCC!AG$10)*Conversions!$B$25*AS$5*AS$33 -> 0 | AT18: =(VLOOKUP($S18,$B$73:$F$77,5,0)*($I18)*SCC!AH$10)*Conversions!$B$25*AT$5*AT$33 -> 0 | AU18: =(VLOOKUP($S18,$B$73:$F$77,5,0)*($I18)*SCC!AI$10)*Conversions!$B$25*AU$5*AU$33 -> 0 | AV18: =(VLOOKUP($S18,$B$73:$F$77,5,0)*($I18)*SCC!AJ$10)*Conversions!$B$25*AV$5*AV$33 -> 0 | AW18: =(VLOOKUP($S18,$B$73:$F$77,5,0)*($I18)*SCC!AK$10)*Conversions!$B$25*AW$5*AW$33 -> 0 | AX18: =(VLOOKUP($S18,$B$73:$F$77,5,0)*($I18)*SCC!AL$10)*Conversions!$B$25*AX$5*AX$33 -> 0 | AY18: =(VLOOKUP($S18,$B$73:$F$77,5,0)*($I18)*SCC!AM$10)*Conversions!$B$25*AY$5*AY$33 -> 0 | AZ18: =(VLOOKUP($S18,$B$73:$F$77,5,0)*($I18)*SCC!AN$10)*Conversions!$B$25*AZ$5*AZ$33 -> 0 | BA18: =(VLOOKUP($S18,$B$73:$F$77,5,0)*($I18)*SCC!AO$10)*Conversions!$B$25*BA$5*BA$33 -> 0 | BB18: =(VLOOKUP($S18,$B$73:$F$77,5,0)*($I18)*SCC!AP$10)*Conversions!$B$25*BB$5*BB$33 -> 0 | BC18: =(VLOOKUP($S18,$B$73:$F$77,5,0)*($I18)*SCC!AQ$10)*Conversions!$B$25*BC$5*BC$33 -> 0 | BD18: =(VLOOKUP($S18,$B$73:$F$77,5,0)*($I18)*SCC!AR$10)*Conversions!$B$25*BD$5*BD$33 -> 0 | BE18: =(VLOOKUP($S18,$B$73:$F$77,5,0)*($I18)*SCC!AS$10)*Conversions!$B$25*BE$5*BE$33 -> 0 | BF18: =(VLOOKUP($S18,$B$73:$F$77,5,0)*($I18)*SCC!AT$10)*Conversions!$B$25*BF$5*BF$33 -> 0 | BG18: =(VLOOKUP($S18,$B$73:$F$77,5,0)*($I18)*SCC!AU$10)*Conversions!$B$25*BG$5*BG$33 -> 0 | BH18: =(VLOOKUP($S18,$B$73:$F$77,5,0)*($I18)*SCC!AV$10)*Conversions!$B$25*BH$5*BH$33 -> 0 | BI18: =(VLOOKUP($S18,$B$73:$F$77,5,0)*($I18)*SCC!AW$10)*Conversions!$B$25*BI$5*BI$33 -> 0 | BJ18: =(VLOOKUP($S18,$B$73:$F$77,5,0)*($I18)*SCC!AX$10)*Conversions!$B$25*BJ$5*BJ$33 -> 0 | BK18: =(VLOOKUP($S18,$B$73:$F$77,5,0)*($I18)*SCC!AY$10)*Conversions!$B$25*BK$5*BK$33 -> 0 | BL18: =(VLOOKUP($S18,$B$73:$F$77,5,0)*($I18)*SCC!AZ$10)*Conversions!$B$25*BL$5*BL$33 -> 0 | BM18: =(VLOOKUP($S18,$B$73:$F$77,5,0)*($I18)*SCC!BA$10)*Conversions!$B$25*BM$5*BM$33 -> 0 | BN18: =(VLOOKUP($S18,$B$73:$F$77,5,0)*($I18)*SCC!BB$10)*Conversions!$B$25*BN$5*BN$33 -> 0 | BO18: =(VLOOKUP($S18,$B$73:$F$77,5,0)*($I18)*SCC!BC$10)*Conversions!$B$25*BO$5*BO$33 -> 0 | BP18: =(VLOOKUP($S18,$B$73:$F$77,5,0)*($I18)*SCC!BD$10)*Conversions!$B$25*BP$5*BP$33 -> 0 | BQ18: =(VLOOKUP($S18,$B$73:$F$77,5,0)*($I18)*SCC!BE$10)*Conversions!$B$25*BQ$5*BQ$33 -> 0 | BR18: =(VLOOKUP($S18,$B$73:$F$77,5,0)*($I18)*SCC!BF$10)*Conversions!$B$25*BR$5*BR$33 -> 0
B19: =LCCA!B93 -> Growth of project area per year | C19: =LCCA!C93 -> % | D19: =LCCA!D93 -> 0 | E19: =LCCA!E93 -> 0 | F19: =LCCA!F93 -> 0 | G19: =LCCA!G93 -> 0 | I19: 0 | M19: 0 | N19: =IF(General!$D$21="Off",Carbon!F19,IF(OR(E19=F19,AND(E19=F19,F19=D19)),D19,_xlfn.BETA.INV(RAND(),Carbon!K19,Carbon!L19,Carbon!E19,Carbon!F19))) -> 0 | S19: Tons of Carbon Sequestered | T19: =(((VLOOKUP(T$2,'Mangrove seq'!$A$14:$H$68,8,FALSE)+VLOOKUP(T$2,'Mangrove seq'!$A$72:$H$126,8,FALSE))*$C$59*($I6))+((VLOOKUP($S9,$B$73:$F$77,5,0))*($I9)*Conversions!$B$25)+((VLOOKUP($S12,$B$73:$F$77,5,0))*($I12)*Conversions!$B$25)+((VLOOKUP($S18,$B$73:$F$77,5,0))*($I18)*Conversions!$B$25))*T5 -> 0 | U19: =(((VLOOKUP(U$2,'Mangrove seq'!$A$14:$H$68,8,FALSE)+VLOOKUP(U$2,'Mangrove seq'!$A$72:$H$126,8,FALSE))*$C$59*($I6))+((VLOOKUP($S9,$B$73:$F$77,5,0))*($I9)*Conversions!$B$25)+((VLOOKUP($S12,$B$73:$F$77,5,0))*($I12)*Conversions!$B$25)+((VLOOKUP($S18,$B$73:$F$77,5,0))*($I18)*Conversions!$B$25))*U5 -> 0 | V19: =(((VLOOKUP(V$2,'Mangrove seq'!$A$14:$H$68,8,FALSE)+VLOOKUP(V$2,'Mangrove seq'!$A$72:$H$126,8,FALSE))*$C$59*($I6))+((VLOOKUP($S9,$B$73:$F$77,5,0))*($I9)*Conversions!$B$25)+((VLOOKUP($S12,$B$73:$F$77,5,0))*($I12)*Conversions!$B$25)+((VLOOKUP($S18,$B$73:$F$77,5,0))*($I18)*Conversions!$B$25))*V5 -> 0 | W19: =(((VLOOKUP(W$2,'Mangrove seq'!$A$14:$H$68,8,FALSE)+VLOOKUP(W$2,'Mangrove seq'!$A$72:$H$126,8,FALSE))*$C$59*($I6))+((VLOOKUP($S9,$B$73:$F$77,5,0))*($I9)*Conversions!$B$25)+((VLOOKUP($S12,$B$73:$F$77,5,0))*($I12)*Conversions!$B$25)+((VLOOKUP($S18,$B$73:$F$77,5,0))*($I18)*Conversions!$B$25))*W5 -> 0 | X19: =(((VLOOKUP(X$2,'Mangrove seq'!$A$14:$H$68,8,FALSE)+VLOOKUP(X$2,'Mangrove seq'!$A$72:$H$126,8,FALSE))*$C$59*($I6))+((VLOOKUP($S9,$B$73:$F$77,5,0))*($I9)*Conversions!$B$25)+((VLOOKUP($S12,$B$73:$F$77,5,0))*($I12)*Conversions!$B$25)+((VLOOKUP($S18,$B$73:$F$77,5,0))*($I18)*Conversions!$B$25))*X5 -> 0 | Y19: =(((VLOOKUP(Y$2,'Mangrove seq'!$A$14:$H$68,8,FALSE)+VLOOKUP(Y$2,'Mangrove seq'!$A$72:$H$126,8,FALSE))*$C$59*($I6))+((VLOOKUP($S9,$B$73:$F$77,5,0))*($I9)*Conversions!$B$25)+((VLOOKUP($S12,$B$73:$F$77,5,0))*($I12)*Conversions!$B$25)+((VLOOKUP($S18,$B$73:$F$77,5,0))*($I18)*Conversions!$B$25))*Y5 -> 0 | Z19: =(((VLOOKUP(Z$2,'Mangrove seq'!$A$14:$H$68,8,FALSE)+VLOOKUP(Z$2,'Mangrove seq'!$A$72:$H$126,8,FALSE))*$C$59*($I6))+((VLOOKUP($S9,$B$73:$F$77,5,0))*($I9)*Conversions!$B$25)+((VLOOKUP($S12,$B$73:$F$77,5,0))*($I12)*Conversions!$B$25)+((VLOOKUP($S18,$B$73:$F$77,5,0))*($I18)*Conversions!$B$25))*Z5 -> 0 | AA19: =(((VLOOKUP(AA$2,'Mangrove seq'!$A$14:$H$68,8,FALSE)+VLOOKUP(AA$2,'Mangrove seq'!$A$72:$H$126,8,FALSE))*$C$59*($I6))+((VLOOKUP($S9,$B$73:$F$77,5,0))*($I9)*Conversions!$B$25)+((VLOOKUP($S12,$B$73:$F$77,5,0))*($I12)*Conversions!$B$25)+((VLOOKUP($S18,$B$73:$F$77,5,0))*($I18)*Conversions!$B$25))*AA5 -> 0 | AB19: =(((VLOOKUP(AB$2,'Mangrove seq'!$A$14:$H$68,8,FALSE)+VLOOKUP(AB$2,'Mangrove seq'!$A$72:$H$126,8,FALSE))*$C$59*($I6))+((VLOOKUP($S9,$B$73:$F$77,5,0))*($I9)*Conversions!$B$25)+((VLOOKUP($S12,$B$73:$F$77,5,0))*($I12)*Conversions!$B$25)+((VLOOKUP($S18,$B$73:$F$77,5,0))*($I18)*Conversions!$B$25))*AB5 -> 0 | AC19: =(((VLOOKUP(AC$2,'Mangrove seq'!$A$14:$H$68,8,FALSE)+VLOOKUP(AC$2,'Mangrove seq'!$A$72:$H$126,8,FALSE))*$C$59*($I6))+((VLOOKUP($S9,$B$73:$F$77,5,0))*($I9)*Conversions!$B$25)+((VLOOKUP($S12,$B$73:$F$77,5,0))*($I12)*Conversions!$B$25)+((VLOOKUP($S18,$B$73:$F$77,5,0))*($I18)*Conversions!$B$25))*AC5 -> 0 | AD19: =(((VLOOKUP(AD$2,'Mangrove seq'!$A$14:$H$68,8,FALSE)+VLOOKUP(AD$2,'Mangrove seq'!$A$72:$H$126,8,FALSE))*$C$59*($I6))+((VLOOKUP($S9,$B$73:$F$77,5,0))*($I9)*Conversions!$B$25)+((VLOOKUP($S12,$B$73:$F$77,5,0))*($I12)*Conversions!$B$25)+((VLOOKUP($S18,$B$73:$F$77,5,0))*($I18)*Conversions!$B$25))*AD5 -> 0 | AE19: =(((VLOOKUP(AE$2,'Mangrove seq'!$A$14:$H$68,8,FALSE)+VLOOKUP(AE$2,'Mangrove seq'!$A$72:$H$126,8,FALSE))*$C$59*($I6))+((VLOOKUP($S9,$B$73:$F$77,5,0))*($I9)*Conversions!$B$25)+((VLOOKUP($S12,$B$73:$F$77,5,0))*($I12)*Conversions!$B$25)+((VLOOKUP($S18,$B$73:$F$77,5,0))*($I18)*Conversions!$B$25))*AE5 -> 0 | AF19: =(((VLOOKUP(AF$2,'Mangrove seq'!$A$14:$H$68,8,FALSE)+VLOOKUP(AF$2,'Mangrove seq'!$A$72:$H$126,8,FALSE))*$C$59*($I6))+((VLOOKUP($S9,$B$73:$F$77,5,0))*($I9)*Conversions!$B$25)+((VLOOKUP($S12,$B$73:$F$77,5,0))*($I12)*Conversions!$B$25)+((VLOOKUP($S18,$B$73:$F$77,5,0))*($I18)*Conversions!$B$25))*AF5 -> 0 | AG19: =(((VLOOKUP(AG$2,'Mangrove seq'!$A$14:$H$68,8,FALSE)+VLOOKUP(AG$2,'Mangrove seq'!$A$72:$H$126,8,FALSE))*$C$59*($I6))+((VLOOKUP($S9,$B$73:$F$77,5,0))*($I9)*Conversions!$B$25)+((VLOOKUP($S12,$B$73:$F$77,5,0))*($I12)*Conversions!$B$25)+((VLOOKUP($S18,$B$73:$F$77,5,0))*($I18)*Conversions!$B$25))*AG5 -> 0 | AH19: =(((VLOOKUP(AH$2,'Mangrove seq'!$A$14:$H$68,8,FALSE)+VLOOKUP(AH$2,'Mangrove seq'!$A$72:$H$126,8,FALSE))*$C$59*($I6))+((VLOOKUP($S9,$B$73:$F$77,5,0))*($I9)*Conversions!$B$25)+((VLOOKUP($S12,$B$73:$F$77,5,0))*($I12)*Conversions!$B$25)+((VLOOKUP($S18,$B$73:$F$77,5,0))*($I18)*Conversions!$B$25))*AH5 -> 0 | AI19: =(((VLOOKUP(AI$2,'Mangrove seq'!$A$14:$H$68,8,FALSE)+VLOOKUP(AI$2,'Mangrove seq'!$A$72:$H$126,8,FALSE))*$C$59*($I6))+((VLOOKUP($S9,$B$73:$F$77,5,0))*($I9)*Conversions!$B$25)+((VLOOKUP($S12,$B$73:$F$77,5,0))*($I12)*Conversions!$B$25)+((VLOOKUP($S18,$B$73:$F$77,5,0))*($I18)*Conversions!$B$25))*AI5 -> 0 | AJ19: =(((VLOOKUP(AJ$2,'Mangrove seq'!$A$14:$H$68,8,FALSE)+VLOOKUP(AJ$2,'Mangrove seq'!$A$72:$H$126,8,FALSE))*$C$59*($I6))+((VLOOKUP($S9,$B$73:$F$77,5,0))*($I9)*Conversions!$B$25)+((VLOOKUP($S12,$B$73:$F$77,5,0))*($I12)*Conversions!$B$25)+((VLOOKUP($S18,$B$73:$F$77,5,0))*($I18)*Conversions!$B$25))*AJ5 -> 0 | AK19: =(((VLOOKUP(AK$2,'Mangrove seq'!$A$14:$H$68,8,FALSE)+VLOOKUP(AK$2,'Mangrove seq'!$A$72:$H$126,8,FALSE))*$C$59*($I6))+((VLOOKUP($S9,$B$73:$F$77,5,0))*($I9)*Conversions!$B$25)+((VLOOKUP($S12,$B$73:$F$77,5,0))*($I12)*Conversions!$B$25)+((VLOOKUP($S18,$B$73:$F$77,5,0))*($I18)*Conversions!$B$25))*AK5 -> 0 | AL19: =(((VLOOKUP(AL$2,'Mangrove seq'!$A$14:$H$68,8,FALSE)+VLOOKUP(AL$2,'Mangrove seq'!$A$72:$H$126,8,FALSE))*$C$59*($I6))+((VLOOKUP($S9,$B$73:$F$77,5,0))*($I9)*Conversions!$B$25)+((VLOOKUP($S12,$B$73:$F$77,5,0))*($I12)*Conversions!$B$25)+((VLOOKUP($S18,$B$73:$F$77,5,0))*($I18)*Conversions!$B$25))*AL5 -> 0 | AM19: =(((VLOOKUP(AM$2,'Mangrove seq'!$A$14:$H$68,8,FALSE)+VLOOKUP(AM$2,'Mangrove seq'!$A$72:$H$126,8,FALSE))*$C$59*($I6))+((VLOOKUP($S9,$B$73:$F$77,5,0))*($I9)*Conversions!$B$25)+((VLOOKUP($S12,$B$73:$F$77,5,0))*($I12)*Conversions!$B$25)+((VLOOKUP($S18,$B$73:$F$77,5,0))*($I18)*Conversions!$B$25))*AM5 -> 0 | AN19: =(((VLOOKUP(AN$2,'Mangrove seq'!$A$14:$H$68,8,FALSE)+VLOOKUP(AN$2,'Mangrove seq'!$A$72:$H$126,8,FALSE))*$C$59*($I6))+((VLOOKUP($S9,$B$73:$F$77,5,0))*($I9)*Conversions!$B$25)+((VLOOKUP($S12,$B$73:$F$77,5,0))*($I12)*Conversions!$B$25)+((VLOOKUP($S18,$B$73:$F$77,5,0))*($I18)*Conversions!$B$25))*AN5 -> 0 | AO19: =(((VLOOKUP(AO$2,'Mangrove seq'!$A$14:$H$68,8,FALSE)+VLOOKUP(AO$2,'Mangrove seq'!$A$72:$H$126,8,FALSE))*$C$59*($I6))+((VLOOKUP($S9,$B$73:$F$77,5,0))*($I9)*Conversions!$B$25)+((VLOOKUP($S12,$B$73:$F$77,5,0))*($I12)*Conversions!$B$25)+((VLOOKUP($S18,$B$73:$F$77,5,0))*($I18)*Conversions!$B$25))*AO5 -> 0 | AP19: =(((VLOOKUP(AP$2,'Mangrove seq'!$A$14:$H$68,8,FALSE)+VLOOKUP(AP$2,'Mangrove seq'!$A$72:$H$126,8,FALSE))*$C$59*($I6))+((VLOOKUP($S9,$B$73:$F$77,5,0))*($I9)*Conversions!$B$25)+((VLOOKUP($S12,$B$73:$F$77,5,0))*($I12)*Conversions!$B$25)+((VLOOKUP($S18,$B$73:$F$77,5,0))*($I18)*Conversions!$B$25))*AP5 -> 0 | AQ19: =(((VLOOKUP(AQ$2,'Mangrove seq'!$A$14:$H$68,8,FALSE)+VLOOKUP(AQ$2,'Mangrove seq'!$A$72:$H$126,8,FALSE))*$C$59*($I6))+((VLOOKUP($S9,$B$73:$F$77,5,0))*($I9)*Conversions!$B$25)+((VLOOKUP($S12,$B$73:$F$77,5,0))*($I12)*Conversions!$B$25)+((VLOOKUP($S18,$B$73:$F$77,5,0))*($I18)*Conversions!$B$25))*AQ5 -> 0 | AR19: =(((VLOOKUP(AR$2,'Mangrove seq'!$A$14:$H$68,8,FALSE)+VLOOKUP(AR$2,'Mangrove seq'!$A$72:$H$126,8,FALSE))*$C$59*($I6))+((VLOOKUP($S9,$B$73:$F$77,5,0))*($I9)*Conversions!$B$25)+((VLOOKUP($S12,$B$73:$F$77,5,0))*($I12)*Conversions!$B$25)+((VLOOKUP($S18,$B$73:$F$77,5,0))*($I18)*Conversions!$B$25))*AR5 -> 0 | AS19: =(((VLOOKUP(AS$2,'Mangrove seq'!$A$14:$H$68,8,FALSE)+VLOOKUP(AS$2,'Mangrove seq'!$A$72:$H$126,8,FALSE))*$C$59*($I6))+((VLOOKUP($S9,$B$73:$F$77,5,0))*($I9)*Conversions!$B$25)+((VLOOKUP($S12,$B$73:$F$77,5,0))*($I12)*Conversions!$B$25)+((VLOOKUP($S18,$B$73:$F$77,5,0))*($I18)*Conversions!$B$25))*AS5 -> 0 | AT19: =(((VLOOKUP(AT$2,'Mangrove seq'!$A$14:$H$68,8,FALSE)+VLOOKUP(AT$2,'Mangrove seq'!$A$72:$H$126,8,FALSE))*$C$59*($I6))+((VLOOKUP($S9,$B$73:$F$77,5,0))*($I9)*Conversions!$B$25)+((VLOOKUP($S12,$B$73:$F$77,5,0))*($I12)*Conversions!$B$25)+((VLOOKUP($S18,$B$73:$F$77,5,0))*($I18)*Conversions!$B$25))*AT5 -> 0 | AU19: =(((VLOOKUP(AU$2,'Mangrove seq'!$A$14:$H$68,8,FALSE)+VLOOKUP(AU$2,'Mangrove seq'!$A$72:$H$126,8,FALSE))*$C$59*($I6))+((VLOOKUP($S9,$B$73:$F$77,5,0))*($I9)*Conversions!$B$25)+((VLOOKUP($S12,$B$73:$F$77,5,0))*($I12)*Conversions!$B$25)+((VLOOKUP($S18,$B$73:$F$77,5,0))*($I18)*Conversions!$B$25))*AU5 -> 0 | AV19: =(((VLOOKUP(AV$2,'Mangrove seq'!$A$14:$H$68,8,FALSE)+VLOOKUP(AV$2,'Mangrove seq'!$A$72:$H$126,8,FALSE))*$C$59*($I6))+((VLOOKUP($S9,$B$73:$F$77,5,0))*($I9)*Conversions!$B$25)+((VLOOKUP($S12,$B$73:$F$77,5,0))*($I12)*Conversions!$B$25)+((VLOOKUP($S18,$B$73:$F$77,5,0))*($I18)*Conversions!$B$25))*AV5 -> 0 | AW19: =(((VLOOKUP(AW$2,'Mangrove seq'!$A$14:$H$68,8,FALSE)+VLOOKUP(AW$2,'Mangrove seq'!$A$72:$H$126,8,FALSE))*$C$59*($I6))+((VLOOKUP($S9,$B$73:$F$77,5,0))*($I9)*Conversions!$B$25)+((VLOOKUP($S12,$B$73:$F$77,5,0))*($I12)*Conversions!$B$25)+((VLOOKUP($S18,$B$73:$F$77,5,0))*($I18)*Conversions!$B$25))*AW5 -> 0 | AX19: =(((VLOOKUP(AX$2,'Mangrove seq'!$A$14:$H$68,8,FALSE)+VLOOKUP(AX$2,'Mangrove seq'!$A$72:$H$126,8,FALSE))*$C$59*($I6))+((VLOOKUP($S9,$B$73:$F$77,5,0))*($I9)*Conversions!$B$25)+((VLOOKUP($S12,$B$73:$F$77,5,0))*($I12)*Conversions!$B$25)+((VLOOKUP($S18,$B$73:$F$77,5,0))*($I18)*Conversions!$B$25))*AX5 -> 0 | AY19: =(((VLOOKUP(AY$2,'Mangrove seq'!$A$14:$H$68,8,FALSE)+VLOOKUP(AY$2,'Mangrove seq'!$A$72:$H$126,8,FALSE))*$C$59*($I6))+((VLOOKUP($S9,$B$73:$F$77,5,0))*($I9)*Conversions!$B$25)+((VLOOKUP($S12,$B$73:$F$77,5,0))*($I12)*Conversions!$B$25)+((VLOOKUP($S18,$B$73:$F$77,5,0))*($I18)*Conversions!$B$25))*AY5 -> 0 | AZ19: =(((VLOOKUP(AZ$2,'Mangrove seq'!$A$14:$H$68,8,FALSE)+VLOOKUP(AZ$2,'Mangrove seq'!$A$72:$H$126,8,FALSE))*$C$59*($I6))+((VLOOKUP($S9,$B$73:$F$77,5,0))*($I9)*Conversions!$B$25)+((VLOOKUP($S12,$B$73:$F$77,5,0))*($I12)*Conversions!$B$25)+((VLOOKUP($S18,$B$73:$F$77,5,0))*($I18)*Conversions!$B$25))*AZ5 -> 0 | BA19: =(((VLOOKUP(BA$2,'Mangrove seq'!$A$14:$H$68,8,FALSE)+VLOOKUP(BA$2,'Mangrove seq'!$A$72:$H$126,8,FALSE))*$C$59*($I6))+((VLOOKUP($S9,$B$73:$F$77,5,0))*($I9)*Conversions!$B$25)+((VLOOKUP($S12,$B$73:$F$77,5,0))*($I12)*Conversions!$B$25)+((VLOOKUP($S18,$B$73:$F$77,5,0))*($I18)*Conversions!$B$25))*BA5 -> 0 | BB19: =(((VLOOKUP(BB$2,'Mangrove seq'!$A$14:$H$68,8,FALSE)+VLOOKUP(BB$2,'Mangrove seq'!$A$72:$H$126,8,FALSE))*$C$59*($I6))+((VLOOKUP($S9,$B$73:$F$77,5,0))*($I9)*Conversions!$B$25)+((VLOOKUP($S12,$B$73:$F$77,5,0))*($I12)*Conversions!$B$25)+((VLOOKUP($S18,$B$73:$F$77,5,0))*($I18)*Conversions!$B$25))*BB5 -> 0 | BC19: =(((VLOOKUP(BC$2,'Mangrove seq'!$A$14:$H$68,8,FALSE)+VLOOKUP(BC$2,'Mangrove seq'!$A$72:$H$126,8,FALSE))*$C$59*($I6))+((VLOOKUP($S9,$B$73:$F$77,5,0))*($I9)*Conversions!$B$25)+((VLOOKUP($S12,$B$73:$F$77,5,0))*($I12)*Conversions!$B$25)+((VLOOKUP($S18,$B$73:$F$77,5,0))*($I18)*Conversions!$B$25))*BC5 -> 0 | BD19: =(((VLOOKUP(BD$2,'Mangrove seq'!$A$14:$H$68,8,FALSE)+VLOOKUP(BD$2,'Mangrove seq'!$A$72:$H$126,8,FALSE))*$C$59*($I6))+((VLOOKUP($S9,$B$73:$F$77,5,0))*($I9)*Conversions!$B$25)+((VLOOKUP($S12,$B$73:$F$77,5,0))*($I12)*Conversions!$B$25)+((VLOOKUP($S18,$B$73:$F$77,5,0))*($I18)*Conversions!$B$25))*BD5 -> 0 | BE19: =(((VLOOKUP(BE$2,'Mangrove seq'!$A$14:$H$68,8,FALSE)+VLOOKUP(BE$2,'Mangrove seq'!$A$72:$H$126,8,FALSE))*$C$59*($I6))+((VLOOKUP($S9,$B$73:$F$77,5,0))*($I9)*Conversions!$B$25)+((VLOOKUP($S12,$B$73:$F$77,5,0))*($I12)*Conversions!$B$25)+((VLOOKUP($S18,$B$73:$F$77,5,0))*($I18)*Conversions!$B$25))*BE5 -> 0 | BF19: =(((VLOOKUP(BF$2,'Mangrove seq'!$A$14:$H$68,8,FALSE)+VLOOKUP(BF$2,'Mangrove seq'!$A$72:$H$126,8,FALSE))*$C$59*($I6))+((VLOOKUP($S9,$B$73:$F$77,5,0))*($I9)*Conversions!$B$25)+((VLOOKUP($S12,$B$73:$F$77,5,0))*($I12)*Conversions!$B$25)+((VLOOKUP($S18,$B$73:$F$77,5,0))*($I18)*Conversions!$B$25))*BF5 -> 0 | BG19: =(((VLOOKUP(BG$2,'Mangrove seq'!$A$14:$H$68,8,FALSE)+VLOOKUP(BG$2,'Mangrove seq'!$A$72:$H$126,8,FALSE))*$C$59*($I6))+((VLOOKUP($S9,$B$73:$F$77,5,0))*($I9)*Conversions!$B$25)+((VLOOKUP($S12,$B$73:$F$77,5,0))*($I12)*Conversions!$B$25)+((VLOOKUP($S18,$B$73:$F$77,5,0))*($I18)*Conversions!$B$25))*BG5 -> 0 | BH19: =(((VLOOKUP(BH$2,'Mangrove seq'!$A$14:$H$68,8,FALSE)+VLOOKUP(BH$2,'Mangrove seq'!$A$72:$H$126,8,FALSE))*$C$59*($I6))+((VLOOKUP($S9,$B$73:$F$77,5,0))*($I9)*Conversions!$B$25)+((VLOOKUP($S12,$B$73:$F$77,5,0))*($I12)*Conversions!$B$25)+((VLOOKUP($S18,$B$73:$F$77,5,0))*($I18)*Conversions!$B$25))*BH5 -> 0 | BI19: =(((VLOOKUP(BI$2,'Mangrove seq'!$A$14:$H$68,8,FALSE)+VLOOKUP(BI$2,'Mangrove seq'!$A$72:$H$126,8,FALSE))*$C$59*($I6))+((VLOOKUP($S9,$B$73:$F$77,5,0))*($I9)*Conversions!$B$25)+((VLOOKUP($S12,$B$73:$F$77,5,0))*($I12)*Conversions!$B$25)+((VLOOKUP($S18,$B$73:$F$77,5,0))*($I18)*Conversions!$B$25))*BI5 -> 0 | BJ19: =(((VLOOKUP(BJ$2,'Mangrove seq'!$A$14:$H$68,8,FALSE)+VLOOKUP(BJ$2,'Mangrove seq'!$A$72:$H$126,8,FALSE))*$C$59*($I6))+((VLOOKUP($S9,$B$73:$F$77,5,0))*($I9)*Conversions!$B$25)+((VLOOKUP($S12,$B$73:$F$77,5,0))*($I12)*Conversions!$B$25)+((VLOOKUP($S18,$B$73:$F$77,5,0))*($I18)*Conversions!$B$25))*BJ5 -> 0 | BK19: =(((VLOOKUP(BK$2,'Mangrove seq'!$A$14:$H$68,8,FALSE)+VLOOKUP(BK$2,'Mangrove seq'!$A$72:$H$126,8,FALSE))*$C$59*($I6))+((VLOOKUP($S9,$B$73:$F$77,5,0))*($I9)*Conversions!$B$25)+((VLOOKUP($S12,$B$73:$F$77,5,0))*($I12)*Conversions!$B$25)+((VLOOKUP($S18,$B$73:$F$77,5,0))*($I18)*Conversions!$B$25))*BK5 -> 0 | BL19: =(((VLOOKUP(BL$2,'Mangrove seq'!$A$14:$H$68,8,FALSE)+VLOOKUP(BL$2,'Mangrove seq'!$A$72:$H$126,8,FALSE))*$C$59*($I6))+((VLOOKUP($S9,$B$73:$F$77,5,0))*($I9)*Conversions!$B$25)+((VLOOKUP($S12,$B$73:$F$77,5,0))*($I12)*Conversions!$B$25)+((VLOOKUP($S18,$B$73:$F$77,5,0))*($I18)*Conversions!$B$25))*BL5 -> 0 | BM19: =(((VLOOKUP(BM$2,'Mangrove seq'!$A$14:$H$68,8,FALSE)+VLOOKUP(BM$2,'Mangrove seq'!$A$72:$H$126,8,FALSE))*$C$59*($I6))+((VLOOKUP($S9,$B$73:$F$77,5,0))*($I9)*Conversions!$B$25)+((VLOOKUP($S12,$B$73:$F$77,5,0))*($I12)*Conversions!$B$25)+((VLOOKUP($S18,$B$73:$F$77,5,0))*($I18)*Conversions!$B$25))*BM5 -> 0 | BN19: =(((VLOOKUP(BN$2,'Mangrove seq'!$A$14:$H$68,8,FALSE)+VLOOKUP(BN$2,'Mangrove seq'!$A$72:$H$126,8,FALSE))*$C$59*($I6))+((VLOOKUP($S9,$B$73:$F$77,5,0))*($I9)*Conversions!$B$25)+((VLOOKUP($S12,$B$73:$F$77,5,0))*($I12)*Conversions!$B$25)+((VLOOKUP($S18,$B$73:$F$77,5,0))*($I18)*Conversions!$B$25))*BN5 -> 0 | BO19: =(((VLOOKUP(BO$2,'Mangrove seq'!$A$14:$H$68,8,FALSE)+VLOOKUP(BO$2,'Mangrove seq'!$A$72:$H$126,8,FALSE))*$C$59*($I6))+((VLOOKUP($S9,$B$73:$F$77,5,0))*($I9)*Conversions!$B$25)+((VLOOKUP($S12,$B$73:$F$77,5,0))*($I12)*Conversions!$B$25)+((VLOOKUP($S18,$B$73:$F$77,5,0))*($I18)*Conversions!$B$25))*BO5 -> 0 | BP19: =(((VLOOKUP(BP$2,'Mangrove seq'!$A$14:$H$68,8,FALSE)+VLOOKUP(BP$2,'Mangrove seq'!$A$72:$H$126,8,FALSE))*$C$59*($I6))+((VLOOKUP($S9,$B$73:$F$77,5,0))*($I9)*Conversions!$B$25)+((VLOOKUP($S12,$B$73:$F$77,5,0))*($I12)*Conversions!$B$25)+((VLOOKUP($S18,$B$73:$F$77,5,0))*($I18)*Conversions!$B$25))*BP5 -> 0 | BQ19: =(((VLOOKUP(BQ$2,'Mangrove seq'!$A$14:$H$68,8,FALSE)+VLOOKUP(BQ$2,'Mangrove seq'!$A$72:$H$126,8,FALSE))*$C$59*($I6))+((VLOOKUP($S9,$B$73:$F$77,5,0))*($I9)*Conversions!$B$25)+((VLOOKUP($S12,$B$73:$F$77,5,0))*($I12)*Conversions!$B$25)+((VLOOKUP($S18,$B$73:$F$77,5,0))*($I18)*Conversions!$B$25))*BQ5 -> 0 | BR19: =(((VLOOKUP(BR$2,'Mangrove seq'!$A$14:$H$68,8,FALSE)+VLOOKUP(BR$2,'Mangrove seq'!$A$72:$H$126,8,FALSE))*$C$59*($I6))+((VLOOKUP($S9,$B$73:$F$77,5,0))*($I9)*Conversions!$B$25)+((VLOOKUP($S12,$B$73:$F$77,5,0))*($I12)*Conversions!$B$25)+((VLOOKUP($S18,$B$73:$F$77,5,0))*($I18)*Conversions!$B$25))*BR5 -> 0
B20: ='Typology Inputs'!B22 -> ROCK BREAKWATER | P20: Embodied carbon value | Q20: =SUM(T27:BR27) -> 0
B21: ='Typology Inputs'!B24 -> Length of rock breakwaters | C21: ='Typology Inputs'!C24 -> m | D21: ='Typology Inputs'!D24 -> 0 | E21: ='Typology Inputs'!E24 -> 0 | F21: ='Typology Inputs'!F24 -> 0 | I21: 0 | K21: =(M21-E21)/(F21-E21) ->  | L21: =6-K21 ->  | M21: =(E21+(D21*4)+F21)/6 -> 0 | N21: =IF(General!$D$21="Off",Carbon!F21,IF(OR(E21=F21,AND(E21=F21,F21=D21)),D21,_xlfn.BETA.INV(RAND(),Carbon!K21,Carbon!L21,Carbon!E21,Carbon!F21))) -> 0 | P21: Carbon sequestration | Q21: =SUM(Q6,Q9,Q12,Q18) -> 0 | S21: Emobodied Carbon
B22: ='Typology Inputs'!B25 -> Growth of project area per year | C22: ='Typology Inputs'!C25 -> % | D22: ='Typology Inputs'!D25 -> 0 | E22: ='Typology Inputs'!E25 -> 0 | F22: ='Typology Inputs'!F25 -> 0 | G22: ='Typology Inputs'!G25 -> 0 | I22: 0 | K22: =(M22-E22)/(F22-E22) ->  | L22: =6-K22 ->  | M22: =(E22+(D22*4)+F22)/6 -> 0 | N22: =IF(General!$D$21="Off",Carbon!F22,IF(OR(E22=F22,AND(E22=F22,F22=D22)),D22,_xlfn.BETA.INV(RAND(),Carbon!K22,Carbon!L22,Carbon!E22,Carbon!F22))) -> 0 | S22: Rockbreakwater | T22: =$N$81*$I36*$I$21*T$33 -> 0 | U22: =$N$81*$I36*$I$21*U$33 -> 0 | V22: 0 | W22: 0 | X22: 0 | Y22: 0 | Z22: 0 | AA22: 0 | AB22: 0 | AC22: 0 | AD22: 0 | AE22: 0 | AF22: 0 | AG22: 0 | AH22: 0 | AI22: 0 | AJ22: 0 | AK22: 0 | AL22: 0 | AM22: 0 | AN22: 0 | AO22: 0 | AP22: 0 | AQ22: 0 | AR22: 0 | AS22: 0 | AT22: 0 | AU22: 0 | AV22: 0 | AW22: 0 | AX22: 0 | AY22: 0 | AZ22: 0 | BA22: 0 | BB22: 0 | BC22: 0 | BD22: 0 | BE22: 0 | BF22: 0 | BG22: 0 | BH22: 0 | BI22: 0 | BJ22: 0 | BK22: 0 | BL22: 0 | BM22: 0 | BN22: 0 | BO22: 0 | BP22: 0 | BQ22: 0 | BR22: 0
B23: ='Typology Inputs'!B26 -> EARTHEN LEVEE | S23: Earthen Levee | T23: =$N$81*$I37*$I$24*T$33 -> 0 | U23: =$N$81*$I37*$I$24*U$33 -> 0 | V23: 0 | W23: 0 | X23: 0 | Y23: 0 | Z23: 0 | AA23: 0 | AB23: 0 | AC23: 0 | AD23: 0 | AE23: 0 | AF23: 0 | AG23: 0 | AH23: 0 | AI23: 0 | AJ23: 0 | AK23: 0 | AL23: 0 | AM23: 0 | AN23: 0 | AO23: 0 | AP23: 0 | AQ23: 0 | AR23: 0 | AS23: 0 | AT23: 0 | AU23: 0 | AV23: 0 | AW23: 0 | AX23: 0 | AY23: 0 | AZ23: 0 | BA23: 0 | BB23: 0 | BC23: 0 | BD23: 0 | BE23: 0 | BF23: 0 | BG23: 0 | BH23: 0 | BI23: 0 | BJ23: 0 | BK23: 0 | BL23: 0 | BM23: 0 | BN23: 0 | BO23: 0 | BP23: 0 | BQ23: 0 | BR23: 0
B24: ='Typology Inputs'!B28 -> Length of the levee | C24: ='Typology Inputs'!C28 -> m | D24: ='Typology Inputs'!D28 -> 0 | E24: ='Typology Inputs'!E28 -> 0 | F24: ='Typology Inputs'!F28 -> 0 | I24: 0 | K24: =(M24-E24)/(F24-E24) ->  | L24: =6-K24 ->  | M24: =(E24+(D24*4)+F24)/6 -> 0 | N24: =IF(General!$D$21="Off",Carbon!F24,IF(OR(E24=F24,AND(E24=F24,F24=D24)),D24,_xlfn.BETA.INV(RAND(),Carbon!K24,Carbon!L24,Carbon!E24,Carbon!F24))) -> 0 | S24: Sea wall | T24: =$N$81*$I38*$I$27*T$33 -> 0 | U24: =$N$81*$I38*$I$27*U$33 -> 0 | V24: 0 | W24: 0 | X24: 0 | Y24: 0 | Z24: 0 | AA24: 0 | AB24: 0 | AC24: 0 | AD24: 0 | AE24: 0 | AF24: 0 | AG24: 0 | AH24: 0 | AI24: 0 | AJ24: 0 | AK24: 0 | AL24: 0 | AM24: 0 | AN24: 0 | AO24: 0 | AP24: 0 | AQ24: 0 | AR24: 0 | AS24: 0 | AT24: 0 | AU24: 0 | AV24: 0 | AW24: 0 | AX24: 0 | AY24: 0 | AZ24: 0 | BA24: 0 | BB24: 0 | BC24: 0 | BD24: 0 | BE24: 0 | BF24: 0 | BG24: 0 | BH24: 0 | BI24: 0 | BJ24: 0 | BK24: 0 | BL24: 0 | BM24: 0 | BN24: 0 | BO24: 0 | BP24: 0 | BQ24: 0 | BR24: 0
B25: ='Typology Inputs'!B29 -> Growth of project area per year | C25: ='Typology Inputs'!C29 -> % | D25: ='Typology Inputs'!D29 -> 0 | E25: ='Typology Inputs'!E29 -> 0 | F25: ='Typology Inputs'!F29 -> 0 | G25: ='Typology Inputs'!G29 -> 0 | I25: 0 | K25: =(M25-E25)/(F25-E25) ->  | L25: =6-K25 ->  | M25: =(E25+(D25*4)+F25)/6 -> 0 | N25: =IF(General!$D$21="Off",Carbon!F25,IF(OR(E25=F25,AND(E25=F25,F25=D25)),D25,_xlfn.BETA.INV(RAND(),Carbon!K25,Carbon!L25,Carbon!E25,Carbon!F25))) -> 0 | S25: Coastal system | T25: =$N$81*$I39*$I$31*T$33 -> 0 | U25: =$N$81*$I39*$I$31*U$33 -> 0 | V25: 0 | W25: 0 | X25: 0 | Y25: 0 | Z25: 0 | AA25: 0 | AB25: 0 | AC25: 0 | AD25: 0 | AE25: 0 | AF25: 0 | AG25: 0 | AH25: 0 | AI25: 0 | AJ25: 0 | AK25: 0 | AL25: 0 | AM25: 0 | AN25: 0 | AO25: 0 | AP25: 0 | AQ25: 0 | AR25: 0 | AS25: 0 | AT25: 0 | AU25: 0 | AV25: 0 | AW25: 0 | AX25: 0 | AY25: 0 | AZ25: 0 | BA25: 0 | BB25: 0 | BC25: 0 | BD25: 0 | BE25: 0 | BF25: 0 | BG25: 0 | BH25: 0 | BI25: 0 | BJ25: 0 | BK25: 0 | BL25: 0 | BM25: 0 | BN25: 0 | BO25: 0 | BP25: 0 | BQ25: 0 | BR25: 0
B26: ='Typology Inputs'!B30 -> SEAWALL
B27: ='Typology Inputs'!B32 -> Length of the seawall | C27: ='Typology Inputs'!C32 -> m | D27: ='Typology Inputs'!D32 -> 0 | E27: ='Typology Inputs'!E32 -> 0 | F27: ='Typology Inputs'!F32 -> 0 | I27: 0 | K27: =(M27-E27)/(F27-E27) ->  | L27: =6-K27 ->  | M27: =(E27+(D27*4)+F27)/6 -> 0 | N27: =IF(General!$D$21="Off",Carbon!F27,IF(OR(E27=F27,AND(E27=F27,F27=D27)),D27,_xlfn.BETA.INV(RAND(),Carbon!K27,Carbon!L27,Carbon!E27,Carbon!F27))) -> 0 | S27: Total Value of embodied carbon | T27: =-SUM(T22:T25)*SCC!H$10*T5 -> 0 | U27: =-SUM(U22:U25)*SCC!I$10*U5 -> 0 | V27: =-SUM(V22:V25)*SCC!J$10*V5 -> 0 | W27: =-SUM(W22:W25)*SCC!K$10*W5 -> 0 | X27: =-SUM(X22:X25)*SCC!L$10*X5 -> 0 | Y27: =-SUM(Y22:Y25)*SCC!M$10*Y5 -> 0 | Z27: =-SUM(Z22:Z25)*SCC!N$10*Z5 -> 0 | AA27: =-SUM(AA22:AA25)*SCC!O$10*AA5 -> 0 | AB27: =-SUM(AB22:AB25)*SCC!P$10*AB5 -> 0 | AC27: =-SUM(AC22:AC25)*SCC!Q$10*AC5 -> 0 | AD27: =-SUM(AD22:AD25)*SCC!R$10*AD5 -> 0 | AE27: =-SUM(AE22:AE25)*SCC!S$10*AE5 -> 0 | AF27: =-SUM(AF22:AF25)*SCC!T$10*AF5 -> 0 | AG27: =-SUM(AG22:AG25)*SCC!U$10*AG5 -> 0 | AH27: =-SUM(AH22:AH25)*SCC!V$10*AH5 -> 0 | AI27: =-SUM(AI22:AI25)*SCC!W$10*AI5 -> 0 | AJ27: =-SUM(AJ22:AJ25)*SCC!X$10*AJ5 -> 0 | AK27: =-SUM(AK22:AK25)*SCC!Y$10*AK5 -> 0 | AL27: =-SUM(AL22:AL25)*SCC!Z$10*AL5 -> 0 | AM27: =-SUM(AM22:AM25)*SCC!AA$10*AM5 -> 0 | AN27: =-SUM(AN22:AN25)*SCC!AB$10*AN5 -> 0 | AO27: =-SUM(AO22:AO25)*SCC!AC$10*AO5 -> 0 | AP27: =-SUM(AP22:AP25)*SCC!AD$10*AP5 -> 0 | AQ27: =-SUM(AQ22:AQ25)*SCC!AE$10*AQ5 -> 0 | AR27: =-SUM(AR22:AR25)*SCC!AF$10*AR5 -> 0 | AS27: =-SUM(AS22:AS25)*SCC!AG$10*AS5 -> 0 | AT27: =-SUM(AT22:AT25)*SCC!AH$10*AT5 -> 0 | AU27: =-SUM(AU22:AU25)*SCC!AI$10*AU5 -> 0 | AV27: =-SUM(AV22:AV25)*SCC!AJ$10*AV5 -> 0 | AW27: =-SUM(AW22:AW25)*SCC!AK$10*AW5 -> 0 | AX27: =-SUM(AX22:AX25)*SCC!AL$10*AX5 -> 0 | AY27: =-SUM(AY22:AY25)*SCC!AM$10*AY5 -> 0 | AZ27: =-SUM(AZ22:AZ25)*SCC!AN$10*AZ5 -> 0 | BA27: =-SUM(BA22:BA25)*SCC!AO$10*BA5 -> 0 | BB27: =-SUM(BB22:BB25)*SCC!AP$10*BB5 -> 0 | BC27: =-SUM(BC22:BC25)*SCC!AQ$10*BC5 -> 0 | BD27: =-SUM(BD22:BD25)*SCC!AR$10*BD5 -> 0 | BE27: =-SUM(BE22:BE25)*SCC!AS$10*BE5 -> 0 | BF27: =-SUM(BF22:BF25)*SCC!AT$10*BF5 -> 0 | BG27: =-SUM(BG22:BG25)*SCC!AU$10*BG5 -> 0 | BH27: =-SUM(BH22:BH25)*SCC!AV$10*BH5 -> 0 | BI27: =-SUM(BI22:BI25)*SCC!AW$10*BI5 -> 0 | BJ27: =-SUM(BJ22:BJ25)*SCC!AX$10*BJ5 -> 0 | BK27: =-SUM(BK22:BK25)*SCC!AY$10*BK5 -> 0 | BL27: =-SUM(BL22:BL25)*SCC!AZ$10*BL5 -> 0 | BM27: =-SUM(BM22:BM25)*SCC!BA$10*BM5 -> 0 | BN27: =-SUM(BN22:BN25)*SCC!BB$10*BN5 -> 0 | BO27: =-SUM(BO22:BO25)*SCC!BC$10*BO5 -> 0 | BP27: =-SUM(BP22:BP25)*SCC!BD$10*BP5 -> 0 | BQ27: =-SUM(BQ22:BQ25)*SCC!BE$10*BQ5 -> 0 | BR27: =-SUM(BR22:BR25)*SCC!BF$10*BR5 -> 0
B28: ='Typology Inputs'!B34 -> Growth of project area per year | C28: ='Typology Inputs'!C34 -> % | D28: ='Typology Inputs'!D34 -> 0 | E28: ='Typology Inputs'!E34 -> 0 | F28: ='Typology Inputs'!F34 -> 0 | G28: ='Typology Inputs'!G34 -> 0 | I28: 0 | K28: =(M28-E28)/(F28-E28) ->  | L28: =6-K28 ->  | M28: =(E28+(D28*4)+F28)/6 -> 0 | N28: =IF(General!$D$21="Off",Carbon!F28,IF(OR(E28=F28,AND(E28=F28,F28=D28)),D28,_xlfn.BETA.INV(RAND(),Carbon!K28,Carbon!L28,Carbon!E28,Carbon!F28))) -> 0 | S28: Annual cashflows | T28: =(T27+T18+T12+T9+T6) -> 0 | U28: 0 | V28: 0 | W28: 0 | X28: 0 | Y28: 0 | Z28: 0 | AA28: 0 | AB28: 0 | AC28: 0 | AD28: 0 | AE28: 0 | AF28: 0 | AG28: 0 | AH28: 0 | AI28: 0 | AJ28: 0 | AK28: 0 | AL28: 0 | AM28: 0 | AN28: 0 | AO28: 0 | AP28: 0 | AQ28: 0 | AR28: 0 | AS28: 0 | AT28: 0 | AU28: 0 | AV28: 0 | AW28: 0 | AX28: 0 | AY28: 0 | AZ28: =(AZ27+AZ18+AZ12+AZ9+AZ6) -> 0 | BA28: 0 | BB28: 0 | BC28: 0 | BD28: 0 | BE28: 0 | BF28: 0 | BG28: 0 | BH28: 0 | BI28: 0 | BJ28: 0 | BK28: 0 | BL28: 0 | BM28: 0 | BN28: 0 | BO28: 0 | BP28: 0 | BQ28: 0 | BR28: 0
B29: ='Typology Inputs'!B41 -> COASTAL SYSTEMS | S29: Tons of carbon embodied | T29: =(($G$36*$I$81)+($G$37*$I$81)+($G$38*$I$81)+($G$39*$I$81))*U5 -> 0 | U29: 0 | V29: 0 | W29: 0 | X29: 0 | Y29: 0 | Z29: 0 | AA29: 0 | AB29: 0 | AC29: 0 | AD29: 0 | AE29: 0 | AF29: 0 | AG29: 0 | AH29: 0 | AI29: 0 | AJ29: 0 | AK29: 0 | AL29: 0 | AM29: 0 | AN29: 0 | AO29: 0 | AP29: 0 | AQ29: 0 | AR29: 0 | AS29: 0 | AT29: 0 | AU29: 0 | AV29: 0 | AW29: 0 | AX29: 0 | AY29: 0 | AZ29: =(($G$36*$I$81)+($G$37*$I$81)+($G$38*$I$81)+($G$39*$I$81))*BA5 -> 0 | BA29: 0 | BB29: 0 | BC29: 0 | BD29: 0 | BE29: 0 | BF29: 0 | BG29: 0 | BH29: 0 | BI29: 0 | BJ29: 0 | BK29: 0 | BL29: 0 | BM29: 0 | BN29: 0 | BO29: 0 | BP29: 0 | BQ29: 0 | BR29: 0
B31: ='Typology Inputs'!B42 -> Project area | C31: ='Typology Inputs'!C42 -> m2 | D31: ='Typology Inputs'!D42 -> 0 | E31: ='Typology Inputs'!E42 -> 0 | F31: ='Typology Inputs'!F42 -> 0 | I31: =N31 -> 0 | K31: =(M31-E31)/(F31-E31) ->  | L31: =6-K31 ->  | M31: =(E31+(D31*4)+F31)/6 -> 0 | N31: =IF(General!$D$21="Off",Carbon!F31,IF(OR(E31=F31,AND(E31=F31,F31=D31)),D31,_xlfn.BETA.INV(RAND(),Carbon!K31,Carbon!L31,Carbon!E31,Carbon!F31))) -> 0
B32: ='Typology Inputs'!B43 -> Growth of project area per year | C32: ='Typology Inputs'!C43 -> % | D32: ='Typology Inputs'!D43 -> 0 | E32: ='Typology Inputs'!E43 -> 0 | F32: ='Typology Inputs'!F43 -> 0 | G32: ='Typology Inputs'!G43 -> 0 | I32: =N32 -> 0 | K32: =(M32-E32)/(F32-E32) ->  | L32: =6-K32 ->  | M32: =(E32+(D32*4)+F32)/6 -> 0 | N32: =IF(General!$D$21="Off",Carbon!F32,IF(OR(E32=F32,AND(E32=F32,F32=D32)),D32,_xlfn.BETA.INV(RAND(),Carbon!K32,Carbon!L32,Carbon!E32,Carbon!F32))) -> 0
S33: Discount factor | T33: =1/((1+General!$D$20)^(T3-General!$D$19)) -> 37.92963284 | U33: =1/((1+General!$D$20)^(U3-General!$D$19)) -> 36.82488625 | V33: =1/((1+General!$D$20)^(V3-General!$D$19)) -> 35.75231675 | W33: =1/((1+General!$D$20)^(W3-General!$D$19)) -> 34.71098714 | X33: =1/((1+General!$D$20)^(X3-General!$D$19)) -> 33.69998751 | Y33: =1/((1+General!$D$20)^(Y3-General!$D$19)) -> 32.71843448 | Z33: =1/((1+General!$D$20)^(Z3-General!$D$19)) -> 31.76547037 | AA33: =1/((1+General!$D$20)^(AA3-General!$D$19)) -> 30.84026249 | AB33: =1/((1+General!$D$20)^(AB3-General!$D$19)) -> 29.94200242 | AC33: =1/((1+General!$D$20)^(AC3-General!$D$19)) -> 29.06990526 | AD33: =1/((1+General!$D$20)^(AD3-General!$D$19)) -> 28.22320899 | AE33: =1/((1+General!$D$20)^(AE3-General!$D$19)) -> 27.40117378 | AF33: =1/((1+General!$D$20)^(AF3-General!$D$19)) -> 26.60308134 | AG33: =1/((1+General!$D$20)^(AG3-General!$D$19)) -> 25.82823431 | AH33: =1/((1+General!$D$20)^(AH3-General!$D$19)) -> 25.07595564 | AI33: =1/((1+General!$D$20)^(AI3-General!$D$19)) -> 24.345588 | AJ33: =1/((1+General!$D$20)^(AJ3-General!$D$19)) -> 23.6364932 | AK33: =1/((1+General!$D$20)^(AK3-General!$D$19)) -> 22.94805165 | AL33: =1/((1+General!$D$20)^(AL3-General!$D$19)) -> 22.2796618 | AM33: =1/((1+General!$D$20)^(AM3-General!$D$19)) -> 21.63073961 | AN33: =1/((1+General!$D$20)^(AN3-General!$D$19)) -> 21.00071807 | AO33: =1/((1+General!$D$20)^(AO3-General!$D$19)) -> 20.38904667 | AP33: =1/((1+General!$D$20)^(AP3-General!$D$19)) -> 19.79519094 | AQ33: =1/((1+General!$D$20)^(AQ3-General!$D$19)) -> 19.21863198 | AR33: =1/((1+General!$D$20)^(AR3-General!$D$19)) -> 18.658866 | AS33: =1/((1+General!$D$20)^(AS3-General!$D$19)) -> 18.11540388 | AT33: =1/((1+General!$D$20)^(AT3-General!$D$19)) -> 17.58777076 | AU33: =1/((1+General!$D$20)^(AU3-General!$D$19)) -> 17.07550559 | AV33: =1/((1+General!$D$20)^(AV3-General!$D$19)) -> 16.57816077 | AW33: =1/((1+General!$D$20)^(AW3-General!$D$19)) -> 16.09530172 | AX33: =1/((1+General!$D$20)^(AX3-General!$D$19)) -> 15.62650652 | AY33: =1/((1+General!$D$20)^(AY3-General!$D$19)) -> 15.17136556 | AZ33: =1/((1+General!$D$20)^(AZ3-General!$D$19)) -> 14.72948112 | BA33: =1/((1+General!$D$20)^(BA3-General!$D$19)) -> 14.30046711 | BB33: =1/((1+General!$D$20)^(BB3-General!$D$19)) -> 13.88394865 | BC33: =1/((1+General!$D$20)^(BC3-General!$D$19)) -> 13.4795618 | BD33: =1/((1+General!$D$20)^(BD3-General!$D$19)) -> 13.0869532 | BE33: =1/((1+General!$D$20)^(BE3-General!$D$19)) -> 12.70577981 | BF33: =1/((1+General!$D$20)^(BF3-General!$D$19)) -> 12.33570855 | BG33: =1/((1+General!$D$20)^(BG3-General!$D$19)) -> 11.97641607 | BH33: =1/((1+General!$D$20)^(BH3-General!$D$19)) -> 11.62758842 | BI33: =1/((1+General!$D$20)^(BI3-General!$D$19)) -> 11.28892079 | BJ33: =1/((1+General!$D$20)^(BJ3-General!$D$19)) -> 10.96011727 | BK33: =1/((1+General!$D$20)^(BK3-General!$D$19)) -> 10.64089056 | BL33: =1/((1+General!$D$20)^(BL3-General!$D$19)) -> 10.33096171 | BM33: =1/((1+General!$D$20)^(BM3-General!$D$19)) -> 10.03005991 | BN33: =1/((1+General!$D$20)^(BN3-General!$D$19)) -> 9.737922241 | BO33: =1/((1+General!$D$20)^(BO3-General!$D$19)) -> 9.454293438 | BP33: =1/((1+General!$D$20)^(BP3-General!$D$19)) -> 9.178925668 | BQ33: =1/((1+General!$D$20)^(BQ3-General!$D$19)) -> 8.911578318 | BR33: =1/((1+General!$D$20)^(BR3-General!$D$19)) -> 8.652017785
B35: ='Typology Inputs'!B46 -> Tons of concrete used per km2 of investment | C35: ='Typology Inputs'!C46 -> Unit | D35: ='Typology Inputs'!D46 -> Value (Average) | E35: ='Typology Inputs'!E46 -> Value (Min) | F35: ='Typology Inputs'!F46 -> Value (Max) | G35: ='Typology Inputs'!G46 -> Value (Default - Autocase) | I35: Expected Value
B36: ='Typology Inputs'!B47 -> Rock breakwater | C36: ='Typology Inputs'!C47 -> metric tons / linear m | D36: ='Typology Inputs'!D47 -> 0 | E36: ='Typology Inputs'!E47 -> 0 | F36: ='Typology Inputs'!F47 -> 0 | G36: ='Typology Inputs'!G47 -> 0 | I36: =N36 -> 0 | K36: =(M36-E36)/(F36-E36) ->  | L36: =6-K36 ->  | M36: =(E36+(D36*4)+F36)/6 -> 0 | N36: =IF(General!$D$21="Off",Carbon!F36,IF(OR(E36=F36,AND(E36=F36,F36=D36)),D36,_xlfn.BETA.INV(RAND(),Carbon!K36,Carbon!L36,Carbon!E36,Carbon!F36))) -> 0
B37: ='Typology Inputs'!B48 -> Earthen levee | C37: ='Typology Inputs'!C48 -> metric tons / linear m | D37: ='Typology Inputs'!D48 -> 0 | E37: ='Typology Inputs'!E48 -> 0 | F37: ='Typology Inputs'!F48 -> 0 | G37: ='Typology Inputs'!G48 -> 0 | I37: =N37 -> 0 | K37: =(M37-E37)/(F37-E37) ->  | L37: =6-K37 ->  | M37: =(E37+(D37*4)+F37)/6 -> 0 | N37: =IF(General!$D$21="Off",Carbon!F37,IF(OR(E37=F37,AND(E37=F37,F37=D37)),D37,_xlfn.BETA.INV(RAND(),Carbon!K37,Carbon!L37,Carbon!E37,Carbon!F37))) -> 0
B38: ='Typology Inputs'!B49 -> Seawall | C38: ='Typology Inputs'!C49 -> metric tons / linear m | D38: ='Typology Inputs'!D49 -> 0 | E38: ='Typology Inputs'!E49 -> 0 | F38: ='Typology Inputs'!F49 -> 0 | G38: ='Typology Inputs'!G49 -> 0 | I38: =N38 -> 0 | K38: =(M38-E38)/(F38-E38) ->  | L38: =6-K38 ->  | M38: =(E38+(D38*4)+F38)/6 -> 0 | N38: =IF(General!$D$21="Off",Carbon!F38,IF(OR(E38=F38,AND(E38=F38,F38=D38)),D38,_xlfn.BETA.INV(RAND(),Carbon!K38,Carbon!L38,Carbon!E38,Carbon!F38))) -> 0
B39: ='Typology Inputs'!B50 -> Coastal systems | C39: ='Typology Inputs'!C50 -> metric tons / m2 | D39: ='Typology Inputs'!D50 -> 0 | E39: ='Typology Inputs'!E50 -> 0 | F39: ='Typology Inputs'!F50 -> 0 | G39: ='Typology Inputs'!G50 -> 0 | I39: =N39 -> 0 | K39: =(M39-E39)/(F39-E39) ->  | L39: =6-K39 ->  | M39: =(E39+(D39*4)+F39)/6 -> 0 | N39: =IF(General!$D$21="Off",Carbon!F39,IF(OR(E39=F39,AND(E39=F39,F39=D39)),D39,_xlfn.BETA.INV(RAND(),Carbon!K39,Carbon!L39,Carbon!E39,Carbon!F39))) -> 0
B42: Carbon Sequestration Raw Values | K42: Alpha | L42: Beta | M42: Distribution Parameter 3 | N42: Expected Value
B43: Typology | C43: Value listed in source | D43: +/- Value | E43: Min Value | F43: Average Value | G43: Max Value | H43: Unit | I43: Expected Value | P43: Source
B44: Mangroves | C44: 6 to 8 Mg CO₂e/ha | D44: N/A | E44: 6 | F44: =AVERAGE(E44,G44) -> 7 | G44: 8 | H44: Mg CO₂e/ha | I44: =N44 -> 7 | K44: =(M44-E44)/(G44-E44) -> 0.5 | L44: =6-K44 -> 5.5 | M44: =(E44+(F44*4)+G44)/6 -> 7 | N44: =IF(General!$D$21="Off",Carbon!F44,IF(AND(E44=F44,F44=G44),F44,_xlfn.BETA.INV(RAND(),Carbon!K44,Carbon!L44,Carbon!E44,Carbon!G44))) -> 7 | P44: https://www.thebluecarboninitiative.org/about-blue-carbon
B45: Mangroves | C45: 23.56 x Age^-0.52 Mg C ha-1 year-1 | D45: N/A | E45: Array values in mangrove seq tab | H45: Mg CO₂e/ha
B46: Mangroves | C46: 13.20 x Age0^-.64 Mg C ha-1 year-1 | D46: N/A | E46: Array values in mangrove seq tab | H46: Mg CO₂e/ha
B47: Mangroves | C47: 3.00 +/- 1.80 Mg C ha-1 year-1 | E47: Array values in mangrove seq tab | H47: Mg CO₂e/ha
B48: Seagrass | C48: 122 +/- 62 | D48: 62 | E48: =F48-D48 -> 60 | F48: 122 | G48: =F48+D48 -> 184 | H48: g C m-2 | I48: 122 | K48: 0.5 | L48: 5.5 | M48: 122 | N48: =IF(General!$D$21="Off",Carbon!F48,IF(AND(E48=F48,F48=G48),F48,_xlfn.BETA.INV(RAND(),Carbon!K48,Carbon!L48,Carbon!E48,Carbon!G48))) -> 122 | P48: https://www.thebluecarboninitiative.org/about-blue-carbon
B49: Seagrass | C49: 0.21 to 0.42 t C ha-1 yr-1 | D49: N/A | E49: 0.21 | F49: =AVERAGE(E49,G49) -> 0.315 | G49: 0.42 | H49: t C ha -1 yr -1 | I49: 0.315 | K49: 0.5 | L49: 5.5 | M49: 0.315 | N49: =IF(General!$D$21="Off",Carbon!F49,IF(AND(E49=F49,F49=G49),F49,_xlfn.BETA.INV(RAND(),Carbon!K49,Carbon!L49,Carbon!E49,Carbon!G49))) -> 0.315 | P49: https://www.nature.com/articles/s41598-020-64094-1
B50: Seagrass | C50: 2207 +/- 201 | D50: 201 | E50: =F50-D50 -> 2006 | F50: 2207 | G50: =F50+D50 -> 2408 | H50: kg C ha - 1 yr -1 | I50: 2207 | K50: 0.5 | L50: 5.5 | M50: 2207 | N50: =IF(General!$D$21="Off",Carbon!F50,IF(AND(E50=F50,F50=G50),F50,_xlfn.BETA.INV(RAND(),Carbon!K50,Carbon!L50,Carbon!E50,Carbon!G50))) -> 2207 | P50: https://esj-journals.onlinelibrary.wiley.com/doi/full/10.1111/1440-1703.12263
B51: Salt Marsh | C51: 6 to 8 Mg CO₂e/ha | D51: N/A | E51: 6 | F51: =AVERAGE(E51,G51) -> 7 | G51: 8 | H51: Mg CO₂e/ha | I51: 7 | K51: 0.5 | L51: 5.5 | M51: 7 | N51: =IF(General!$D$21="Off",Carbon!F51,IF(AND(E51=F51,F51=G51),F51,_xlfn.BETA.INV(RAND(),Carbon!K51,Carbon!L51,Carbon!E51,Carbon!G51))) -> 7 | P51: https://www.thebluecarboninitiative.org/about-blue-carbon
B52: Salt Marsh | C52: 14-323 g C m-2 yr-1 | E52: 14 | F52: =AVERAGE(E52,G52) -> 168.5 | G52: 323 | H52: g C m-2 yr-1 | I52: 168.5 | K52: 0.5 | L52: 5.5 | M52: 168.5 | N52: =IF(General!$D$21="Off",Carbon!F52,IF(AND(E52=F52,F52=G52),F52,_xlfn.BETA.INV(RAND(),Carbon!K52,Carbon!L52,Carbon!E52,Carbon!G52))) -> 168.5
B53: Salt marsh | C53: 2.42 +/- 0.26 t C ha -1 yr -1 | D53: 0.26 | E53: =F53-D53 -> 2.16 | F53: 2.42 | G53: =F53+E53 -> 4.58 | H53: t C ha -1 yr -1 | I53: 2.42 | K53: 0.238292011 | L53: 5.761707989 | M53: 2.736666667 | N53: =IF(General!$D$21="Off",Carbon!F53,IF(AND(E53=F53,F53=G53),F53,_xlfn.BETA.INV(RAND(),Carbon!K53,Carbon!L53,Carbon!E53,Carbon!G53))) -> 2.42 | P53: https://royalsocietypublishing.org/doi/10.1098/rsbl.2018.0773
B54: Coral reefs (carbon released from respiration) | C54: 1.5 mmol/m2 per day | D54: N/A | E54: 1.5 | F54: 1.5 | G54: 1.5 | H54: mmol/m2/day | I54: 1.5 | M54: 1.5 | N54: =IF(General!$D$21="Off",Carbon!F54,IF(AND(E54=F54,F54=G54),F54,_xlfn.BETA.INV(RAND(),Carbon!K54,Carbon!L54,Carbon!E54,Carbon!G54))) -> 1.5 | P54: https://www.coralguardian.org/en/carbon-balance-in-corals/#:~:text=To%20sum%20up%2C%20according%20to,3%20accumulation%20in%20their%20skeleton.
B55: Carbon conversion mmol to g | C55: 1 mole CO2 = 44 g | D55: N/A | E55: 44 | F55: 44 | G55: 44 | H55: gms | I55: 44 | M55: 44 | N55: =IF(General!$D$21="Off",Carbon!F55,IF(AND(E55=F55,F55=G55),F55,_xlfn.BETA.INV(RAND(),Carbon!K55,Carbon!L55,Carbon!E55,Carbon!G55))) -> 44 | P55: https://www.coralguardian.org/en/carbon-balance-in-corals/#:~:text=To%20sum%20up%2C%20according%20to,3%20accumulation%20in%20their%20skeleton.
B56: Coral Reef | C56: 70 to 90 Megatons of carbon per year by CaCO3 accumulation in their skeleton | D56: N/A | E56: =70*1000000/284300 -> 246.218783 | F56: =AVERAGE(E56,G56) -> 281.3928948 | G56: =90*1000000/284300 -> 316.5670067 | H56: tons/sqkm/year | I56: 281.3928948 | K56: 0.5 | L56: 5.5 | M56: 281.3928948 | N56: =IF(General!$D$21="Off",Carbon!F56,IF(AND(E56=F56,F56=G56),F56,_xlfn.BETA.INV(RAND(),Carbon!K56,Carbon!L56,Carbon!E56,Carbon!G56))) -> 281.3928948 | P56: https://www.coralguardian.org/en/carbon-balance-in-corals/#:~:text=To%20sum%20up%2C%20according%20to,3%20accumulation%20in%20their%20skeleton.
B59: Carbon to CO2e | C59: 3.67
B60: Carbon Sequestration Converted
B61: Typology | C61: Value listed in source | D61: +/- Value | E61: Min Value | F61: Average Value | G61: Max Value | H61: Unit | P61: Source
B62: Mangroves | C62: 3 to23.56 Mg C/ha/year | D62: N/A | E62: Array values in mangrove seq tab | H62: t CO2e ha -1 yr -1 | P62: https://www.thebluecarboninitiative.org/about-blue-carbon
B63: Seagrass | C63: 122 +/- 62 | D63: N/A | E63: =E48*$C$59*(Conversions!$B$52)/Conversions!$B$26 -> 2.202 | F63: =F48*$C$59*(Conversions!$B$52)/Conversions!$B$26 -> 4.4774 | G63: =G48*$C$59*(Conversions!$B$52)/Conversions!$B$26 -> 6.7528 | H63: t CO2e ha -1 yr -1 | P63: https://www.thebluecarboninitiative.org/about-blue-carbon
B64: Seagrass | C64: 0.21 to 0.42 t C ha-1 yr-1 | D64: N/A | E64: =E49*$C$59 -> 0.7707 | F64: =F49*$C$59 -> 1.15605 | G64: =G49*$C$59 -> 1.5414 | H64: t CO2e ha -1 yr -1 | P64: https://www.nature.com/articles/s41598-020-64094-1
B65: Seagrass | C65: 2207 +/- 201 | D65: N/A | E65: =E50*$C$59*Conversions!$B$50 -> 7.36202 | F65: =F50*Conversions!$B$50*$C$59 -> 8.09969 | G65: =G50*$C$59*Conversions!$B$50 -> 8.83736 | H65: t CO2e ha -1 yr -1 | P65: https://esj-journals.onlinelibrary.wiley.com/doi/full/10.1111/1440-1703.12263
B66: Salt Marsh | C66: 6 to 8 Mg CO₂e/ha | D66: N/A | E66: =E51*Conversions!$B$51 -> 6 | F66: =F51*Conversions!$B$51 -> 7 | G66: =G51*Conversions!$B$51 -> 8 | H66: t CO2e ha -1 yr -1 | P66: https://www.thebluecarboninitiative.org/about-blue-carbon
B67: Salt Marsh | C67: 14-323 g C m-2 yr-1 | D67: N/A | E67: =(E52*$C$59*Conversions!$B$52/Conversions!$B$26) -> 0.5138 | F67: =(F52*Conversions!$B$52/Conversions!$B$26)*$C$59 -> 6.18395 | G67: =(G52*$C$59*Conversions!$B$52/Conversions!$B$26) -> 11.8541 | H67: t CO2e ha -1 yr -1
B68: Salt Marsh | C68: 2.42 +/- 0.26 t C ha -1 yr -1 | D68: N/A | E68: =E53*$C$59 -> 7.9272 | F68: =F53*$C$59 -> 8.8814 | G68: =G53*$C$59 -> 16.8086 | H68: t CO2e ha -1 yr -1 | P68: https://royalsocietypublishing.org/doi/10.1098/rsbl.2018.0773
B69: Coral Reef Net | C69: =C56 -> 70 to 90 Megatons of carbon per year by CaCO3 accumulation in their skeleton | D69: N/A | E69: =(E56-(E55*365.25*0.000001))/100 -> 2.46202712 | F69: =(F56-(F55*365.25*0.000001))/100 -> 2.813768238 | G69: =(G56-(G55*365.25*0.000001))/100 -> 3.165509357 | H69: t CO2e ha -1 yr -1 | P69: https://www.coralguardian.org/en/carbon-balance-in-corals/#:~:text=To%20sum%20up%2C%20according%20to,3%20accumulation%20in%20their%20skeleton.
B72: Carbon Sequestration Converted | K72: Alpha | L72: Beta | M72: Distribution Parameter 1 | N72: Expected Value
B73: Typology | C73: Min Value | D73: Average Value | E73: Max Value | F73: Expected Value | H73: Unit | I73: Expected Value | P73: Source
B74: Mangroves | C74: =E62 -> Array values in mangrove seq tab | H74: t CO2e ha -1 yr -1 | P74: https://www.thebluecarboninitiative.org/about-blue-carbon
B75: Seagrass | C75: =MIN(E63:E65) -> 0.7707 | D75: =AVERAGE(C75,E75) -> 4.80403 | E75: =MAX(G63:G65) -> 8.83736 | F75: =I75 -> 4.80403 | H75: t CO2e ha -1 yr -1 | I75: =N75 -> 4.80403 | K75: =(M75-C75)/(E75-C75) -> 0.5 | L75: =6-K75 -> 5.5 | M75: =(C75+(D75*4)+E75)/6 -> 4.80403 | N75: =IF(General!$D$21="Off",Carbon!D75,IF(AND(C75=D75,D75=E75),D75,_xlfn.BETA.INV(RAND(),Carbon!K75,Carbon!L75,Carbon!C75,Carbon!E75))) -> 4.80403 | P75: https://esj-journals.onlinelibrary.wiley.com/doi/full/10.1111/1440-1703.12263
B76: Salt Marsh | C76: =MIN(E66:E68) -> 0.5138 | D76: =AVERAGE(C76,E76) -> 8.6612 | E76: =MAX(G66:G68) -> 16.8086 | F76: =I76 -> 8.6612 | H76: t CO2e ha -1 yr -1 | I76: =N76 -> 8.6612 | K76: =(M76-C76)/(E76-C76) -> 0.5 | L76: =6-K76 -> 5.5 | M76: =(C76+(D76*4)+E76)/6 -> 8.6612 | N76: =IF(General!$D$21="Off",Carbon!D76,IF(AND(C76=D76,D76=E76),D76,_xlfn.BETA.INV(RAND(),Carbon!K76,Carbon!L76,Carbon!C76,Carbon!E76))) -> 8.6612 | P76: https://www.thebluecarboninitiative.org/about-blue-carbon
B77: Coral Reefs | C77: =E69 -> 2.46202712 | D77: =F69 -> 2.813768238 | E77: =G69 -> 3.165509357 | F77: =I77 -> 2.813768238 | H77: t CO2e ha -1 yr -1 | I77: =N77 -> 2.813768238 | K77: =(M77-C77)/(E77-C77) -> 0.5 | L77: =6-K77 -> 5.5 | M77: =(C77+(D77*4)+E77)/6 -> 2.813768238 | N77: =IF(General!$D$21="Off",Carbon!D77,IF(AND(C77=D77,D77=E77),D77,_xlfn.BETA.INV(RAND(),Carbon!K77,Carbon!L77,Carbon!C77,Carbon!E77))) -> 2.813768238 | P77: https://www.coralguardian.org/en/carbon-balance-in-corals/#:~:text=To%20sum%20up%2C%20according%20to,3%20accumulation%20in%20their%20skeleton.
B79: Carbon Embodied
B80: Typology | C80: Min Value | D80: Average Value | E80: Max Value | F80: Expected Value | H80: Unit | I80: Expected Value
B81: Embodied carbon level | C81: =D81*(1-0.11) -> 0.31684 | D81: 0.356 | E81: =D81*(1+0.11) -> 0.39516 | F81: =I81 -> 0.7848456534 | H81: kgCO2e per 1lb | I81: =N81*Conversions!$B$50/(Conversions!$B$54*Conversions!$B$50) -> 0.7848456534 | K81: =(M81-C81)/(E81-C81) -> 0.5 | L81: =6-K81 -> 5.5 | M81: =(C81+(D81*4)+E81)/6 -> 0.356 | N81: =IF(General!$D$21="Off",Carbon!D81,IF(AND(C81=D81,D81=E81),D81,_xlfn.BETA.INV(RAND(),Carbon!K81,Carbon!L81,Carbon!C81,Carbon!E81))) -> 0.356 | P81: https://buildingtransparency.org/ec3/material-search

Sheet LCCA Model
I1: Monte Carlo Value | K1: Alpha | L1: Beta | M1: Distribution Parameter 3 | N1: Expected Value | P1: NPV | S1: Annual Values
S2: Duration | T2: ='Scheduling Calcs'!C14 -> 0 | U2: ='Scheduling Calcs'!D14 -> 1 | V2: ='Scheduling Calcs'!E14 -> 2 | W2: ='Scheduling Calcs'!F14 -> 3 | X2: ='Scheduling Calcs'!G14 -> 4 | Y2: ='Scheduling Calcs'!H14 -> 5 | Z2: ='Scheduling Calcs'!I14 -> 6 | AA2: ='Scheduling Calcs'!J14 -> 7 | AB2: ='Scheduling Calcs'!K14 -> 8 | AC2: ='Scheduling Calcs'!L14 -> 9 | AD2: ='Scheduling Calcs'!M14 -> 10 | AE2: ='Scheduling Calcs'!N14 -> 11 | AF2: ='Scheduling Calcs'!O14 -> 12 | AG2: ='Scheduling Calcs'!P14 -> 13 | AH2: ='Scheduling Calcs'!Q14 -> 14 | AI2: ='Scheduling Calcs'!R14 -> 15 | AJ2: ='Scheduling Calcs'!S14 -> 16 | AK2: ='Scheduling Calcs'!T14 -> 17 | AL2: ='Scheduling Calcs'!U14 -> 18 | AM2: ='Scheduling Calcs'!V14 -> 19 | AN2: ='Scheduling Calcs'!W14 -> 20 | AO2: ='Scheduling Calcs'!X14 -> 21 | AP2: ='Scheduling Calcs'!Y14 -> 22 | AQ2: ='Scheduling Calcs'!Z14 -> 23 | AR2: ='Scheduling Calcs'!AA14 -> 24 | AS2: ='Scheduling Calcs'!AB14 -> 25 | AT2: ='Scheduling Calcs'!AC14 -> 26 | AU2: ='Scheduling Calcs'!AD14 -> 27 | AV2: ='Scheduling Calcs'!AE14 -> 28 | AW2: ='Scheduling Calcs'!AF14 -> 29 | AX2: ='Scheduling Calcs'!AG14 -> 30 | AY2: ='Scheduling Calcs'!AH14 -> 31 | AZ2: ='Scheduling Calcs'!AI14 -> 32 | BA2: ='Scheduling Calcs'!AJ14 -> 33 | BB2: ='Scheduling Calcs'!AK14 -> 34 | BC2: ='Scheduling Calcs'!AL14 -> 35 | BD2: ='Scheduling Calcs'!AM14 -> 36 | BE2: ='Scheduling Calcs'!AN14 -> 37 | BF2: ='Scheduling Calcs'!AO14 -> 38 | BG2: ='Scheduling Calcs'!AP14 -> 39 | BH2: ='Scheduling Calcs'!AQ14 -> 40 | BI2: ='Scheduling Calcs'!AR14 -> 41 | BJ2: ='Scheduling Calcs'!AS14 -> 42 | BK2: ='Scheduling Calcs'!AT14 -> 43 | BL2: ='Scheduling Calcs'!AU14 -> 44 | BM2: ='Scheduling Calcs'!AV14 -> 45 | BN2: ='Scheduling Calcs'!AW14 -> 46 | BO2: ='Scheduling Calcs'!AX14 -> 47 | BP2: ='Scheduling Calcs'!AY14 -> 48 | BQ2: ='Scheduling Calcs'!AZ14 -> 49 | BR2: ='Scheduling Calcs'!BA14 -> 50
B3: Variable | C3: Unit | D3: Value (Average) | E3: Value (Min) | F3: Value (Max) | G3: Value (Default) | I3: Expected Value | P3: Variable | Q3: NPV | S3: Year | T3: ='Scheduling Calcs'!C15 -> 1900 | U3: ='Scheduling Calcs'!D15 -> 1901 | V3: ='Scheduling Calcs'!E15 -> 1902 | W3: ='Scheduling Calcs'!F15 -> 1903 | X3: ='Scheduling Calcs'!G15 -> 1904 | Y3: ='Scheduling Calcs'!H15 -> 1905 | Z3: ='Scheduling Calcs'!I15 -> 1906 | AA3: ='Scheduling Calcs'!J15 -> 1907 | AB3: ='Scheduling Calcs'!K15 -> 1908 | AC3: ='Scheduling Calcs'!L15 -> 1909 | AD3: ='Scheduling Calcs'!M15 -> 1910 | AE3: ='Scheduling Calcs'!N15 -> 1911 | AF3: ='Scheduling Calcs'!O15 -> 1912 | AG3: ='Scheduling Calcs'!P15 -> 1913 | AH3: ='Scheduling Calcs'!Q15 -> 1914 | AI3: ='Scheduling Calcs'!R15 -> 1915 | AJ3: ='Scheduling Calcs'!S15 -> 1916 | AK3: ='Scheduling Calcs'!T15 -> 1917 | AL3: ='Scheduling Calcs'!U15 -> 1918 | AM3: ='Scheduling Calcs'!V15 -> 1919 | AN3: ='Scheduling Calcs'!W15 -> 1920 | AO3: ='Scheduling Calcs'!X15 -> 1921 | AP3: ='Scheduling Calcs'!Y15 -> 1922 | AQ3: ='Scheduling Calcs'!Z15 -> 1923 | AR3: ='Scheduling Calcs'!AA15 -> 1924 | AS3: ='Scheduling Calcs'!AB15 -> 1925 | AT3: ='Scheduling Calcs'!AC15 -> 1926 | AU3: ='Scheduling Calcs'!AD15 -> 1927 | AV3: ='Scheduling Calcs'!AE15 -> 1928 | AW3: ='Scheduling Calcs'!AF15 -> 1929 | AX3: ='Scheduling Calcs'!AG15 -> 1930 | AY3: ='Scheduling Calcs'!AH15 -> 1931 | AZ3: ='Scheduling Calcs'!AI15 -> 1932 | BA3: ='Scheduling Calcs'!AJ15 -> 1933 | BB3: ='Scheduling Calcs'!AK15 -> 1934 | BC3: ='Scheduling Calcs'!AL15 -> 1935 | BD3: ='Scheduling Calcs'!AM15 -> 1936 | BE3: ='Scheduling Calcs'!AN15 -> 1937 | BF3: ='Scheduling Calcs'!AO15 -> 1938 | BG3: ='Scheduling Calcs'!AP15 -> 1939 | BH3: ='Scheduling Calcs'!AQ15 -> 1940 | BI3: ='Scheduling Calcs'!AR15 -> 1941 | BJ3: ='Scheduling Calcs'!AS15 -> 1942 | BK3: ='Scheduling Calcs'!AT15 -> 1943 | BL3: ='Scheduling Calcs'!AU15 -> 1944 | BM3: ='Scheduling Calcs'!AV15 -> 1945 | BN3: ='Scheduling Calcs'!AW15 -> 1946 | BO3: ='Scheduling Calcs'!AX15 -> 1947 | BP3: ='Scheduling Calcs'!AY15 -> 1948 | BQ3: ='Scheduling Calcs'!AZ15 -> 1949 | BR3: ='Scheduling Calcs'!BA15 -> 1950
S4: Construction | T4: ='Scheduling Calcs'!C19 -> 0 | U4: ='Scheduling Calcs'!D19 -> 0 | V4: ='Scheduling Calcs'!E19 -> 0 | W4: ='Scheduling Calcs'!F19 -> 0 | X4: ='Scheduling Calcs'!G19 -> 0 | Y4: ='Scheduling Calcs'!H19 -> 0 | Z4: ='Scheduling Calcs'!I19 -> 0 | AA4: ='Scheduling Calcs'!J19 -> 0 | AB4: ='Scheduling Calcs'!K19 -> 0 | AC4: ='Scheduling Calcs'!L19 -> 0 | AD4: ='Scheduling Calcs'!M19 -> 0 | AE4: ='Scheduling Calcs'!N19 -> 0 | AF4: ='Scheduling Calcs'!O19 -> 0 | AG4: ='Scheduling Calcs'!P19 -> 0 | AH4: ='Scheduling Calcs'!Q19 -> 0 | AI4: ='Scheduling Calcs'!R19 -> 0 | AJ4: ='Scheduling Calcs'!S19 -> 0 | AK4: ='Scheduling Calcs'!T19 -> 0 | AL4: ='Scheduling Calcs'!U19 -> 0 | AM4: ='Scheduling Calcs'!V19 -> 0 | AN4: ='Scheduling Calcs'!W19 -> 0 | AO4: ='Scheduling Calcs'!X19 -> 0 | AP4: ='Scheduling Calcs'!Y19 -> 0 | AQ4: ='Scheduling Calcs'!Z19 -> 0 | AR4: ='Scheduling Calcs'!AA19 -> 0 | AS4: ='Scheduling Calcs'!AB19 -> 0 | AT4: ='Scheduling Calcs'!AC19 -> 0 | AU4: ='Scheduling Calcs'!AD19 -> 0 | AV4: ='Scheduling Calcs'!AE19 -> 0 | AW4: ='Scheduling Calcs'!AF19 -> 0 | AX4: ='Scheduling Calcs'!AG19 -> 0 | AY4: ='Scheduling Calcs'!AH19 -> 0 | AZ4: ='Scheduling Calcs'!AI19 -> 0 | BA4: ='Scheduling Calcs'!AJ19 -> 0 | BB4: ='Scheduling Calcs'!AK19 -> 0 | BC4: ='Scheduling Calcs'!AL19 -> 0 | BD4: ='Scheduling Calcs'!AM19 -> 0 | BE4: ='Scheduling Calcs'!AN19 -> 0 | BF4: ='Scheduling Calcs'!AO19 -> 0 | BG4: ='Scheduling Calcs'!AP19 -> 0 | BH4: ='Scheduling Calcs'!AQ19 -> 0 | BI4: ='Scheduling Calcs'!AR19 -> 0 | BJ4: ='Scheduling Calcs'!AS19 -> 0 | BK4: ='Scheduling Calcs'!AT19 -> 0 | BL4: ='Scheduling Calcs'!AU19 -> 0 | BM4: ='Scheduling Calcs'!AV19 -> 0 | BN4: ='Scheduling Calcs'!AW19 -> 0 | BO4: ='Scheduling Calcs'!AX19 -> 0 | BP4: ='Scheduling Calcs'!AY19 -> 0 | BQ4: ='Scheduling Calcs'!AZ19 -> 0 | BR4: ='Scheduling Calcs'!BA19 -> 0
B5: MANGROVES | S5: Operations | T5: ='Scheduling Calcs'!C20 -> 1 | U5: ='Scheduling Calcs'!D20 -> 0 | V5: ='Scheduling Calcs'!E20 -> 0 | W5: ='Scheduling Calcs'!F20 -> 0 | X5: ='Scheduling Calcs'!G20 -> 0 | Y5: ='Scheduling Calcs'!H20 -> 0 | Z5: ='Scheduling Calcs'!I20 -> 0 | AA5: ='Scheduling Calcs'!J20 -> 0 | AB5: ='Scheduling Calcs'!K20 -> 0 | AC5: ='Scheduling Calcs'!L20 -> 0 | AD5: ='Scheduling Calcs'!M20 -> 0 | AE5: ='Scheduling Calcs'!N20 -> 0 | AF5: ='Scheduling Calcs'!O20 -> 0 | AG5: ='Scheduling Calcs'!P20 -> 0 | AH5: ='Scheduling Calcs'!Q20 -> 0 | AI5: ='Scheduling Calcs'!R20 -> 0 | AJ5: ='Scheduling Calcs'!S20 -> 0 | AK5: ='Scheduling Calcs'!T20 -> 0 | AL5: ='Scheduling Calcs'!U20 -> 0 | AM5: ='Scheduling Calcs'!V20 -> 0 | AN5: ='Scheduling Calcs'!W20 -> 0 | AO5: ='Scheduling Calcs'!X20 -> 0 | AP5: ='Scheduling Calcs'!Y20 -> 0 | AQ5: ='Scheduling Calcs'!Z20 -> 0 | AR5: ='Scheduling Calcs'!AA20 -> 0 | AS5: ='Scheduling Calcs'!AB20 -> 0 | AT5: ='Scheduling Calcs'!AC20 -> 0 | AU5: ='Scheduling Calcs'!AD20 -> 0 | AV5: ='Scheduling Calcs'!AE20 -> 0 | AW5: ='Scheduling Calcs'!AF20 -> 0 | AX5: ='Scheduling Calcs'!AG20 -> 0 | AY5: ='Scheduling Calcs'!AH20 -> 0 | AZ5: ='Scheduling Calcs'!AI20 -> 0 | BA5: ='Scheduling Calcs'!AJ20 -> 0 | BB5: ='Scheduling Calcs'!AK20 -> 0 | BC5: ='Scheduling Calcs'!AL20 -> 0 | BD5: ='Scheduling Calcs'!AM20 -> 0 | BE5: ='Scheduling Calcs'!AN20 -> 0 | BF5: ='Scheduling Calcs'!AO20 -> 0 | BG5: ='Scheduling Calcs'!AP20 -> 0 | BH5: ='Scheduling Calcs'!AQ20 -> 0 | BI5: ='Scheduling Calcs'!AR20 -> 0 | BJ5: ='Scheduling Calcs'!AS20 -> 0 | BK5: ='Scheduling Calcs'!AT20 -> 0 | BL5: ='Scheduling Calcs'!AU20 -> 0 | BM5: ='Scheduling Calcs'!AV20 -> 0 | BN5: ='Scheduling Calcs'!AW20 -> 0 | BO5: ='Scheduling Calcs'!AX20 -> 0 | BP5: ='Scheduling Calcs'!AY20 -> 0 | BQ5: ='Scheduling Calcs'!AZ20 -> 0 | BR5: ='Scheduling Calcs'!BA20 -> 0
B6: =LCCA!B11 -> Project area | C6: =LCCA!C11 -> m2 | D6: =LCCA!D11 -> 0 | E6: =LCCA!E11 -> 0 | F6: =LCCA!F11 -> 0 | I6: =N6 -> 0 | K6: =(M6-E6)/(F6-E6) ->  | L6: =6-K6 ->  | M6: =(E6+(D6*4)+F6)/6 -> 0 | N6: =IF(General!$D$21="Off",D6,IF(OR(E6=F6,(AND(E6=F6,F6=E6))),F6,_xlfn.BETA.INV(RAND(),K6,L6,E6,F6))) -> 0
B7: =LCCA!B12 -> Growth of project area per year | C7: =LCCA!C12 -> % | D7: =LCCA!D12 -> 0 | E7: =LCCA!E12 -> 0 | F7: =LCCA!F12 -> 0 | I7: 0 | M7: 0 | N7: =IF(General!$D$21="Off",D7,IF(OR(E7=F7,(AND(E7=F7,F7=E7))),F7,_xlfn.BETA.INV(RAND(),K7,L7,E7,F7))) -> 0
B8: =LCCA!B13 -> Capital cost from project | C8: =LCCA!C13 -> $ | D8: =LCCA!D13 -> 0 | E8: =LCCA!E13 -> 0 | F8: =LCCA!F13 -> 0 | I8: 0 | M8: 0 | N8: =IF(General!$D$21="Off",D8,IF(OR(E8=F8,(AND(E8=F8,F8=E8))),F8,_xlfn.BETA.INV(RAND(),K8,L8,E8,F8))) -> 0 | P8: Capital Cost from Project | Q8: =SUM(T8:BR8) -> 0 | S8: Capital Cost from Project | T8: =-$I8*T$4*T$126 -> 0 | U8: =-$I8*U$4*U$126 -> 0 | V8: 0 | W8: 0 | X8: 0 | Y8: 0 | Z8: 0 | AA8: 0 | AB8: 0 | AC8: 0 | AD8: 0 | AE8: 0 | AF8: 0 | AG8: 0 | AH8: 0 | AI8: 0 | AJ8: 0 | AK8: 0 | AL8: 0 | AM8: 0 | AN8: 0 | AO8: 0 | AP8: 0 | AQ8: 0 | AR8: 0 | AS8: 0 | AT8: 0 | AU8: 0 | AV8: 0 | AW8: 0 | AX8: 0 | AY8: 0 | AZ8: 0 | BA8: 0 | BB8: 0 | BC8: 0 | BD8: 0 | BE8: 0 | BF8: 0 | BG8: 0 | BH8: 0 | BI8: 0 | BJ8: 0 | BK8: 0 | BL8: 0 | BM8: 0 | BN8: 0 | BO8: 0 | BP8: 0 | BQ8: 0 | BR8: 0
B9: =LCCA!B14 -> Annual operations & maintenance costs | C9: =LCCA!C14 -> $/year | D9: =LCCA!D14 -> 0 | E9: =LCCA!E14 -> 0 | F9: =LCCA!F14 -> 0 | I9: 0 | M9: 0 | N9: =IF(General!$D$21="Off",D9,IF(OR(E9=F9,(AND(E9=F9,F9=E9))),F9,_xlfn.BETA.INV(RAND(),K9,L9,E9,F9))) -> 0 | P9: Annual Maintenance Costs | Q9: =SUM(T9:BR9) -> 0 | S9: Annual Maintenance Costs | T9: =-$I9*T$5*T$126 -> 0 | U9: =-$I9*U$5*U$126 -> 0 | V9: 0 | W9: 0 | X9: 0 | Y9: 0 | Z9: 0 | AA9: 0 | AB9: 0 | AC9: 0 | AD9: 0 | AE9: 0 | AF9: 0 | AG9: 0 | AH9: 0 | AI9: 0 | AJ9: 0 | AK9: 0 | AL9: 0 | AM9: 0 | AN9: 0 | AO9: 0 | AP9: 0 | AQ9: 0 | AR9: 0 | AS9: 0 | AT9: 0 | AU9: 0 | AV9: 0 | AW9: 0 | AX9: 0 | AY9: 0 | AZ9: 0 | BA9: 0 | BB9: 0 | BC9: 0 | BD9: 0 | BE9: 0 | BF9: 0 | BG9: 0 | BH9: 0 | BI9: 0 | BJ9: 0 | BK9: 0 | BL9: 0 | BM9: 0 | BN9: 0 | BO9: 0 | BP9: 0 | BQ9: 0 | BR9: 0
B10: =LCCA!B15 -> Other annual project costs | C10: =LCCA!C15 -> $/year | D10: =LCCA!D15 -> 0 | E10: =LCCA!E15 -> 0 | F10: =LCCA!F15 -> 0 | I10: 0 | M10: 0 | N10: =IF(General!$D$21="Off",D10,IF(OR(E10=F10,(AND(E10=F10,F10=E10))),F10,_xlfn.BETA.INV(RAND(),K10,L10,E10,F10))) -> 0 | P10: Other Annual Project Costs | Q10: =SUM(T10:BR10) -> 0 | S10: Other Annual Project Costs | T10: =-$I10*T$5*T$126 -> 0 | U10: 0 | V10: 0 | W10: 0 | X10: 0 | Y10: 0 | Z10: 0 | AA10: 0 | AB10: 0 | AC10: 0 | AD10: 0 | AE10: 0 | AF10: 0 | AG10: 0 | AH10: 0 | AI10: 0 | AJ10: 0 | AK10: 0 | AL10: 0 | AM10: 0 | AN10: 0 | AO10: 0 | AP10: 0 | AQ10: 0 | AR10: 0 | AS10: 0 | AT10: 0 | AU10: 0 | AV10: 0 | AW10: 0 | AX10: 0 | AY10: 0 | AZ10: 0 | BA10: 0 | BB10: 0 | BC10: 0 | BD10: 0 | BE10: 0 | BF10: 0 | BG10: 0 | BH10: 0 | BI10: 0 | BJ10: 0 | BK10: 0 | BL10: 0 | BM10: 0 | BN10: 0 | BO10: 0 | BP10: 0 | BQ10: 0 | BR10: 0
B11: =LCCA!B16 -> Useful life | C11: =LCCA!C16 -> years | D11: =LCCA!D16 -> 0 | E11: =LCCA!E16 -> 0 | F11: =LCCA!F16 -> 0 | I11: 0 | M11: 0 | N11: =IF(General!$D$21="Off",D11,IF(OR(E11=F11,(AND(E11=F11,F11=E11))),F11,_xlfn.BETA.INV(RAND(),K11,L11,E11,F11))) -> 0 | P11: =S12 -> Replacement Cost | Q11: =SUM(T12:BR12) -> 0 | S11: Replacement indicator | T11: =IF($I11=0,0,IF(T$5>0,IF(MOD(T$2,ROUND($I11,0))=0,1,0),0)) -> 0 | U11: =IF($I11=0,0,IF(U$5>0,IF(MOD(U$2,ROUND($I11,0))=0,1,0),0)) -> 0 | V11: 0 | W11: 0 | X11: 0 | Y11: 0 | Z11: 0 | AA11: 0 | AB11: 0 | AC11: 0 | AD11: 0 | AE11: 0 | AF11: 0 | AG11: 0 | AH11: 0 | AI11: 0 | AJ11: 0 | AK11: 0 | AL11: 0 | AM11: 0 | AN11: 0 | AO11: 0 | AP11: 0 | AQ11: 0 | AR11: 0 | AS11: 0 | AT11: 0 | AU11: 0 | AV11: 0 | AW11: 0 | AX11: 0 | AY11: 0 | AZ11: 0 | BA11: 0 | BB11: 0 | BC11: 0 | BD11: 0 | BE11: 0 | BF11: 0 | BG11: 0 | BH11: 0 | BI11: 0 | BJ11: 0 | BK11: 0 | BL11: 0 | BM11: 0 | BN11: 0 | BO11: 0 | BP11: 0 | BQ11: 0 | BR11: 0
B12: =LCCA!B17 -> % of recurring project cost | C12: =LCCA!C17 -> % | D12: =LCCA!D17 -> 0 | E12: =LCCA!E17 -> 0 | F12: =LCCA!F17 -> 0 | I12: 0 | M12: 0 | N12: =IF(General!$D$21="Off",D12,IF(OR(E12=F12,(AND(E12=F12,F12=E12))),F12,_xlfn.BETA.INV(RAND(),K12,L12,E12,F12))) -> 0 | P12: =S15 -> Disposal costs | Q12: =SUM(T15:BR15) -> 0 | S12: Replacement Cost | T12: =-IF(T$2=0,0,IF(T11=1,$I12*$I8,0))*T$126 -> 0 | U12: =-IF(U$2=0,0,IF(U11=1,$I12*$I8,0))*U$126 -> 0 | V12: 0 | W12: 0 | X12: 0 | Y12: 0 | Z12: 0 | AA12: 0 | AB12: 0 | AC12: 0 | AD12: 0 | AE12: 0 | AF12: 0 | AG12: 0 | AH12: 0 | AI12: 0 | AJ12: 0 | AK12: 0 | AL12: 0 | AM12: 0 | AN12: 0 | AO12: 0 | AP12: 0 | AQ12: 0 | AR12: 0 | AS12: 0 | AT12: 0 | AU12: 0 | AV12: 0 | AW12: 0 | AX12: 0 | AY12: 0 | AZ12: 0 | BA12: 0 | BB12: 0 | BC12: 0 | BD12: 0 | BE12: 0 | BF12: 0 | BG12: 0 | BH12: 0 | BI12: 0 | BJ12: 0 | BK12: 0 | BL12: 0 | BM12: 0 | BN12: 0 | BO12: 0 | BP12: 0 | BQ12: 0 | BR12: 0
B13: =LCCA!B18 -> Disposal costs | C13: =LCCA!C18 -> $ | D13: =LCCA!D18 -> 0 | E13: =LCCA!E18 -> 0 | F13: =LCCA!F18 -> 0 | I13: 0 | M13: 0 | N13: =IF(General!$D$21="Off",D13,IF(OR(E13=F13,(AND(E13=F13,F13=E13))),F13,_xlfn.BETA.INV(RAND(),K13,L13,E13,F13))) -> 0 | P13: =S16 -> Salvage Value | Q13: =SUM(T16:BR16) -> 0 | S13: Number of replacements | T13: =SUM((T11:BR11)) -> 0
B14: =LCCA!B19 -> Salvage value | C14: =LCCA!C19 -> $ | D14: =LCCA!D19 -> 0 | E14: =LCCA!E19 -> 0 | F14: =LCCA!F19 -> 0 | I14: 0 | M14: 0 | N14: =IF(General!$D$21="Off",D14,IF(OR(E14=F14,(AND(E14=F14,F14=E14))),F14,_xlfn.BETA.INV(RAND(),K14,L14,E14,F14))) -> 0 | P14: Residual value | Q14: =SUM(T14:BR14) -> 0 | S14: Residual Value | T14: =IF(OR($I8=0,$I11=0),0,IF(AND(U$4=0,U$5=0,T$5>0),ABS((SUM($T$5:$BR$5)-(ROUND($I11,0)*$T13))*$I8/ROUND($I11,0)),0)*T$126) -> 0 | U14: 0 | V14: 0 | W14: 0 | X14: 0 | Y14: 0 | Z14: 0 | AA14: 0 | AB14: 0 | AC14: 0 | AD14: 0 | AE14: 0 | AF14: 0 | AG14: 0 | AH14: 0 | AI14: 0 | AJ14: 0 | AK14: 0 | AL14: 0 | AM14: 0 | AN14: 0 | AO14: 0 | AP14: 0 | AQ14: 0 | AR14: 0 | AS14: 0 | AT14: 0 | AU14: 0 | AV14: 0 | AW14: 0 | AX14: 0 | AY14: 0 | AZ14: =IF(OR($I8=0,$I11=0),0,IF(AND(BA$4=0,BA$5=0,AZ$5>0),ABS((SUM($T$5:$BR$5)-(ROUND($I11,0)*$T13))*$I8/ROUND($I11,0)),0)*AZ$126) -> 0 | BA14: 0 | BB14: 0 | BC14: 0 | BD14: 0 | BE14: 0 | BF14: 0 | BG14: 0 | BH14: 0 | BI14: 0 | BJ14: 0 | BK14: 0 | BL14: 0 | BM14: 0 | BN14: 0 | BO14: 0 | BP14: 0 | BQ14: 0 | BR14: 0
S15: Disposal costs | T15: =-IF(AND(T$4>0,U$5>0),$I13,0)*T$126 -> 0 | U15: =-IF(AND(U$4>0,V$5>0),$I13,0)*U$126 -> 0 | V15: 0 | W15: 0 | X15: 0 | Y15: 0 | Z15: 0 | AA15: 0 | AB15: 0 | AC15: 0 | AD15: 0 | AE15: 0 | AF15: 0 | AG15: 0 | AH15: 0 | AI15: 0 | AJ15: 0 | AK15: 0 | AL15: 0 | AM15: 0 | AN15: 0 | AO15: 0 | AP15: 0 | AQ15: 0 | AR15: 0 | AS15: 0 | AT15: 0 | AU15: 0 | AV15: 0 | AW15: 0 | AX15: 0 | AY15: 0 | AZ15: 0 | BA15: 0 | BB15: 0 | BC15: 0 | BD15: 0 | BE15: 0 | BF15: 0 | BG15: 0 | BH15: 0 | BI15: 0 | BJ15: 0 | BK15: 0 | BL15: 0 | BM15: 0 | BN15: 0 | BO15: 0 | BP15: 0 | BQ15: 0 | BR15: 0
B16: SEAGRASS | S16: Salvage Value | T16: =IF(AND(T$4>0,U$5>0),$I14,0)*T$126 -> 0 | U16: =IF(AND(U$4>0,V$5>0),$I14,0)*U$126 -> 0 | V16: 0 | W16: 0 | X16: 0 | Y16: 0 | Z16: 0 | AA16: 0 | AB16: 0 | AC16: 0 | AD16: 0 | AE16: 0 | AF16: 0 | AG16: 0 | AH16: 0 | AI16: 0 | AJ16: 0 | AK16: 0 | AL16: 0 | AM16: 0 | AN16: 0 | AO16: 0 | AP16: 0 | AQ16: 0 | AR16: 0 | AS16: 0 | AT16: 0 | AU16: 0 | AV16: 0 | AW16: 0 | AX16: 0 | AY16: 0 | AZ16: 0 | BA16: 0 | BB16: 0 | BC16: 0 | BD16: 0 | BE16: 0 | BF16: 0 | BG16: 0 | BH16: 0 | BI16: 0 | BJ16: 0 | BK16: 0 | BL16: 0 | BM16: 0 | BN16: 0 | BO16: 0 | BP16: 0 | BQ16: 0 | BR16: 0
B17: =LCCA!B22 -> Project area | C17: =LCCA!C22 -> m2 | D17: =LCCA!D22 -> 0 | E17: =LCCA!E22 -> 0 | F17: =LCCA!F22 -> 0 | I17: =N17 -> 0 | K17: =(M17-E17)/(F17-E17) ->  | L17: =6-K17 ->  | M17: =(E17+(D17*4)+F17)/6 -> 0 | N17: =IF(General!$D$21="Off",D17,IF(OR(E17=F17,(AND(E17=F17,F17=E17))),F17,_xlfn.BETA.INV(RAND(),K17,L17,E17,F17))) -> 0
B18: =LCCA!B23 -> Growth of project area per year | C18: =LCCA!C23 -> % | D18: =LCCA!D23 -> 0 | E18: =LCCA!E23 -> 0 | F18: =LCCA!F23 -> 0 | I18: 0 | M18: 0 | N18: =IF(General!$D$21="Off",D18,IF(OR(E18=F18,(AND(E18=F18,F18=E18))),F18,_xlfn.BETA.INV(RAND(),K18,L18,E18,F18))) -> 0
B19: =LCCA!B24 -> Capital cost from project | C19: =LCCA!C24 -> $ | D19: =LCCA!D24 -> 0 | E19: =LCCA!E24 -> 0 | F19: =LCCA!F24 -> 0 | I19: 0 | M19: 0 | N19: =IF(General!$D$21="Off",D19,IF(OR(E19=F19,(AND(E19=F19,F19=E19))),F19,_xlfn.BETA.INV(RAND(),K19,L19,E19,F19))) -> 0 | P19: Capital Cost from Project | Q19: =SUM(T19:BR19) -> 0 | S19: Capital Cost from Project | T19: =-$I19*T$4*T$126 -> 0 | U19: =-$I19*U$4*U$126 -> 0 | V19: 0 | W19: 0 | X19: 0 | Y19: 0 | Z19: 0 | AA19: 0 | AB19: 0 | AC19: 0 | AD19: 0 | AE19: 0 | AF19: 0 | AG19: 0 | AH19: 0 | AI19: 0 | AJ19: 0 | AK19: 0 | AL19: 0 | AM19: 0 | AN19: 0 | AO19: 0 | AP19: 0 | AQ19: 0 | AR19: 0 | AS19: 0 | AT19: 0 | AU19: 0 | AV19: 0 | AW19: 0 | AX19: 0 | AY19: 0 | AZ19: 0 | BA19: 0 | BB19: 0 | BC19: 0 | BD19: 0 | BE19: 0 | BF19: 0 | BG19: 0 | BH19: 0 | BI19: 0 | BJ19: 0 | BK19: 0 | BL19: 0 | BM19: 0 | BN19: 0 | BO19: 0 | BP19: 0 | BQ19: 0 | BR19: 0
B20: =LCCA!B25 -> Annual operations & maintenance costs | C20: =LCCA!C25 -> $/year | D20: =LCCA!D25 -> 0 | E20: =LCCA!E25 -> 0 | F20: =LCCA!F25 -> 0 | I20: 0 | M20: 0 | N20: =IF(General!$D$21="Off",D20,IF(OR(E20=F20,(AND(E20=F20,F20=E20))),F20,_xlfn.BETA.INV(RAND(),K20,L20,E20,F20))) -> 0 | P20: Annual Maintenance Costs | Q20: =SUM(T20:BR20) -> 0 | S20: Annual Maintenance Costs | T20: =-$I20*T$5*T$126 -> 0 | U20: =-$I20*U$5*U$126 -> 0 | V20: 0 | W20: 0 | X20: 0 | Y20: 0 | Z20: 0 | AA20: 0 | AB20: 0 | AC20: 0 | AD20: 0 | AE20: 0 | AF20: 0 | AG20: 0 | AH20: 0 | AI20: 0 | AJ20: 0 | AK20: 0 | AL20: 0 | AM20: 0 | AN20: 0 | AO20: 0 | AP20: 0 | AQ20: 0 | AR20: 0 | AS20: 0 | AT20: 0 | AU20: 0 | AV20: 0 | AW20: 0 | AX20: 0 | AY20: 0 | AZ20: 0 | BA20: 0 | BB20: 0 | BC20: 0 | BD20: 0 | BE20: 0 | BF20: 0 | BG20: 0 | BH20: 0 | BI20: 0 | BJ20: 0 | BK20: 0 | BL20: 0 | BM20: 0 | BN20: 0 | BO20: 0 | BP20: 0 | BQ20: 0 | BR20: 0
B21: =LCCA!B26 -> Other annual project costs | C21: =LCCA!C26 -> $/year | D21: =LCCA!D26 -> 0 | E21: =LCCA!E26 -> 0 | F21: =LCCA!F26 -> 0 | I21: 0 | M21: 0 | N21: =IF(General!$D$21="Off",D21,IF(OR(E21=F21,(AND(E21=F21,F21=E21))),F21,_xlfn.BETA.INV(RAND(),K21,L21,E21,F21))) -> 0 | P21: Other Annual Project Costs | Q21: =SUM(T21:BR21) -> 0 | S21: Other Annual Project Costs | T21: =-$I21*T$5*T$126 -> 0 | U21: 0 | V21: 0 | W21: 0 | X21: 0 | Y21: 0 | Z21: 0 | AA21: 0 | AB21: 0 | AC21: 0 | AD21: 0 | AE21: 0 | AF21: 0 | AG21: 0 | AH21: 0 | AI21: 0 | AJ21: 0 | AK21: 0 | AL21: 0 | AM21: 0 | AN21: 0 | AO21: 0 | AP21: 0 | AQ21: 0 | AR21: 0 | AS21: 0 | AT21: 0 | AU21: 0 | AV21: 0 | AW21: 0 | AX21: 0 | AY21: 0 | AZ21: 0 | BA21: 0 | BB21: 0 | BC21: 0 | BD21: 0 | BE21: 0 | BF21: 0 | BG21: 0 | BH21: 0 | BI21: 0 | BJ21: 0 | BK21: 0 | BL21: 0 | BM21: 0 | BN21: 0 | BO21: 0 | BP21: 0 | BQ21: 0 | BR21: 0
B22: =LCCA!B27 -> Useful life | C22: =LCCA!C27 -> years | D22: =LCCA!D27 -> 0 | E22: =LCCA!E27 -> 0 | F22: =LCCA!F27 -> 0 | I22: 0 | M22: 0 | N22: =IF(General!$D$21="Off",D22,IF(OR(E22=F22,(AND(E22=F22,F22=E22))),F22,_xlfn.BETA.INV(RAND(),K22,L22,E22,F22))) -> 0 | P22: =S23 -> Replacement Cost | Q22: =SUM(T23:BR23) -> 0 | S22: Replacement indicator | T22: =IF($I22=0,0,IF(T$5>0,IF(MOD(T$2,ROUND($I22,0))=0,1,0),0)) -> 0 | U22: =IF($I22=0,0,IF(U$5>0,IF(MOD(U$2,ROUND($I22,0))=0,1,0),0)) -> 0 | V22: 0 | W22: 0 | X22: 0 | Y22: 0 | Z22: 0 | AA22: 0 | AB22: 0 | AC22: 0 | AD22: 0 | AE22: 0 | AF22: 0 | AG22: 0 | AH22: 0 | AI22: 0 | AJ22: 0 | AK22: 0 | AL22: 0 | AM22: 0 | AN22: 0 | AO22: 0 | AP22: 0 | AQ22: 0 | AR22: 0 | AS22: 0 | AT22: 0 | AU22: 0 | AV22: 0 | AW22: 0 | AX22: 0 | AY22: 0 | AZ22: 0 | BA22: 0 | BB22: 0 | BC22: 0 | BD22: 0 | BE22: 0 | BF22: 0 | BG22: 0 | BH22: 0 | BI22: 0 | BJ22: 0 | BK22: 0 | BL22: 0 | BM22: 0 | BN22: 0 | BO22: 0 | BP22: 0 | BQ22: 0 | BR22: 0
B23: =LCCA!B28 -> % of recurring project cost | C23: =LCCA!C28 -> % | D23: =LCCA!D28 -> 0 | E23: =LCCA!E28 -> 0 | F23: =LCCA!F28 -> 0 | I23: 0 | M23: 0 | N23: =IF(General!$D$21="Off",D23,IF(OR(E23=F23,(AND(E23=F23,F23=E23))),F23,_xlfn.BETA.INV(RAND(),K23,L23,E23,F23))) -> 0 | P23: =S26 -> Disposal costs | Q23: =SUM(T26:BR26) -> 0 | S23: Replacement Cost | T23: =-IF(T$2=0,0,IF(T22=1,$I23*$I19,0))*T$126 -> 0 | U23: 0 | V23: 0 | W23: 0 | X23: 0 | Y23: 0 | Z23: 0 | AA23: 0 | AB23: 0 | AC23: 0 | AD23: 0 | AE23: 0 | AF23: 0 | AG23: 0 | AH23: 0 | AI23: 0 | AJ23: 0 | AK23: 0 | AL23: 0 | AM23: 0 | AN23: 0 | AO23: 0 | AP23: 0 | AQ23: 0 | AR23: 0 | AS23: 0 | AT23: 0 | AU23: 0 | AV23: 0 | AW23: 0 | AX23: 0 | AY23: 0 | AZ23: =-IF(AZ$2=0,0,IF(AZ22=1,$I23*$I19,0))*AZ$126 -> 0 | BA23: 0 | BB23: 0 | BC23: 0 | BD23: 0 | BE23: 0 | BF23: 0 | BG23: 0 | BH23: 0 | BI23: 0 | BJ23: 0 | BK23: 0 | BL23: 0 | BM23: 0 | BN23: 0 | BO23: 0 | BP23: 0 | BQ23: 0 | BR23: 0
B24: =LCCA!B29 -> Disposal costs | C24: =LCCA!C29 -> $ | D24: =LCCA!D29 -> 0 | E24: =LCCA!E29 -> 0 | F24: =LCCA!F29 -> 0 | I24: 0 | M24: 0 | N24: =IF(General!$D$21="Off",D24,IF(OR(E24=F24,(AND(E24=F24,F24=E24))),F24,_xlfn.BETA.INV(RAND(),K24,L24,E24,F24))) -> 0 | P24: =S27 -> Salvage Value | Q24: =SUM(T27:BR27) -> 0 | S24: Number of replacements | T24: =SUM((T22:BR22)) -> 0
B25: =LCCA!B30 -> Salvage value | C25: =LCCA!C30 -> $ | D25: =LCCA!D30 -> 0 | E25: =LCCA!E30 -> 0 | F25: =LCCA!F30 -> 0 | I25: 0 | M25: 0 | N25: =IF(General!$D$21="Off",D25,IF(OR(E25=F25,(AND(E25=F25,F25=E25))),F25,_xlfn.BETA.INV(RAND(),K25,L25,E25,F25))) -> 0 | P25: Residual value | Q25: =SUM(T25:BR25) -> 0 | S25: Residual Value | T25: =IF(OR($I19=0,$I22=0),0,IF(AND(U$4=0,U$5=0,T$5>0),ABS((SUM($T$5:$BR$5)-(ROUND($I22,0)*$T24))*$I19/ROUND($I22,0)),0)*T$126) -> 0 | U25: 0 | V25: 0 | W25: 0 | X25: 0 | Y25: 0 | Z25: 0 | AA25: 0 | AB25: 0 | AC25: 0 | AD25: 0 | AE25: 0 | AF25: 0 | AG25: 0 | AH25: 0 | AI25: 0 | AJ25: 0 | AK25: 0 | AL25: 0 | AM25: 0 | AN25: 0 | AO25: 0 | AP25: 0 | AQ25: 0 | AR25: 0 | AS25: 0 | AT25: 0 | AU25: 0 | AV25: 0 | AW25: 0 | AX25: 0 | AY25: 0 | AZ25: =IF(OR($I19=0,$I22=0),0,IF(AND(BA$4=0,BA$5=0,AZ$5>0),ABS((SUM($T$5:$BR$5)-(ROUND($I22,0)*$T24))*$I19/ROUND($I22,0)),0)*AZ$126) -> 0 | BA25: 0 | BB25: 0 | BC25: 0 | BD25: 0 | BE25: 0 | BF25: 0 | BG25: 0 | BH25: 0 | BI25: 0 | BJ25: 0 | BK25: 0 | BL25: 0 | BM25: 0 | BN25: 0 | BO25: 0 | BP25: 0 | BQ25: 0 | BR25: 0
S26: Disposal costs | T26: =-IF(AND(T$4>0,U$5>0),$I24,0)*T$126 -> 0 | U26: =-IF(AND(U$4>0,V$5>0),$I24,0)*U$126 -> 0 | V26: 0 | W26: 0 | X26: 0 | Y26: 0 | Z26: 0 | AA26: 0 | AB26: 0 | AC26: 0 | AD26: 0 | AE26: 0 | AF26: 0 | AG26: 0 | AH26: 0 | AI26: 0 | AJ26: 0 | AK26: 0 | AL26: 0 | AM26: 0 | AN26: 0 | AO26: 0 | AP26: 0 | AQ26: 0 | AR26: 0 | AS26: 0 | AT26: 0 | AU26: 0 | AV26: 0 | AW26: 0 | AX26: 0 | AY26: 0 | AZ26: 0 | BA26: 0 | BB26: 0 | BC26: 0 | BD26: 0 | BE26: 0 | BF26: 0 | BG26: 0 | BH26: 0 | BI26: 0 | BJ26: 0 | BK26: 0 | BL26: 0 | BM26: 0 | BN26: 0 | BO26: 0 | BP26: 0 | BQ26: 0 | BR26: 0
B27: SALT MARSH | S27: Salvage Value | T27: =IF(AND(T$4>0,U$5>0),$I25,0)*T$126 -> 0 | U27: =IF(AND(U$4>0,V$5>0),$I25,0)*U$126 -> 0 | V27: 0 | W27: 0 | X27: 0 | Y27: 0 | Z27: 0 | AA27: 0 | AB27: 0 | AC27: 0 | AD27: 0 | AE27: 0 | AF27: 0 | AG27: 0 | AH27: 0 | AI27: 0 | AJ27: 0 | AK27: 0 | AL27: 0 | AM27: 0 | AN27: 0 | AO27: 0 | AP27: 0 | AQ27: 0 | AR27: 0 | AS27: 0 | AT27: 0 | AU27: 0 | AV27: 0 | AW27: 0 | AX27: 0 | AY27: 0 | AZ27: 0 | BA27: 0 | BB27: 0 | BC27: 0 | BD27: 0 | BE27: 0 | BF27: 0 | BG27: 0 | BH27: 0 | BI27: 0 | BJ27: 0 | BK27: 0 | BL27: 0 | BM27: 0 | BN27: 0 | BO27: 0 | BP27: 0 | BQ27: 0 | BR27: 0
B28: =LCCA!B33 -> Project area | C28: =LCCA!C33 -> m2 | D28: =LCCA!D33 -> 0 | E28: =LCCA!E33 -> 0 | F28: =LCCA!F33 -> 0 | I28: =N28 -> 0 | K28: =(M28-E28)/(F28-E28) ->  | L28: =6-K28 ->  | M28: =(E28+(D28*4)+F28)/6 -> 0 | N28: =IF(General!$D$21="Off",D28,IF(OR(E28=F28,(AND(E28=F28,F28=E28))),F28,_xlfn.BETA.INV(RAND(),K28,L28,E28,F28))) -> 0
B29: =LCCA!B34 -> Growth of project area per year | C29: =LCCA!C34 -> % | D29: =LCCA!D34 -> 0 | E29: =LCCA!E34 -> 0 | F29: =LCCA!F34 -> 0 | I29: 0 | M29: 0 | N29: =IF(General!$D$21="Off",D29,IF(OR(E29=F29,(AND(E29=F29,F29=E29))),F29,_xlfn.BETA.INV(RAND(),K29,L29,E29,F29))) -> 0
B30: =LCCA!B35 -> Capital cost from project | C30: =LCCA!C35 -> $ | D30: =LCCA!D35 -> 0 | E30: =LCCA!E35 -> 0 | F30: =LCCA!F35 -> 0 | I30: 0 | M30: 0 | N30: =IF(General!$D$21="Off",D30,IF(OR(E30=F30,(AND(E30=F30,F30=E30))),F30,_xlfn.BETA.INV(RAND(),K30,L30,E30,F30))) -> 0 | P30: Capital Cost from Project | Q30: =SUM(T30:BR30) -> 0 | S30: Capital Cost from Project | T30: =-$I30*T$4*T$126 -> 0 | U30: =-$I30*U$4*U$126 -> 0 | V30: 0 | W30: 0 | X30: 0 | Y30: 0 | Z30: 0 | AA30: 0 | AB30: 0 | AC30: 0 | AD30: 0 | AE30: 0 | AF30: 0 | AG30: 0 | AH30: 0 | AI30: 0 | AJ30: 0 | AK30: 0 | AL30: 0 | AM30: 0 | AN30: 0 | AO30: 0 | AP30: 0 | AQ30: 0 | AR30: 0 | AS30: 0 | AT30: 0 | AU30: 0 | AV30: 0 | AW30: 0 | AX30: 0 | AY30: 0 | AZ30: 0 | BA30: 0 | BB30: 0 | BC30: 0 | BD30: 0 | BE30: 0 | BF30: 0 | BG30: 0 | BH30: 0 | BI30: 0 | BJ30: 0 | BK30: 0 | BL30: 0 | BM30: 0 | BN30: 0 | BO30: 0 | BP30: 0 | BQ30: 0 | BR30: 0
B31: =LCCA!B36 -> Annual operations & maintenance costs | C31: =LCCA!C36 -> $/year | D31: =LCCA!D36 -> 0 | E31: =LCCA!E36 -> 0 | F31: =LCCA!F36 -> 0 | I31: 0 | M31: 0 | N31: =IF(General!$D$21="Off",D31,IF(OR(E31=F31,(AND(E31=F31,F31=E31))),F31,_xlfn.BETA.INV(RAND(),K31,L31,E31,F31))) -> 0 | P31: Annual Maintenance Costs | Q31: =SUM(T31:BR31) -> 0 | S31: Annual Maintenance Costs | T31: =-$I31*T$5*T$126 -> 0 | U31: =-$I31*U$5*U$126 -> 0 | V31: 0 | W31: 0 | X31: 0 | Y31: 0 | Z31: 0 | AA31: 0 | AB31: 0 | AC31: 0 | AD31: 0 | AE31: 0 | AF31: 0 | AG31: 0 | AH31: 0 | AI31: 0 | AJ31: 0 | AK31: 0 | AL31: 0 | AM31: 0 | AN31: 0 | AO31: 0 | AP31: 0 | AQ31: 0 | AR31: 0 | AS31: 0 | AT31: 0 | AU31: 0 | AV31: 0 | AW31: 0 | AX31: 0 | AY31: 0 | AZ31: 0 | BA31: 0 | BB31: 0 | BC31: 0 | BD31: 0 | BE31: 0 | BF31: 0 | BG31: 0 | BH31: 0 | BI31: 0 | BJ31: 0 | BK31: 0 | BL31: 0 | BM31: 0 | BN31: 0 | BO31: 0 | BP31: 0 | BQ31: 0 | BR31: 0
B32: =LCCA!B37 -> Other annual project costs | C32: =LCCA!C37 -> $/year | D32: =LCCA!D37 -> 0 | E32: =LCCA!E37 -> 0 | F32: =LCCA!F37 -> 0 | I32: 0 | M32: 0 | N32: =IF(General!$D$21="Off",D32,IF(OR(E32=F32,(AND(E32=F32,F32=E32))),F32,_xlfn.BETA.INV(RAND(),K32,L32,E32,F32))) -> 0 | P32: Other Annual Project Costs | Q32: =SUM(T32:BR32) -> 0 | S32: Other Annual Project Costs | T32: =-$I32*T$5*T$126 -> 0 | U32: 0 | V32: 0 | W32: 0 | X32: 0 | Y32: 0 | Z32: 0 | AA32: 0 | AB32: 0 | AC32: 0 | AD32: 0 | AE32: 0 | AF32: 0 | AG32: 0 | AH32: 0 | AI32: 0 | AJ32: 0 | AK32: 0 | AL32: 0 | AM32: 0 | AN32: 0 | AO32: 0 | AP32: 0 | AQ32: 0 | AR32: 0 | AS32: 0 | AT32: 0 | AU32: 0 | AV32: 0 | AW32: 0 | AX32: 0 | AY32: 0 | AZ32: 0 | BA32: 0 | BB32: 0 | BC32: 0 | BD32: 0 | BE32: 0 | BF32: 0 | BG32: 0 | BH32: 0 | BI32: 0 | BJ32: 0 | BK32: 0 | BL32: 0 | BM32: 0 | BN32: 0 | BO32: 0 | BP32: 0 | BQ32: 0 | BR32: 0
B33: =LCCA!B38 -> Useful life | C33: =LCCA!C38 -> years | D33: =LCCA!D38 -> 0 | E33: =LCCA!E38 -> 0 | F33: =LCCA!F38 -> 0 | I33: 0 | M33: 0 | N33: =IF(General!$D$21="Off",D33,IF(OR(E33=F33,(AND(E33=F33,F33=E33))),F33,_xlfn.BETA.INV(RAND(),K33,L33,E33,F33))) -> 0 | P33: =S34 -> Replacement Cost | Q33: =SUM(T34:BR34) -> 0 | S33: Replacement indicator | T33: =IF($I33=0,0,IF(T$5>0,IF(MOD(T$2,ROUND($I33,0))=0,1,0))) -> 0 | U33: =IF($I33=0,0,IF(U$5>0,IF(MOD(U$2,ROUND($I33,0))=0,1,0))) -> 0 | V33: 0 | W33: 0 | X33: 0 | Y33: 0 | Z33: 0 | AA33: 0 | AB33: 0 | AC33: 0 | AD33: 0 | AE33: 0 | AF33: 0 | AG33: 0 | AH33: 0 | AI33: 0 | AJ33: 0 | AK33: 0 | AL33: 0 | AM33: 0 | AN33: 0 | AO33: 0 | AP33: 0 | AQ33: 0 | AR33: 0 | AS33: 0 | AT33: 0 | AU33: 0 | AV33: 0 | AW33: 0 | AX33: 0 | AY33: 0 | AZ33: 0 | BA33: 0 | BB33: 0 | BC33: 0 | BD33: 0 | BE33: 0 | BF33: 0 | BG33: 0 | BH33: 0 | BI33: 0 | BJ33: 0 | BK33: 0 | BL33: 0 | BM33: 0 | BN33: 0 | BO33: 0 | BP33: 0 | BQ33: 0 | BR33: 0
B34: =LCCA!B39 -> % of recurring project cost | C34: =LCCA!C39 -> % | D34: =LCCA!D39 -> 0 | E34: =LCCA!E39 -> 0 | F34: =LCCA!F39 -> 0 | I34: 0 | M34: 0 | N34: =IF(General!$D$21="Off",D34,IF(OR(E34=F34,(AND(E34=F34,F34=E34))),F34,_xlfn.BETA.INV(RAND(),K34,L34,E34,F34))) -> 0 | P34: =S37 -> Disposal costs | Q34: =SUM(T37:BR37) -> 0 | S34: Replacement Cost | T34: =-IF(T$2=0,0,IF(T33=1,$I34*$I30,0))*T$126 -> 0 | U34: 0 | V34: 0 | W34: 0 | X34: 0 | Y34: 0 | Z34: 0 | AA34: 0 | AB34: 0 | AC34: 0 | AD34: 0 | AE34: 0 | AF34: 0 | AG34: 0 | AH34: 0 | AI34: 0 | AJ34: 0 | AK34: 0 | AL34: 0 | AM34: 0 | AN34: 0 | AO34: 0 | AP34: 0 | AQ34: 0 | AR34: 0 | AS34: 0 | AT34: 0 | AU34: 0 | AV34: 0 | AW34: 0 | AX34: 0 | AY34: 0 | AZ34: =-IF(AZ$2=0,0,IF(AZ33=1,$I34*$I30,0))*AZ$126 -> 0 | BA34: 0 | BB34: 0 | BC34: 0 | BD34: 0 | BE34: 0 | BF34: 0 | BG34: 0 | BH34: 0 | BI34: 0 | BJ34: 0 | BK34: 0 | BL34: 0 | BM34: 0 | BN34: 0 | BO34: 0 | BP34: 0 | BQ34: 0 | BR34: 0
B35: =LCCA!B40 -> Disposal costs | C35: =LCCA!C40 -> $ | D35: =LCCA!D40 -> 0 | E35: =LCCA!E40 -> 0 | F35: =LCCA!F40 -> 0 | I35: 0 | M35: 0 | N35: =IF(General!$D$21="Off",D35,IF(OR(E35=F35,(AND(E35=F35,F35=E35))),F35,_xlfn.BETA.INV(RAND(),K35,L35,E35,F35))) -> 0 | P35: =S38 -> Salvage Value | Q35: =SUM(T38:BR38) -> 0 | S35: Number of replacements | T35: =SUM((T33:BR33)) -> 0
B36: =LCCA!B41 -> Salvage value | C36: =LCCA!C41 -> $ | D36: =LCCA!D41 -> 0 | E36: =LCCA!E41 -> 0 | F36: =LCCA!F41 -> 0 | I36: 0 | M36: 0 | N36: =IF(General!$D$21="Off",D36,IF(OR(E36=F36,(AND(E36=F36,F36=E36))),F36,_xlfn.BETA.INV(RAND(),K36,L36,E36,F36))) -> 0 | P36: Residual value | Q36: =SUM(T36:BR36) -> 0 | S36: Residual Value | T36: =IF(OR($I30=0,$I33=0),0,IF(AND(U$4=0,U$5=0,T$5>0),ABS((SUM($T$5:$BR$5)-(ROUND($I33,0)*$T35))*$I30/ROUND($I33,0)),0)*T$126) -> 0 | U36: 0 | V36: 0 | W36: 0 | X36: 0 | Y36: 0 | Z36: 0 | AA36: 0 | AB36: 0 | AC36: 0 | AD36: 0 | AE36: =IF(OR($I30=0,$I33=0),0,IF(AND(AF$4=0,AF$5=0,AE$5>0),ABS((SUM($T$5:$BR$5)-(ROUND($I33,0)*$T35))*$I30/ROUND($I33,0)),0)*AE$126) -> 0 | AF36: =IF(OR($I30=0,$I33=0),0,IF(AND(AG$4=0,AG$5=0,AF$5>0),ABS((SUM($T$5:$BR$5)-(ROUND($I33,0)*$T35))*$I30/ROUND($I33,0)),0)*AF$126) -> 0 | AG36: 0 | AH36: 0 | AI36: 0 | AJ36: 0 | AK36: 0 | AL36: 0 | AM36: 0 | AN36: 0 | AO36: 0 | AP36: 0 | AQ36: 0 | AR36: 0 | AS36: 0 | AT36: 0 | AU36: 0 | AV36: 0 | AW36: 0 | AX36: 0 | AY36: 0 | AZ36: 0 | BA36: 0 | BB36: 0 | BC36: 0 | BD36: 0 | BE36: 0 | BF36: 0 | BG36: 0 | BH36: 0 | BI36: 0 | BJ36: 0 | BK36: 0 | BL36: 0 | BM36: 0 | BN36: 0 | BO36: 0 | BP36: 0 | BQ36: 0 | BR36: 0
S37: Disposal costs | T37: =-IF(AND(T$4>0,U$5>0),$I35,0)*T$126 -> 0 | U37: =-IF(AND(U$4>0,V$5>0),$I35,0)*U$126 -> 0 | V37: 0 | W37: 0 | X37: 0 | Y37: 0 | Z37: 0 | AA37: 0 | AB37: 0 | AC37: 0 | AD37: 0 | AE37: 0 | AF37: 0 | AG37: 0 | AH37: 0 | AI37: 0 | AJ37: 0 | AK37: 0 | AL37: 0 | AM37: 0 | AN37: 0 | AO37: 0 | AP37: 0 | AQ37: 0 | AR37: 0 | AS37: 0 | AT37: 0 | AU37: 0 | AV37: 0 | AW37: 0 | AX37: 0 | AY37: 0 | AZ37: 0 | BA37: 0 | BB37: 0 | BC37: 0 | BD37: 0 | BE37: 0 | BF37: 0 | BG37: 0 | BH37: 0 | BI37: 0 | BJ37: 0 | BK37: 0 | BL37: 0 | BM37: 0 | BN37: 0 | BO37: 0 | BP37: 0 | BQ37: 0 | BR37: 0
B38: SAND DUNE | S38: Salvage Value | T38: =IF(AND(T$4>0,U$5>0),$I36,0)*T$126 -> 0 | U38: =IF(AND(U$4>0,V$5>0),$I36,0)*U$126 -> 0 | V38: 0 | W38: 0 | X38: 0 | Y38: 0 | Z38: 0 | AA38: 0 | AB38: 0 | AC38: 0 | AD38: 0 | AE38: 0 | AF38: 0 | AG38: 0 | AH38: 0 | AI38: 0 | AJ38: 0 | AK38: 0 | AL38: 0 | AM38: 0 | AN38: 0 | AO38: 0 | AP38: 0 | AQ38: 0 | AR38: 0 | AS38: 0 | AT38: 0 | AU38: 0 | AV38: 0 | AW38: 0 | AX38: 0 | AY38: 0 | AZ38: 0 | BA38: 0 | BB38: 0 | BC38: 0 | BD38: 0 | BE38: 0 | BF38: 0 | BG38: 0 | BH38: 0 | BI38: 0 | BJ38: 0 | BK38: 0 | BL38: 0 | BM38: 0 | BN38: 0 | BO38: 0 | BP38: 0 | BQ38: 0 | BR38: 0
B39: =LCCA!B44 -> Project area | C39: =LCCA!C44 -> m2 | D39: =LCCA!D44 -> 0 | E39: =LCCA!E44 -> 0 | F39: =LCCA!F44 -> 0 | I39: =N39 -> 0 | K39: =(M39-E39)/(F39-E39) ->  | L39: =6-K39 ->  | M39: =(E39+(D39*4)+F39)/6 -> 0 | N39: =IF(General!$D$21="Off",D39,IF(OR(E39=F39,(AND(E39=F39,F39=E39))),F39,_xlfn.BETA.INV(RAND(),K39,L39,E39,F39))) -> 0
B40: =LCCA!B45 -> Growth of project area per year | C40: =LCCA!C45 -> % | D40: =LCCA!D45 -> 0 | E40: =LCCA!E45 -> 0 | F40: =LCCA!F45 -> 0 | I40: 0 | M40: 0 | N40: =IF(General!$D$21="Off",D40,IF(OR(E40=F40,(AND(E40=F40,F40=E40))),F40,_xlfn.BETA.INV(RAND(),K40,L40,E40,F40))) -> 0
B41: =LCCA!B46 -> Capital cost from project | C41: =LCCA!C46 -> $ | D41: =LCCA!D46 -> 0 | E41: =LCCA!E46 -> 0 | F41: =LCCA!F46 -> 0 | I41: 0 | M41: 0 | N41: =IF(General!$D$21="Off",D41,IF(OR(E41=F41,(AND(E41=F41,F41=E41))),F41,_xlfn.BETA.INV(RAND(),K41,L41,E41,F41))) -> 0 | P41: Capital Cost from Project | Q41: =SUM(T41:BR41) -> 0 | S41: Capital Cost from Project | T41: =-$I41*T$4*T$126 -> 0 | U41: =-$I41*U$4*U$126 -> 0 | V41: 0 | W41: 0 | X41: 0 | Y41: 0 | Z41: 0 | AA41: 0 | AB41: 0 | AC41: 0 | AD41: 0 | AE41: 0 | AF41: 0 | AG41: 0 | AH41: 0 | AI41: 0 | AJ41: 0 | AK41: 0 | AL41: 0 | AM41: 0 | AN41: 0 | AO41: 0 | AP41: 0 | AQ41: 0 | AR41: 0 | AS41: 0 | AT41: 0 | AU41: 0 | AV41: 0 | AW41: 0 | AX41: 0 | AY41: 0 | AZ41: 0 | BA41: 0 | BB41: 0 | BC41: 0 | BD41: 0 | BE41: 0 | BF41: 0 | BG41: 0 | BH41: 0 | BI41: 0 | BJ41: 0 | BK41: 0 | BL41: 0 | BM41: 0 | BN41: 0 | BO41: 0 | BP41: 0 | BQ41: 0 | BR41: 0
